Workbook

Sheet Notes
B2: Employment projections for the five years to November 2018
B3: Regional employment by ANZSIC Industry
B4: The 2014 regional employment projections provide ANZSIC Industry employment projections for States and Territories, Capital Cities and Rest of States, and Statistical Areas Level 4 (SA4) regions, as defined in the Australian Statistical Geography Standard (ASGS). The previously published national ANZSIC projections are also included in this file for comparison. For more information about the ASGS, please see:
B5: http://www.abs.gov.au/websitedbs/D3310114.nsf/home/Australian+Statistical+Geography+Standard+(ASGS)
B6: Due to a high level of variability in the regional industry employment estimates published by the Australian Bureau of Statistics (ABS), the Department of Employment has smoothed (trended) these time series using a Hodrick-Prescott Filter. This approach was undertaken to provide a more reliable assessment of the longer term levels and trends in the relevant regional employment series, enabling more robust projections to be produced. As such, the November 2013 employment levels presented in this spreadsheet will differ to the estimates published by the ABS. (Please note, all national data for November 2013 is ABS Trend).
B7: The employment projections are derived from best practice time series models that summarise the information that is in a time series and convert it into a forecast. The projections are made by combining forecasts from autoregressive integrated moving average (ARIMA) and exponential smoothing with damped trend (ESWDT) models, with some adjustments made to take account of research undertaken by the Department of Employment and likely future regional developments. The projections are also made to be broadly consistent with the national ANZSIC Industry projections published in March 2014.
B8: The projections for total employment by state and territory are not directly comparable with the forecasts and projections published in state and territory budgets, which typically have shorter forecast horizons and different base periods. The Department of Employment’s projections are also medium term and point-in-time projections, and are thus not indicative of expected employment growth in the short term.
B9: While all efforts have been made to ensure these projections are as accurate as possible, due to the volatile nature of the data and the large number of very small series, caution should be exercised when using these projections. Indeed, these projections should be treated as indicative, not definitive, of expected future employment growth.

Sheet Projected growth (000) to Nov18
C1: Projected regional employment growth by industry - five years to November 2018 ('000) | D1: Select view options:
A2: States & Terr | B2: Major Regions | C2: Regions | D2: Agriculture, Forestry and Fishing | E2: Mining | F2: Manufacturing | G2: Electricity, Gas, Water and Waste Services | H2: Construction | I2: Wholesale Trade | J2: Retail Trade | K2: Accom and Food Services | L2: Transport, Postal and Warehousing | M2: Information Media and Telecomms | N2: Financial and Insurance Services | O2: Rental, Hiring and Real Estate Services | P2: Professional, Scientific and Technical Services | Q2: Administrative and Support Services | R2: Public Administration and Safety | S2: Education and Training | T2: Health Care and Social Assistance | U2: Arts and Recreation Services | V2: Other Services | W2: All Industries ('000) | X2: All Industries (%)
A3: X | B3: X | C3: New South Wales | D3: -3.771086628 | E3: -2.107115528 | F3: -12.13859299 | G3: 1.939365278 | H3: 18.24207226 | I3: 9.044115392 | J3: 26.05660667 | K3: 20.66567204 | L3: 4.609357015 | M3: -0.3223450698 | N3: 8.039811206 | O3: 5.075749888 | P3: 21.96120018 | Q3: 10.32545955 | R3: 6.919591608 | S3: 41.37796322 | T3: 74.04368153 | U3: 7.010986568 | V3: 4.600011863 | W3: 241.5725041 | X3: 6.709436997
A4: - | B4: X | C4: Greater Sydney | D4: -0.4417117057 | E4: -0.3612332401 | F4: -6.705653261 | G4: 0.211854131 | H4: 10.07951166 | I4: 8.057916124 | J4: 17.54508426 | K4: 10.00534707 | L4: 4.951157601 | M4: 0.3755394396 | N4: 8.905703521 | O4: 4.119150927 | P4: 21.27459881 | Q4: 6.559677471 | R4: 8.299551111 | S4: 28.47832843 | T4: 53.07900418 | U4: 6.798568916 | V4: 4.057019931 | W4: 185.2894154 | X4: 7.698617039
A5: - | B5: - | C5: Central Coast | D5: -0.04703027926 | E5: -0.05391457455 | F5: 0.2472479878 | G5: 0.02017384933 | H5: 1.281448783 | I5: 0.2771428864 | J5: 0.9083930632 | K5: 0.8290788822 | L5: 0.1389154055 | M5: -0.008444296948 | N5: 0.1951104448 | O5: 0.1556234397 | P5: 1.150641116 | Q5: 0.9054105787 | R5: 0.05535721412 | S5: 2.182590925 | T5: 3.975554366 | U5: 0.334086433 | V5: 0.9945462402 | W5: 13.54193246 | X5: 8.993647852
A6: - | B6: - | C6: Sydney - Baulkham Hills and Hawkesbury | D6: 0.00251678962 | E6: 0.005286763347 | F6: -0.2868566062 | G6: 0.1050528642 | H6: 1.12331443 | I6: 1.315391151 | J6: 2.993936685 | K6: 0.4877260035 | L6: 0.3827819355 | M6: 0.1013218448 | N6: 0.5359701802 | O6: 0.3742618219 | P6: 1.062661738 | Q6: 0.601775834 | R6: 0.7196820344 | S6: 2.565571541 | T6: 2.938657178 | U6: 0.217674189 | V6: 0.8494148876 | W6: 16.09614127 | X6: 12.97338241
A7: - | B7: - | C7: Sydney - Blacktown | D7: -0.05590634687 | E7: -0.01896849891 | F7: 0.1946767568 | G7: -0.0003308098747 | H7: 0.2225506965 | I7: 1.019161288 | J7: 1.416859239 | K7: 0.1552979593 | L7: 0.8831166258 | M7: -0.05020982184 | N7: 0.9266898118 | O7: 0.1435096927 | P7: 1.282783415 | Q7: 0.1853467939 | R7: -0.05448538955 | S7: 1.040282837 | T7: 2.738321241 | U7: 0.2209001191 | V7: 0.1586271902 | W7: 10.4082228 | X7: 6.749668661
A8: - | B8: - | C8: Sydney - City and Inner South | D8: -0.002406948423 | E8: 0.002014924847 | F8: -0.2909195394 | G8: 0.05487069239 | H8: 1.399467408 | I8: 0.3306723919 | J8: 2.490157686 | K8: 2.410204888 | L8: 1.233930123 | M8: 0.9319206691 | N8: 2.321660777 | O8: 0.4077434424 | P8: 6.54837507 | Q8: 1.306612674 | R8: 1.401722717 | S8: 3.267534027 | T8: 3.480691522 | U8: 1.668089646 | V8: 0.3928251542 | W8: 29.35516732 | X8: 15.45631283
A9: - | B9: - | C9: Sydney - Eastern Suburbs | D9: -0.02088513191 | E9: -0.008961637579 | F9: 0.2375324903 | G9: 0.03656216323 | H9: 1.834837813 | I9: 0.3656264581 | J9: 0.817484956 | K9: 0.3485395681 | L9: 0.4664036418 | M9: -0.2447638892 | N9: 0.3167945684 | O9: 0.4919106035 | P9: 3.003706109 | Q9: 0.5458605652 | R9: 0.158785138 | S9: 2.321452367 | T9: 3.341959488 | U9: 0.6154840845 | V9: 0.8104405632 | W9: 15.43876992 | X9: 9.77416041
A10: - | B10: - | C10: Sydney - Inner South West | D10: -0.01871121856 | E10: -0.01271967966 | F10: -1.544675559 | G10: 0.01788053271 | H10: 0.7214922677 | I10: 1.33105657 | J10: 1.641428572 | K10: 1.124666853 | L10: 0.739942945 | M10: -0.3071432288 | N10: -0.01993121475 | O10: 0.4305031096 | P10: 1.100503119 | Q10: 0.4678663836 | R10: 1.506945427 | S10: 3.680365036 | T10: 6.7384858 | U10: 0.6071218929 | V10: 0.6579342687 | W10: 18.86301188 | X10: 7.266609662
A11: - | B11: - | C11: Sydney - Inner West | D11: -0.01302292316 | E11: -0.02271819742 | F11: -0.09782958884 | G11: -0.01583493762 | H11: 0.2496246179 | I11: 0.6796350955 | J11: 0.8824267582 | K11: 0.7551845733 | L11: -0.2588734379 | M11: 0.08778956673 | N11: 0.8272873729 | O11: 0.1852975377 | P11: 1.02108733 | Q11: 0.09236576289 | R11: -0.1523251795 | S11: 1.427039915 | T11: 2.408869978 | U11: 0.2708675094 | V11: 0.07459477304 | W11: 8.401466526 | X11: 5.21161632
A12: - | B12: - | C12: Sydney - North Sydney and Hornsby | D12: -0.02782182288 | E12: -0.06165617802 | F12: -0.8546440141 | G12: -0.0061465676 | H12: 0.1538828808 | I12: -0.00517678294 | J12: 0.5466968746 | K12: 0.5981632657 | L12: 0.04870890324 | M12: -0.06091142377 | N12: 1.438706114 | O12: 0.6741214231 | P12: 2.49670117 | Q12: 0.1864119126 | R12: 0.5404078083 | S12: 2.318845196 | T12: 5.076066973 | U12: 0.9204477996 | V12: -0.1339883185 | W12: 13.84881521 | X12: 6.188061397
A13: - | B13: - | C13: Sydney - Northern Beaches | D13: -0.02594025764 | E13: -0.02048156591 | F13: 0.0429758765 | G13: -0.004223973758 | H13: 0.5236969295 | I13: 0.6762571736 | J13: 0.468764864 | K13: 0.7550948237 | L13: 0.04313370759 | M13: 0.1561738284 | N13: -0.04020397373 | O13: 0.1530885389 | P13: 0.4698322664 | Q13: 0.1601296822 | R13: 0.1766708272 | S13: 1.472206986 | T13: 1.880366198 | U13: 0.3030834151 | V13: 0.1044192702 | W13: 7.295044616 | X13: 5.21161632
A14: - | B14: - | C14: Sydney - Outer South West | D14: -0.01846755115 | E14: -0.03469193633 | F14: 0.4720258542 | G14: 0.03399968132 | H14: 0.4754572259 | I14: 0.8584718377 | J14: 0.7067829341 | K14: 0.941663235 | L14: 0.6597450196 | M14: 0.005295991169 | N14: 0.2431428482 | O14: 0.1674257037 | P14: 0.6070957713 | Q14: 0.3067992873 | R14: 0.09374753651 | S14: 1.510979661 | T14: 2.517440824 | U14: 0.2165924047 | V14: 0.01804020194 | W14: 9.781546529 | X14: 7.989926519
A15: - | B15: - | C15: Sydney - Outer West and Blue Mountains | D15: -0.1008452932 | E15: -0.06985653163 | F15: -1.348371027 | G15: -0.02724532433 | H15: 0.1427467612 | I15: 0.4062316585 | J15: 2.054113804 | K15: -0.05944173336 | L15: -0.3811192546 | M15: -0.1019549411 | N15: 0.003296180465 | O15: 0.1394271068 | P15: 0.1282207672 | Q15: 0.3007386628 | R15: 0.7726498856 | S15: 1.640515583 | T15: 4.232039399 | U15: 0.3239954442 | V15: -0.04434282755 | W15: 8.010798319 | X15: 5.21161632
A16: - | B16: - | C16: Sydney - Parramatta | D16: -0.04501934074 | E16: -0.009733072605 | F16: -1.286731411 | G16: 0.02600542381 | H16: 0.5834838908 | I16: 0.1750283835 | J16: 1.027386019 | K16: 0.6071214911 | L16: 1.123549546 | M16: 0.07055717876 | N16: 1.273946415 | O16: 0.3240254704 | P16: 0.6235085962 | Q16: 0.3270193613 | R16: 1.188797483 | S16: 1.759921458 | T16: 6.587141361 | U16: 0.4210897096 | V16: -0.02761669035 | W16: 14.74948127 | X16: 7.555403818
A17: - | B17: - | C17: Sydney - Ryde | D17: -0.0213752688 | E17: -0.01296707261 | F17: -0.0682758985 | G17: -0.01960820759 | H17: 0.5162470982 | I17: 0.141209564 | J17: 0.1569803535 | K17: 0.6001096731 | L17: -0.01334849304 | M17: -0.1102668312 | N17: -0.1012846586 | O17: 0.1096718976 | P17: 0.9946676229 | Q17: 0.2076190671 | R17: 0.0465446121 | S17: 0.7412057151 | T17: 1.372791291 | U17: 0.1654623709 | V17: 0.03469156094 | W17: 4.740074396 | X17: 5.21161632
A18: - | B18: - | C18: Sydney - South West | D18: -0.0159104901 | E18: -0.01253362515 | F18: -1.572963127 | G18: 0.02709610641 | H18: 0.7529460001 | I18: 0.2169921332 | J18: 1.03286253 | K18: 0.415627802 | L18: -0.1957699898 | M18: -0.003000937266 | N18: 0.3262649077 | O18: 0.2021257184 | P18: 0.9095228924 | Q18: 0.7800173587 | R18: 1.003719707 | S18: 1.292445418 | T18: 2.923682528 | U18: 0.290943957 | V18: -0.005743087584 | W18: 8.368325802 | X18: 5.21161632
A19: - | B19: - | C19: Sydney - Sutherland | D19: -0.005355418409 | E19: -0.03246307438 | F19: -0.8990393281 | G19: -0.005641215377 | H19: 0.1510458383 | I19: 0.1437717988 | J19: 0.3846426517 | K19: -0.01610799796 | L19: 0.2398299149 | M19: -0.04810009013 | N19: 0.5784765986 | O19: 0.1384232172 | P19: 0.2302651663 | Q19: 0.2796835579 | R19: 0.8554297729 | S19: 1.380292587 | T19: 2.467387484 | U19: 0.312116418 | V19: 0.2359591581 | W19: 6.390617039 | X19: 5.21161632
A20: - | B20: X | C20: Rest of NSW | D20: -3.850349726 | E20: -1.999488283 | F20: -5.437323128 | G20: 1.62896288 | H20: 8.015073425 | I20: 1.161687716 | J20: 8.340188401 | K20: 10.43404492 | L20: -0.2186620879 | M20: -0.5030399612 | N20: -0.4072630032 | O20: 1.004019933 | P20: 1.329991641 | Q20: 3.799917 | R20: -1.514694694 | S20: 12.82978447 | T20: 20.85754351 | U20: 0.3204277233 | V20: 0.492267943 | W20: 56.28308869 | X20: 4.715010675
A21: - | B21: - | C21: Capital Region | D21: -0.9502706521 | E21: -0.09831605476 | F21: -0.6085468089 | G21: 0.1082460895 | H21: 1.462994665 | I21: 0.0294274854 | J21: 1.497097207 | K21: 0.2921757521 | L21: -0.165486985 | M21: -0.09225739054 | N21: -0.05420083369 | O21: 0.04695449668 | P21: -0.1878941397 | Q21: 0.2513222507 | R21: -0.4526580487 | S21: 1.549253513 | T21: 1.130114418 | U21: 0.01082920444 | V21: -0.08947176641 | W21: 3.679312402 | X21: 3.564952512
A22: - | B22: - | C22: Central West | D22: 0.384347818 | E22: 0.06857739335 | F22: -0.1159052454 | G22: 0.2242477594 | H22: 0.6748799517 | I22: 0.2420069474 | J22: 0.8522476159 | K22: 1.030277633 | L22: 0.08275552117 | M22: -0.001925836284 | N22: 0.01405388749 | O22: 0.04434989549 | P22: 0.2321241454 | Q22: 0.3266331921 | R22: 0.3054902211 | S22: 1.191110981 | T22: 1.753145697 | U22: 0.04455241714 | V22: 0.4125391074 | W22: 7.765509102 | X22: 7.736598288
A23: - | B23: - | C23: Coffs Harbour - Grafton | D23: -0.1552927203 | E23: -0.02926741764 | F23: -0.2389051968 | G23: 0.05311917529 | H23: 0.1054630917 | I23: 0.02900577341 | J23: 0.1144551544 | K23: 0.7904929397 | L23: -0.1392480515 | M23: -0.04822781455 | N23: -0.05032953302 | O23: 0.01421494645 | P23: 0.01596183603 | Q23: 0.1612364232 | R23: -0.2957007913 | S23: 1.197387065 | T23: 1.798074412 | U23: 0.0005835521492 | V23: -0.09283146625 | W23: 3.230191378 | X23: 5.381469871
A24: - | B24: - | C24: Far West and Orana | D24: -0.1558483434 | E24: -0.09987525503 | F24: -0.1000991867 | G24: 0.07092932099 | H24: 0.2234821739 | I24: 0.02886703654 | J24: 0.3062316499 | K24: 0.7932167621 | L24: -0.0355908462 | M24: -0.0172366511 | N24: -0.0350593524 | O24: 0.05545071033 | P24: 0.03757141345 | Q24: 0.07365166129 | R24: -0.2416781895 | S24: 0.4909365086 | T24: 0.6693443084 | U24: 0.01021988757 | V24: -0.04604837672 | W24: 2.028465232 | X24: 4.116855668
A25: - | B25: - | C25: Hunter Valley exc Newcastle | D25: 0.08254552856 | E25: -0.1723072419 | F25: -0.7088977508 | G25: 0.3200935664 | H25: 0.5497097089 | I25: 0.2370223895 | J25: 0.6305207656 | K25: 1.605232699 | L25: 0.2010485945 | M25: -0.03484774998 | N25: -0.01956249669 | O25: 0.1953910067 | P25: 0.4829395296 | Q25: 0.4670326952 | R25: 0.1371234303 | S25: 0.8227446977 | T25: 2.663924985 | U25: 0.0715597191 | V25: 0.3868833274 | W25: 7.918157404 | X25: 6.132476478
A26: - | B26: - | C26: Illawarra | D26: -0.05945171678 | E26: -0.4838552383 | F26: -1.522752591 | G26: 0.07321937973 | H26: 0.1000249932 | I26: 0.02862229252 | J26: 0.1649163917 | K26: 0.772108543 | L26: -0.04306025711 | M26: -0.1099671824 | N26: -0.2530043816 | O26: 0.0403394043 | P26: -0.1449928648 | Q26: 0.1999430094 | R26: -0.3263058362 | S26: 2.091508851 | T26: 2.125820879 | U26: -0.01268575175 | V26: 0.0008378606514 | W26: 2.641265785 | X26: 2.034054665
A27: - | B27: - | C27: Mid North Coast | D27: -0.2068352316 | E27: -0.09710940747 | F27: -0.4773108535 | G27: 0.1049669641 | H27: 0.8706584368 | I27: -0.001256335125 | J27: 1.013184154 | K27: 0.1362655762 | L27: -0.13012364 | M27: -0.00905100858 | N27: -0.07098034621 | O27: 0.02503472053 | P27: -0.04636365189 | Q27: 0.1116911245 | R27: -0.202426475 | S27: 0.3952377867 | T27: 0.6700229948 | U27: -0.01511991343 | V27: -0.1335094926 | W27: 1.936975403 | X27: 2.531853135
A28: - | B28: - | C28: Murray | D28: -0.5339165824 | E28: -0.01046847413 | F28: -0.1742255509 | G28: 0.06562321473 | H28: 0.6045668531 | I28: 0.05879692348 | J28: 0.3327582074 | K28: 0.8986616514 | L28: 0.01060412584 | M28: -0.004482814316 | N28: -0.001411518627 | O28: 0.06655007204 | P28: 0.1083791188 | Q28: 0.06600385603 | R28: -0.08380990097 | S28: 0.5965773243 | T28: 0.8852239301 | U28: 0.05363244576 | V28: 0.01758280382 | W28: 2.956645685 | X28: 6.127987086
A29: - | B29: - | C29: New England and North West | D29: -0.9412589476 | E29: -0.2116489626 | F29: -0.05401437209 | G29: 0.07404696071 | H29: 0.780043036 | I29: 0.1549317859 | J29: 0.6777764471 | K29: 0.5297044954 | L29: -0.0568219592 | M29: -0.03212813587 | N29: -0.01455840689 | O29: 0.05566528752 | P29: 0.1059390308 | Q29: 0.2660905851 | R29: -0.1952678316 | S29: 0.8035732615 | T29: 1.012185856 | U29: 0.02097083002 | V29: -0.023411402 | W29: 2.951817558 | X29: 3.598559034
A30: - | B30: - | C30: Newcastle and Lake Macquarie | D30: -0.03824334229 | E30: -0.3039139336 | F30: -0.4754548255 | G30: 0.2438836547 | H30: 0.553009285 | I30: 0.09840919774 | J30: 0.7673307394 | K30: 2.230219791 | L30: 0.2541538678 | M30: -0.06470196849 | N30: 0.136849271 | O30: 0.1536443658 | P30: 0.2375298901 | Q30: 0.9182499127 | R30: 0.06404296227 | S30: 1.459296903 | T30: 2.886775445 | U30: 0.04337015958 | V30: 0.3148465387 | W30: 9.479297915 | X30: 5.602356033
A31: - | B31: - | C31: Richmond - Tweed | D31: -0.4970904685 | E31: -0.05931830908 | F31: 0.04354434771 | G31: 0.146148233 | H31: 0.8745849502 | I31: 0.1562702009 | J31: 0.6418552252 | K31: 0.9484497438 | L31: -0.008401654994 | M31: -0.02939446928 | N31: -0.01715262548 | O31: 0.1491162307 | P31: 0.3746037921 | Q31: 0.5013029279 | R31: 0.1332278326 | S31: 0.999771395 | T31: 2.180713775 | U31: 0.09027753923 | V31: 0.01664421092 | W31: 6.645152877 | X31: 6.430068339
A32: - | B32: - | C32: Riverina | D32: 0.05690360004 | E32: -0.009094968968 | F32: -0.3717761869 | G32: 0.1000843613 | H32: 0.6511874172 | I32: 0.2306018687 | J32: 0.4284254747 | K32: 0.4264280707 | L32: -0.02523448845 | M32: -0.01987221885 | N32: -0.02757252139 | O32: 0.08713158874 | P32: 0.08011261787 | Q32: 0.2601810813 | R32: -0.148558749 | S32: 0.635269683 | T32: 1.225355136 | U32: 0.02852650009 | V32: -0.00750965778 | W32: 3.600588608 | X32: 4.413493384
A33: - | B33: - | C33: Southern Highlands and Shoalhaven | D33: -0.05175417231 | E33: -0.05419956951 | F33: -0.5512588739 | G33: 0.01903821059 | H33: 0.3427771807 | I33: -0.01307822172 | J33: 0.5762347894 | K33: 0.02338037066 | L33: -0.2186030999 | M33: -0.05099561721 | N33: -0.06544434465 | O33: 0.01592714719 | P33: -0.04722461211 | Q33: 0.1329729007 | R33: -0.3291686671 | S33: 0.3713040063 | T33: 1.55969224 | U33: -0.02147393076 | V33: -0.1884163954 | W33: 1.449709341 | X33: 2.378805882
A34: X | B34: X | C34: Victoria | D34: 4.426668621 | E34: -0.6186761524 | F34: -19.77524126 | G34: 3.113867112 | H34: 15.77631769 | I34: 5.252838041 | J34: 21.7778234 | K34: 13.39611015 | L34: 6.575465062 | M34: -0.2359065706 | N34: 6.985266066 | O34: 2.074039843 | P34: 29.33803723 | Q34: 8.136606968 | R34: 10.45330035 | S34: 27.6337261 | T34: 55.88395248 | U34: 3.33795101 | V34: 2.794016983 | W34: 196.3261631 | X34: 6.847541484
A35: - | B35: X | C35: Greater Melbourne | D35: 0.2572548561 | E35: -0.3886627801 | F35: -13.32017107 | G35: 2.857248661 | H35: 9.510308795 | I35: 3.36184941 | J35: 16.27383524 | K35: 10.79711558 | L35: 5.234460125 | M35: -0.5177515521 | N35: 6.185393305 | O35: 1.355805654 | P35: 26.301608 | Q35: 6.036126493 | R35: 9.683574983 | S35: 21.34340869 | T35: 42.22922663 | U35: 2.964299949 | V35: 0.5226851028 | W35: 150.6876161 | X35: 6.821818498
A36: - | B36: - | C36: Melbourne - Inner | D36: 0.07603637627 | E36: -0.05233014897 | F36: -1.512801536 | G36: 0.5701651662 | H36: 0.884317462 | I36: 0.7118392316 | J36: 2.516373098 | K36: 2.445419718 | L36: -0.01024477657 | M36: -0.4969374887 | N36: 1.267904105 | O36: 0.07955996114 | P36: 11.59072217 | Q36: 1.041604676 | R36: 1.606214428 | S36: 3.801424563 | T36: 6.585992395 | U36: 1.245911468 | V36: 0.5540722686 | W36: 32.90524313 | X36: 9.674597869
A37: - | B37: - | C37: Melbourne - Inner East | D37: -0.007284992988 | E37: -0.08427001606 | F37: -0.7584670199 | G37: 0.09169780199 | H37: -0.3995847341 | I37: -0.32531592 | J37: 2.13758798 | K37: -0.05783358454 | L37: -0.06321555077 | M37: -0.2267616066 | N37: -0.2734312957 | O37: -0.006467842791 | P37: 0.5482648836 | Q37: 0.4927786524 | R37: 0.003543513759 | S37: 0.9345926796 | T37: 2.260429678 | U37: 0.01370675195 | V37: -0.1252512341 | W37: 4.154718143 | X37: 2.348736526
A38: - | B38: - | C38: Melbourne - Inner South | D38: -0.01007986887 | E38: -0.0726453338 | F38: -1.551151011 | G38: 0.1739492873 | H38: 0.7812334353 | I38: -0.33153972 | J38: 0.6444444809 | K38: 0.5765297482 | L38: 0.1965963028 | M38: -0.2178286477 | N38: 0.2374499831 | O38: 0.2714103506 | P38: 0.9810868146 | Q38: 0.1060894507 | R38: 0.2460512558 | S38: 1.736272993 | T38: 2.270832961 | U38: -0.06883921177 | V38: -0.4620540073 | W38: 5.507809263 | X38: 2.569693864
A39: - | B39: - | C39: Melbourne - North East | D39: 0.005033961112 | E39: -0.05246349418 | F39: -2.099630415 | G39: 0.30685603 | H39: 1.318202267 | I39: 0.9322937619 | J39: 0.7917811674 | K39: 1.530060121 | L39: 0.750116094 | M39: -0.1227081931 | N39: 0.9607632786 | O39: 0.08895193508 | P39: 0.8705952603 | Q39: 0.4255159907 | R39: 0.5070713691 | S39: 1.655325479 | T39: 3.329823856 | U39: 0.4262039645 | V39: -0.4895790179 | W39: 11.13421342 | X39: 4.710659472
A40: - | B40: - | C40: Melbourne - North West | D40: -0.01739421377 | E40: -0.0323728677 | F40: -2.399558777 | G40: 0.1250645547 | H40: 0.6988735426 | I40: 0.4100014724 | J40: 1.910741331 | K40: -0.04517690497 | L40: -0.3864212451 | M40: -0.1935137493 | N40: 0.3923761815 | O40: -0.006122802209 | P40: 1.057520948 | Q40: 0.2898311858 | R40: 0.9138787676 | S40: 1.458992251 | T40: 3.120942547 | U40: 0.009748276278 | V40: -0.1476546245 | W40: 7.159755873 | X40: 4.466227053
A41: - | B41: - | C41: Melbourne - Outer East | D41: 0.01175412431 | E41: -0.02878567401 | F41: -3.543552895 | G41: 0.3246878819 | H41: -0.6018492305 | I41: -0.1624303514 | J41: 1.082597041 | K41: 0.2935869984 | L41: -0.277179938 | M41: -0.1009823307 | N41: 0.09098912399 | O41: 0.1050300544 | P41: 3.37298117 | Q41: 0.354670005 | R41: 0.3987406451 | S41: 1.648351141 | T41: 3.682090779 | U41: 0.11111638 | V41: -0.6923492057 | W41: 6.069465718 | X41: 2.348736526
A42: - | B42: - | C42: Melbourne - South East | D42: 0.2036583108 | E42: -0.02094736913 | F42: -0.1447996578 | G42: 0.595011355 | H42: 3.078531832 | I42: 0.3607322548 | J42: 2.919504595 | K42: 2.174276473 | L42: 1.71609337 | M42: 0.4465058968 | N42: 1.757768863 | O42: 0.2418055331 | P42: 1.929654662 | Q42: 1.041496656 | R42: 2.268785736 | S42: 3.839593945 | T42: 10.96920671 | U42: 0.2524097006 | V42: 1.144803044 | W42: 34.77409191 | X42: 10.09836679
A43: - | B43: - | C43: Melbourne - West | D43: 0.07553033381 | E43: -0.02094690865 | F43: 0.5630486178 | G43: 0.5732966028 | H43: 3.660078168 | I43: 1.746058777 | J43: 3.00201552 | K43: 3.833668593 | L43: 3.949459473 | M43: 0.5388835784 | N43: 1.591711982 | O43: 0.3398171931 | P43: 4.808537922 | Q43: 1.557120234 | R43: 3.462384954 | S43: 3.401634728 | T43: 7.781408601 | U43: 0.9618656681 | V43: 0.6319629156 | W43: 42.45753695 | X43: 12.40048556
A44: - | B44: - | C44: Mornington Peninsula | D44: 0.01256034774 | E44: -0.02279122364 | F44: -1.303256603 | G44: 0.1255937536 | H44: -0.1106155241 | I44: -0.08298801488 | J44: 0.6545187634 | K44: 0.2873365941 | L44: 0.07144280848 | M44: -0.03972624347 | N44: 0.2117117415 | O44: 0.04750501025 | P44: 1.041760369 | Q44: 0.8256250342 | R44: 0.3994063848 | S44: 2.269590041 | T44: 1.921874628 | U44: 0.084623417 | V44: 0.1306103826 | W44: 6.524781665 | X44: 4.807058689
A45: - | B45: X | C45: Rest of Vic. | D45: 4.983701679 | E45: -0.1918700485 | F45: -6.469121235 | G45: 0.2847462436 | H45: 6.349043138 | I45: 1.817308872 | J45: 5.605698475 | K45: 2.626449864 | L45: 1.24773458 | M45: 0.1872723294 | N45: 0.5572503096 | O45: 0.6769401754 | P45: 2.515239113 | Q45: 2.064391737 | R45: 0.7757480019 | S45: 6.245303446 | T45: 13.75302155 | U45: 0.3230470064 | V45: 2.286641798 | W45: 45.63854703 | X45: 6.933867663
A46: - | B46: - | C46: Ballarat | D46: 0.821659473 | E46: -0.01157686257 | F46: -0.4896740448 | G46: 0.01802556137 | H46: 1.027044456 | I46: 0.2027190414 | J46: 0.9876638278 | K46: 0.4576914666 | L46: 0.164600308 | M46: 0.05168633105 | N46: 0.06455960459 | O46: 0.09340887766 | P46: 0.2487006764 | Q46: 0.1875225918 | R46: 0.08262086875 | S46: 0.6733255196 | T46: 2.024037341 | U46: 0.0631974191 | V46: 0.2625572431 | W46: 6.9297697 | X46: 9.178181079
A47: - | B47: - | C47: Bendigo | D47: 0.4200713173 | E47: 0.005114682928 | F47: -0.2582872806 | G47: 0.07689365739 | H47: 0.8087281004 | I47: 0.3319590678 | J47: 1.818880073 | K47: 0.8179608465 | L47: 0.2591865438 | M47: 0.04234291164 | N47: 0.1420969952 | O47: 0.1242429908 | P47: 0.3478679656 | Q47: 0.3661659782 | R47: 0.1765434732 | S47: 0.9281831864 | T47: 1.731255347 | U47: 0.09588709637 | V47: 0.3015138371 | W47: 8.53660679 | X47: 11.92662892
A48: - | B48: - | C48: Geelong | D48: 0.1203894462 | E48: -0.04083231728 | F48: -1.382333455 | G48: 0.02485270971 | H48: 0.9643010778 | I48: 0.2336582112 | J48: 0.3105886262 | K48: -0.05033937962 | L48: 0.163677955 | M48: 0.02454235088 | N48: 0.1029111378 | O48: 0.1152010637 | P48: 0.9485037072 | Q48: 0.3418735049 | R48: 0.385714271 | S48: 0.9600305574 | T48: 3.299582933 | U48: 0.05708790444 | V48: 0.3484194544 | W48: 6.927829759 | X48: 5.705895204
A49: - | B49: - | C49: Hume | D49: 0.0468100933 | E49: -0.01457473601 | F49: -1.13198818 | G49: 0.01471446061 | H49: 0.7345564203 | I49: 0.1772086337 | J49: 0.7644527313 | K49: 0.615090568 | L49: 0.101903631 | M49: 0.002434705286 | N49: 0.04126279574 | O49: 0.07101248727 | P49: 0.1482607839 | Q49: 0.161706936 | R49: 0.2473397218 | S49: 0.9929759733 | T49: 1.324593333 | U49: 0.01587942019 | V49: 0.2190397191 | W49: 4.532679498 | X49: 5.705895204
A50: - | B50: - | C50: Latrobe - Gippsland | D50: 0.7789883415 | E50: -0.07297752616 | F50: -0.7292459082 | G50: 0.06569167106 | H50: 1.125054301 | I50: 0.1994584217 | J50: 0.9421794509 | K50: 0.2681750207 | L50: 0.1800644807 | M50: 0.02558761906 | N50: 0.0745200339 | O50: 0.1036334661 | P50: 0.3968696995 | Q50: 0.4168290328 | R50: -0.2828312532 | S50: 0.8187259594 | T50: 1.899877864 | U50: 0.0344574405 | V50: 0.4160355422 | W50: 6.661093657 | X50: 5.705895204
A51: - | B51: - | C51: North West | D51: 0.4288199726 | E51: -0.01393046306 | F51: -0.400154103 | G51: 0.04856826106 | H51: 0.6136587707 | I51: 0.3388907882 | J51: 0.6190938326 | K51: 0.2217622816 | L51: 0.2155515475 | M51: 0.0180765149 | N51: 0.05964770134 | O51: 0.03047483349 | P51: 0.09146563813 | Q51: 0.2271833119 | R51: 0.09628905836 | S51: 0.5468978014 | T51: 1.574412941 | U51: 0.0355422853 | V51: 0.3972365258 | W51: 5.149487499 | X51: 7.095108237
A52: - | B52: - | C52: Shepparton | D52: 1.177781826 | E52: -0.00997639885 | F52: -1.105355112 | G52: 0.00505988061 | H52: 0.6193495875 | I52: 0.1867836968 | J52: 0.1437359707 | K52: 0.1205879463 | L52: 0.09640874558 | M52: 0.01391266066 | N52: 0.038606848 | O52: 0.06700077519 | P52: 0.1434399876 | Q52: 0.1978105807 | R52: 0.006576324955 | S52: 0.595071672 | T52: 0.8160272732 | U52: 0.01013537429 | V52: 0.1914750671 | W52: 3.314432706 | X52: 5.705895204
A53: - | B53: - | C53: Warrnambool and South West | D53: 1.107157033 | E53: -0.00865214705 | F53: -0.90893961 | G53: 0.01780198399 | H53: 0.4172808468 | I53: 0.1745856934 | J53: 0.1671718545 | K53: 0.1906760024 | L53: 0.07667474285 | M53: 0.009892788433 | N53: 0.03250143749 | O53: 0.06687105498 | P53: 0.1236696435 | Q53: 0.166490172 | R53: 0.009827601482 | S53: 0.7084352964 | T53: 1.075074369 | U53: 0.01521443543 | V53: 0.1449142224 | W53: 3.586647421 | X53: 5.705895204
A54: X | B54: X | C54: Queensland | D54: -1.532175865 | E54: -1.887654698 | F54: -0.2540422561 | G54: 2.838405331 | H54: 20.24804539 | I54: 3.756349443 | J54: 32.2556767 | K54: 9.606980828 | L54: 9.520958122 | M54: 0.5471010882 | N54: 1.651384288 | O54: 3.383913893 | P54: 19.37637428 | Q54: 11.41711282 | R54: 13.92832775 | S54: 25.63610898 | T54: 51.94826637 | U54: 3.116808009 | V54: 9.582796714 | W54: 215.1407372 | X54: 9.292193035
A55: - | B55: X | C55: Greater Brisbane | D55: -0.275455113 | E55: -0.6823328465 | F55: -1.325257194 | G55: 0.3196482579 | H55: 7.886915749 | I55: 2.149255893 | J55: 13.53904526 | K55: 3.805180445 | L55: 3.291034284 | M55: 0.3791296867 | N55: 1.179460532 | O55: 1.516725314 | P55: 13.24497796 | Q55: 4.98147889 | R55: 4.895369961 | S55: 12.3814411 | T55: 23.51025127 | U55: 1.723173633 | V55: 2.400512571 | W55: 94.92055565 | X55: 8.344027871
A56: - | B56: - | C56: Brisbane - East | D56: -0.02361324329 | E56: -0.1122205693 | F56: 0.1923022149 | G56: -0.003012756194 | H56: 0.3378905966 | I56: 0.4402692483 | J56: 1.273090799 | K56: 0.3810368607 | L56: 0.589791856 | M56: -0.005149045329 | N56: 0.03176226496 | O56: 0.1084645936 | P56: 0.4699947449 | Q56: 0.4096543398 | R56: 0.6724085748 | S56: 0.8300061861 | T56: 1.553421944 | U56: 0.1237225079 | V56: 0.1259261718 | W56: 7.39574729 | X56: 6.338092622
A57: - | B57: - | C57: Brisbane - North | D57: -0.01275705378 | E57: -0.1274059696 | F57: -0.6214262864 | G57: -0.03347829191 | H57: 0.9147997616 | I57: 0.03790794714 | J57: 0.7478554397 | K57: -0.2021085928 | L57: 0.1822111182 | M57: -0.03494838463 | N57: -0.02893508714 | O57: 0.03654432718 | P57: 1.371012369 | Q57: 0.3345124119 | R57: 0.39520123 | S57: 1.085889304 | T57: 2.908013176 | U57: 0.1075566983 | V57: 0.03554203828 | W57: 7.095986155 | X57: 6.328760059
A58: - | B58: - | C58: Brisbane - South | D58: -0.01710586376 | E58: -0.1167536083 | F58: 0.4969680292 | G58: 0.06925437916 | H58: 0.709690003 | I58: 0.07335791437 | J58: 2.428348464 | K58: 1.672819361 | L58: 0.6856760067 | M58: 0.09571144924 | N58: 0.3397907987 | O58: 0.372296691 | P58: 2.83190315 | Q58: 0.6213171846 | R58: 1.159254661 | S58: 2.060472721 | T58: 4.255790252 | U58: 0.2758579595 | V58: 0.04495082494 | W58: 18.05960038 | X58: 9.574314026
A59: - | B59: - | C59: Brisbane - West | D59: -0.01278357936 | E59: -0.165051528 | F59: -0.2093770359 | G59: -0.01115465872 | H59: 0.08545315985 | I59: 0.05780151944 | J59: 0.8126254368 | K59: 0.1329414077 | L59: 0.08359225193 | M59: -0.01066487457 | N59: 0.01243544162 | O59: 0.1032225594 | P59: 0.676101114 | Q59: 0.2485388755 | R59: 0.07441450968 | S59: 1.344141204 | T59: 1.258960021 | U59: 0.1410737636 | V59: 0.05494793962 | W59: 4.677217527 | X59: 4.820567282
A60: - | B60: - | C60: Brisbane Inner City | D60: 0.006129878728 | E60: 0.2831180978 | F60: -0.0517973102 | G60: 0.2098383719 | H60: 0.7938197782 | I60: 0.3836816175 | J60: 1.856040114 | K60: 0.6780771157 | L60: 0.52048855 | M60: 0.2312862031 | N60: 0.3630208991 | O60: 0.4845600701 | P60: 4.9102299 | Q60: 1.379919603 | R60: 0.4627719254 | S60: 1.940957308 | T60: 3.368309968 | U60: 0.3987788651 | V60: 0.4059677905 | W60: 18.62519875 | X60: 12.68975944
A61: - | B61: - | C61: Ipswich | D61: -0.02718295363 | E61: -0.04776377581 | F61: -0.317940385 | G61: 0.0690104947 | H61: 2.181238163 | I61: 0.371939781 | J61: 2.178802359 | K61: 0.8672322581 | L61: 0.9119253232 | M61: 0.06790427101 | N61: 0.2084610345 | O61: 0.1382263771 | P61: 1.230926766 | Q61: 0.6245826986 | R61: 1.388667099 | S61: 1.910365672 | T61: 3.856108683 | U61: 0.1969994606 | V61: 0.7047133626 | W61: 16.51421669 | X61: 11.53293816
A62: - | B62: - | C62: Logan - Beaudesert | D62: -0.1616547497 | E62: -0.1387943506 | F62: -1.026294256 | G62: -0.003293048522 | H62: 0.3376810208 | I62: -0.1394107676 | J62: 1.277668421 | K62: -0.07781698677 | L62: -0.1582541681 | M62: -0.006252360334 | N62: 0.05011418341 | O62: 0.1241115383 | P62: 0.3733532272 | Q62: 0.5010224404 | R62: 0.5168510757 | S62: 0.9795488739 | T62: 1.590700705 | U62: 0.1253243292 | V62: 0.1055896605 | W62: 4.270194788 | X62: 3.133110218
A63: - | B63: - | C63: Moreton Bay - North | D63: -0.0382333009 | E63: -0.1541225687 | F63: -0.4603760829 | G63: -0.008872019487 | H63: 0.2039526577 | I63: 0.4099277403 | J63: 1.166319653 | K63: 0.04749745952 | L63: -0.09301214586 | M63: -0.005008703715 | N63: 0.01786675522 | O63: 0.07316036417 | P63: 0.3123292129 | Q63: 0.3093971198 | R63: -0.1424410637 | S63: 0.6863684356 | T63: 2.396788735 | U63: 0.08159069696 | V63: 0.4287227581 | W63: 5.231855703 | X63: 5.374762747
A64: - | B64: - | C64: Moreton Bay - South | D64: 0.002372814071 | E64: -0.002795254323 | F64: 0.5864999118 | G64: 0.121002546 | H64: 2.181421267 | I64: 0.3500705904 | J64: 1.609706047 | K64: 0.5397277669 | L64: 0.3012459815 | M64: 0.1610603097 | N64: 0.2829121045 | O64: 0.1687970826 | P64: 1.745869552 | Q64: 0.6573186446 | R64: 0.2807752186 | S64: 1.392805367 | T64: 2.072655119 | U64: 0.268989613 | V64: 0.3301036969 | W64: 13.05053838 | X64: 13.11270094
A65: - | B65: X | C65: Rest of Qld | D65: -0.9960292671 | E65: -1.012571916 | F65: 0.9389386056 | G65: 2.545102304 | H65: 12.54409654 | I65: 1.51169379 | J65: 18.87786488 | K65: 5.894840044 | L65: 6.179244041 | M65: 0.1053352062 | N65: 0.3521914625 | O65: 1.863708691 | P65: 5.77236131 | Q65: 6.445899968 | R65: 8.92966769 | S65: 13.20809087 | T65: 28.42509255 | U65: 1.395080267 | V65: 7.239574485 | W65: 120.2201815 | X65: 10.20806454
A66: - | B66: - | C66: Cairns | D66: 0.04394910968 | E66: -0.1351295783 | F66: 0.2538924046 | G66: 0.1606286394 | H66: 0.5227824953 | I66: 0.06626454562 | J66: 1.480430302 | K66: 0.1699227655 | L66: 0.2501501243 | M66: -0.003205202029 | N66: 0.002283465615 | O66: 0.1514067643 | P66: 0.3057825779 | Q66: 0.5619527251 | R66: 0.7988887115 | S66: 0.9915508634 | T66: 2.372484511 | U66: 0.0762213068 | V66: 0.5589838397 | W66: 8.629240371 | X66: 7.715325882
A67: - | B67: - | C67: Darling Downs - Maranoa | D67: -0.5893457442 | E67: -0.1956159833 | F67: 0.09971223192 | G67: 0.1749566952 | H67: 0.8123013109 | I67: 0.05413015045 | J67: 0.8102997907 | K67: 0.2548444887 | L67: 0.343297447 | M67: -0.0005079060622 | N67: 0.005707944435 | O67: 0.07453664268 | P67: 0.1726434003 | Q67: 0.1281804855 | R67: 0.8690674926 | S67: 0.6501619431 | T67: 1.099054507 | U67: 0.009831530749 | V67: 0.3691501675 | W67: 5.142406595 | X67: 7.715325882
A68: - | B68: - | C68: Fitzroy | D68: 0.1681502788 | E68: -0.4585841799 | F68: 0.1997389786 | G68: 0.6228418294 | H68: 3.402871836 | I68: 0.2380370222 | J68: 1.646369322 | K68: 0.5104512574 | L68: 0.7552807991 | M68: 0.02165565864 | N68: 0.08253039305 | O68: 0.275405845 | P68: 0.9900502796 | Q68: 0.8084441349 | R68: 1.759566815 | S68: 1.852543404 | T68: 2.51379524 | U68: 0.09344700849 | V68: 0.6839828461 | W68: 16.16657877 | X68: 13.87851141
A69: - | B69: - | C69: Gold Coast | D69: 0.047246227 | E69: -0.06900781451 | F69: -0.00858604665 | G69: 0.3762391133 | H69: 2.813050781 | I69: 0.747133875 | J69: 7.297500546 | K69: 1.126969882 | L69: 2.055050212 | M69: 0.09243449796 | N69: 0.1740877336 | O69: 0.3566899577 | P69: 2.352476023 | Q69: 1.956748056 | R69: 1.212079063 | S69: 3.054501412 | T69: 6.871998968 | U69: 0.8636287801 | V69: 1.586129434 | W69: 32.9063707 | X69: 11.74262512
A70: - | B70: - | C70: Mackay | D70: 0.06652017865 | E70: 0.5224747822 | F70: 0.2916889693 | G70: 0.1777659361 | H70: 1.840108959 | I70: 0.2087316641 | J70: 1.478964725 | K70: 0.30148958 | L70: 0.481463762 | M70: 0.006870612756 | N70: 0.04309801247 | O70: 0.218023116 | P70: 0.9115190701 | Q70: 0.7389257037 | R70: 0.5811406205 | S70: 1.010367498 | T70: 1.9177554 | U70: 0.05552728126 | V70: 1.410034288 | W70: 12.26247016 | X70: 11.87983724
A71: - | B71: - | C71: Queensland - Outback | D71: -0.3688076014 | E71: 0.01490787222 | F71: 0.0364906292 | G71: 0.2041303922 | H71: 0.3279533801 | I71: 0.007266026509 | J71: 0.355343816 | K71: 0.2022318821 | L71: 0.1542682444 | M71: -0.0002790695304 | N71: 0.003390633414 | O71: 0.02249772952 | P71: 0.07878271345 | Q71: 0.2341171928 | R71: 0.5083267094 | S71: 0.541075067 | T71: 1.134534245 | U71: 0.009267567524 | V71: 0.1821726968 | W71: 3.647670127 | X71: 7.715325882
A72: - | B72: - | C72: Sunshine Coast | D72: 0.04608704415 | E72: -0.08530413746 | F72: 0.4434311095 | G72: 0.2187840284 | H72: 1.303241913 | I72: 0.1883422878 | J72: 2.904807793 | K72: 1.43713085 | L72: 1.124028848 | M72: 0.03490582407 | N72: 0.1468522684 | O72: 0.5172998232 | P72: 0.4790590262 | Q72: 1.367032845 | R72: 0.9335006887 | S72: 1.892258619 | T72: 5.074251763 | U72: 0.24011037 | V72: 0.6256001043 | W72: 18.89142107 | X72: 11.85169878
A73: - | B73: - | C73: Toowoomba | D73: -0.05455173545 | E73: -0.131230176 | F73: -0.02570876237 | G73: 0.1433338888 | H73: 0.107263768 | I73: 0.00643568327 | J73: 0.8060214422 | K73: 0.4265517882 | L73: 0.1803705259 | M73: -0.02646181432 | N73: -0.02863431251 | O73: 0.05358223786 | P73: 0.1520699105 | Q73: 0.1539269269 | R73: 0.711726346 | S73: 0.8112774848 | T73: 1.814636407 | U73: 0.01697749673 | V73: 0.293347378 | W73: 5.410934484 | X73: 7.715325882
A74: - | B74: - | C74: Townsville | D74: -0.380408945 | E74: -0.06690637621 | F74: -0.3135712094 | G74: 0.09763947303 | H74: 0.78991357 | I74: 0.05705237459 | J74: 1.028479544 | K74: 0.8709880457 | L74: 0.568523378 | M74: -0.02563265092 | N74: -0.007618675585 | O74: 0.1324662933 | P74: 0.2911965057 | Q74: 0.4325689073 | R74: 0.9946689914 | S74: 1.000156476 | T74: 2.506539427 | U74: 0.06527565902 | V74: 0.5684042246 | W74: 8.609735012 | X74: 7.715325882
A75: - | B75: - | C75: Wide Bay | D75: -0.5571296097 | E75: -0.2125573055 | F75: -0.05534956135 | G75: 0.3328623704 | H75: 1.107246767 | I75: 0.03656953836 | J75: 1.150725941 | K75: 0.5420057301 | L75: 0.3242887784 | M75: -0.01651484518 | N75: -0.01353123885 | O75: 0.1272109888 | P75: 0.2715691414 | Q75: 0.2901000467 | R75: 0.2959598482 | S75: 1.209287753 | T75: 2.694181559 | U75: 0.04637099191 | V75: 0.9800573477 | W75: 8.553354241 | X75: 7.715325882
A76: X | B76: X | C76: South Australia | D76: -0.07103436482 | E76: -0.7864952395 | F76: -5.432021911 | G76: 0.01832865418 | H76: 6.722166492 | I76: 0.3006372001 | J76: 4.738860179 | K76: 1.124604858 | L76: 2.142000889 | M76: -0.2510041593 | N76: -0.2515978667 | O76: 0.3483890603 | P76: 1.768091963 | Q76: 1.714437646 | R76: 3.050591187 | S76: 6.703210731 | T76: 14.90580794 | U76: 0.2859631842 | V76: -0.04864525464 | W76: 36.98229119 | X76: 4.600874159
A77: - | B77: X | C77: Greater Adelaide | D77: 0.5652473926 | E77: -0.3507536868 | F77: -4.683301349 | G77: 0.1253531956 | H77: 6.137559139 | I77: 0.1424915634 | J77: 3.595388142 | K77: 1.131497364 | L77: 1.256677026 | M77: -0.2352755405 | N77: -0.2616292407 | O77: 0.3282295782 | P77: 1.820575562 | Q77: 1.057383019 | R77: 3.431887703 | S77: 5.845031482 | T77: 13.19566847 | U77: 0.3128025928 | V77: -0.003169647382 | W77: 33.41166277 | X77: 5.302970857
A78: - | B78: - | C78: Adelaide - Central and Hills | D78: 0.1472689072 | E78: -0.1325956741 | F78: -0.7321897246 | G78: -0.002738476885 | H78: 1.427089356 | I78: -0.201859478 | J78: 0.04974196998 | K78: -0.1504165535 | L78: 0.1357515954 | M78: -0.1051055937 | N78: -0.1462880295 | O78: 0.0486712423 | P78: 0.9207010035 | Q78: 0.2703793887 | R78: 1.260121712 | S78: 1.523604897 | T78: 2.197381097 | U78: 0.0329413914 | V78: -0.3730078476 | W78: 6.169451182 | X78: 4.094290628
A79: - | B79: - | C79: Adelaide - North | D79: 0.1827807463 | E79: -0.1162535565 | F79: -3.066657566 | G79: 0.02229309468 | H79: 0.8830212118 | I79: 0.2031944302 | J79: 0.6562050941 | K79: 0.4351465777 | L79: 0.3979853472 | M79: -0.09114720416 | N79: -0.06412340691 | O79: 0.05683575044 | P79: 0.2884992042 | Q79: 0.1629539614 | R79: 1.443238982 | S79: 1.245471887 | T79: 4.004760008 | U79: 0.04588495411 | V79: 0.2963617886 | W79: 6.986451305 | X79: 3.722266224
A80: - | B80: - | C80: Adelaide - South | D80: 0.1243217258 | E80: -0.107097317 | F80: -0.657851138 | G80: 0.03590340372 | H80: 1.850859838 | I80: -0.1028096495 | J80: 1.986365002 | K80: -0.1137152203 | L80: 0.5836588379 | M80: -0.0688837676 | N80: -0.1349971954 | O80: 0.09746793626 | P80: -0.02749355362 | Q80: 0.1900883374 | R80: 0.3040961023 | S80: 1.496165199 | T80: 3.473959105 | U80: 0.1260345298 | V80: -0.2784318764 | W80: 8.7776403 | X80: 4.864855861
A81: - | B81: - | C81: Adelaide - West | D81: 0.06945909834 | E81: -0.0123721777 | F81: -0.1839474561 | G81: 0.06795885649 | H81: 2.082395609 | I81: 0.2525444533 | J81: 0.9630956014 | K81: 1.009098579 | L81: 0.1818799536 | M81: 0.01404273323 | N81: 0.0787625004 | O81: 0.1207390338 | P81: 0.5146592071 | Q81: 0.4520781056 | R81: 0.3061946613 | S81: 1.513704148 | T81: 3.547917644 | U81: 0.1082603272 | V81: 0.3916491026 | W81: 11.47811998 | X81: 10.3175768
A82: - | B82: X | C82: Rest of SA | D82: -1.05925403 | E82: -0.4628471342 | F82: -0.8275760571 | G82: -0.1007860431 | H82: 0.6235454736 | I82: 0.1757819729 | J82: 1.136852661 | K82: -0.02405238189 | L82: 0.8463173175 | M82: 0.01199089159 | N82: 0.04957334599 | O82: 0.04169832542 | P82: 0.08369498488 | Q82: 0.6458256838 | R82: -0.2742607571 | S82: 0.9047200261 | T82: 1.859126647 | U82: -0.01581187831 | V82: -0.04391062492 | W82: 3.570628422 | X82: 2.05498425
A83: - | B83: - | C83: Barossa - Yorke - Mid North | D83: -0.8568273567 | E83: -0.09731649791 | F83: -0.2669644048 | G83: -0.02287437183 | H83: 0.2466358435 | I83: 0.05655152966 | J83: 0.1315235458 | K83: 0.05441354474 | L83: 0.1972801245 | M83: 0.001565120636 | N83: 0.007318912733 | O83: 0.002776138577 | P83: 0.01860860521 | Q83: 0.1989299759 | R83: -0.1071161653 | S83: 0.3210012676 | T83: 0.4669279831 | U83: -0.008014084034 | V83: -0.02428305522 | W83: 0.3201366563 | X83: 0.6509269307
A84: - | B84: - | C84: South Australia - Outback | D84: -0.2233085186 | E84: -0.3132662826 | F84: -0.2217332275 | G84: -0.01703440844 | H84: 0.2051569185 | I84: 0.019081764 | J84: 0.1106292784 | K84: 0.0344899294 | L84: 0.2323945323 | M84: -0.0001842389284 | N84: 0.004137843026 | O84: 0.0076549504 | P84: 0.009580779107 | Q84: 0.1120872185 | R84: -0.0795279564 | S84: 0.2861270121 | T84: 0.4906085025 | U84: -0.005189837929 | V84: -0.02595267424 | W84: 0.6257515835 | X84: 1.601974016
A85: - | B85: - | C85: South Australia - South East | D85: 0.05037424043 | E85: -0.07488642801 | F85: -0.3161302523 | G85: -0.05629480045 | H85: 0.1593409573 | I85: 0.09994076637 | J85: 0.9120687486 | K85: -0.1237145952 | L85: 0.4054624505 | M85: 0.009883661065 | N85: 0.04213790544 | O85: 0.03359737447 | P85: 0.05408002624 | Q85: 0.334609407 | R85: -0.09396396675 | S85: 0.2820076609 | T85: 0.9018574783 | U85: 0.001133064006 | V85: 0.003236484482 | W85: 2.624740182 | X85: 3.06945512
A86: X | B86: X | C86: Western Australia | D86: -1.259665864 | E86: -4.975815511 | F86: -0.7666270185 | G86: 1.949634116 | H86: 20.09271869 | I86: 1.295899811 | J86: 11.77201159 | K86: 9.114008068 | L86: 8.755177269 | M86: -0.001860461492 | N86: 3.770729004 | O86: 3.920057814 | P86: 14.70786849 | Q86: 4.093730184 | R86: 6.621218584 | S86: 12.33300251 | T86: 23.10076915 | U86: 1.213839144 | V86: 3.690921502 | W86: 119.4276171 | X86: 8.883632253
A87: - | B87: X | C87: Greater Perth | D87: 0.2125819173 | E87: -2.933757468 | F87: -1.614418924 | G87: 1.779212179 | H87: 16.88468374 | I87: 1.392898975 | J87: 10.34668877 | K87: 8.125715613 | L87: 7.382898647 | M87: -0.05129135909 | N87: 3.445370458 | O87: 3.265156511 | P87: 14.16715256 | Q87: 3.683131383 | R87: 6.188721235 | S87: 10.31491787 | T87: 17.57457718 | U87: 1.138362801 | V87: 3.013320201 | W87: 104.3159223 | X87: 9.834394314
A88: - | B88: - | C88: Mandurah | D88: 0.0437813914 | E88: -0.1300455087 | F88: 0.02424086103 | G88: 0.04436553048 | H88: 0.9197560719 | I88: 0.09922453095 | J88: 0.6217274396 | K88: 0.5134806473 | L88: 0.2652533079 | M88: 0.003605815288 | N88: 0.0427519866 | O88: 0.2519695023 | P88: 0.2882090855 | Q88: 0.199436677 | R88: 0.2079452083 | S88: 0.4158584568 | T88: 0.8072452356 | U88: 0.07538314658 | V88: 0.1563231831 | W88: 4.850512569 | X88: 11.77209631
A89: - | B89: - | C89: Perth - Inner | D89: 0.02483690764 | E89: -0.2803501564 | F89: 0.01358956414 | G89: 0.2392668709 | H89: 0.9713747274 | I89: 0.1573334599 | J89: 0.9499133177 | K89: 1.007869505 | L89: 0.4229973724 | M89: 0.003057755856 | N89: 0.5349262161 | O89: 0.5041848298 | P89: 1.916672583 | Q89: 0.3844258443 | R89: 0.4254411345 | S89: 1.082407398 | T89: 1.764402979 | U89: 0.1392045783 | V89: 0.2317357309 | W89: 10.49329062 | X89: 10.53991285
A90: - | B90: - | C90: Perth - North East | D90: 0.004292207095 | E90: -0.4755768826 | F90: 0.2727222051 | G90: 0.156055653 | H90: 1.561804291 | I90: 0.1320384134 | J90: 0.7430618638 | K90: 0.8471278554 | L90: 1.55428389 | M90: -0.04506972551 | N90: 0.3008640853 | O90: 0.3028290834 | P90: 1.097651034 | Q90: 0.3600162595 | R90: 0.6147556984 | S90: 0.8715365984 | T90: 2.223141586 | U90: 0.1336653281 | V90: -0.01271011423 | W90: 10.64248933 | X90: 7.866900842
A91: - | B91: - | C91: Perth - North West | D91: 0.04883100816 | E91: -0.5803143638 | F91: -0.8212709423 | G91: 0.5517443139 | H91: 5.927910029 | I91: 0.1187857363 | J91: 2.559292316 | K91: 2.830057398 | L91: 1.213129727 | M91: 0.03523349831 | N91: 1.758956047 | O91: 0.9686349522 | P91: 4.203558218 | Q91: 0.7162698474 | R91: 2.293658322 | S91: 4.146707966 | T91: 6.04369683 | U91: 0.1976673817 | V91: 1.896041882 | W91: 34.10859017 | X91: 11.0834729
A92: - | B92: - | C92: Perth - South East | D92: 0.1046794206 | E92: -0.4074738247 | F92: -0.7339821639 | G92: 0.5432120967 | H92: 4.538831355 | I92: 0.1507646575 | J92: 4.147106061 | K92: 2.086155124 | L92: 2.501133494 | M92: 0.0334330053 | N92: 0.5282455378 | O92: 0.9165233737 | P92: 5.384727605 | Q92: 1.573442073 | R92: 1.823675902 | S92: 2.322215025 | T92: 4.576671312 | U92: 0.4250958271 | V92: 0.927543904 | W92: 31.44199978 | X92: 11.77209631
A93: - | B93: - | C93: Perth - South West | D93: -0.01056525126 | E93: -0.9665140501 | F93: -0.5954145021 | G93: 0.2423647856 | H93: 3.009647805 | I93: 0.6049048606 | J93: 1.325734547 | K93: 0.9012449512 | L93: 1.308581721 | M93: -0.06253722294 | N93: 0.3518513747 | O93: 0.3882427011 | P93: 1.423547213 | Q93: 0.4424860359 | R93: 0.8101921581 | S93: 1.40040169 | T93: 2.149982807 | U93: 0.1531209485 | V93: -0.09823275155 | W93: 12.77903982 | X93: 6.089594239
A94: - | B94: X | C94: Rest of WA | D94: -1.744062935 | E94: -2.355459657 | F94: 0.8118762534 | G94: 0.1681636181 | H94: 3.231726931 | I94: -0.04948616517 | J94: 1.477894398 | K94: 1.029409746 | L94: 1.376891621 | M94: 0.06100480513 | N94: 0.4001768958 | O94: 0.6604528879 | P94: 0.8046713556 | Q94: 0.4487252679 | R94: 0.4398080104 | S94: 2.043637631 | T94: 5.537046048 | U94: 0.1144316555 | V94: 0.6547864136 | W94: 15.11169478 | X94: 5.327955641
A95: - | B95: - | C95: Bunbury | D95: -0.2721154198 | E95: -0.4276205486 | F95: 0.5844609697 | G95: 0.04418143264 | H95: 0.7928785757 | I95: -0.02858074063 | J95: -0.05789986754 | K95: 0.4891006992 | L95: 0.4447693084 | M95: 0.01080538173 | N95: 0.09940684899 | O95: 0.2678371897 | P95: 0.2335410713 | Q95: 0.1378923743 | R95: -0.02576854034 | S95: 0.4808298009 | T95: 2.045431859 | U95: 0.0278083741 | V95: 0.2285148116 | W95: 5.07547358 | X95: 5.771302328
A96: - | B96: - | C96: Western Australia - Outback | D96: -0.1020789523 | E96: -1.020822332 | F96: 0.1741117745 | G96: 0.1342739939 | H96: 1.915801551 | I96: 0.03636639833 | J96: 1.611924895 | K96: 0.3720602213 | L96: 0.8269077662 | M96: 0.06480391532 | N96: 0.2232626651 | O96: 0.3533093042 | P96: 0.5150403097 | Q96: 0.2476504079 | R96: 0.6887793213 | S96: 0.7870263545 | T96: 2.296583525 | U96: 0.05067018838 | V96: 0.3827454776 | W96: 9.558416786 | X96: 7.135610259
A97: - | B97: - | C97: Western Australia - Wheat Belt | D97: -1.777363924 | E97: -0.3133239998 | F97: -0.1077050667 | G97: -0.004965539521 | H97: 0.540193593 | I97: -0.08976609081 | J97: 0.03833666732 | K97: 0.138924143 | L97: 0.1452110327 | M97: -0.005213969389 | N97: 0.06929548826 | O97: 0.06296263498 | P97: 0.07611490055 | Q97: 0.03556803761 | R97: -0.1672737419 | S97: 0.6744620298 | T97: 1.101749838 | U97: 0.006082971372 | V97: 0.05451541119 | W97: 0.4778044158 | X97: 0.7739825399
A98: X | B98: X | C98: Tasmania | D98: -1.010366667 | E98: -0.5809119303 | F98: -1.465742501 | G98: -0.0148210208 | H98: 0.4347227551 | I98: -0.0661473763 | J98: 0.7989443536 | K98: 0.6913329445 | L98: 0.2140109679 | M98: 0.03432226172 | N98: -0.1611723741 | O98: 0.1818190014 | P98: 0.1594293611 | Q98: 0.6242123674 | R98: -0.5937778477 | S98: 1.687675588 | T98: 3.586118819 | U98: 0.136246023 | V98: 0.3189152999 | W98: 4.974810025 | X98: 2.150857313
A99: - | B99: X | C99: Greater Hobart | D99: -0.09146255245 | E99: -0.06395692439 | F99: -0.5275309133 | G99: -0.003778423455 | H99: 0.1908726059 | I99: -0.02039840534 | J99: 0.1622650846 | K99: 0.4576014005 | L99: -0.03898793789 | M99: 0.0277688242 | N99: -0.08383769664 | O99: 0.09609975422 | P99: 0.05440330593 | Q99: 0.3576047871 | R99: -0.4092138117 | S99: 0.9426966626 | T99: 2.034955734 | U99: 0.08773611635 | V99: 0.02879164535 | W99: 3.201629256 | X99: 3.145605697
A100: - | B100: X | C100: Rest of Tas. | D100: -0.9285815447 | E100: -0.5208328256 | F100: -0.9457930554 | G100: -0.009543485178 | H100: 0.2411129362 | I100: -0.0472799838 | J100: 0.6345771364 | K100: 0.2348297064 | L100: 0.2480932847 | M100: 0.00948875309 | N100: -0.0755435739 | O100: 0.08645796863 | P100: 0.1092755248 | Q100: 0.2677274973 | R100: -0.1727001766 | S100: 0.7469726575 | T100: 1.555046131 | U100: 0.05111662348 | V100: 0.2887571955 | W100: 1.77318077 | X100: 1.369111223
A101: - | B101: - | C101: Launceston and North East | D101: -0.4393955878 | E101: -0.1376897965 | F101: -0.5898744014 | G101: -0.005678089438 | H101: -0.02680237457 | I101: -0.0316216237 | J101: 0.529396038 | K101: 0.09808146255 | L101: 0.1080337652 | M101: 0.004704791761 | N101: -0.04969220847 | O101: 0.07462141221 | P101: 0.05340887554 | Q101: 0.1491732901 | R101: -0.0894977271 | S101: 0.6620551552 | T101: 0.7174389725 | U101: 0.02610540444 | V101: 0.1558864283 | W101: 1.208653787 | X101: 1.86475567
A102: - | B102: - | C102: Tasmania - South East | D102: -0.1772123016 | E102: -0.01495601405 | F102: -0.07634625301 | G102: 0.0006841343144 | H102: 0.07642170887 | I102: -0.002199782975 | J102: 0.08366456699 | K102: 0.04839415862 | L102: 0.0377556483 | M102: 0.003146228684 | N102: -0.005344819739 | O102: 0.03344152544 | P102: 0.02233098491 | Q102: 0.03702828942 | R102: -0.02814737666 | S102: 0.09746565925 | T102: 0.1058746708 | U102: 0.01119918651 | V102: 0.0293070045 | W102: 0.2825072186 | X102: 1.74787657
A103: - | B103: - | C103: Tasmania - West and North West | D103: -0.3065333103 | E103: -0.3692580814 | F103: -0.2779493967 | G103: -0.00303468407 | H103: 0.1924038441 | I103: -0.01449872882 | J103: 0.01677749174 | K103: 0.09161493054 | L103: 0.1028993839 | M103: 0.001807192733 | N103: -0.02146951844 | O103: -0.02055376345 | P103: 0.03443916032 | Q103: 0.08121639886 | R103: -0.05190833122 | S103: -0.0160059444 | T103: 0.7260323699 | U103: 0.01436302887 | V103: 0.1016777224 | W103: 0.2820197645 | X103: 0.5810679873
A104: X | B104: X | C104: Northern Territory | D104: 0.01767493015 | E104: -0.2247545723 | F104: -0.1729831639 | G104: 0.08170973155 | H104: 2.496589994 | I104: 0.2405708992 | J104: 0.7601959346 | K104: 0.3181940634 | L104: 0.6903024246 | M104: 0.0725035432 | N104: 0.1003525208 | O104: 0.2351581622 | P104: 1.012360779 | Q104: 0.5719536176 | R104: 2.031442989 | S104: 1.441184422 | T104: 3.346785644 | U104: 0.2429566363 | V104: 0.3158570652 | W104: 13.57805562 | X104: 10.51694199
A105: - | B105: X | C105: Darwin | D105: 0.02354410836 | E105: -0.02791419776 | F105: -0.02625491054 | G105: 0.09481554005 | H105: 2.370078167 | I105: 0.2475656044 | J105: 0.5625004762 | K105: 0.3342116197 | L105: 0.6155507534 | M105: 0.07718817897 | N105: 0.1376912884 | O105: 0.2446172935 | P105: 0.9986768543 | Q105: 0.4644076309 | R105: 1.173168765 | S105: 1.051833705 | T105: 1.92118049 | U105: 0.2229623791 | V105: 0.2709936182 | W105: 10.75681736 | X105: 13.85645211
A106: - | B106: X | C106: Northern Territory - Outback | D106: -0.08424766637 | E106: -0.2636541995 | F106: -0.1542642505 | G106: -0.009794514453 | H106: 0.3199153294 | I106: 0.02478648647 | J106: 0.2069694693 | K106: -0.02806795363 | L106: 0.1137738593 | M106: 0.000378531471 | N106: 0.001262630957 | O106: 0.02930866322 | P106: 0.1278262606 | Q106: 0.1241305242 | R106: 0.7606944335 | S106: 0.3489636647 | T106: 1.262715993 | U106: 0.02686316273 | V106: 0.01367783103 | W106: 2.821238256 | X106: 5.480674675
A107: X | B107: X | C107: Australian Capital Territory | D107: -0.01460282602 | E107: -0.02190511729 | F107: -0.2660755933 | G107: -0.00077475401 | H107: 0.3968473635 | I107: 0.0992022151 | J107: 0.518824199 | K107: 0.1366789602 | L107: 0.1664607771 | M107: 0.05593723036 | N107: 0.06712690342 | O107: 0.1753172255 | P107: 0.3651577761 | Q107: 0.6436991468 | R107: 4.00885917 | S107: 1.566047626 | T107: 2.337415244 | U107: 0.1474778436 | V107: -0.2499106181 | W107: 10.13178277 | X107: 4.74453917
A108: X | B108: X | C108: AUSTRALIA | D108: -2.847710102 | E108: -12.31699578 | F108: -40.32162864 | G108: 9.785724999 | H108: 83.45962274 | I108: 19.91479014 | J108: 98.18835066 | K108: 55.20106659 | L108: 32.07820676 | M108: 0.2048186717 | N108: 20.50413233 | O108: 15.11901415 | P108: 88.71919869 | Q108: 37.34299487 | R108: 48.52903658 | S108: 118.845479 | T108: 229.3871919 | U108: 15.59670204 | V108: 20.74396548 | W108: 838.133961 | X108: 7.222478255
A109: X | B109: X
A110: X | B110: X | C110: Capital City Australia | D110: 0.2353960772 | E110: -4.830516261 | F110: -28.46866322 | G110: 5.383578787 | H110: 53.45677722 | I110: 15.43078138 | J110: 62.54363143 | K110: 34.79334806 | L110: 22.85925128 | M110: 0.1112449081 | N110: 19.57527907 | O110: 11.10110226 | P110: 78.22715082 | Q110: 23.78350882 | R110: 37.27191912 | S110: 81.92370556 | T110: 155.8822792 | U110: 13.39538423 | V110: 10.0402428 | W110: 592.7154015 | X110: 7.563019658
A111: X | B111: X | C111: Regional Australia (includes ACT) | D111: -3.67882349 | E111: -6.806724064 | F111: -12.08326287 | G111: 4.506851004 | H111: 31.32451378 | I111: 4.594492688 | J111: 36.28004542 | K111: 20.16745395 | L111: 9.793392615 | M111: -0.1275694443 | N111: 0.8776480679 | O111: 4.362586644 | P111: 10.74306019 | Q111: 13.79661768 | R111: 8.944262508 | S111: 36.32747276 | T111: 73.24959243 | U111: 2.21515456 | V111: 10.93179504 | W111: 245.4185595 | X111: 6.690855203

Sheet Regional Charts
A1: Projected regional employment growth - five years to November 2018 ('000)
A3: Select Region: | I3: Select indicator:
B5: Select view options:
N7: Department of Employment Projections to November 2018
N8: =Machine!$BJ$11 -> Ballarat
O9: =Machine!$BJ$23 -> Nov-13 (HPF) | P9: Nov-18 (Projection) | Q9: Projected employment growth ('000)
N10: Agriculture, Forestry and Fishing | O10: 6.050524282 | P10: 6.872183755 | Q10: 0.821659473
N11: Mining | O11: 0.5373044005 | P11: 0.5257275379 | Q11: -0.01157686257
N12: Manufacturing | O12: 8.48470522 | P12: 7.995031175 | Q12: -0.4896740448
N13: Electricity, Gas, Water and Waste Services | O13: 0.4663039106 | P13: 0.484329472 | Q13: 0.01802556137
N14: Construction | O14: 7.264184561 | P14: 8.291229018 | Q14: 1.027044456
N15: Wholesale Trade | O15: 2.102237297 | P15: 2.304956339 | Q15: 0.2027190414
N16: Retail Trade | O16: 9.660638775 | P16: 10.6483026 | Q16: 0.9876638278
N17: Accommodation and Food Services | O17: 5.404706015 | P17: 5.862397482 | Q17: 0.4576914666
N18: Transport, Postal and Warehousing | O18: 2.761317522 | P18: 2.92591783 | Q18: 0.164600308
N19: Information Media and Telecommunications | O19: 1.329036319 | P19: 1.38072265 | Q19: 0.05168633105
N20: Financial and Insurance Services | O20: 1.118453663 | P20: 1.183013268 | Q20: 0.06455960459
N21: Rental, Hiring and Real Estate Services | O21: 0.8643926986 | P21: 0.9578015763 | Q21: 0.09340887766
N22: Professional, Scientific and Technical Services | O22: 2.904081857 | P22: 3.152782533 | Q22: 0.2487006764
N23: Administrative and Support Services | O23: 1.617264129 | P23: 1.804786721 | Q23: 0.1875225918
N24: Public Administration and Safety | O24: 3.253144961 | P24: 3.335765829 | Q24: 0.08262086875
N25: Education and Training | O25: 5.734330855 | P25: 6.407656374 | Q25: 0.6733255196
N26: Health Care and Social Assistance | O26: 10.85608672 | P26: 12.88012406 | Q26: 2.024037341
N27: Arts and Recreation Services | O27: 1.483831811 | P27: 1.54702923 | Q27: 0.0631974191
N28: Other Services | O28: 2.469770814 | P28: 2.732328057 | Q28: 0.2625572431
N29: Total (All Industries) | O29: 75.50264742 | P29: 82.43241713 | Q29: 6.9297697

Sheet Industry Charts
A1: Projected regional employment growth by Industry - five years to November 2018 ('000)
A3: Select Industry: | I3: Select Indicator:

Sheet Time series tool
A1: Projected regional employment growth by Industry - five years to November 2018 ('000)
A3: Select Region: | H3: Select Industry:

Sheet Machine (hidden)
A1: 4QA Data | BK1: RegName | BL1: Industry | BM1: Title | BN1: RegNo | BO1: IndNo | BP1: SeqNo
A2: SeqNo | B2: 2001-05-01 | C2: 2001-08-01 | D2: 2001-11-01 | E2: 2002-02-01 | F2: 2002-05-01 | G2: 2002-08-01 | H2: 2002-11-01 | I2: 2003-02-01 | J2: 2003-05-01 | K2: 2003-08-01 | L2: 2003-11-01 | M2: 2004-02-01 | N2: 2004-05-01 | O2: 2004-08-01 | P2: 2004-11-01 | Q2: 2005-02-01 | R2: 2005-05-01 | S2: 2005-08-01 | T2: 2005-11-01 | U2: 2006-02-01 | V2: 2006-05-01 | W2: 2006-08-01 | X2: 2006-11-01 | Y2: 2007-02-01 | Z2: 2007-05-01 | AA2: 2007-08-01 | AB2: 2007-11-01 | AC2: 2008-02-01 | AD2: 2008-05-01 | AE2: 2008-08-01 | AF2: 2008-11-01 | AG2: 2009-02-01 | AH2: 2009-05-01 | AI2: 2009-08-01 | AJ2: 2009-11-01 | AK2: 2010-02-01 | AL2: 2010-05-01 | AM2: 2010-08-01 | AN2: 2010-11-01 | AO2: 2011-02-01 | AP2: 2011-05-01 | AQ2: 2011-08-01 | AR2: 2011-11-01 | AS2: 2012-02-01 | AT2: 2012-05-01 | AU2: 2012-08-01 | AV2: 2012-11-01 | AW2: 2013-02-01 | AX2: 2013-05-01 | AY2: 2013-08-01 | AZ2: 2013-11-01 | BA2: 2018-11-01 | BD2: Regions | BE2: RegNo | BG2: Industry | BH2: IndNo | BJ2: Plot Area A | BK2: Australia | BL2: Total (All Industries) | BM2: =CONCATENATE(BK2," - ",BL2) -> Australia - Total (All Industries) | BN2: =VLOOKUP(BK2,RegOrg,2,FALSE) -> 0 | BO2: =VLOOKUP(BL2,IndOrg,2,FALSE) -> 20 | BP2: =CONCATENATE(BN2,"_",BO2) -> 0_20
A3: 1_1 | B3: 125.3851431 | C3: 126.4195233 | D3: 127.0758317 | E3: 129.2646537 | F3: 123.228135 | G3: 117.6006533 | H3: 109.8908894 | I3: 101.9434668 | J3: 99.66037528 | K3: 94.53809657 | L3: 93.61271991 | M3: 92.8026645 | N3: 89.04980374 | O3: 88.63082742 | P3: 85.77539897 | Q3: 88.37341877 | R3: 88.5373113 | S3: 89.03913476 | T3: 90.70455048 | U3: 90.8851446 | V3: 91.20943683 | W3: 94.04994246 | X3: 96.56263897 | Y3: 95.52992126 | Z3: 96.07427628 | AA3: 95.38840949 | AB3: 91.85709057 | AC3: 89.13307709 | AD3: 90.35219013 | AE3: 86.82542799 | AF3: 85.84548487 | AG3: 87.98692692 | AH3: 87.26857404 | AI3: 88.98425001 | AJ3: 92.53770066 | AK3: 92.43936135 | AL3: 95.32941783 | AM3: 99.43575053 | AN3: 102.4773268 | AO3: 100.804009 | AP3: 96.81361388 | AQ3: 90.28438735 | AR3: 83.36405728 | AS3: 80.65460073 | AT3: 79.60501057 | AU3: 81.08701205 | AV3: 81.35098468 | AW3: 82.7716853 | AX3: 83.47774197 | AY3: 80.81552645 | AZ3: 82.71975443 | BD3: Australia | BE3: 0 | BG3: Total (All Industries) | BH3: 20 | BK3: 2001-05-01 | BL3: 2001-08-01 | BM3: 2001-11-01 | BN3: 2002-02-01 | BO3: 2002-05-01 | BP3: 2002-08-01 | BQ3: 2002-11-01 | BR3: 2003-02-01 | BS3: 2003-05-01 | BT3: 2003-08-01 | BU3: 2003-11-01 | BV3: 2004-02-01 | BW3: 2004-05-01 | BX3: 2004-08-01 | BY3: 2004-11-01 | BZ3: 2005-02-01 | CA3: 2005-05-01 | CB3: 2005-08-01 | CC3: 2005-11-01 | CD3: 2006-02-01 | CE3: 2006-05-01 | CF3: 2006-08-01 | CG3: 2006-11-01 | CH3: 2007-02-01 | CI3: 2007-05-01 | CJ3: 2007-08-01 | CK3: 2007-11-01 | CL3: 2008-02-01 | CM3: 2008-05-01 | CN3: 2008-08-01 | CO3: 2008-11-01 | CP3: 2009-02-01 | CQ3: 2009-05-01 | CR3: 2009-08-01 | CS3: 2009-11-01 | CT3: 2010-02-01 | CU3: 2010-05-01 | CV3: 2010-08-01 | CW3: 2010-11-01 | CX3: 2011-02-01 | CY3: 2011-05-01 | CZ3: 2011-08-01 | DA3: 2011-11-01 | DB3: 2012-02-01 | DC3: 2012-05-01 | DD3: 2012-08-01 | DE3: 2012-11-01 | DF3: 2013-02-01 | DG3: 2013-05-01 | DH3: 2013-08-01 | DI3: 2013-11-01 | DJ3: 2018-11-01
A4: 2_1 | B4: 9.219055405 | C4: 10.82213396 | D4: 12.16579264 | E4: 13.13299067 | F4: 12.0899247 | G4: 12.10700533 | H4: 12.5679693 | I4: 11.78794186 | J4: 12.71127362 | K4: 12.45720878 | L4: 10.9758694 | M4: 10.63213107 | N4: 10.1585518 | O4: 10.17727058 | P4: 11.57843792 | Q4: 13.83439476 | R4: 13.23308055 | S4: 12.58418304 | T4: 11.9827789 | U4: 10.98861294 | V4: 11.13855948 | W4: 10.55898965 | X4: 9.116382199 | Y4: 8.546232336 | Z4: 8.449312691 | AA4: 8.914414294 | AB4: 10.48667865 | AC4: 10.87681235 | AD4: 11.31760709 | AE4: 10.67464036 | AF4: 9.344126032 | AG4: 9.069798448 | AH4: 8.630774632 | AI4: 9.853627962 | AJ4: 10.34505123 | AK4: 9.851901433 | AL4: 9.916353402 | AM4: 8.956550742 | AN4: 9.092160312 | AO4: 9.432058882 | AP4: 9.417410342 | AQ4: 9.831760998 | AR4: 10.30171088 | AS4: 10.46022679 | AT4: 10.16199172 | AU4: 10.89767689 | AV4: 10.86408838 | AW4: 11.106559 | AX4: 10.88236718 | AY4: 8.512696654 | AZ4: 7.708151589 | BD4: New South Wales | BE4: 1 | BG4: Agriculture, Forestry and Fishing | BH4: 1 | BJ4: =IF(BK2="Australia","ABS Labour Force Survey (original)","ABS Labour Force Survey (four-quarter average)") -> ABS Labour Force Survey (original) | BK4: =VLOOKUP(SeqNo,fourqtrave,BK$7,FALSE) -> 9070.860249 | BL4: =VLOOKUP(SeqNo,fourqtrave,BL$7,FALSE) -> 9043.859314 | BM4: 9129.462769 | BN4: 9171.746258 | BO4: 9215.457629 | BP4: 9229.996742 | BQ4: 9365.905833 | BR4: 9458.56113 | BS4: 9464.969914 | BT4: 9415.245394 | BU4: 9520.915577 | BV4: 9533.24213 | BW4: 9636.207484 | BX4: 9564.272025 | BY4: 9759.411993 | BZ4: 9854.626274 | CA4: 9965.179307 | CB4: 9990.115056 | CC4: 10064.38567 | CD4: 10087.13344 | CE4: 10212.77149 | CF4: 10242.58178 | CG4: 10339.09791 | CH4: 10418.11735 | CI4: 10553.47564 | CJ4: 10547.33479 | CK4: 10677.34201 | CL4: 10773.72308 | CM4: 10833.76945 | CN4: 10848.71909 | CO4: 10903.61158 | CP4: 10912.24862 | CQ4: =VLOOKUP(SeqNo,fourqtrave,CQ$7,FALSE) -> 10932.16043 | CR4: 10857.98779 | CS4: 10983.15754 | CT4: 11053.24008 | CU4: 11118.37157 | CV4: 11137.06196 | CW4: 11318.62943 | CX4: 11326.38731 | CY4: 11377.73732 | CZ4: 11310.99485 | DA4: 11413.88921 | DB4: 11403.17847 | DC4: 11549.33105 | DD4: 11426.6591 | DE4: 11548.86855 | DF4: 11601.86052 | DG4: 11676.26751 | DH4: 11532.97001 | DI4: 11635.15022
A5: 3_1 | B5: 2.256960002 | C5: 2.857127175 | D5: 3.170357708 | E5: 3.963700749 | F5: 3.520495593 | G5: 3.44791574 | H5: 3.715074071 | I5: 2.68211902 | J5: 2.248209743 | K5: 1.378037108 | L5: 0.372010995 | M5: 0.367765086 | N5: 0.271510612 | O5: 0.264873784 | P5: 0.272825595 | Q5: 0.267129897 | R5: 0.438253939 | S5: 0.537066831 | T5: 0.534197787 | U5: 0.779411142 | V5: 0.953884431 | W5: 1.023853916 | X5: 1.199207517 | Y5: 1.040396583 | Z5: 0.787942354 | AA5: 0.533266551 | AB5: 0.70114316 | AC5: 0.910597046 | AD5: 1.123564794 | AE5: 1.383333809 | AF5: 1.187600246 | AG5: 1.081916193 | AH5: 0.92546261 | AI5: 0.831205403 | AJ5: 0.595302105 | AK5: 0.45980544 | AL5: 1.007484258 | AM5: 1.229223193 | AN5: 1.795255401 | AO5: 2.109192376 | AP5: 1.631142186 | AQ5: 1.450716151 | AR5: 1.21319203 | AS5: 0.86206317 | AT5: 0.862699594 | AU5: 0.655874886 | AV5: 0.774627744 | AW5: 1.25235367 | AX5: 1.243889396 | AY5: 1.243889396 | AZ5: 1.054068323 | BD5: Greater Sydney | BE5: 2 | BG5: Mining | BH5: 2 | BJ5: =IF(BK2="Australia"," ABS Labour Force Survey - Trend"," Department of Employment - Hodrick-Prescott Filter") -> ABS Labour Force Survey - Trend | BK5: =VLOOKUP(SeqNo,hpfandprojection,BK$7,FALSE) -> 9042.421112 | BL5: =VLOOKUP(SeqNo,hpfandprojection,BL$7,FALSE) -> 9077.574711 | BM5: 9115.550046 | BN5: 9161.476648 | BO5: 9207.821647 | BP5: 9267.610334 | BQ5: 9353.505973 | BR5: 9434.188907 | BS5: 9472.484232 | BT5: 9480.070322 | BU5: 9496.573608 | BV5: 9531.360073 | BW5: 9573.93347 | BX5: 9634.709426 | BY5: 9730.705078 | BZ5: 9847.127987 | CA5: 9948.680139 | CB5: 10009.7627 | CC5: 10053.77795 | CD5: 10108.72465 | CE5: 10182.74515 | CF5: 10262.79195 | CG5: 10341.91698 | CH5: 10423.82863 | CI5: 10508.84989 | CJ5: 10595.22637 | CK5: 10675.27241 | CL5: 10755.13603 | CM5: 10825.50317 | CN5: 10871.23183 | CO5: 10893.95141 | CP5: 10897.10029 | CQ5: =VLOOKUP(SeqNo,hpfandprojection,CQ$7,FALSE) -> 10893.4027 | CR5: 10919.14354 | CS5: 10969.86094 | CT5: 11033.07828 | CU5: 11106.12296 | CV5: 11193.11914 | CW5: 11276.83509 | CX5: 11329.75764 | CY5: 11347.55284 | CZ5: 11360.66825 | DA5: 11393.38549 | DB5: 11434.19813 | DC5: 11465.31191 | DD5: 11500.98658 | DE5: 11548.3512 | DF5: 11592.10096 | DG5: 11612.48507 | DH5: 11610.79594 | DI5: 11604.52038
A6: 4_1 | B6: 2.308018675 | C6: 2.784440551 | D6: 3.123212787 | E6: 2.966570509 | F6: 2.304838625 | G6: 2.058262987 | H6: 1.814760836 | I6: 2.007668832 | J6: 1.971254419 | K6: 1.581240035 | L6: 1.060582109 | M6: 0.798559976 | N6: 0.919116324 | O6: 1.112622402 | P6: 1.646450688 | Q6: 1.949881833 | R6: 1.906227467 | S6: 1.612414982 | T6: 1.405485589 | U6: 1.127349254 | V6: 1.191891718 | W6: 1.594359931 | X6: 1.718570432 | Y6: 1.849737342 | Z6: 1.805461801 | AA6: 1.453602075 | AB6: 1.000549415 | AC6: 0.688796939 | AD6: 0.54490432 | AE6: 0.491738263 | AF6: 0.545730617 | AG6: 0.73097996 | AH6: 0.99245706 | AI6: 1.538789632 | AJ6: 1.980743215 | AK6: 1.787429028 | AL6: 1.667861793 | AM6: 1.212371739 | AN6: 0.825003912 | AO6: 1.141682361 | AP6: 1.082621199 | AQ6: 1.025744299 | AR6: 0.931869473 | AS6: 0.656211563 | AT6: 0.532142349 | AU6: 0.596920909 | AV6: 0.996203608 | AW6: 1.135110798 | AX6: 1.191019596 | AY6: 1.081478365 | AZ6: 0.854450748 | BD6: Central Coast | BE6: 3 | BG6: Manufacturing | BH6: 3 | BJ6: Department of Employment Projection to November 2018 | DI6: =DI5 -> 11604.52038 | DJ6: 12442.65434
A7: 5_1 | B7: 0.06814575 | C7: 0.145217929 | D7: 0.145217929 | E7: 0.216223851 | F7: 0.298614281 | G7: 0.299009094 | H7: 0.459999055 | I7: 0.706928894 | J7: 1.259530871 | K7: 1.542624358 | L7: 1.733411642 | M7: 1.602604531 | N7: 1.24227389 | O7: 1.260140618 | P7: 1.221851091 | Q7: 1.226973106 | R7: 1.043966701 | S7: 0.764620837 | T7: 0.885772178 | U7: 1.198123484 | V7: 1.308347026 | W7: 1.38082187 | X7: 1.028908015 | Y7: 0.948747665 | Z7: 0.941588979 | AA7: 1.124802092 | AB7: 1.485856809 | AC7: 1.325403527 | AD7: 1.279850601 | AE7: 0.9250813 | AF7: 0.758100814 | AG7: 0.909676548 | AH7: 0.692363506 | AI7: 0.90458197 | AJ7: 0.950870879 | AK7: 0.758327898 | AL7: 0.873979821 | AM7: 0.661761357 | AN7: 0.43974558 | AO7: 0.300924449 | AP7: 0.379173533 | AQ7: 0.584421599 | AR7: 0.483349033 | AS7: 0.593977043 | AT7: 0.603185195 | AU7: 0.697377389 | AV7: 0.799032217 | AW7: 1.005795417 | AX7: 1.15744936 | AY7: 1.110657309 | AZ7: 1.255728338 | BD7: Sydney - Baulkham Hills and Hawkesbury | BE7: 4 | BG7: Electricity, Gas, Water and Waste Services | BH7: 4 | BJ7: LookUp | BK7: 2 | BL7: 3 | BM7: 4 | BN7: 5 | BO7: 6 | BP7: 7 | BQ7: 8 | BR7: 9 | BS7: 10 | BT7: 11 | BU7: 12 | BV7: 13 | BW7: 14 | BX7: 15 | BY7: 16 | BZ7: 17 | CA7: 18 | CB7: 19 | CC7: 20 | CD7: 21 | CE7: 22 | CF7: 23 | CG7: 24 | CH7: 25 | CI7: 26 | CJ7: 27 | CK7: 28 | CL7: 29 | CM7: 30 | CN7: 31 | CO7: 32 | CP7: 33 | CQ7: 34 | CR7: 35 | CS7: 36 | CT7: 37 | CU7: 38 | CV7: 39 | CW7: 40 | CX7: 41 | CY7: 42 | CZ7: 43 | DA7: 44 | DB7: 45 | DC7: 46 | DD7: 47 | DE7: 48 | DF7: 49 | DG7: 50 | DH7: 51 | DI7: 52 | DJ7: 53
A8: 6_1 | B8: 0.188072428 | C8: 0.188072428 | D8: 0.094562571 | E8: 0.193130557 | F8: 0.193130557 | G8: 0.193130557 | H8: 0.273450787 | I8: 0.080320231 | J8: 0.182673115 | K8: 0.182673115 | L8: 0.207879433 | M8: 0.207879433 | N8: 0.105526548 | O8: 0.105526548 | P8: 0 | Q8: 0.118734527 | R8: 0.242498061 | S8: 0.242498061 | T8: 0.351777708 | U8: 0.233043181 | V8: 0.109279647 | W8: 0.109279647 | X8: 0.250898632 | Y8: 0.364867891 | Z8: 0.563829013 | AA8: 0.563829013 | AB8: 0.431546248 | AC8: 0.317576989 | AD8: 0.118615867 | AE8: 0.118615867 | AF8: 0.115701988 | AG8: 0.243795259 | AH8: 0.243795259 | AI8: 0.243795259 | AJ8: 0.128093271 | AK8: 0.105356736 | AL8: 0.314120685 | AM8: 0.314120685 | AN8: 0.418525227 | AO8: 0.550638159 | AP8: 0.469153911 | AQ8: 0.689043033 | AR8: 0.80483975 | AS8: 0.767094022 | AT8: 0.800797982 | AU8: 0.774479778 | AV8: 0.554278519 | AW8: 0.354554578 | AX8: 0.343911368 | AY8: 0.15034045 | AZ8: 0.28224051 | BD8: Sydney - Blacktown | BE8: 5 | BG8: Construction | BH8: 5
A9: 7_1 | B9: 0.172241236 | C9: 0.094613233 | D9: 0.094613233 | E9: 0 | F9: 0.090740857 | G9: 0.260782071 | H9: 0.346117907 | I9: 0.346117907 | J9: 0.255377051 | K9: 0.085335836 | L9: 0 | M9: 0 | N9: 0 | O9: 0.108627662 | P9: 0.193855682 | Q9: 0.28830477 | R9: 0.28830477 | S9: 0.179677108 | T9: 0.094449088 | U9: 0 | V9: 0 | W9: 0 | X9: 0 | Y9: 0.301176095 | Z9: 0.502970042 | AA9: 0.70005568 | AB9: 0.803031212 | AC9: 0.501855118 | AD9: 0.300061171 | AE9: 0.102975533 | AF9: 0 | AG9: 0 | AH9: 0 | AI9: 0 | AJ9: 0 | AK9: 0.071262722 | AL9: 0.071262722 | AM9: 0.071262722 | AN9: 0.071262722 | AO9: 0 | AP9: 0 | AQ9: 0.119779624 | AR9: 0.413019954 | AS9: 0.514808322 | AT9: 0.641942718 | AU9: 0.605055253 | AV9: 0.538431955 | AW9: 0.696389053 | AX9: 0.710431128 | AY9: 0.78237354 | AZ9: 0.703299201 | BD9: Sydney - City and Inner South | BE9: 6 | BG9: Wholesale Trade | BH9: 6 | BJ9: Plot Area B
A10: 8_1 | B10: 0.076689253 | C10: 0.076689253 | D10: 0.246079746 | E10: 0.249163712 | F10: 0.249163712 | G10: 0.249163712 | H10: 0.249137208 | I10: 0.254477678 | J10: 0.254477678 | K10: 0.344382018 | L10: 0.266314691 | M10: 0.181201001 | N10: 0.343229468 | O10: 0.253325128 | P10: 0.242083059 | Q10: 0.242083059 | R10: 0.261294463 | S10: 0.261294463 | T10: 0.18123987 | U10: 0.354512491 | V10: 0.25473294 | W10: 0.25473294 | X10: 0.25473294 | Y10: 0.161916031 | Z10: 0.250059656 | AA10: 0.250059656 | AB10: 0.250059656 | AC10: 0.248839637 | AD10: 0.079235691 | AE10: 0.230105733 | AF10: 0.344918263 | AG10: 0.38925074 | AH10: 0.793112729 | AI10: 0.776963229 | AJ10: 1.005711618 | AK10: 0.882143451 | AL10: 0.682009696 | AM10: 0.649643751 | AN10: 0.414833481 | AO10: 0.414833481 | AP10: 0.415012132 | AQ10: 0.312657536 | AR10: 0.326213101 | AS10: 0.326213101 | AT10: 0.122306216 | AU10: 0.458782064 | AV10: 0.668836578 | AW10: 0.668836578 | AX10: 0.786147012 | AY10: 0.449671165 | AZ10: 0.234983793 | BD10: Sydney - Eastern Suburbs | BE10: 7 | BG10: Retail Trade | BH10: 7 | BJ10: Projected employment growth ('000) - five years to November 2018 | BL10: Table Area | BO10: Employment level ('000) - November 2013 | BP10: Employment level ('000) - November 2018 Projection | BQ10: Projected employment growth ('000) - five years to November 2018 | BS10: Chart Area - ANZSIC Order | BV10: Chart Area - Ranked
A11: 9_1 | B11: 0.07708113 | C11: 0.07708113 | D11: 0.159547847 | E11: 0.161016119 | F11: 0.311791173 | G11: 0.311791173 | H11: 0.229324456 | I11: 0.244752961 | J11: 0.093977908 | K11: 0.286451513 | L11: 0.378413496 | M11: 0.284435588 | N11: 0.387957341 | O11: 0.291987446 | P11: 0.200025464 | Q11: 0.200025464 | R11: 0.096503711 | S11: 0 | T11: 0 | U11: 0 | V11: 0 | W11: 0 | X11: 0.092373316 | Y11: 0.190688324 | Z11: 0.27987548 | AA11: 0.27987548 | AB11: 0.187502164 | AC11: 0.089187156 | AD11: 0.121141508 | AE11: 0.404448511 | AF11: 0.55450295 | AG11: 0.816781034 | AH11: 0.695639526 | AI11: 0.412332522 | AJ11: 0.425815841 | AK11: 0.163537757 | AL11: 0.282031668 | AM11: 0.282031668 | AN11: 0.118493911 | AO11: 0.118493911 | AP11: 0.126922299 | AQ11: 0.126922299 | AR11: 0.126922299 | AS11: 0.126922299 | AT11: 0 | AU11: 0 | AV11: 0 | AW11: 0 | AX11: 0 | AY11: 0 | AZ11: 0 | BD11: Sydney - Inner South West | BE11: 8 | BG11: Accommodation and Food Services | BH11: 8 | BJ11: Ballarat | BL11: 1 | BM11: =CONCATENATE($BJ$12,"_",BL11) -> 44_1 | BN11: Agriculture, Forestry and Fishing | BO11: =VLOOKUP(BM11,hpfandprojection,52,FALSE) -> 6.050524282 | BP11: =VLOOKUP(BM11,hpfandprojection,53,FALSE) -> 6.872183755 | BQ11: =VLOOKUP(BM11,hpfandprojection,54,FALSE) -> 0.821659473 | BS11: Agriculture, Forestry and Fishing | BT11: =HLOOKUP($BJ$18,regionalchart,BL11+1,FALSE) -> 0.821659473 | BV11: Health Care and Social Assistance | BW11: 2.024037341
A12: 10_1 | B12: 0.53988457 | C12: 0.547208954 | D12: 0.493863377 | E12: 0.324880808 | F12: 0.304772204 | G12: 0.395237091 | H12: 0.697946756 | I12: 0.869198908 | J12: 1.1106205 | K12: 1.271317345 | L12: 1.232050852 | M12: 1.0607987 | N12: 0.763139202 | O12: 0.62514461 | P12: 0.734911326 | Q12: 0.905206867 | R12: 0.812199898 | S12: 0.801240429 | T12: 0.437016057 | U12: 0.540743039 | V12: 0.619511274 | W12: 0.580060419 | X12: 0.494555834 | Y12: 0.220533311 | Z12: 0.141765076 | AA12: 0.099786021 | AB12: 0.343418373 | AC12: 0.538236707 | AD12: 0.847556356 | AE12: 0.747770336 | AF12: 0.504137984 | AG12: 0.432875776 | AH12: 0.248560722 | AI12: 0.379533935 | AJ12: 0.470464923 | AK12: 0.555965703 | AL12: 0.430961108 | AM12: 0.404366731 | AN12: 0.313435742 | AO12: 0.215312311 | AP12: 0.517934285 | AQ12: 1.071613643 | AR12: 1.515043445 | AS12: 1.517490246 | AT12: 1.331322666 | AU12: 0.783372957 | AV12: 0.44489964 | AW12: 0.475376838 | AX12: 0.358922444 | AY12: 0.248813959 | AZ12: 0.222329102 | BD12: Sydney - Inner West | BE12: 9 | BG12: Transport, Postal and Warehousing | BH12: 9 | BJ12: =VLOOKUP(BJ11,RegOrg,2,FALSE) -> 44 | BL12: 2 | BM12: 44_2 | BN12: Mining | BO12: 0.5373044005 | BP12: 0.5257275379 | BQ12: -0.01157686257 | BS12: Mining | BT12: -0.01157686257 | BV12: Construction | BW12: 1.027044456
A13: 11_1 | B13: 0 | C13: 0 | D13: 0.166393337 | E13: 0.32221861 | F13: 0.499064243 | G13: 0.576089806 | H13: 0.482171756 | I13: 0.404565517 | J13: 0.227719884 | K13: 0.150694321 | L13: 0.078219033 | M13: 0 | N13: 0.198764168 | O13: 0.276462105 | P13: 0.521360732 | Q13: 0.882653174 | R13: 0.93544468 | S13: 0.951601665 | T13: 0.81986299 | U13: 0.458570548 | V13: 0.207014874 | W13: 0.113159952 | X13: 0 | Y13: 0.163734735 | Z13: 0.163734735 | AA13: 0.2712398 | AB13: 0.549240703 | AC13: 0.474488599 | AD13: 0.568168207 | AE13: 0.460663141 | AF13: 0.182662239 | AG13: 0.093679608 | AH13: 0 | AI13: 0 | AJ13: 0 | AK13: 0.209923408 | AL13: 0.317299489 | AM13: 0.317299489 | AN13: 0.317299489 | AO13: 0.107376081 | AP13: 0 | AQ13: 0 | AR13: 0.100819629 | AS13: 0.218990905 | AT13: 0.32202945 | AU13: 0.426794231 | AV13: 0.545498899 | AW13: 0.52769652 | AX13: 0.540618606 | AY13: 0.435853826 | AZ13: 0.426604559 | BD13: Sydney - North Sydney and Hornsby | BE13: 10 | BG13: Information Media and Telecommunications | BH13: 10 | BL13: 3 | BM13: 44_3 | BN13: Manufacturing | BO13: 8.48470522 | BP13: 7.995031175 | BQ13: -0.4896740448 | BS13: Manufacturing | BT13: -0.4896740448 | BV13: Retail Trade | BW13: 0.9876638278
A14: 12_1 | B14: 1.156162874 | C14: 1.235225025 | D14: 1.051763499 | E14: 1.211564188 | F14: 1.331964684 | G14: 1.598976928 | H14: 1.698989057 | I14: 1.577285325 | J14: 2.138124718 | K14: 2.735935882 | L14: 2.921918702 | M14: 2.976602726 | N14: 2.525874835 | O14: 1.655949929 | P14: 1.560491818 | Q14: 1.845494249 | R14: 1.671143248 | S14: 2.262990905 | T14: 2.530253722 | U14: 2.080925777 | V14: 1.696263621 | W14: 1.233337642 | X14: 0.708498081 | Y14: 0.697687383 | Z14: 0.974134722 | AA14: 1.174500238 | AB14: 1.617611579 | AC14: 1.985353038 | AD14: 2.030626146 | AE14: 1.551843393 | AF14: 1.293502162 | AG14: 1.317103818 | AH14: 1.282954963 | AI14: 2.033064067 | AJ14: 1.884297399 | AK14: 1.422178696 | AL14: 0.966593941 | AM14: 0.216484837 | AN14: 0.094947603 | AO14: 0 | AP14: 0 | AQ14: 0 | AR14: 0.284470507 | AS14: 0.494053206 | AT14: 0.795908814 | AU14: 1.305858545 | AV14: 1.320603079 | AW14: 1.313463054 | AX14: 1.228637053 | AY14: 0.718687322 | AZ14: 0.419472281 | BD14: Sydney - Northern Beaches | BE14: 11 | BG14: Financial and Insurance Services | BH14: 11 | BJ14: Projected employment growth ('000) - five years to November 2018 | BL14: 4 | BM14: 44_4 | BN14: Electricity, Gas, Water and Waste Services | BO14: 0.4663039106 | BP14: 0.484329472 | BQ14: 0.01802556137 | BS14: Electricity, Gas, Water and Waste Services | BT14: 0.01802556137 | BV14: Agriculture, Forestry and Fishing | BW14: 0.821659473
A15: 13_1 | B15: 0.897288736 | C15: 0.821762411 | D15: 0.851358582 | E15: 0.755424196 | F15: 0.691387783 | G15: 0.702759276 | H15: 0.654220612 | I15: 0.766393662 | J15: 0.882120521 | K15: 0.992120634 | L15: 1.038334583 | M15: 1.360515518 | N15: 1.139715107 | O15: 1.123675059 | P15: 1.10738439 | Q15: 0.963948739 | R15: 0.981451303 | S15: 1.021063857 | T15: 1.181000059 | U15: 1.165340963 | V15: 1.428396168 | W15: 1.399029826 | X15: 1.07915877 | Y15: 0.815048275 | Z15: 0.640893144 | AA15: 0.66819135 | AB15: 0.916385069 | AC15: 1.547891597 | AD15: 1.892603047 | AE15: 1.669627587 | AF15: 1.705190115 | AG15: 1.042167059 | AH15: 0.941249552 | AI15: 1.387637848 | AJ15: 1.291486319 | AK15: 1.537897874 | AL15: 1.315995653 | AM15: 1.297922074 | AN15: 1.548532615 | AO15: 1.666804899 | AP15: 2.092173715 | AQ15: 2.122719182 | AR15: 1.90475025 | AS15: 1.950417932 | AT15: 1.667071169 | AU15: 1.724786696 | AV15: 1.849706306 | AW15: 1.873200477 | AX15: 1.773908457 | AY15: 1.257332746 | AZ15: 0.953401256 | BD15: Sydney - Outer South West | BE15: 12 | BG15: Rental, Hiring and Real Estate Services | BH15: 12 | BJ15: Employment level ('000) - November 2013 | BL15: 5 | BM15: 44_5 | BN15: Construction | BO15: 7.264184561 | BP15: 8.291229018 | BQ15: 1.027044456 | BS15: Construction | BT15: 1.027044456 | BV15: Education and Training | BW15: 0.6733255196
A16: 14_1 | B16: 0.520022133 | C16: 0.594390067 | D16: 0.675983567 | E16: 0.590365675 | F16: 0.334119836 | G16: 0.169650341 | H16: 0 | I16: 0 | J16: 0 | K16: 0.180915788 | L16: 0.180915788 | M16: 0.372397622 | N16: 0.69525399 | O16: 0.895050621 | P16: 0.98697911 | Q16: 1.158298049 | R16: 0.918798693 | S16: 0.635045883 | T16: 0.543117394 | U16: 0.390486393 | V16: 0.416722242 | W16: 0.418546415 | X16: 0.418546415 | Y16: 0.31356333 | Z16: 0.30283651 | AA16: 0.304388499 | AB16: 0.399127993 | AC16: 0.293941306 | AD16: 0.419193704 | AE16: 0.486573734 | AF16: 0.545411981 | AG16: 0.817054291 | AH16: 0.739305445 | AI16: 0.571589646 | AJ16: 0.53307122 | AK16: 0.373491461 | AL16: 0.35039731 | AM16: 0.35039731 | AN16: 0.378911114 | AO16: 0.541316389 | AP16: 0.539758952 | AQ16: 0.682608831 | AR16: 0.648291125 | AS16: 0.511852796 | AT16: 0.669654819 | AU16: 1.030925387 | AV16: 1.149224837 | AW16: 1.376649167 | AX16: 1.213488561 | AY16: 0.709368113 | AZ16: 0.977343014 | BD16: Sydney - Outer West and Blue Mountains | BE16: 13 | BG16: Professional, Scientific and Technical Services | BH16: 13 | BJ16: Employment level ('000) - November 2018 Projection | BL16: 6 | BM16: 44_6 | BN16: Wholesale Trade | BO16: 2.102237297 | BP16: 2.304956339 | BQ16: 0.2027190414 | BS16: Wholesale Trade | BT16: 0.2027190414 | BV16: Accommodation and Food Services | BW16: 0.4576914666
A17: 15_1 | B17: 0.181559529 | C17: 0.322898324 | D17: 0.322898324 | E17: 0.322898324 | F17: 0.210645379 | G17: 0.183633851 | H17: 0.465924435 | I17: 0.627977899 | J17: 0.627977899 | K17: 0.444344049 | L17: 0.162053464 | M17: 0 | N17: 0.080474877 | O17: 0.080474877 | P17: 0.168476366 | Q17: 0.258319413 | R17: 0.177844536 | S17: 0.284158685 | T17: 0.196157196 | U17: 0.208844051 | V17: 0.295521188 | W17: 0.28026367 | X17: 0.28026367 | Y17: 0.177733769 | Z17: 0.091056631 | AA17: 0 | AB17: 0 | AC17: 0.124557503 | AD17: 0.124557503 | AE17: 0.124557503 | AF17: 0.124557503 | AG17: 0 | AH17: 0 | AI17: 0 | AJ17: 0 | AK17: 0.23672078 | AL17: 0.347900795 | AM17: 0.664259337 | AN17: 1.071365394 | AO17: 1.024373109 | AP17: 0.913193095 | AQ17: 0.596834552 | AR17: 0.189728495 | AS17: 0 | AT17: 0 | AU17: 0 | AV17: 0 | AW17: 0 | AX17: 0.123343838 | AY17: 0.229166708 | AZ17: 0.229166708 | BD17: Sydney - Parramatta | BE17: 14 | BG17: Administrative and Support Services | BH17: 14 | BL17: 7 | BM17: 44_7 | BN17: Retail Trade | BO17: 9.660638775 | BP17: 10.6483026 | BQ17: 0.9876638278 | BS17: Retail Trade | BT17: 0.9876638278 | BV17: Other Services | BW17: 0.2625572431
A18: 16_1 | B18: 0.685503536 | C18: 0.691322804 | D18: 0.926113875 | E18: 0.951928067 | F18: 0.761571386 | G18: 0.967637439 | H18: 1.045628679 | I18: 1.062963254 | J18: 1.303894187 | K18: 1.040150279 | L18: 1.008214452 | M18: 1.071535772 | N18: 1.13996563 | O18: 1.863331356 | P18: 2.556227833 | Q18: 3.447564474 | R18: 3.45914908 | S18: 3.03050933 | T18: 2.822449264 | U18: 2.361169514 | V18: 2.566901249 | W18: 2.08145032 | X18: 1.408662335 | Y18: 1.032063303 | Z18: 0.734826249 | AA18: 1.1331328 | AB18: 1.448134108 | AC18: 1.653440187 | AD18: 1.571752517 | AE18: 1.64427002 | AF18: 1.236373802 | AG18: 0.948782794 | AH18: 0.949266546 | AI18: 0.774134451 | AJ18: 0.971385178 | AK18: 1.000305102 | AL18: 0.773745846 | AM18: 0.770697232 | AN18: 0.77923869 | AO18: 0.915548041 | AP18: 1.151914962 | AQ18: 0.950290174 | AR18: 1.35920179 | AS18: 1.920132185 | AT18: 1.81293075 | AU18: 1.837448801 | AV18: 1.222745 | AW18: 0.427132846 | AX18: 0.210600364 | AY18: 0.095063756 | AZ18: 0.095063756 | BD18: Sydney - Ryde | BE18: 15 | BG18: Public Administration and Safety | BH18: 15 | BJ18: Projected employment growth ('000) - five years to November 2018 | BL18: 8 | BM18: 44_8 | BN18: Accommodation and Food Services | BO18: 5.404706015 | BP18: 5.862397482 | BQ18: 0.4576914666 | BS18: Accommodation and Food Services | BT18: 0.4576914666 | BV18: Professional, Scientific and Technical Services | BW18: 0.2487006764
A19: 17_1 | B19: 0.091425554 | C19: 0.386084672 | D19: 0.643826257 | E19: 0.903905303 | F19: 0.987624388 | G19: 0.69296527 | H19: 0.435223685 | I19: 0.157171769 | J19: 0.155315128 | K19: 0.240986502 | L19: 0.335550165 | M19: 0.347835116 | N19: 0.345749808 | O19: 0.260078434 | P19: 0.16551477 | Q19: 0.079777135 | R19: 0 | S19: 0 | T19: 0 | U19: 0.090093104 | V19: 0.090093104 | W19: 0.090093104 | X19: 0.182006241 | Y19: 0.2683383 | Z19: 0.2683383 | AA19: 0.35768504 | AB19: 0.353072166 | AC19: 0.176647002 | AD19: 0.295775657 | AE19: 0.333035631 | AF19: 0.245735368 | AG19: 0.245735368 | AH19: 0.126606713 | AI19: 0 | AJ19: 0.107809263 | AK19: 0.287555379 | AL19: 0.514708618 | AM19: 0.514708618 | AN19: 0.50530943 | AO19: 0.325563314 | AP19: 0.098410074 | AQ19: 0.098410074 | AR19: 0 | AS19: 0 | AT19: 0 | AU19: 0 | AV19: 0 | AW19: 0 | AX19: 0 | AY19: 0 | AZ19: 0 | BD19: Sydney - South West | BE19: 16 | BG19: Education and Training | BH19: 16 | BL19: 9 | BM19: 44_9 | BN19: Transport, Postal and Warehousing | BO19: 2.761317522 | BP19: 2.92591783 | BQ19: 0.164600308 | BS19: Transport, Postal and Warehousing | BT19: 0.164600308 | BV19: Wholesale Trade | BW19: 0.2027190414
A20: 18_1 | B20: 116.1660877 | C20: 115.5973893 | D20: 114.910039 | E20: 116.1316631 | F20: 111.1382103 | G20: 105.4936479 | H20: 97.32292012 | I20: 90.15552491 | J20: 86.94910165 | K20: 82.08088779 | L20: 82.6368505 | M20: 82.17053343 | N20: 78.89125195 | O20: 78.45355685 | P20: 74.19696105 | Q20: 74.53902401 | R20: 75.30423075 | S20: 76.45495172 | T20: 78.72177158 | U20: 79.89653166 | V20: 80.07087735 | W20: 83.4909528 | X20: 87.44625677 | Y20: 86.98368893 | Z20: 87.62496359 | AA20: 86.4739952 | AB20: 81.37041192 | AC20: 78.25626474 | AD20: 79.03458304 | AE20: 76.15078763 | AF20: 76.50135884 | AG20: 78.91712848 | AH20: 78.6377994 | AI20: 79.13062204 | AJ20: 82.19264943 | AK20: 82.58745991 | AL20: 85.41306443 | AM20: 90.47919979 | AN20: 93.38516647 | AO20: 91.37195011 | AP20: 87.39620354 | AQ20: 80.45262636 | AR20: 73.0623464 | AS20: 70.19437394 | AT20: 69.44301884 | AU20: 70.18933516 | AV20: 70.48689629 | AW20: 71.6651263 | AX20: 72.59537478 | AY20: 72.30282979 | AZ20: 75.01160284 | BD20: Sydney - Sutherland | BE20: 17 | BG20: Health Care and Social Assistance | BH20: 17 | BJ20: =CONCATENATE(BJ18,", ",BJ11) -> Projected employment growth ('000) - five years to November 2018, Ballarat | BL20: 10 | BM20: 44_10 | BN20: Information Media and Telecommunications | BO20: 1.329036319 | BP20: 1.38072265 | BQ20: 0.05168633105 | BS20: Information Media and Telecommunications | BT20: 0.05168633105 | BV20: Administrative and Support Services | BW20: 0.1875225918
A21: 19_1 | B21: 13.00314211 | C21: 12.3815134 | D21: 12.7494346 | E21: 13.57531407 | F21: 13.64397736 | G21: 12.83915896 | H21: 11.02861413 | I21: 9.70436272 | J21: 9.261220364 | K21: 9.635411648 | L21: 9.752691619 | M21: 9.346154268 | N21: 7.751717218 | O21: 6.385677194 | P21: 5.365795601 | Q21: 4.721306098 | R21: 5.028556478 | S21: 5.132735547 | T21: 5.065592473 | U21: 5.346719693 | V21: 5.387873915 | W21: 6.030645926 | X21: 6.658777815 | Y21: 6.89676502 | Z21: 6.872837075 | AA21: 5.815464531 | AB21: 4.785313118 | AC21: 4.145650095 | AD21: 6.96563674 | AE21: 8.487493689 | AF21: 10.66764626 | AG21: 12.23738974 | AH21: 10.60315938 | AI21: 10.12689392 | AJ21: 9.128489907 | AK21: 8.800497026 | AL21: 9.072217268 | AM21: 10.47789395 | AN21: 11.77438096 | AO21: 12.71994213 | AP21: 13.10717225 | AQ21: 12.05646511 | AR21: 11.45171735 | AS21: 11.16940607 | AT21: 10.12625933 | AU21: 9.727622378 | AV21: 8.266071222 | AW21: 7.075967043 | AX21: 6.543786513 | AY21: 7.260163488 | AZ21: 7.83010043 | BD21: Rest of NSW | BE21: 18 | BG21: Arts and Recreation Services | BH21: 18 | BL21: 11 | BM21: 44_11 | BN21: Financial and Insurance Services | BO21: 1.118453663 | BP21: 1.183013268 | BQ21: 0.06455960459 | BS21: Financial and Insurance Services | BT21: 0.06455960459 | BV21: Transport, Postal and Warehousing | BW21: 0.164600308
A22: 20_1 | B22: 10.4454388 | C22: 10.39197599 | D22: 11.12270267 | E22: 11.8890551 | F22: 12.27818488 | G22: 12.43756405 | H22: 13.42666643 | I22: 14.88530991 | J22: 16.47123168 | K22: 15.97380928 | L22: 14.80355914 | M22: 13.34485807 | N22: 12.46274023 | O22: 13.1927112 | P22: 12.54593981 | Q22: 11.6190659 | R22: 10.39552862 | S22: 10.67448059 | T22: 11.68837266 | U22: 13.62400365 | V22: 14.20298901 | W22: 13.73104204 | X22: 13.32648599 | Y22: 11.86225392 | Z22: 12.79505962 | AA22: 15.49231759 | AB22: 17.13465314 | AC22: 17.01341798 | AD22: 14.47709807 | AE22: 10.61165282 | AF22: 7.959617599 | AG22: 7.071584947 | AH22: 8.01992376 | AI22: 7.778245252 | AJ22: 8.416557103 | AK22: 8.732332041 | AL22: 9.992039441 | AM22: 11.7141276 | AN22: 12.3768892 | AO22: 11.61582479 | AP22: 9.67285132 | AQ22: 7.839878339 | AR22: 5.962426617 | AS22: 5.509612795 | AT22: 5.062592244 | AU22: 4.811001685 | AV22: 4.938395348 | AW22: 5.51788551 | AX22: 5.921724867 | AY22: 8.686027262 | AZ22: 12.32806542 | BD22: Capital Region | BE22: 19 | BG22: Other Services | BH22: 19 | BL22: 12 | BM22: 44_12 | BN22: Rental, Hiring and Real Estate Services | BO22: 0.8643926986 | BP22: 0.9578015763 | BQ22: 0.09340887766 | BS22: Rental, Hiring and Real Estate Services | BT22: 0.09340887766 | BV22: Rental, Hiring and Real Estate Services | BW22: 0.09340887766
A23: 21_1 | B23: 5.016889932 | C23: 4.963253094 | D23: 4.688884006 | E23: 4.925489615 | F23: 4.667023954 | G23: 4.419281773 | H23: 4.257757087 | I23: 3.940831439 | J23: 4.136876879 | K23: 3.863629019 | L23: 3.631134306 | M23: 4.014286659 | N23: 3.256388353 | O23: 2.627334883 | P23: 1.931972354 | Q23: 0.840771929 | R23: 0.727841047 | S23: 0.776207767 | T23: 0.924978615 | U23: 0.925732438 | V23: 1.681732282 | W23: 2.468020185 | X23: 3.230392696 | Y23: 3.393327443 | Z23: 2.918434993 | AA23: 2.775123257 | AB23: 2.414077441 | AC23: 2.504985448 | AD23: 2.558879487 | AE23: 2.46798402 | AF23: 1.994981989 | AG23: 1.482517451 | AH23: 0.893010147 | AI23: 0.527795742 | AJ23: 0.586260966 | AK23: 0.966153928 | AL23: 1.417656831 | AM23: 1.471264832 | AN23: 1.514907517 | AO23: 1.135014555 | AP23: 0.887866226 | AQ23: 0.7262669 | AR23: 0.869727655 | AS23: 1.012957133 | AT23: 1.062759658 | AU23: 1.40102488 | AV23: 1.360354688 | AW23: 1.612405278 | AX23: 1.791292532 | AY23: 1.894972145 | AZ23: 1.862110312 | BD23: NSW - Central West | BE23: 20 | BJ23: =IF(Machine!BJ11="Australia","Nov-13 (ABS Trend)","Nov-13 (HPF)") -> Nov-13 (HPF) | BL23: 13 | BM23: 44_13 | BN23: Professional, Scientific and Technical Services | BO23: 2.904081857 | BP23: 3.152782533 | BQ23: 0.2487006764 | BS23: Professional, Scientific and Technical Services | BT23: 0.2487006764 | BV23: Public Administration and Safety | BW23: 0.08262086875
A24: 22_1 | B24: 19.05120614 | C24: 20.32035154 | D24: 21.40398618 | E24: 21.57045018 | F24: 19.64741569 | G24: 17.70691815 | H24: 14.12845744 | I24: 11.78592711 | J24: 9.925712045 | K24: 8.336335046 | L24: 8.040032829 | M24: 8.224409768 | N24: 8.299686699 | O24: 9.381896056 | P24: 9.956449621 | Q24: 10.64239238 | R24: 11.48546962 | S24: 11.25802742 | T24: 10.88453158 | U24: 10.27258686 | V24: 9.824474026 | W24: 9.591129393 | X24: 9.845679278 | Y24: 9.957513875 | Z24: 9.395454285 | AA24: 8.575953059 | AB24: 7.933662275 | AC24: 7.761591702 | AD24: 9.968218118 | AE24: 11.46537582 | AF24: 12.16838799 | AG24: 12.43701441 | AH24: 10.388038 | AI24: 9.260807876 | AJ24: 8.66621973 | AK24: 7.695908292 | AL24: 7.165692582 | AM24: 6.389688205 | AN24: 5.323942632 | AO24: 4.697479375 | AP24: 4.934540511 | AQ24: 5.00730075 | AR24: 5.575707191 | AS24: 6.718219253 | AT24: 7.348142657 | AU24: 8.772783606 | AV24: 9.863607975 | AW24: 10.06628189 | AX24: 11.32495732 | AY24: 10.14444514 | AZ24: 9.676403572 | BD24: Coffs Harbour - Grafton | BE24: 21 | BL24: 14 | BM24: 44_14 | BN24: Administrative and Support Services | BO24: 1.617264129 | BP24: 1.804786721 | BQ24: 0.1875225918 | BS24: Administrative and Support Services | BT24: 0.1875225918 | BV24: Financial and Insurance Services | BW24: 0.06455960459
A25: 23_1 | B25: 6.919275977 | C25: 7.966390498 | D25: 8.023882139 | E25: 8.310367373 | F25: 7.483332953 | G25: 6.997857067 | H25: 7.485191732 | I25: 7.284209426 | J25: 6.872044966 | K25: 6.304910134 | L25: 5.224838463 | M25: 4.007130064 | N25: 3.280983177 | O25: 3.28334922 | P25: 3.341059806 | Q25: 3.733667328 | R25: 3.745741833 | S25: 3.55706414 | T25: 3.299463656 | U25: 3.671671347 | V25: 3.624408846 | W25: 3.143197131 | X25: 3.653132494 | Y25: 3.892407384 | Z25: 4.231367966 | AA25: 4.395375066 | AB25: 4.010144071 | AC25: 3.975489273 | AD25: 3.725473051 | AE25: 3.500331256 | AF25: 2.99764771 | AG25: 3.116344243 | AH25: 4.141179879 | AI25: 5.410600277 | AJ25: 6.41513027 | AK25: 6.475947632 | AL25: 6.740704163 | AM25: 6.607359435 | AN25: 6.359310781 | AO25: 5.543767909 | AP25: 4.177253616 | AQ25: 3.114109269 | AR25: 3.015138397 | AS25: 3.708451485 | AT25: 4.593922821 | AU25: 5.57423236 | AV25: 5.789918639 | AW25: 5.173988093 | AX25: 4.591260546 | AY25: 6.830141856 | AZ25: 9.107945886 | BD25: Far West and Orana | BE25: 22 | BJ25: =IF(BJ18=BJ15,IF(BJ11="Australia",BJ11&", Employment level ('000) - November 2013 (ABS Trend)",BJ11&", Employment level ('000) - November 2013 (HPF)"),BJ11&", "&BJ18) -> Ballarat, Projected employment growth ('000) - five years to November 2018 | BL25: 15 | BM25: 44_15 | BN25: Public Administration and Safety | BO25: 3.253144961 | BP25: 3.335765829 | BQ25: 0.08262086875 | BS25: Public Administration and Safety | BT25: 0.08262086875 | BV25: Arts and Recreation Services | BW25: 0.0631974191
A26: 24_1 | B26: 1.26968214 | C26: 1.285865039 | D26: 1.454421374 | E26: 1.451461515 | F26: 1.653249501 | G26: 1.592138347 | H26: 1.303686922 | I26: 0.893063223 | J26: 0.5881568 | K26: 0.419488531 | L26: 0.198681628 | M26: 0.215856104 | N26: 0.10458375 | O26: 0.196421928 | P26: 0.282227502 | Q26: 0.426459019 | R26: 0.593457082 | S26: 0.670739075 | T26: 0.584933501 | U26: 0.336118235 | V26: 0.169120171 | W26: 0 | X26: 0 | Y26: 0.181030854 | Z26: 0.449381088 | AA26: 0.539783081 | AB26: 0.622374221 | AC26: 0.599985975 | AD26: 0.517469206 | AE26: 0.551430565 | AF26: 0.468839426 | AG26: 0.803850822 | AH26: 0.963094111 | AI26: 0.989054732 | AJ26: 1.367107422 | AK26: 1.532752495 | AL26: 1.712922487 | AM26: 1.885751899 | AN26: 1.617871253 | AO26: 1.202441181 | AP26: 0.92956901 | AQ26: 0.870122237 | AR26: 0.871498894 | AS26: 0.627629888 | AT26: 0.740761411 | AU26: 0.607181507 | AV26: 0.596837514 | AW26: 0.933665535 | AX26: 0.861548511 | AY26: 0.731421803 | AZ26: 0.754301359 | BD26: Hunter Valley exc Newcastle | BE26: 23 | BL26: 16 | BM26: 44_16 | BN26: Education and Training | BO26: 5.734330855 | BP26: 6.407656374 | BQ26: 0.6733255196 | BS26: Education and Training | BT26: 0.6733255196 | BV26: Information Media and Telecommunications | BW26: 0.05168633105
A27: 25_1 | B27: 3.905786267 | C27: 4.491299713 | D27: 4.778743825 | E27: 5.411745978 | F27: 5.284003598 | G27: 4.758279048 | H27: 3.893014553 | I27: 3.826909997 | J27: 4.594923389 | K27: 4.809020706 | L27: 5.675105347 | M27: 5.08013857 | N27: 3.97508238 | O27: 3.800295575 | P27: 3.239860015 | Q27: 2.995072362 | R27: 3.737242169 | S27: 3.526529969 | T27: 3.558662973 | U27: 3.931668135 | V27: 3.096310205 | W27: 2.931685998 | X27: 3.126145441 | Y27: 3.134490214 | Z27: 3.027369799 | AA27: 3.247479003 | AB27: 3.099715966 | AC27: 3.481533781 | AD27: 4.005698315 | AE27: 3.730191325 | AF27: 4.222388033 | AG27: 5.179292177 | AH27: 5.625571145 | AI27: 6.087141597 | AJ27: 5.879540429 | AK27: 4.832654716 | AL27: 4.458963592 | AM27: 4.876463407 | AN27: 5.802007623 | AO27: 6.410547508 | AP27: 6.688743015 | AQ27: 5.940449578 | AR27: 5.607047546 | AS27: 4.997330607 | AT27: 4.80071722 | AU27: 4.160193085 | AV27: 2.847010903 | AW27: 2.091020088 | AX27: 1.787484582 | AY27: 1.776049227 | AZ27: 1.834850583 | BD27: Illawarra | BE27: 24 | BL27: 17 | BM27: 44_17 | BN27: Health Care and Social Assistance | BO27: 10.85608672 | BP27: 12.88012406 | BQ27: 2.024037341 | BS27: Health Care and Social Assistance | BT27: 2.024037341 | BV27: Electricity, Gas, Water and Waste Services | BW27: 0.01802556137
A28: 26_1 | B28: 7.661748181 | C28: 6.619575253 | D28: 5.478737289 | E28: 4.74802783 | F28: 4.212368682 | G28: 4.284640667 | H28: 3.56436649 | I28: 2.737186874 | J28: 1.903852515 | K28: 0.937638728 | L28: 1.379220945 | M28: 1.966081164 | N28: 2.153607784 | O28: 2.049803537 | P28: 3.146906486 | Q28: 4.047243872 | R28: 4.986659056 | S28: 6.047993757 | T28: 5.612935272 | U28: 5.602932725 | V28: 5.393045486 | W28: 5.341560274 | X28: 5.05784831 | Y28: 4.201291583 | Z28: 4.207937332 | AA28: 3.385701053 | AB28: 2.321564808 | AC28: 1.64321279 | AD28: 1.060454852 | AE28: 2.213312213 | AF28: 3.805213638 | AG28: 5.841408229 | AH28: 7.820293304 | AI28: 8.883982162 | AJ28: 9.538397685 | AK28: 9.595884088 | AL28: 9.048332394 | AM28: 9.744543175 | AN28: 11.14592399 | AO28: 12.3791413 | AP28: 12.70684364 | AQ28: 12.2005331 | AR28: 11.06960944 | AS28: 9.696989473 | AT28: 10.29880004 | AU28: 9.217826774 | AV28: 8.48756569 | AW28: 7.438210519 | AX28: 5.882248316 | AY28: 5.059077577 | AZ28: 4.602136077 | BD28: Mid North Coast | BE28: 25 | BL28: 18 | BM28: 44_18 | BN28: Arts and Recreation Services | BO28: 1.483831811 | BP28: 1.54702923 | BQ28: 0.0631974191 | BS28: Arts and Recreation Services | BT28: 0.0631974191 | BV28: Mining | BW28: -0.01157686257
A29: 27_1 | B29: 22.01525087 | C29: 22.34130671 | D29: 22.70602955 | E29: 23.44673495 | F29: 23.04137336 | G29: 20.67443175 | H29: 17.41866639 | I29: 14.49652473 | J29: 12.85002193 | K29: 12.505435 | L29: 13.6632516 | M29: 13.94015945 | N29: 13.50269653 | O29: 12.92428092 | P29: 11.62565911 | Q29: 12.61277795 | R29: 12.687387 | S29: 12.87322176 | T29: 13.31931766 | U29: 13.16906523 | V29: 13.93768593 | W29: 15.58037133 | X29: 16.56722766 | Y29: 15.31402082 | Z29: 14.98282998 | AA29: 14.99896865 | AB29: 14.49459548 | AC29: 14.89659821 | AD29: 16.34881245 | AE29: 15.84087458 | AF29: 16.85969149 | AG29: 17.89585026 | AH29: 16.5597245 | AI29: 15.76843069 | AJ29: 15.14379346 | AK29: 14.52343972 | AL29: 15.08795138 | AM29: 17.03953716 | AN29: 18.35793142 | AO29: 17.9086887 | AP29: 17.52892583 | AQ29: 15.81139635 | AR29: 13.86223751 | AS29: 12.95685617 | AT29: 12.32895879 | AU29: 11.34759205 | AV29: 10.98757514 | AW29: 12.9132761 | AX29: 14.44183553 | AY29: 12.10812642 | AZ29: 10.37107533 | BD29: Murray | BE29: 26 | BJ29: Projected employment growth ('000) - five years to November 2018 | BL29: 19 | BM29: 44_19 | BN29: Other Services | BO29: 2.469770814 | BP29: 2.732328057 | BQ29: 0.2625572431 | BS29: Other Services | BT29: 0.2625572431 | BV29: Manufacturing | BW29: -0.4896740448
A30: 28_1 | B30: 0.278724789 | C30: 0.371185177 | D30: 0.728143102 | E30: 1.088341744 | F30: 1.24671167 | G30: 1.22924725 | H30: 0.785971138 | I30: 0.336585702 | J30: 0.074995967 | K30: 0 | L30: 0 | M30: 0.382406887 | N30: 0.562629971 | O30: 0.718158043 | P30: 1.021566065 | Q30: 0.910633256 | R30: 0.808894755 | S30: 0.750213128 | T30: 1.031825308 | U30: 1.458303189 | V30: 1.702063961 | W30: 1.789338733 | X30: 1.367113692 | Y30: 0.669161733 | Z30: 0.346916378 | AA30: 0.162795161 | AB30: 0.159116807 | AC30: 0.159116807 | AD30: 0.159116807 | AE30: 0.418460218 | AF30: 0.404478169 | AG30: 0.681301677 | AH30: 0.82359259 | AI30: 0.564249179 | AJ30: 0.41911442 | AK30: 0.142290912 | AL30: 0.083663542 | AM30: 0.083663542 | AN30: 0.296354082 | AO30: 0.296354082 | AP30: 0.212690541 | AQ30: 0.212690541 | AR30: 0 | AS30: 0 | AT30: 0.135007631 | AU30: 0.250662971 | AV30: 0.587166509 | AW30: 0.814254324 | AX30: 1.267982306 | AY30: 1.2777847 | AZ30: 1.070050617 | BD30: New England and North West | BE30: 27 | BJ30: Employment level ('000) - November 2013 (HPF) | BL30: 20 | BM30: 44_20 | BN30: Total (All Industries) | BO30: 75.50264742 | BP30: 82.43241713 | BQ30: 6.9297697
A31: 29_1 | B31: 9.432042521 | C31: 8.64741875 | D31: 7.106298231 | E31: 6.019198667 | F31: 5.173655843 | G31: 5.255211062 | H31: 6.30437005 | I31: 6.488907857 | J31: 6.750538772 | K31: 6.918526484 | L31: 6.647641257 | M31: 7.102130874 | N31: 7.769921957 | O31: 7.670088342 | P31: 7.059509992 | Q31: 8.505091443 | R31: 8.501440708 | S31: 8.867267857 | T31: 10.43696045 | U31: 9.159198893 | V31: 9.513333874 | W31: 9.936257572 | X31: 10.20740068 | Y31: 12.15370616 | Z31: 12.70755525 | AA31: 13.28306454 | AB31: 12.38673893 | AC31: 10.68332898 | AD31: 8.579124752 | AE31: 6.059738263 | AF31: 4.96809131 | AG31: 3.365407977 | AH31: 2.996739838 | AI31: 3.134700424 | AJ31: 3.509515012 | AK31: 5.039947454 | AL31: 6.471469337 | AM31: 7.189715723 | AN31: 8.01911281 | AO31: 7.343230082 | AP31: 7.142780487 | AQ31: 7.149236446 | AR31: 6.37057875 | AS31: 5.890688192 | AT31: 5.563219772 | AU31: 6.74743886 | AV31: 7.469407867 | AW31: 8.160799341 | AX31: 7.575753369 | AY31: 6.165362811 | AZ31: 5.171298846 | BD31: Newcastle and Lake Macquarie | BE31: 28 | BJ31: Employment level ('000) - November 2018 Projection
A32: 30_1 | B32: 14.75585535 | C32: 14.09488256 | D32: 13.14206658 | E32: 11.90656129 | F32: 10.46538124 | G32: 10.27148666 | H32: 10.00799283 | I32: 9.515285091 | J32: 9.582062531 | K32: 9.314658989 | L32: 11.27579346 | M32: 12.97231933 | N32: 14.28459789 | O32: 14.57680944 | P32: 13.10834476 | Q32: 11.83666099 | R32: 10.75270095 | S32: 10.54117262 | T32: 10.65805376 | U32: 11.0218552 | V32: 10.68587013 | W32: 12.02438851 | X32: 13.53556014 | Y32: 13.85229951 | Z32: 13.92602501 | AA32: 12.1023636 | AB32: 10.37955256 | AC32: 10.09652571 | AD32: 9.353720821 | AE32: 9.374160575 | AF32: 8.632484134 | AG32: 7.431432878 | AH32: 8.569445449 | AI32: 9.500698905 | AJ32: 11.7773299 | AK32: 12.30899851 | AL32: 11.58955105 | AM32: 9.944236791 | AN32: 7.372817349 | AO32: 6.921940391 | AP32: 6.861584127 | AQ32: 7.330808558 | AR32: 6.64403937 | AS32: 6.660071529 | AT32: 6.292173651 | AU32: 6.780476163 | AV32: 8.701556704 | AW32: 9.425614809 | AX32: 10.02362741 | AY32: 9.883085393 | AZ32: 10.04866488 | BD32: Richmond - Tweed | BE32: 29
A33: 31_1 | B33: 2.411044602 | C33: 1.722371601 | D33: 1.526709506 | E33: 1.788914747 | F33: 2.341531571 | G33: 3.027433153 | H33: 3.718164924 | I33: 4.260420838 | J33: 3.937463817 | K33: 3.062024219 | L33: 2.344899914 | M33: 1.57460223 | N33: 1.486615999 | O33: 1.646730511 | P33: 1.571669927 | Q33: 1.647881483 | R33: 1.853311441 | S33: 1.779298091 | T33: 1.656143677 | U33: 1.376676072 | V33: 0.851969513 | W33: 0.923315711 | X33: 0.870492571 | Y33: 1.475420417 | Z33: 1.763794813 | AA33: 1.69960661 | AB33: 1.628903105 | AC33: 1.294828 | AD33: 1.314880375 | AE33: 1.429782291 | AF33: 1.351891089 | AG33: 1.373733666 | AH33: 1.2340273 | AI33: 1.098021288 | AJ33: 1.345193125 | AK33: 1.940653091 | AL33: 2.571900366 | AM33: 3.054954063 | AN33: 3.423716857 | AO33: 3.197578105 | AP33: 2.545382974 | AQ33: 2.193369182 | AR33: 1.762617683 | AS33: 1.246161343 | AT33: 1.08970361 | AU33: 0.791298842 | AV33: 0.591428097 | AW33: 0.441757766 | AX33: 0.581872976 | AY33: 0.486171978 | AZ33: 0.354599519 | BD33: Riverina | BE33: 30
A34: 32_1 | B34: 88.2163106 | C34: 88.57193691 | D34: 89.59580856 | E34: 91.65949302 | F34: 94.06669694 | G34: 91.96250278 | H34: 85.57224373 | I34: 79.40954541 | J34: 73.53559909 | K34: 72.57571428 | L34: 76.12672852 | M34: 78.74770168 | N34: 80.33947771 | O34: 81.07287612 | P34: 81.28355834 | Q34: 80.44123898 | R34: 80.55056642 | S34: 79.16109685 | T34: 75.90567133 | U34: 73.83908356 | V34: 72.23000665 | W34: 71.47413922 | X34: 72.69067616 | Y34: 74.60867486 | Z34: 73.48032842 | AA34: 74.75952635 | AB34: 76.11447955 | AC34: 76.2626234 | AD34: 76.32538106 | AE34: 78.02193766 | AF34: 78.9223822 | AG34: 79.01075176 | AH34: 80.06949206 | AI34: 79.53697405 | AJ34: 79.79312235 | AK34: 78.77501457 | AL34: 78.88230904 | AM34: 78.0063072 | AN34: 75.96931201 | AO34: 75.72769777 | AP34: 74.87183544 | AQ34: 70.97268262 | AR34: 72.11305523 | AS34: 72.76309198 | AT34: 75.10796026 | AU34: 77.98772389 | AV34: 75.77200655 | AW34: 73.94168979 | AX34: 71.48979567 | AY34: 72.82595404 | AZ34: 78.28747062 | BD34: Southern Highlands and Shoalhaven | BE34: 31
A35: 33_1 | B35: 17.18754974 | C35: 17.07356422 | D35: 16.36817677 | E35: 17.11898581 | F35: 18.68549521 | G35: 18.91356216 | H35: 19.07584374 | I35: 17.1614813 | J35: 14.9926862 | K35: 15.30821717 | L35: 16.28472107 | M35: 16.84220417 | N35: 16.52761634 | O35: 14.93882718 | P35: 13.20960609 | Q35: 12.97860763 | R35: 13.04193783 | S35: 13.57025444 | T35: 14.04391737 | U35: 13.30421581 | V35: 13.50962186 | W35: 12.55620167 | X35: 13.11516521 | Y35: 14.15948418 | Z35: 13.80032845 | AA35: 15.25009957 | AB35: 14.80006415 | AC35: 13.45701422 | AD35: 13.49142483 | AE35: 13.00512545 | AF35: 12.81660506 | AG35: 12.91763423 | AH35: 12.21450482 | AI35: 11.95569568 | AJ35: 12.28862729 | AK35: 12.57449923 | AL35: 13.77945993 | AM35: 14.44390722 | AN35: 14.62960219 | AO35: 14.92723817 | AP35: 14.52758216 | AQ35: 14.23728833 | AR35: 14.19773829 | AS35: 13.92786909 | AT35: 13.80947206 | AU35: 13.35184444 | AV35: 13.55206809 | AW35: 14.45597881 | AX35: 14.86422608 | AY35: 14.47710861 | AZ35: 13.60814564 | BD35: Victoria | BE35: 32 | BJ35: Plot Area B | BO35: Employment level ('000) - November 2013 | BP35: Employment level ('000) - November 2018 Projection | BQ35: Projected employment growth ('000) - five years to November 2018 | BS35: Chart Area
A36: 34_1 | B36: 0.608381213 | C36: 0.65637353 | D36: 0.740173122 | E36: 0.883664133 | F36: 0.878846223 | G36: 0.812295884 | H36: 0.684538668 | I36: 0.629159618 | J36: 0.494936317 | K36: 0.271761264 | L36: 0.170876336 | M36: 0.322990366 | N36: 0.391781117 | O36: 0.542788059 | P36: 0.696166222 | Q36: 0.765230544 | R36: 0.693992795 | S36: 0.79349454 | T36: 0.640116377 | U36: 0.706170848 | V36: 0.88699697 | W36: 0.979490675 | X36: 1.055454925 | Y36: 1.022411174 | Z36: 0.935609449 | AA36: 0.856448762 | AB36: 1.043679784 | AC36: 0.872889055 | AD36: 0.791454903 | AE36: 0.777817714 | AF36: 0.775722171 | AG36: 1.111837146 | AH36: 1.238242726 | AI36: 1.390343477 | AJ36: 1.30997163 | AK36: 0.907676094 | AL36: 0.688362896 | AM36: 0.714609057 | AN36: 0.927232559 | AO36: 0.821902813 | AP36: 0.912613778 | AQ36: 0.484062349 | AR36: 0.214507031 | AS36: 0.309776068 | AT36: 0.421172068 | AU36: 0.421172068 | AV36: 0.626062355 | AW36: 0.874006447 | AX36: 1.025901613 | AY36: 1.504439695 | AZ36: 1.90374181 | BD36: Greater Melbourne | BE36: 33 | BK36: 1 | BL36: 1 | BM36: =CONCATENATE(BL36,"_",$BJ$39) -> 1_20 | BN36: New South Wales | BO36: =VLOOKUP(BM36,hpfandprojection,52,FALSE) -> 3600.488449 | BP36: =VLOOKUP(BM36,hpfandprojection,53,FALSE) -> 3842.060953 | BQ36: =VLOOKUP(BM36,hpfandprojection,54,FALSE) -> 241.5725041 | BS36: New South Wales | BT36: =HLOOKUP($BJ$37,statedata,BK36+1,FALSE) -> 241.5725041 | BV36: New South Wales | BW36: 241.5725041
A37: 35_1 | B37: 0.072984544 | C37: 0.072984544 | D37: 0.069613982 | E37: 0.135358202 | F37: 0.260125687 | G37: 0.314691818 | H37: 0.245077836 | I37: 0.313856687 | J37: 0.255645905 | K37: 0.361505123 | L37: 0.796463847 | M37: 0.87338341 | N37: 0.806826707 | O37: 0.79487728 | P37: 0.631543756 | Q37: 0.69762437 | R37: 0.69762437 | S37: 0.605196266 | T37: 0.385319232 | U37: 0.195183846 | V37: 0.398015703 | W37: 0.341967887 | X37: 0.40142455 | Y37: 0.664206825 | Z37: 0.609988943 | AA37: 0.822446405 | AB37: 0.792327191 | AC37: 0.601948953 | AD37: 0.618736577 | AE37: 0.406279115 | AF37: 0.442181179 | AG37: 0.282389281 | AH37: 0.116987681 | AI37: 0.116987681 | AJ37: 0.097657201 | AK37: 0.183849497 | AL37: 0.275183469 | AM37: 0.362260933 | AN37: 0.349365218 | AO37: 0.341773085 | AP37: 0.463135108 | AQ37: 0.461058929 | AR37: 0.376297444 | AS37: 0.393743055 | AT37: 0.394573221 | AU37: 0.485295927 | AV37: 0.676199545 | AW37: 0.668702255 | AX37: 0.530186023 | AY37: 0.354462032 | AZ37: 0.163558414 | BD37: Melbourne - Inner | BE37: 34 | BJ37: Projected employment growth ('000) - five years to November 2018 | BK37: 2 | BL37: 32 | BM37: =CONCATENATE(BL37,"_",$BJ$39) -> 32_20 | BN37: Victoria | BO37: 2867.104399 | BP37: =VLOOKUP(BM37,hpfandprojection,53,FALSE) -> 3063.430562 | BQ37: =VLOOKUP(BM37,hpfandprojection,54,FALSE) -> 196.3261631 | BS37: Victoria | BT37: =HLOOKUP($BJ$37,statedata,BK37+1,FALSE) -> 196.3261631 | BV37: Queensland | BW37: 215.1407372
A38: 36_1 | B38: 0.087825442 | C38: 0 | D38: 0.066394139 | E38: 0.206070404 | F38: 0.272055931 | G38: 0.272055931 | H38: 0.205661792 | I38: 0.065985527 | J38: 0 | K38: 0.068119339 | L38: 0.212851812 | M38: 0.282140165 | N38: 0.282140165 | O38: 0.214020825 | P38: 0.069288352 | Q38: 0.142329963 | R38: 0.288984877 | S38: 0.416432997 | T38: 0.416432997 | U38: 0.342059299 | V38: 0.32778779 | W38: 0.262018191 | X38: 0.559876838 | Y38: 0.642702439 | Z38: 0.582323525 | AA38: 0.520645004 | AB38: 0.298837172 | AC38: 0.332147383 | AD38: 0.534745204 | AE38: 0.772883982 | AF38: 0.835487404 | AG38: 0.988733121 | AH38: 0.93602609 | AI38: 1.053109518 | AJ38: 1.296868247 | AK38: 1.142253024 | AL38: 1.260309444 | AM38: 0.905087239 | AN38: 0.522674272 | AO38: 0.339951702 | AP38: 0 | AQ38: 0.260479371 | AR38: 0.512700563 | AS38: 0.692865459 | AT38: 0.852130022 | AU38: 0.679099453 | AV38: 0.506437209 | AW38: 0.831002426 | AX38: 0.855835234 | AY38: 0.882464662 | AZ38: 0.802905715 | BD38: Melbourne - Inner East | BE38: 35 | BJ38: Total (All Industries) | BK38: 3 | BL38: 52 | BM38: 52_20 | BN38: Queensland | BO38: 2315.284846 | BP38: 2530.425583 | BQ38: 215.1407372 | BS38: Queensland | BT38: 215.1407372 | BV38: Victoria | BW38: 196.3261631
A39: 37_1 | B39: 3.226347884 | C39: 3.118756005 | D39: 2.577525975 | E39: 2.555060204 | F39: 2.98580978 | G39: 3.198205835 | H39: 3.254701328 | I39: 2.615553687 | J39: 1.503843156 | K39: 1.094470532 | L39: 1.063382198 | M39: 1.153020651 | N39: 1.270364034 | O39: 1.094480939 | P39: 0.921852973 | Q39: 0.860812592 | R39: 0.817540213 | S39: 0.674629922 | T39: 0.84419893 | U39: 0.602607518 | V39: 0.994030677 | W39: 1.287411618 | X39: 1.665880285 | Y39: 1.718510091 | Z39: 1.398418244 | AA39: 1.451536077 | AB39: 1.044887655 | AC39: 1.306949885 | AD39: 1.52295487 | AE39: 1.371424513 | AF39: 1.48244003 | AG39: 1.387338302 | AH39: 0.950641352 | AI39: 0.942211626 | AJ39: 0.906583336 | AK39: 0.896446656 | AL39: 1.280574065 | AM39: 1.132461773 | AN39: 0.967141123 | AO39: 0.873718464 | AP39: 0.707684113 | AQ39: 0.601218771 | AR39: 0.418494855 | AS39: 0.39464243 | AT39: 0.176549371 | AU39: 0.606120763 | AV39: 1.034410565 | AW39: 1.356717894 | AX39: 1.559221899 | AY39: 1.36849495 | AZ39: 1.297745948 | BD39: Melbourne - Inner South | BE39: 36 | BJ39: =VLOOKUP($BJ$38,IndOrg,2,FALSE) -> 20 | BK39: 4 | BL39: 74 | BM39: 74_20 | BN39: South Australia | BO39: 803.8101002 | BP39: 840.7923914 | BQ39: 36.98229119 | BS39: South Australia | BT39: 36.98229119 | BV39: Western Australia | BW39: 119.4276171
A40: 38_1 | B40: 1.088487243 | C40: 1.204311444 | D40: 1.26370715 | E40: 1.59996135 | F40: 1.476382734 | G40: 1.269255979 | H40: 1.305503052 | I40: 1.025547335 | J40: 0.877703815 | K40: 1.221011263 | L40: 1.416082609 | M40: 1.589875078 | N40: 1.450036685 | O40: 1.118321834 | P40: 0.83351182 | Q40: 0.716641243 | R40: 0.942725343 | S40: 0.902872893 | T40: 0.759208539 | U40: 0.618875215 | V40: 0.649310268 | W40: 0.559466025 | X40: 0.644545614 | Y40: 0.479955314 | Z40: 0.085079589 | AA40: 0.085079589 | AB40: 0 | AC40: 0 | AD40: 0.190007764 | AE40: 0.462276891 | AF40: 0.840423293 | AG40: 1.277951592 | AH40: 1.345687839 | AI40: 1.539042985 | AJ40: 1.160896583 | AK40: 0.810206517 | AL40: 0.744143954 | AM40: 0.817878444 | AN40: 1.228430656 | AO40: 1.463568288 | AP40: 1.590581185 | AQ40: 1.298355759 | AR40: 1.111164033 | AS40: 1.003401619 | AT40: 1.052085398 | AU40: 1.033806703 | AV40: 1.038803833 | AW40: 1.045807412 | AX40: 0.784545326 | AY40: 0.915853808 | AZ40: 0.91338027 | BD40: Melbourne - North East | BE40: 37 | BK40: 5 | BL40: 84 | BM40: 84_20 | BN40: Western Australia | BO40: 1344.355706 | BP40: 1463.783323 | BQ40: 119.4276171 | BS40: Western Australia | BT40: 119.4276171 | BV40: South Australia | BW40: 36.98229119
A41: 39_1 | B41: 5.291139274 | C41: 5.152041003 | D41: 4.348555049 | E41: 3.790424827 | F41: 3.407786215 | G41: 3.074575722 | H41: 2.610943449 | I41: 2.371509842 | J41: 2.901869482 | K41: 3.590034863 | L41: 4.756380858 | M41: 5.109229197 | N41: 4.995022096 | O41: 4.223963591 | P41: 3.196303019 | Q41: 2.605757393 | R41: 2.022577832 | S41: 2.365148476 | T41: 2.76466267 | U41: 2.898754488 | V41: 2.676118505 | W41: 2.401999705 | X41: 2.656638613 | Y41: 3.341949122 | Z41: 4.342179457 | AA41: 4.891057059 | AB41: 4.757374846 | AC41: 4.18524766 | AD41: 3.223708871 | AE41: 2.157538967 | AF41: 1.588085027 | AG41: 0.97362255 | AH41: 1.10406716 | AI41: 1.099612363 | AJ41: 1.185832304 | AK41: 1.619508974 | AL41: 1.328429944 | AM41: 1.481777629 | AN41: 1.400843739 | AO41: 1.438540023 | AP41: 1.907277189 | AQ41: 2.418539087 | AR41: 2.919303837 | AS41: 2.626874287 | AT41: 1.992551401 | AU41: 1.470318297 | AV41: 1.089937655 | AW41: 1.056683324 | AX41: 1.139263542 | AY41: 1.013995346 | AZ41: 1.377012588 | BD41: Melbourne - North West | BE41: 38 | BK41: 6 | BL41: 96 | BM41: 96_20 | BN41: Tasmania | BO41: 231.2942842 | BP41: 236.2690942 | BQ41: 4.974810025 | BS41: Tasmania | BT41: 4.974810025 | BV41: Northern Territory | BW41: 13.57805562
A42: 40_1 | B42: 3.481129998 | C42: 3.498930177 | D42: 4.221708743 | E42: 5.062024554 | F42: 5.920321153 | G42: 6.082552782 | H42: 5.9699818 | I42: 5.574883464 | J42: 4.140976339 | K42: 3.75788563 | L42: 3.5213341 | M42: 3.077629661 | N42: 3.534282646 | O42: 3.368638182 | P42: 3.190584274 | Q42: 3.604005928 | R42: 3.848385152 | S42: 4.194866628 | T42: 4.51114111 | U42: 4.077459674 | V42: 3.644859401 | W42: 3.115114422 | X42: 2.766937305 | Y42: 2.851625392 | Z42: 2.963963419 | AA42: 3.732707437 | AB42: 4.537553242 | AC42: 4.50208728 | AD42: 5.098639545 | AE42: 5.526009026 | AF42: 5.469314059 | AG42: 5.076629812 | AH42: 4.563734003 | AI42: 3.98683847 | AJ42: 3.943091278 | AK42: 4.954393621 | AL42: 6.422420352 | AM42: 6.92429001 | AN42: 7.009181142 | AO42: 6.680180606 | AP42: 5.664318445 | AQ42: 5.544084359 | AR42: 5.527284127 | AS42: 5.529310339 | AT42: 5.938161706 | AU42: 6.119676627 | AV42: 6.171627069 | AW42: 6.271635647 | AX42: 5.845781998 | AY42: 5.042227911 | AZ42: 3.927079222 | BD42: Melbourne - Outer East | BE42: 39 | BK42: 7 | BL42: 102 | BM42: 102_20 | BN42: Northern Territory | BO42: 129.1064992 | BP42: 142.6845548 | BQ42: 13.57805562 | BS42: Northern Territory | BT42: 13.57805562 | BV42: Australian Capital Territory | BW42: 10.13178277
A43: 41_1 | B43: 1.523010764 | C43: 1.529727109 | D43: 1.417135694 | E43: 1.231179821 | F43: 1.484439027 | G43: 1.83125603 | H43: 2.316636731 | I43: 1.934205832 | J43: 1.980825334 | K43: 1.925118391 | L43: 1.417135937 | M43: 1.478233456 | N43: 1.093530351 | O43: 0.886241407 | P43: 1.208788297 | Q43: 1.627886555 | R43: 2.320517189 | S43: 2.537551948 | T43: 2.666496918 | U43: 2.343625061 | V43: 1.908225219 | W43: 1.727903915 | X43: 1.802330863 | Y43: 2.323482632 | Z43: 2.24226989 | AA43: 2.239981082 | AB43: 1.642633056 | AC43: 1.032171072 | AD43: 0.786182692 | AE43: 0.647414126 | AF43: 0.525597218 | AG43: 0.838474683 | AH43: 0.883205605 | AI43: 0.783391759 | AJ43: 0.745288377 | AK43: 0.53973646 | AL43: 0.506176464 | AM43: 1.098724443 | AN43: 1.768806578 | AO43: 2.258966996 | AP43: 2.350464984 | AQ43: 1.976874917 | AR43: 1.823317308 | AS43: 1.356919665 | AT43: 1.283014072 | AU43: 1.104018191 | AV43: 0.913741213 | AW43: 0.908666719 | AX43: 1.153514695 | AY43: 1.392049143 | AZ43: 1.327222677 | BD43: Melbourne - South East | BE43: 40 | BK43: 8 | BL43: 105 | BM43: 105_20 | BN43: Australian Capital Territory | BO43: 213.546193 | BP43: 223.6779757 | BQ43: 10.13178277 | BS43: Australian Capital Territory | BT43: 10.13178277 | BV43: Tasmania | BW43: 4.974810025
A44: 42_1 | B44: 1.808243381 | C44: 1.840440404 | D44: 1.663362919 | E44: 1.655242314 | F44: 1.99972846 | G44: 2.058672185 | H44: 2.482799088 | I44: 2.630779312 | J44: 2.836885853 | K44: 3.01831077 | L44: 2.930213375 | M44: 2.955702184 | N44: 2.703632545 | O44: 2.695495062 | P44: 2.461567372 | Q44: 1.958319043 | R44: 1.409590059 | S44: 1.080060772 | T44: 1.056340595 | U44: 1.519479864 | V44: 2.024277329 | W44: 1.880829235 | X44: 1.562076213 | Y44: 1.11464119 | Z44: 0.640495933 | AA44: 0.650198155 | AB44: 0.682771207 | AC44: 0.623572938 | AD44: 0.724994406 | AE44: 0.883481116 | AF44: 0.857354674 | AG44: 0.980657748 | AH44: 1.075912365 | AI44: 1.044157803 | AJ44: 1.642438338 | AK44: 1.520428387 | AL44: 1.27385934 | AM44: 1.006817689 | AN44: 0.455926903 | AO44: 0.708636191 | AP44: 0.931507359 | AQ44: 1.192614789 | AR44: 1.294669097 | AS44: 1.620336167 | AT44: 1.699234803 | AU44: 1.432336411 | AV44: 1.494848651 | AW44: 1.442756683 | AX44: 1.969975752 | AY44: 2.003121066 | AZ44: 1.895498996 | BD44: Melbourne - West | BE44: 41
A45: 43_1 | B45: 71.02876086 | C45: 71.49837269 | D45: 73.22763179 | E45: 74.54050721 | F45: 75.38120173 | G45: 73.04894062 | H45: 66.49639999 | I45: 62.24806411 | J45: 58.54291289 | K45: 57.2674971 | L45: 59.84200745 | M45: 61.90549752 | N45: 63.81186136 | O45: 66.13404895 | P45: 68.07395226 | Q45: 67.46263135 | R45: 67.50862859 | S45: 65.59084241 | T45: 61.86175396 | U45: 60.53486775 | V45: 58.72038479 | W45: 58.91793755 | X45: 59.57551095 | Y45: 60.44919069 | Z45: 59.67999997 | AA45: 59.50942678 | AB45: 61.3144154 | AC45: 62.80560918 | AD45: 62.83395623 | AE45: 65.01681222 | AF45: 66.10577714 | AG45: 66.09311753 | AH45: 67.85498723 | AI45: 67.58127837 | AJ45: 67.50449506 | AK45: 66.20051534 | AL45: 65.10284911 | AM45: 63.56239998 | AN45: 61.33970982 | AO45: 60.8004596 | AP45: 60.34425328 | AQ45: 56.73539429 | AR45: 57.91531693 | AS45: 58.83522289 | AT45: 61.2984882 | AU45: 64.63587945 | AV45: 62.21993845 | AW45: 59.48571098 | AX45: 56.62556959 | AY45: 58.34884543 | AZ45: 64.67932498 | BD45: Mornington Peninsula | BE45: 42
A46: 44_1 | B46: 2.795664333 | C46: 2.29606463 | D46: 2.050061086 | E46: 2.711908653 | F46: 4.022700882 | G46: 4.640427108 | H46: 4.795448604 | I46: 3.791357286 | J46: 2.942502968 | K46: 2.97744826 | L46: 3.323288492 | M46: 3.918304134 | N46: 4.351459172 | O46: 4.456610008 | P46: 4.75992749 | Q46: 4.837201886 | R46: 4.693002132 | S46: 4.848207535 | T46: 4.866653863 | U46: 5.442855458 | V46: 5.862409354 | W46: 5.758699118 | X46: 5.920756797 | Y46: 5.483448604 | Z46: 4.659552587 | AA46: 3.933229221 | AB46: 2.977183227 | AC46: 2.923130191 | AD46: 3.755251577 | AE46: 3.78698494 | AF46: 3.666048057 | AG46: 2.707323203 | AH46: 1.338110577 | AI46: 0.852134473 | AJ46: 0.874550991 | AK46: 1.186295838 | AL46: 1.704958156 | AM46: 2.101021853 | AN46: 2.149085806 | AO46: 1.952570294 | AP46: 1.890522556 | AQ46: 2.010091207 | AR46: 2.335187484 | AS46: 2.690558245 | AT46: 2.864109944 | AU46: 3.124964229 | AV46: 2.705315553 | AW46: 2.576927533 | AX46: 2.28485822 | AY46: 3.82463435 | AZ46: 5.891232636 | BD46: Rest of Vic | BE46: 43
A47: 45_1 | B47: 3.601833125 | C47: 2.989029706 | D47: 2.366617892 | E47: 1.978475288 | F47: 1.846165086 | G47: 1.699313539 | H47: 1.690011734 | I47: 2.078575838 | J47: 2.014915647 | K47: 2.341595584 | L47: 2.309348028 | M47: 2.291855666 | N47: 2.22914134 | O47: 2.400619998 | P47: 2.917735088 | Q47: 2.56381513 | R47: 2.280434263 | S47: 1.791307947 | T47: 1.341370496 | U47: 1.358486495 | V47: 1.665937324 | W47: 2.265208916 | X47: 2.606317813 | Y47: 3.205312388 | Z47: 3.007518841 | AA47: 2.549370854 | AB47: 2.106153161 | AC47: 2.049047865 | AD47: 2.863586004 | AE47: 3.539907665 | AF47: 4.799056001 | AG47: 5.692845768 | AH47: 5.728403327 | AI47: 5.294201134 | AJ47: 4.711036452 | AK47: 3.859546604 | AL47: 3.485649 | AM47: 3.762491008 | AN47: 3.625059404 | AO47: 3.690397718 | AP47: 4.726925289 | AQ47: 4.700463194 | AR47: 4.683429915 | AS47: 5.360758287 | AT47: 5.42866631 | AU47: 5.76764937 | AV47: 5.9749066 | AW47: 5.173983821 | AX47: 4.148601584 | AY47: 3.385569918 | AZ47: 2.745150913 | BD47: Ballarat | BE47: 44
A48: 46_1 | B48: 4.568421522 | C48: 5.108776994 | D48: 5.202973734 | E48: 4.592005652 | F48: 4.025247813 | G48: 3.766135172 | H48: 3.499405841 | I48: 3.555454309 | J48: 3.376950449 | K48: 3.639785531 | L48: 3.785683023 | M48: 3.895349947 | N48: 3.964424333 | O48: 4.191745778 | P48: 4.808384925 | Q48: 5.135479375 | R48: 5.740470409 | S48: 5.474453669 | T48: 4.856447394 | U48: 3.995665647 | V48: 3.255720535 | W48: 2.839392266 | X48: 2.96670137 | Y48: 3.293616983 | Z48: 3.516962383 | AA48: 3.923102357 | AB48: 3.349546354 | AC48: 3.153981814 | AD48: 2.600305088 | AE48: 2.034781784 | AF48: 1.901753535 | AG48: 1.502626956 | AH48: 1.445210126 | AI48: 1.762980056 | AJ48: 2.126188166 | AK48: 2.216852733 | AL48: 2.366970844 | AM48: 2.080565891 | AN48: 1.922410457 | AO48: 2.468522934 | AP48: 2.962919662 | AQ48: 3.340017855 | AR48: 3.936367197 | AS48: 3.769300738 | AT48: 3.575491897 | AU48: 3.338759832 | AV48: 2.583151795 | AW48: 2.493023403 | AX48: 2.058368398 | AY48: 1.799273334 | AZ48: 1.942992661 | BD48: Bendigo | BE48: 45
A49: 47_1 | B49: 6.052374257 | C49: 6.03943195 | D49: 6.415834539 | E49: 7.109140594 | F49: 6.579228423 | G49: 6.367953749 | H49: 6.384143329 | I49: 7.101647996 | J49: 7.99391568 | K49: 8.433227701 | L49: 9.722561875 | M49: 10.17557231 | N49: 10.45143929 | O49: 10.61009921 | P49: 10.25722196 | Q49: 10.00270884 | R49: 10.35787539 | S49: 10.40898098 | T49: 9.286414695 | U49: 8.176734847 | V49: 7.804062822 | W49: 7.576417296 | X49: 7.649336087 | Y49: 7.802734027 | Z49: 6.840886418 | AA49: 6.722932971 | AB49: 7.47686833 | AC49: 7.991230071 | AD49: 7.228975077 | AE49: 10.05348419 | AF49: 11.38322728 | AG49: 12.16419363 | AH49: 13.6116116 | AI49: 10.4231505 | AJ49: 8.760241553 | AK49: 7.968265902 | AL49: 8.065216137 | AM49: 8.889172803 | AN49: 8.964441528 | AO49: 8.92920594 | AP49: 8.502487387 | AQ49: 7.97759814 | AR49: 8.811397998 | AS49: 10.12458528 | AT49: 11.52036336 | AU49: 12.22588062 | AV49: 11.00260533 | AW49: 9.769007932 | AX49: 8.161535577 | AY49: 6.172327925 | AZ49: 6.490440468 | BD49: Geelong | BE49: 46
A50: 48_1 | B50: 11.78970461 | C50: 13.08964824 | D50: 14.18912723 | E50: 15.22405808 | F50: 15.06817342 | G50: 13.49577976 | H50: 10.60808326 | I50: 9.212197232 | J50: 9.041811134 | K50: 8.812362132 | L50: 9.244818387 | M50: 9.130579283 | N50: 9.805248721 | O50: 11.22083244 | P50: 11.97949162 | Q50: 12.16270728 | R50: 11.89508927 | S50: 10.43550857 | T50: 8.765779017 | U50: 7.766759514 | V50: 6.722883037 | W50: 7.149784765 | X50: 7.42592722 | Y50: 8.617428749 | Z50: 9.348184813 | AA50: 9.877009112 | AB50: 12.28407843 | AC50: 13.41375635 | AD50: 14.11048874 | AE50: 15.4003503 | AF50: 15.79464429 | AG50: 17.12169242 | AH50: 17.87627149 | AI50: 18.12929777 | AJ50: 18.59790604 | AK50: 18.29746763 | AL50: 18.41289356 | AM50: 18.23724318 | AN50: 17.3154384 | AO50: 17.95949463 | AP50: 18.34443766 | AQ50: 17.26419407 | AR50: 16.43943929 | AS50: 13.62768135 | AT50: 11.6156426 | AU50: 11.45812678 | AV50: 11.47785679 | AW50: 11.92665619 | AX50: 12.38174803 | AY50: 12.96128825 | AZ50: 13.55489347 | BD50: Hume | BE50: 47 | BJ50: =CONCATENATE(BJ37," ",BJ38,", selected regions") -> Projected employment growth ('000) - five years to November 2018 Total (All Industries), selected regions | BO50: Employment level ('000) - November 2013 | BP50: Employment level ('000) - November 2018 Projection | BQ50: Projected employment growth ('000) - five years to November 2018 | BS50: Chart Area | BV50: Top Regions | BY50: Bottom Regions
A51: 49_1 | B51: 18.05831655 | C51: 18.01150188 | D51: 18.59369626 | E51: 18.86989858 | F51: 19.10809154 | G51: 19.26782909 | H51: 18.82873037 | I51: 17.83257676 | J51: 16.71396909 | K51: 16.57714368 | L51: 16.59669585 | M51: 17.24351733 | N51: 18.57784585 | O51: 19.01069656 | P51: 19.53713384 | Q51: 19.04600767 | R51: 17.26421668 | S51: 15.8071398 | T51: 14.68486293 | U51: 15.01641275 | V51: 15.23922389 | W51: 15.35894243 | X51: 14.81287176 | Y51: 13.37324746 | Z51: 12.21025662 | AA51: 11.65022541 | AB51: 11.8797159 | AC51: 12.12825348 | AD51: 11.69139697 | AE51: 11.58682514 | AF51: 11.79007745 | AG51: 11.7480608 | AH51: 13.28709781 | AI51: 14.30598423 | AJ51: 14.01495032 | AK51: 14.1417768 | AL51: 13.88338366 | AM51: 13.0893806 | AN51: 12.75744756 | AO51: 11.46909762 | AP51: 9.996170284 | AQ51: 9.133313866 | AR51: 10.01083873 | AS51: 11.70224167 | AT51: 13.56137384 | AU51: 14.2362286 | AV51: 13.467641 | AW51: 11.76412453 | AX51: 10.9332049 | AY51: 11.14298707 | AZ51: 11.38559572 | BD51: Latrobe - Gippsland | BE51: 48 | BK51: 1 | BL51: 3 | BM51: =CONCATENATE(BL51,"_",$BJ$39) -> 3_20 | BN51: Central Coast | BO51: =VLOOKUP(BM51,hpfandprojection,52,FALSE) -> 150.5721893 | BP51: =VLOOKUP(BM51,hpfandprojection,53,FALSE) -> 164.1141217 | BQ51: =VLOOKUP(BM51,hpfandprojection,54,FALSE) -> 13.54193246 | BS51: Central Coast | BT51: =HLOOKUP($BJ$37,topbottomdata,BK51+1,FALSE) -> 13.54193246 | BV51: Sydney - Eastern Suburbs | BW51: 15.43876992 | BY51: Greater Hobart | BZ51: 3.201629256
A52: 50_1 | B52: 12.27090037 | C52: 11.69004765 | D52: 11.87835169 | E52: 11.79843119 | F52: 12.43937817 | G52: 11.95567055 | H52: 9.795023223 | I52: 7.86985044 | J52: 5.659620075 | K52: 4.446096982 | L52: 4.247517307 | M52: 4.595017587 | N52: 3.997114474 | O52: 3.187764944 | P52: 2.799102198 | Q52: 2.66957284 | R52: 3.422701765 | S52: 4.562068588 | T52: 5.951882583 | U52: 6.526977355 | V52: 6.448781694 | W52: 6.039405159 | X52: 5.573939356 | Y52: 5.688931141 | Z52: 6.612148645 | AA52: 7.051975136 | AB52: 7.421249667 | AC52: 7.618577179 | AD52: 8.969048424 | AE52: 9.711595675 | AF52: 10.0633015 | AG52: 10.73255751 | AH52: 10.02851427 | AI52: 10.52544734 | AJ52: 11.05629458 | AK52: 10.639887 | AL52: 9.56704716 | AM52: 9.054513368 | AN52: 8.918138915 | AO52: 8.496042309 | AP52: 8.401132819 | AQ52: 7.531210415 | AR52: 7.375639266 | AS52: 7.128805973 | AT52: 8.162730515 | AU52: 8.830629948 | AV52: 9.042119737 | AW52: 9.883127516 | AX52: 9.72395344 | AY52: 10.43748953 | AZ52: 11.67050846 | BD52: Victoria - North West | BE52: 49 | BK52: 2 | BL52: 4 | BM52: =CONCATENATE(BL52,"_",$BJ$39) -> 4_20 | BN52: Sydney - Baulkham Hills and Hawkesbury | BO52: 124.0705065 | BP52: =VLOOKUP(BM52,hpfandprojection,53,FALSE) -> 140.1666478 | BQ52: =VLOOKUP(BM52,hpfandprojection,54,FALSE) -> 16.09614127 | BS52: Sydney - Baulkham Hills and Hawkesbury | BT52: =HLOOKUP($BJ$37,topbottomdata,BK52+1,FALSE) -> 16.09614127 | BV52: Sydney - Baulkham Hills and Hawkesbury | BW52: 16.09614127 | BY52: Murray | BZ52: 2.956645685
A53: 51_1 | B53: 11.89154608 | C53: 12.27387165 | D53: 12.53096936 | E53: 12.25658917 | F53: 12.2922164 | G53: 11.85583164 | H53: 10.89555363 | I53: 10.80640424 | J53: 10.79922784 | K53: 10.03983723 | L53: 10.61209449 | M53: 10.65530126 | N53: 10.43518818 | O53: 11.05568002 | P53: 11.01495513 | Q53: 11.04513833 | R53: 11.85483868 | S53: 12.26317532 | T53: 12.10834299 | U53: 12.25097568 | V53: 11.72136614 | W53: 11.9300876 | X53: 12.61966054 | Y53: 12.98447134 | Z53: 13.48448966 | AA53: 13.80158172 | AB53: 13.81962033 | AC53: 13.52763223 | AD53: 11.61490434 | AE53: 8.902882523 | AF53: 6.707669023 | AG53: 4.423817248 | AH53: 4.53976803 | AI53: 6.28808286 | AJ53: 7.363326957 | AK53: 7.890422828 | AL53: 7.616730591 | AM53: 6.348011284 | AN53: 5.687687744 | AO53: 5.83512815 | AP53: 5.519657629 | AQ53: 4.778505535 | AR53: 4.323017052 | AS53: 4.431291342 | AT53: 4.570109733 | AU53: 5.653640079 | AV53: 5.96634165 | AW53: 5.898860057 | AX53: 6.933299441 | AY53: 8.625275055 | AZ53: 10.99851066 | BD53: Shepparton | BE53: 50 | BK53: 3 | BL53: 5 | BM53: 5_20 | BN53: Sydney - Blacktown | BO53: 154.2034628 | BP53: 164.6116856 | BQ53: 10.4082228 | BS53: Sydney - Blacktown | BT53: 10.4082228 | BV53: Fitzroy | BW53: 16.16657877 | BY53: New England and North West | BZ53: 2.951817558
A54: 52_1 | B54: 94.288872 | C54: 95.37975062 | D54: 96.77077535 | E54: 98.80410255 | F54: 103.0915748 | G54: 102.9739176 | H54: 102.4898842 | I54: 96.75840544 | J54: 93.1194815 | K54: 89.60091615 | L54: 84.9227224 | M54: 86.23569876 | N54: 84.31972196 | O54: 82.33815103 | P54: 83.01451951 | Q54: 81.106187 | R54: 77.81200298 | S54: 76.12606338 | T54: 74.53378217 | U54: 71.63822584 | V54: 70.46746232 | W54: 71.15063231 | X54: 71.64273912 | Y54: 74.69926431 | Z54: 76.3113129 | AA54: 77.69348865 | AB54: 76.90227537 | AC54: 72.42217378 | AD54: 78.14802466 | AE54: 77.52596152 | AF54: 78.12474607 | AG54: 81.07466289 | AH54: 77.3033093 | AI54: 77.48040576 | AJ54: 78.2958903 | AK54: 82.1253028 | AL54: 84.2908687 | AM54: 85.49400743 | AN54: 84.83785847 | AO54: 78.79375284 | AP54: 74.37274117 | AQ54: 71.71842174 | AR54: 69.75020862 | AS54: 72.03503795 | AT54: 74.37919065 | AU54: 72.22445925 | AV54: 70.9109573 | AW54: 69.1314289 | AX54: 65.49299341 | AY54: 63.22684822 | AZ54: 61.84886326 | BD54: Warrnambool and South West | BE54: 51 | BK54: 4 | BL54: 6 | BM54: 6_20 | BN54: Sydney - City and Inner South | BO54: 189.9234808 | BP54: 219.2786481 | BQ54: 29.35516732 | BS54: Sydney - City and Inner South | BT54: 29.35516732 | BV54: Ipswich | BW54: 16.51421669 | BY54: Northern Territory - Outback | BZ54: 2.821238256
A55: 53_1 | B55: 9.533788074 | C55: 9.481540303 | D55: 9.748529397 | E55: 11.06594206 | F55: 12.54502391 | G55: 13.57568937 | H55: 13.62442401 | I55: 12.78616013 | J55: 11.80257872 | K55: 10.43255676 | L55: 9.820439161 | M55: 10.28826147 | N55: 9.776648198 | O55: 9.829336143 | P55: 9.374336334 | Q55: 8.555072011 | R55: 8.475407165 | S55: 8.708388735 | T55: 10.2395397 | U55: 11.86149849 | V55: 12.12352753 | W55: 13.10748361 | X55: 13.11647276 | Y55: 13.78044232 | Z55: 14.46576776 | AA55: 13.77860767 | AB55: 12.86100627 | AC55: 10.1369147 | AD55: 9.353277598 | AE55: 8.374530076 | AF55: 8.656423671 | AG55: 9.487752625 | AH55: 8.838766267 | AI55: 9.368878946 | AJ55: 8.927084477 | AK55: 9.497095867 | AL55: 11.35457614 | AM55: 12.05579422 | AN55: 12.94993121 | AO55: 12.28682685 | AP55: 10.95466582 | AQ55: 10.55869535 | AR55: 10.44819153 | AS55: 11.94277545 | AT55: 11.91907067 | AU55: 11.26483431 | AV55: 10.87416374 | AW55: 9.608422689 | AX55: 10.06833334 | AY55: 9.654239235 | AZ55: 9.032323769 | BD55: Queensland | BE55: 52 | BK55: 5 | BL55: 7 | BM55: 7_20 | BN55: Sydney - Eastern Suburbs | BO55: 157.9549472 | BP55: 173.3937172 | BQ55: 15.43876992 | BS55: Sydney - Eastern Suburbs | BT55: 15.43876992 | BV55: Brisbane - South | BW55: 18.05960038 | BY55: Illawarra | BZ55: 2.641265785
A56: 54_1 | B56: 0.6384046 | C56: 0.633877589 | D56: 1.15847027 | E56: 1.527700378 | F56: 1.807961992 | G56: 1.75545034 | H56: 1.296679254 | I56: 1.141945002 | J56: 0.880917282 | K56: 0.809445004 | L56: 1.026950658 | M56: 1.366943415 | N56: 1.644380206 | O56: 2.02953733 | P56: 1.872024362 | Q56: 1.603500483 | R56: 1.18727231 | S56: 0.824999238 | T56: 0.821179127 | U56: 0.6623254 | V56: 0.589864155 | W56: 0.71431998 | X56: 0.800565153 | Y56: 0.823998473 | Z56: 0.919710381 | AA56: 0.898032557 | AB56: 0.910413045 | AC56: 0.969493046 | AD56: 0.916721137 | AE56: 0.604521603 | AF56: 0.318131829 | AG56: 0.238593099 | AH56: 0.257442737 | AI56: 0.257442737 | AJ56: 0.257442737 | AK56: 0.194942947 | AL56: 0.368992879 | AM56: 0.518897031 | AN56: 0.740080538 | AO56: 0.672494728 | AP56: 0.445910598 | AQ56: 0.610992618 | AR56: 0.466679754 | AS56: 0.684940423 | AT56: 0.610117483 | AU56: 0.471575273 | AV56: 0.494487616 | AW56: 0.366197449 | AX56: 0.366197449 | AY56: 0.399981425 | AZ56: 0.51825535 | BD56: Greater Brisbane | BE56: 53 | BK56: 6 | BL56: 8 | BM56: 8_20 | BN56: Sydney - Inner South West | BO56: 259.5847686 | BP56: 278.4477805 | BQ56: 18.86301188 | BS56: Sydney - Inner South West | BT56: 18.86301188 | BV56: Brisbane Inner City | BW56: 18.62519875 | BY56: South Australia - South East | BZ56: 2.624740182
A57: 55_1 | B57: 0.536897002 | C57: 0.472763333 | D57: 0.585185066 | E57: 0.479650195 | F57: 0.382905248 | G57: 0.325131933 | H57: 0.212710201 | I57: 0.102866979 | J57: 0.135394649 | K57: 0.208747294 | L57: 0.208747294 | M57: 0.208747294 | N57: 0.073352645 | O57: 0.070570806 | P57: 0.142663318 | Q57: 0.142663318 | R57: 0.213736177 | S57: 0.282134612 | T57: 0.210042101 | U57: 0.210042101 | V57: 0.138969241 | W57: 0 | X57: 0.059618135 | Y57: 0.059618135 | Z57: 0.135392838 | AA57: 0.200662966 | AB57: 0.316137772 | AC57: 0.316137772 | AD57: 0.24036307 | AE57: 0.175092942 | AF57: 0 | AG57: 0 | AH57: 0.102161571 | AI57: 0.226771051 | AJ57: 0.226771051 | AK57: 0.226771051 | AL57: 0.221092827 | AM57: 0.096483346 | AN57: 0.178870264 | AO57: 0.433214933 | AP57: 0.514008039 | AQ57: 0.602687757 | AR57: 0.520300839 | AS57: 0.26595617 | AT57: 0.251374256 | AU57: 0.162694538 | AV57: 0.248472237 | AW57: 0.248472237 | AX57: 0.085777699 | AY57: 0.085777699 | AZ57: 0 | BD57: Brisbane - East | BE57: 54 | BK57: 7 | BL57: 9 | BM57: 9_20 | BN57: Sydney - Inner West | BO57: 161.2065434 | BP57: 169.6080099 | BQ57: 8.401466526 | BS57: Sydney - Inner West | BT57: 8.401466526 | BV57: Sydney - Inner South West | BW57: 18.86301188 | BY57: Far West and Orana | BZ57: 2.028465232
A58: 56_1 | B58: 0.349591749 | C58: 0.297669597 | D58: 0.333476573 | E58: 0.378691088 | F58: 0.479177818 | G58: 0.711396781 | H58: 0.688477618 | I58: 0.629388782 | J58: 0.545704001 | K58: 0.354319175 | L58: 0.28658954 | M58: 0.340016218 | N58: 0.344705575 | O58: 0.40168924 | P58: 0.394405934 | Q58: 0.628120012 | R58: 0.842539012 | S58: 1.221787926 | T58: 1.656604982 | U58: 1.920726553 | V58: 1.845521674 | W58: 1.584421361 | X58: 1.416381838 | Y58: 1.002815766 | Z58: 0.981221616 | AA58: 1.15494559 | AB58: 1.093789492 | AC58: 1.096258839 | AD58: 0.909055068 | AE58: 0.558968269 | AF58: 0.535608096 | AG58: 0.560322552 | AH58: 0.560322552 | AI58: 0.466604457 | AJ58: 0.307777364 | AK58: 0.087929542 | AL58: 0.184312868 | AM58: 0.278751925 | AN58: 0.190822383 | AO58: 0.28190357 | AP58: 0.277337749 | AQ58: 0.261127125 | AR58: 0.365141145 | AS58: 0.721784569 | AT58: 0.892171636 | AU58: 0.888820866 | AV58: 0.895502548 | AW58: 0.582986731 | AX58: 0.559146809 | AY58: 0.855000846 | AZ58: 0.985510113 | BD58: Brisbane - North | BE58: 55 | BK58: 8 | BL58: 10 | BM58: 10_20 | BN58: Sydney - North Sydney and Hornsby | BO58: 223.7989303 | BP58: 237.6477455 | BQ58: 13.84881521 | BS58: Sydney - North Sydney and Hornsby | BT58: 13.84881521 | BV58: Sunshine Coast | BW58: 18.89142107 | BY58: Mid North Coast | BZ58: 1.936975403
A59: 57_1 | B59: 0.11783473 | C59: 0.178208975 | D59: 0.178208975 | E59: 0.116945313 | F59: 0.191202698 | G59: 0.311009361 | H59: 0.36980291 | I59: 0.512947106 | J59: 0.574651052 | K59: 0.569750004 | L59: 0.616020772 | M59: 0.682950399 | N59: 0.602691051 | O59: 0.488349933 | P59: 0.383285617 | Q59: 0.116640724 | R59: 0.060938742 | S59: 0 | T59: 0 | U59: 0.076009598 | V59: 0.157755887 | W59: 0.157755887 | X59: 0.292325475 | Y59: 0.602567717 | Z59: 0.844159821 | AA59: 0.990083616 | AB59: 0.906678099 | AC59: 0.520426259 | AD59: 0.197087865 | AE59: 0.051164071 | AF59: 0 | AG59: 0 | AH59: 0 | AI59: 0.287126411 | AJ59: 0.523765119 | AK59: 0.753806488 | AL59: 0.951416417 | AM59: 0.664290006 | AN59: 0.534765598 | AO59: 0.304724229 | AP59: 0.1071143 | AQ59: 0.1071143 | AR59: 0.248972888 | AS59: 0.470663279 | AT59: 0.565741707 | AU59: 0.667669879 | AV59: 0.41869699 | AW59: 0.304179376 | AX59: 0.209100948 | AY59: 0.107172776 | AZ59: 0.107172776 | BD59: Brisbane - South | BE59: 56 | BK59: 9 | BL59: 11 | BM59: 11_20 | BN59: Sydney - Northern Beaches | BO59: 139.9766247 | BP59: 147.2716693 | BQ59: 7.295044616 | BS59: Sydney - Northern Beaches | BT59: 7.295044616 | BV59: Sydney - City and Inner South | BW59: 29.35516732 | BY59: Southern Highlands and Shoalhaven | BZ59: 1.449709341
A60: 58_1 | B60: 0.275785909 | C60: 0.262138274 | D60: 0.399916868 | E60: 0.471591183 | F60: 0.411485912 | G60: 0.352634118 | H60: 0.301582982 | I60: 0.229908667 | J60: 0.157438279 | K60: 0.214126594 | L60: 0.272258334 | M60: 0.405027462 | N60: 0.531731693 | O60: 0.404332558 | P60: 0.315653821 | Q60: 0.182884694 | R60: 0.056180462 | S60: 0.056180462 | T60: 0 | U60: 0.073384405 | V60: 0.218094092 | W60: 0.470477487 | X60: 0.80448742 | Y60: 1.147209316 | Z60: 1.144361343 | AA60: 0.949069344 | AB60: 0.682984733 | AC60: 0.266878432 | AD60: 0.301355068 | AE60: 0.244263673 | AF60: 0.176338351 | AG60: 0.323126502 | AH60: 0.248457198 | AI60: 0.363927061 | AJ60: 0.363927061 | AK60: 0.396076342 | AL60: 0.381181403 | AM60: 0.356204153 | AN60: 0.456958507 | AO60: 0.456916506 | AP60: 0.46716459 | AQ60: 0.474894564 | AR60: 0.587986836 | AS60: 0.739858247 | AT60: 0.745373541 | AU60: 0.647150954 | AV60: 0.433304327 | AW60: 0.328604082 | AX60: 0.226066598 | AY60: 0.364267148 | AZ60: 0.475435851 | BD60: Brisbane - West | BE60: 57 | BK60: 10 | BL60: 12 | BM60: 12_20 | BN60: Sydney - Outer South West | BO60: 122.4234855 | BP60: 132.205032 | BQ60: 9.781546529 | BS60: Sydney - Outer South West | BT60: 9.781546529 | BV60: Perth - South East | BW60: 31.44199978 | BY60: Launceston and North East | BZ60: 1.208653787
A61: 59_1 | B61: 3.939900867 | C61: 3.655839898 | D61: 3.220287284 | E61: 3.887774846 | F61: 4.307552575 | G61: 4.735796861 | H61: 5.435920258 | I61: 5.218202686 | J61: 4.891636477 | K61: 4.420823608 | L61: 3.463486913 | M61: 2.79897761 | N61: 2.146638896 | O61: 1.633439062 | P61: 1.47130019 | Q61: 1.30684785 | R61: 1.515107247 | S61: 1.241132843 | T61: 1.292518705 | U61: 1.605331458 | V61: 1.504722828 | W61: 2.586221785 | X61: 3.269290475 | Y61: 3.992130806 | Z61: 4.466311892 | AA61: 3.98136347 | AB61: 3.578611974 | AC61: 2.790590944 | AD61: 2.972388997 | AE61: 2.983831062 | AF61: 3.305431583 | AG61: 3.483632551 | AH61: 2.928880825 | AI61: 3.059030767 | AJ61: 2.960843191 | AK61: 3.385890812 | AL61: 4.520299551 | AM61: 5.056572995 | AN61: 5.470435139 | AO61: 4.904971563 | AP61: 3.76986427 | AQ61: 2.706854038 | AR61: 1.816984187 | AS61: 1.847361915 | AT61: 1.497797811 | AU61: 1.99077191 | AV61: 2.906606267 | AW61: 2.985733142 | AX61: 3.645365627 | AY61: 3.493906288 | AZ61: 3.101149448 | BD61: Brisbane Inner City | BE61: 58 | BK61: 11 | BL61: 13 | BM61: 13_20 | BN61: Sydney - Outer West and Blue Mountains | BO61: 153.7104389 | BP61: 161.7212372 | BQ61: 8.010798319 | BS61: Sydney - Outer West and Blue Mountains | BT61: 8.010798319 | BV61: Melbourne - Inner | BW61: 32.90524313 | BY61: South Australia - Outback | BZ61: 0.6257515835
A62: 60_1 | B62: 2.017136157 | C62: 2.269873618 | D62: 2.031899291 | E62: 2.194109784 | F62: 2.469152674 | G62: 2.509821974 | H62: 2.132251022 | I62: 1.864367112 | J62: 1.596524289 | K62: 1.114318459 | L62: 1.23430325 | M62: 1.400337929 | N62: 1.305697067 | O62: 1.476306278 | P62: 1.4788691 | Q62: 1.338408982 | R62: 1.461592878 | S62: 1.817158024 | T62: 2.706847121 | U62: 3.205983673 | V62: 3.258228307 | W62: 2.971987677 | X62: 2.251158966 | Y62: 1.804262078 | Z62: 1.92526561 | AA62: 1.795714689 | AB62: 1.785742338 | AC62: 1.683816591 | AD62: 1.735684305 | AE62: 2.066456136 | AF62: 2.688963382 | AG62: 3.340039907 | AH62: 3.313245868 | AI62: 3.503153359 | AJ62: 3.239180083 | AK62: 3.340296685 | AL62: 3.675551314 | AM62: 3.814344653 | AN62: 4.319736565 | AO62: 4.283459073 | AP62: 4.401138364 | AQ62: 4.686326059 | AR62: 4.88847109 | AS62: 5.187324834 | AT62: 5.414224305 | AU62: 4.949934465 | AV62: 4.512220279 | AW62: 4.272093049 | AX62: 4.05576688 | AY62: 3.422730911 | AZ62: 2.746915295 | BD62: Ipswich | BE62: 59 | BK62: 12 | BL62: 14 | BM62: 14_20 | BN62: Sydney - Parramatta | BO62: 195.2176433 | BP62: 209.9671245 | BQ62: 14.74948127 | BS62: Sydney - Parramatta | BT62: 14.74948127 | BV62: Gold Coast | BW62: 32.9063707 | BY62: Western Australia - Wheat Belt | BZ62: 0.4778044158
A63: 61_1 | B63: 1.351698706 | C63: 1.419899123 | D63: 1.54453342 | E63: 1.762633673 | F63: 2.141428366 | G63: 2.284303409 | H63: 2.4390697 | I63: 2.338603726 | J63: 2.383534592 | K63: 2.386067936 | L63: 2.637472093 | M63: 2.953649968 | N63: 2.955953267 | O63: 3.153613138 | P63: 3.144636196 | Q63: 3.121509023 | R63: 3.138040336 | S63: 3.079900254 | T63: 3.265712348 | U63: 3.764236994 | V63: 4.003258363 | W63: 4.339908638 | X63: 3.881848767 | Y63: 3.722563764 | Z63: 3.235980192 | AA63: 2.968665819 | AB63: 2.834089355 | AC63: 2.002433806 | AD63: 1.657063207 | AE63: 1.266921043 | AF63: 1.281074682 | AG63: 1.142337209 | AH63: 1.100815105 | AI63: 0.831612261 | AJ63: 0.582110984 | AK63: 0.77456243 | AL63: 0.827071276 | AM63: 1.178194066 | AN63: 0.981875161 | AO63: 0.872755197 | AP63: 0.895740856 | AQ63: 1.032311837 | AR63: 1.334703519 | AS63: 1.590170975 | AT63: 1.396330739 | AU63: 0.753447126 | AV63: 0.451055444 | AW63: 0.122077743 | AX63: 0.634056603 | AY63: 0.825377523 | AZ63: 0.997860316 | BD63: Logan - Beaudesert | BE63: 60 | BK63: 13 | BL63: 15 | BM63: 15_20 | BN63: Sydney - Ryde | BO63: 90.95209825 | BP63: 95.69217265 | BQ63: 4.740074396 | BS63: Sydney - Ryde | BT63: 4.740074396 | BV63: Perth - North West | BW63: 34.10859017 | BY63: Barossa - Yorke - Mid North | BZ63: 0.3201366563
A64: 62_1 | B64: 0.306538354 | C64: 0.291269896 | D64: 0.296551651 | E64: 0.246845599 | F64: 0.354156628 | G64: 0.590144593 | H64: 0.74793007 | I64: 0.74793007 | J64: 0.636778096 | K64: 0.354958683 | L64: 0.074610307 | M64: 0.131611177 | N64: 0.171497797 | O64: 0.171497797 | P64: 0.171497797 | Q64: 0.114496927 | R64: 0 | S64: 0.185095376 | T64: 0.286635322 | U64: 0.343458307 | V64: 0.407112987 | W64: 0.282390791 | X64: 0.340796529 | Y64: 0.625276264 | Z64: 0.81336407 | AA64: 0.84006962 | AB64: 0.752559466 | AC64: 0.490879007 | AD64: 0.423558881 | AE64: 0.423311278 | AF64: 0.350875749 | AG64: 0.399700805 | AH64: 0.327440412 | AI64: 0.373210842 | AJ64: 0.465266887 | AK64: 0.33681957 | AL64: 0.224657602 | AM64: 0.092056045 | AN64: 0.07638705 | AO64: 0.07638705 | AP64: 0.07638705 | AQ64: 0.07638705 | AR64: 0.218951271 | AS64: 0.434715038 | AT64: 0.545939194 | AU64: 0.7327693 | AV64: 0.513818029 | AW64: 0.398078881 | AX64: 0.286854724 | AY64: 0.100024619 | AZ64: 0.100024619 | BD64: Moreton Bay - North | BE64: 61 | BK64: 14 | BL64: 16 | BM64: 16_20 | BN64: Sydney - South West | BO64: 160.5706423 | BP64: 168.9389681 | BQ64: 8.368325802 | BS64: Sydney - South West | BT64: 8.368325802 | BV64: Melbourne - South East | BW64: 34.77409191 | BY64: Tasmania - South East | BZ64: 0.2825072186
A65: 63_1 | B65: 84.75508393 | C65: 85.89821032 | D65: 87.02224595 | E65: 87.73816049 | F65: 90.54655088 | G65: 89.39822826 | H65: 88.86546015 | I65: 83.97224531 | J65: 81.31690278 | K65: 79.1683594 | L65: 75.10228323 | M65: 75.94743729 | N65: 74.54307377 | O65: 72.50881488 | P65: 73.64018318 | Q65: 72.55111499 | R65: 69.33659581 | S65: 67.41767465 | T65: 64.29424247 | U65: 59.77672736 | V65: 58.34393479 | W65: 58.0431487 | X65: 58.52626636 | Y65: 60.91882199 | Z65: 61.84554513 | AA65: 63.91488098 | AB65: 64.0412691 | AC65: 62.28525908 | AD65: 68.79474706 | AE65: 69.15143145 | AF65: 69.4683224 | AG65: 71.58691026 | AH65: 68.46454304 | AI65: 68.11152681 | AJ65: 69.36880582 | AK65: 72.62820693 | AL65: 72.93629257 | AM65: 73.43821321 | AN65: 71.88792727 | AO65: 66.50692599 | AP65: 63.41807536 | AQ65: 61.1597264 | AR65: 59.30201709 | AS65: 60.0922625 | AT65: 62.46011998 | AU65: 60.95962494 | AV65: 60.03679356 | AW65: 59.52300621 | AX65: 55.42466008 | AY65: 53.57260898 | AZ65: 52.8165395 | BD65: Moreton Bay - South | BE65: 62 | BK65: 15 | BL65: 17 | BM65: 17_20 | BN65: Sydney - Sutherland | BO65: 122.622554 | BP65: 129.0131711 | BQ65: 6.390617039 | BS65: Sydney - Sutherland | BT65: 6.390617039 | BV65: Melbourne - West | BW65: 42.45753695 | BY65: Tasmania - West and North West | BZ65: 0.2820197645
A66: 64_1 | B66: 9.452854912 | C66: 9.413289848 | D66: 10.3429172 | E66: 11.27939758 | F66: 11.78816272 | G66: 12.08923006 | H66: 11.86199816 | I66: 10.81135015 | J66: 10.1587343 | K66: 9.464712438 | L66: 8.27177275 | M66: 7.882237394 | N66: 8.319214631 | O66: 7.49707903 | P66: 7.677781256 | Q66: 8.040406776 | R66: 6.714757327 | S66: 6.988273417 | T66: 7.158785738 | U66: 6.806629682 | V66: 6.713182603 | W66: 6.17867056 | X66: 5.666820926 | Y66: 5.52653204 | Z66: 6.084084451 | AA66: 7.245248262 | AB66: 6.871042602 | AC66: 6.745201019 | AD66: 7.008166932 | AE66: 5.418051521 | AF66: 5.242905711 | AG66: 4.731337429 | AH66: 3.329898611 | AI66: 3.700298249 | AJ66: 4.081785089 | AK66: 4.463984164 | AL66: 5.400141722 | AM66: 5.758907224 | AN66: 6.669158951 | AO66: 5.466396851 | AP66: 4.579305549 | AQ66: 4.586686556 | AR66: 3.904390655 | AS66: 5.467460247 | AT66: 7.762741295 | AU66: 8.556685105 | AV66: 9.156829436 | AW66: 10.43733905 | AX66: 9.57362187 | AY66: 8.825809998 | AZ66: 8.129008867 | BD66: Rest of Qld | BE66: 63 | BK66: 16 | BL66: 19 | BM66: 19_20 | BN66: Capital Region | BO66: 103.2078938 | BP66: 106.8872062 | BQ66: 3.679312402 | BS66: Capital Region | BT66: 3.679312402
A67: 65_1 | B67: 15.96181934 | C67: 16.94032934 | D67: 17.33545227 | E67: 17.51224424 | F67: 17.90250384 | G67: 17.74405033 | H67: 17.37649484 | I67: 18.0658023 | J67: 18.91174463 | K67: 19.15878495 | L67: 19.74626433 | M67: 20.1170525 | N67: 19.16476271 | O67: 19.17091203 | P67: 18.66510043 | Q67: 16.40485368 | R67: 15.46050544 | S67: 14.56989318 | T67: 13.91936001 | U67: 13.37141046 | V67: 13.55079025 | W67: 13.9260259 | X67: 14.47860748 | Y67: 14.98148601 | Z67: 15.18633728 | AA67: 15.85145102 | AB67: 15.65074484 | AC67: 16.42534669 | AD67: 17.97803737 | AE67: 18.08767085 | AF67: 17.47449619 | AG67: 18.34433591 | AH67: 18.54523526 | AI67: 18.59492662 | AJ67: 19.35977645 | AK67: 18.47652373 | AL67: 16.75057207 | AM67: 15.96494126 | AN67: 15.67346794 | AO67: 14.809262 | AP67: 14.8094161 | AQ67: 14.85253249 | AR67: 14.68085013 | AS67: 14.94906209 | AT67: 14.59079946 | AU67: 13.47884718 | AV67: 13.81531874 | AW67: 13.85244075 | AX67: 14.23460308 | AY67: 14.22059438 | AZ67: 12.73034216 | BD67: Cairns | BE67: 64 | BK67: 17 | BL67: 20 | BM67: 20_20 | BN67: NSW - Central West | BO67: 100.373689 | BP67: 108.1391981 | BQ67: 7.765509102 | BS67: NSW - Central West | BT67: 7.765509102
A68: 66_1 | B68: 13.56928849 | C68: 14.87982235 | D68: 16.34151461 | E68: 16.52880554 | F68: 15.22174663 | G68: 13.91516158 | H68: 13.02669724 | I68: 10.08360948 | J68: 8.236481238 | K68: 5.48729002 | L68: 2.9962126 | M68: 2.93468834 | N68: 2.480686713 | O68: 2.317611276 | P68: 2.721528741 | Q68: 3.267284855 | R68: 4.044811102 | S68: 3.939697095 | T68: 3.472784332 | U68: 2.695046076 | V68: 2.035242302 | W68: 2.188794944 | X68: 2.117137144 | Y68: 2.55848528 | Z68: 2.442705489 | AA68: 2.717986068 | AB68: 2.772139152 | AC68: 2.736258991 | AD68: 3.937738168 | AE68: 5.506651677 | AF68: 6.115315701 | AG68: 6.567352224 | AH68: 6.322626567 | AI68: 5.554699948 | AJ68: 5.729169306 | AK68: 5.888148692 | AL68: 5.675633688 | AM68: 5.782681587 | AN68: 5.854299897 | AO68: 5.534232644 | AP68: 5.33562251 | AQ68: 4.589046716 | AR68: 4.217186988 | AS68: 4.298882153 | AT68: 4.143492093 | AU68: 4.400642793 | AV68: 4.376240211 | AW68: 4.344996634 | AX68: 3.985120084 | AY68: 3.251248992 | AZ68: 2.720188025 | BD68: Darling Downs - Maranoa | BE68: 65 | BK68: 18 | BL68: 21 | BM68: 21_20 | BN68: Coffs Harbour - Grafton | BO68: 60.02433267 | BP68: 63.25452405 | BQ68: 3.230191378 | BS68: Coffs Harbour - Grafton | BT68: 3.230191378
A69: 67_1 | B69: 1.580098262 | C69: 1.426006559 | D69: 1.925142096 | E69: 1.847782327 | F69: 2.058909349 | G69: 2.157265692 | H69: 2.120592309 | I69: 2.121127355 | J69: 1.904528947 | K69: 2.121667586 | L69: 1.882197357 | M69: 1.423047326 | N69: 1.423351941 | O69: 1.378412013 | P69: 1.869380432 | Q69: 2.109202158 | R69: 1.834275516 | S69: 1.674220082 | T69: 1.387416103 | U69: 1.239903307 | V69: 1.321375441 | W69: 1.162493645 | X69: 0.966207188 | Y69: 1.100556697 | Z69: 1.37953377 | AA69: 1.251908 | AB69: 1.120168342 | AC69: 0.738985852 | AD69: 0.365797766 | AE69: 0.714948207 | AF69: 0.879942557 | AG69: 1.060587812 | AH69: 1.270161217 | AI69: 1.138079343 | AJ69: 1.159677792 | AK69: 1.157353428 | AL69: 1.104556705 | AM69: 1.494747092 | AN69: 1.512390409 | AO69: 1.595472132 | AP69: 1.358623234 | AQ69: 0.945433956 | AR69: 0.821139652 | AS69: 0.91667567 | AT69: 1.044170605 | AU69: 1.102621436 | AV69: 1.164027711 | AW69: 1.204868884 | AX69: 0.993310597 | AY69: 0.957379301 | AZ69: 1.596112188 | BD69: Fitzroy | BE69: 66 | BK69: 19 | BL69: 22 | BM69: 22_20 | BN69: Far West and Orana | BO69: 49.27219692 | BP69: 51.30066216 | BQ69: 2.028465232 | BS69: Far West and Orana | BT69: 2.028465232
A70: 68_1 | B70: 3.51631361 | C70: 3.565214594 | D70: 3.73359189 | E70: 3.924075984 | F70: 3.907755228 | G70: 3.715180394 | H70: 3.755596 | I70: 4.333233523 | J70: 5.525179751 | K70: 6.734259134 | L70: 7.777482367 | M70: 8.400858478 | N70: 8.225790668 | O70: 7.98487877 | P70: 7.8785124 | Q70: 8.096972486 | R70: 8.41606566 | S70: 8.653145734 | T70: 8.079187024 | U70: 6.924335196 | V70: 5.91403127 | W70: 5.433301722 | X70: 6.024157011 | Y70: 6.701913968 | Z70: 6.972968806 | AA70: 7.024841347 | AB70: 7.637439163 | AC70: 7.42156857 | AD70: 7.543009018 | AE70: 7.09640885 | AF70: 5.980985487 | AG70: 5.55837354 | AH70: 5.702265036 | AI70: 5.260841807 | AJ70: 4.806738539 | AK70: 4.782044203 | AL70: 3.578569007 | AM70: 2.840027839 | AN70: 2.105283054 | AO70: 1.290915243 | AP70: 0.961238065 | AQ70: 0.966391753 | AR70: 0.894460943 | AS70: 0.896219891 | AT70: 0.736451802 | AU70: 0.490466854 | AV70: 0.673760116 | AW70: 1.008592077 | AX70: 1.456234403 | AY70: 2.797025226 | AZ70: 3.610493838 | BD70: Gold Coast | BE70: 67 | BK70: 20 | BL70: 23 | BM70: 23_20 | BN70: Hunter Valley exc Newcastle | BO70: 129.1184309 | BP70: 137.0365883 | BQ70: 7.918157404 | BS70: Hunter Valley exc Newcastle | BT70: 7.918157404
A71: 69_1 | B71: 9.781416363 | C71: 9.19782565 | D71: 7.689457142 | E71: 6.049107894 | F71: 4.67188572 | G71: 3.72251178 | H71: 3.363058122 | I71: 4.902183236 | J71: 6.428954669 | K71: 7.917289924 | L71: 8.740491881 | M71: 8.296418363 | N71: 7.938011659 | O71: 7.885267978 | P71: 8.395893836 | Q71: 8.550156267 | R71: 7.616595368 | S71: 6.680347466 | T71: 5.595601079 | U71: 4.994499973 | V71: 5.637210314 | W71: 5.788651633 | X71: 6.559272529 | Y71: 6.598638503 | Z71: 5.850799943 | AA71: 5.418442691 | AB71: 4.750592708 | AC71: 4.491188692 | AD71: 7.153353629 | AE71: 8.21988017 | AF71: 9.556535487 | AG71: 9.547992583 | AH71: 8.087201075 | AI71: 7.689234398 | AJ71: 7.587486173 | AK71: 8.40090472 | AL71: 9.271085061 | AM71: 11.08921697 | AN71: 11.83815294 | AO71: 13.06865238 | AP71: 13.85486781 | AQ71: 14.65716332 | AR71: 14.25572306 | AS71: 13.4952776 | AT71: 12.98221593 | AU71: 10.86467204 | AV71: 8.870025429 | AW71: 6.993143316 | AX71: 4.733848964 | AY71: 4.033543232 | AZ71: 5.721028882 | BD71: Mackay | BE71: 68 | BK71: 21 | BL71: 24 | BM71: 24_20 | BN71: Illawarra | BO71: 129.8522517 | BP71: 132.4935175 | BQ71: 2.641265785 | BS71: Illawarra | BT71: 2.641265785
A72: 70_1 | B72: 3.718648457 | C72: 4.426619241 | D72: 4.728836875 | E72: 4.841565239 | F72: 5.258897194 | G72: 4.755701742 | H72: 4.299642479 | I72: 4.377578962 | J72: 4.819467865 | K72: 5.510491429 | L72: 5.889912417 | M72: 5.477630286 | N72: 4.468403806 | O72: 3.34957195 | P72: 3.162641348 | Q72: 2.960201886 | R72: 3.024591556 | S72: 3.18668096 | T72: 2.998776131 | U72: 3.045524517 | V72: 2.877463783 | W72: 3.414598317 | X72: 3.403216085 | Y72: 3.475711286 | Z72: 3.885384246 | AA72: 3.492921839 | AB72: 3.711639917 | AC72: 3.407903518 | AD72: 3.414833123 | AE72: 3.911487383 | AF72: 3.656774596 | AG72: 3.643063907 | AH72: 3.194197891 | AI72: 2.016795218 | AJ72: 1.657364409 | AK72: 1.463734492 | AL72: 1.373518242 | AM72: 2.044123881 | AN72: 2.484706869 | AO72: 3.11485499 | AP72: 3.292819678 | AQ72: 3.105865827 | AR72: 3.041449402 | AS72: 3.055544743 | AT72: 3.022757262 | AU72: 2.62155186 | AV72: 2.298647002 | AW72: 1.668826947 | AX72: 1.295628321 | AY72: 1.604197258 | AZ72: 1.374049892 | BD72: Queensland - Outback | BE72: 69 | BK72: 22 | BL72: 25 | BM72: 25_20 | BN72: Mid North Coast | BO72: 76.50425596 | BP72: 78.44123136 | BQ72: 1.936975403 | BS72: Mid North Coast | BT72: 1.936975403
A73: 71_1 | B73: 1.48709488 | C73: 1.473270329 | D73: 1.608845634 | E73: 1.620874218 | F73: 1.864862073 | G73: 2.244041149 | H73: 2.124694465 | I73: 1.852075937 | J73: 1.46281294 | K73: 1.496226547 | L73: 1.846115679 | M73: 2.533856786 | N73: 2.976933644 | O73: 3.207286444 | P73: 3.399021175 | Q73: 3.316648613 | R73: 3.096937453 | S73: 2.808709718 | T73: 2.714069957 | U73: 2.579770721 | V73: 2.784718987 | W73: 2.772888872 | X73: 3.147695022 | Y73: 3.404400038 | Z73: 3.125725274 | AA73: 4.046322065 | AB73: 4.184768609 | AC73: 3.448209393 | AD73: 3.924007282 | AE73: 2.837525759 | AF73: 1.830713316 | AG73: 1.875434402 | AH73: 1.314308397 | AI73: 1.195425751 | AJ73: 1.28907677 | AK73: 1.837924477 | AL73: 2.318539525 | AM73: 2.498073354 | AN73: 3.007586432 | AO73: 3.193131262 | AP73: 2.897818727 | AQ73: 2.660805284 | AR73: 2.695230559 | AS73: 2.406435766 | AT73: 2.665138541 | AU73: 2.563697664 | AV73: 2.212266089 | AW73: 1.997096105 | AX73: 1.586316958 | AY73: 2.008019257 | AZ73: 1.94124315 | BD73: Sunshine Coast | BE73: 70 | BK73: 23 | BL73: 26 | BM73: 26_20 | BN73: Murray | BO73: 48.24823623 | BP73: 51.20488191 | BQ73: 2.956645685 | BS73: Murray | BT73: 2.956645685
A74: 72_1 | B74: 10.83108299 | C74: 11.5467417 | D74: 11.47364373 | E74: 12.50103278 | F74: 14.79609655 | G74: 14.35977331 | H74: 14.05392922 | I74: 11.2657863 | J74: 8.269929328 | K74: 5.99874438 | L74: 3.567172128 | M74: 3.463997071 | N74: 2.789622047 | O74: 2.556830786 | P74: 2.874892837 | Q74: 2.88483401 | R74: 2.902760464 | S74: 2.841404309 | T74: 2.710260068 | U74: 2.493633706 | V74: 2.6789275 | W74: 2.628020447 | X74: 2.167617501 | Y74: 2.677507821 | Z74: 2.28622965 | AA74: 2.05877887 | AB74: 2.192200881 | AC74: 1.774474073 | AD74: 2.964284522 | AE74: 4.536206762 | AF74: 7.290828393 | AG74: 9.641777945 | AH74: 10.49202817 | AI74: 11.27331191 | AJ74: 10.27389998 | AK74: 10.08205056 | AL74: 10.82025976 | AM74: 10.93575247 | AN74: 10.37028246 | AO74: 9.432291701 | AP74: 7.949888872 | AQ74: 6.532025742 | AR74: 6.014152922 | AS74: 5.367865471 | AT74: 6.069962706 | AU74: 6.301343331 | AV74: 7.098674385 | AW74: 7.785440868 | AX74: 8.685574472 | AY74: 8.188380433 | AZ74: 6.939626128 | BD74: Toowoomba | BE74: 71 | BK74: 24 | BL74: 27 | BM74: 27_20 | BN74: New England and North West | BO74: 82.02776529 | BP74: 84.97958285 | BQ74: 2.951817558 | BS74: New England and North West | BT74: 2.951817558
A75: 73_1 | B75: 14.85646663 | C75: 13.02909069 | D75: 11.84284451 | E75: 11.63327468 | F75: 13.07573157 | G75: 14.69531221 | H75: 16.88275731 | I75: 16.15949806 | J75: 15.59906911 | K75: 15.27889299 | L75: 14.38466173 | M75: 15.41765074 | N75: 16.75629594 | O75: 17.16096461 | P75: 16.99543072 | Q75: 16.92055426 | R75: 16.22529592 | S75: 16.07530269 | T75: 16.25800202 | U75: 15.62597372 | V75: 14.83099233 | W75: 14.54970267 | X75: 13.99553547 | Y75: 13.89359035 | Z75: 14.63177622 | AA75: 14.80698082 | AB75: 15.15053288 | AC75: 15.09612228 | AD75: 14.50551925 | AE75: 12.82260027 | AF75: 11.43982496 | AG75: 10.61665452 | AH75: 10.20662082 | AI75: 11.68791357 | AJ75: 13.42383131 | AK75: 16.07553847 | AL75: 16.64341679 | AM75: 15.02974153 | AN75: 12.37259832 | AO75: 9.001716795 | AP75: 8.378474819 | AQ75: 8.263774751 | AR75: 8.777432773 | AS75: 9.238838862 | AT75: 9.44239029 | AU75: 10.57909668 | AV75: 10.37100444 | AW75: 10.23026158 | AX75: 8.880401325 | AY75: 7.68641091 | AZ75: 8.054446367 | BD75: Townsville | BE75: 72 | BK75: 25 | BL75: 28 | BM75: 28_20 | BN75: Newcastle and Lake Macquarie | BO75: 169.2019904 | BP75: 178.6812883 | BQ75: 9.479297915 | BS75: Newcastle and Lake Macquarie | BT75: 9.479297915
A76: 74_1 | B76: 49.58714662 | C76: 47.6710547 | D76: 46.24799978 | E76: 45.66522671 | F76: 45.71841373 | G76: 45.27761394 | H76: 45.00344515 | I76: 44.94262008 | J76: 44.51539869 | K76: 45.13606048 | L76: 45.66276603 | M76: 46.02342772 | N76: 45.19993981 | O76: 43.87850516 | P76: 42.31039742 | Q76: 41.44744596 | R76: 41.2051364 | S76: 40.18690333 | T76: 38.57654187 | U76: 38.22730698 | V76: 37.28443567 | W76: 36.60108663 | X76: 37.06468472 | Y76: 35.99765466 | Z76: 36.85867271 | AA76: 37.12402588 | AB76: 38.20698855 | AC76: 39.2213422 | AD76: 39.18984177 | AE76: 40.77041074 | AF76: 41.75640209 | AG76: 42.76004154 | AH76: 43.24479794 | AI76: 42.28776588 | AJ76: 39.56792709 | AK76: 37.36384254 | AL76: 36.08714567 | AM76: 35.39013799 | AN76: 34.66758301 | AO76: 33.9236902 | AP76: 33.15926574 | AQ76: 32.82494547 | AR76: 35.9544777 | AS76: 38.96135571 | AT76: 40.39442863 | AU76: 40.18807492 | AV76: 37.48900734 | AW76: 34.10864497 | AX76: 31.82573079 | AY76: 31.42665712 | AZ76: 32.77492252 | BD76: Wide Bay | BE76: 73 | BK76: 26 | BL76: 29 | BM76: 29_20 | BN76: Richmond - Tweed | BO76: 103.3449806 | BP76: 109.9901335 | BQ76: 6.645152877 | BS76: Richmond - Tweed | BT76: 6.645152877
A77: 75_1 | B77: 11.05274584 | C77: 10.57940199 | D77: 10.18874084 | E77: 9.97866542 | F77: 9.326414122 | G77: 8.950719321 | H77: 8.488600063 | I77: 8.884063478 | J77: 9.724770966 | K77: 10.46981502 | L77: 11.26282896 | M77: 10.67876458 | N77: 10.14339648 | O77: 9.650996223 | P77: 9.07552325 | Q77: 9.230550235 | R77: 9.249926517 | S77: 9.310049756 | T77: 9.2593083 | U77: 9.215782839 | V77: 8.86505035 | W77: 7.532259228 | X77: 6.776477639 | Y77: 6.304002535 | Z77: 6.035061318 | AA77: 6.606439689 | AB77: 7.538246247 | AC77: 8.311506211 | AD77: 8.877828127 | AE77: 9.569237888 | AF77: 9.046999268 | AG77: 7.838847451 | AH77: 6.656186185 | AI77: 5.788104627 | AJ77: 5.544079898 | AK77: 5.836829135 | AL77: 6.874923085 | AM77: 6.819365673 | AN77: 6.717335759 | AO77: 6.98496334 | AP77: 6.841126556 | AQ77: 7.563180551 | AR77: 8.621835568 | AS77: 9.034596071 | AT77: 9.129990307 | AU77: 8.322715158 | AV77: 7.0715173 | AW77: 6.126233922 | AX77: 5.605140127 | AY77: 5.615508189 | AZ77: 6.39065375 | BD77: South Australia | BE77: 74 | BK77: 27 | BL77: 30 | BM77: 30_20 | BN77: Riverina | BO77: 81.58137544 | BP77: 85.18196404 | BQ77: 3.600588608 | BS77: Riverina | BT77: 3.600588608
A78: 76_1 | B78: 4.972797499 | C78: 4.608581942 | D78: 4.064810072 | E78: 3.854836669 | F78: 3.244525886 | G78: 2.919402092 | H78: 2.970774042 | I78: 3.337507117 | J78: 3.724213784 | K78: 4.190516586 | L78: 4.396148348 | M78: 4.262910329 | N78: 4.284091078 | O78: 3.945613136 | P78: 3.294521426 | Q78: 2.976273944 | R78: 2.994884421 | S78: 3.15442583 | T78: 3.538870168 | U78: 3.71143636 | V78: 3.459645766 | W78: 3.11358619 | X78: 2.744991794 | Y78: 2.602948338 | Z78: 2.250482612 | AA78: 2.374737701 | AB78: 2.678916408 | AC78: 3.196183711 | AD78: 3.565860279 | AE78: 3.904300522 | AF78: 4.017326319 | AG78: 3.562499032 | AH78: 3.61098422 | AI78: 3.233285332 | AJ78: 2.745769853 | AK78: 2.495976689 | AL78: 2.556754765 | AM78: 2.407100791 | AN78: 2.649318011 | AO78: 2.942702528 | AP78: 2.900340123 | AQ78: 3.281224219 | AR78: 3.617865934 | AS78: 3.928178871 | AT78: 4.056063162 | AU78: 3.577404456 | AV78: 2.875960942 | AW78: 2.221917906 | AX78: 1.817943378 | AY78: 1.746477625 | AZ78: 2.104359155 | BD78: Greater Adelaide | BE78: 75 | BK78: 28 | BL78: 31 | BM78: 31_20 | BN78: Southern Highlands and Shoalhaven | BO78: 60.94273399 | BP78: 62.39244333 | BQ78: 1.449709341 | BS78: Southern Highlands and Shoalhaven | BT78: 1.449709341
A79: 77_1 | B79: 3.084698003 | C79: 3.397299041 | D79: 3.495155661 | E79: 3.525462976 | F79: 3.578813471 | G79: 3.551559876 | H79: 3.481766006 | I79: 3.7128856 | J79: 4.156794843 | K79: 4.224045304 | L79: 4.459896856 | M79: 4.099158201 | N79: 3.701945162 | O79: 3.801917886 | P79: 4.007030536 | Q79: 4.422409909 | R79: 4.443032287 | S79: 4.202373377 | T79: 3.896893889 | U79: 3.625485476 | V79: 3.396458166 | W79: 2.622424559 | X79: 2.362206852 | Y79: 2.065288042 | Z79: 2.123199234 | AA79: 2.413353841 | AB79: 2.850982544 | AC79: 3.081565506 | AD79: 3.045603148 | AE79: 3.221872394 | AF79: 2.674844912 | AG79: 2.022514358 | AH79: 1.404838559 | AI79: 1.24541442 | AJ79: 1.333538013 | AK79: 1.568057325 | AL79: 1.806558517 | AM79: 1.493568017 | AN79: 1.143866791 | AO79: 1.306647653 | AP79: 1.640006008 | AQ79: 2.325430136 | AR79: 2.806287627 | AS79: 2.724218997 | AT79: 2.272022867 | AU79: 1.596050795 | AV79: 1.24122084 | AW79: 1.074210286 | AX79: 1.248170215 | AY79: 1.751853856 | AZ79: 2.360777505 | BD79: Adelaide - Central and Hills | BE79: 76 | BK79: 29 | BL79: 34 | BM79: 34_20 | BN79: Melbourne - Inner | BO79: 340.1200089 | BP79: 373.025252 | BQ79: 32.90524313 | BS79: Melbourne - Inner | BT79: 32.90524313
A80: 78_1 | B80: 2.110274191 | C80: 1.751736196 | D80: 1.808432094 | E80: 1.811152399 | F80: 1.889737445 | G80: 1.990906108 | H80: 1.670272318 | I80: 1.567918169 | J80: 1.686383217 | K80: 1.736395587 | L80: 1.884076437 | M80: 1.760805443 | N80: 1.47073103 | O80: 1.226336706 | P80: 1.220983422 | Q80: 1.339646485 | R80: 1.361680064 | S80: 1.51042786 | T80: 1.463664192 | U80: 1.496337154 | V80: 1.622392271 | W80: 1.47963214 | X80: 1.315347546 | Y80: 1.152444396 | Z80: 1.078709641 | AA80: 1.192295388 | AB80: 1.362608463 | AC80: 1.519501699 | AD80: 1.78127551 | AE80: 1.93209563 | AF80: 1.657486983 | AG80: 1.455703202 | AH80: 0.939880616 | AI80: 0.648568799 | AJ80: 0.857404384 | AK80: 1.147720495 | AL80: 1.607515094 | AM80: 2.007114808 | AN80: 2.136666635 | AO80: 2.040026334 | AP80: 1.793380954 | AQ80: 1.436929462 | AR80: 1.531384977 | AS80: 1.620375901 | AT80: 1.990089162 | AU80: 2.306193139 | AV80: 2.209975819 | AW80: 2.15004292 | AX80: 1.898410811 | AY80: 1.612370817 | AZ80: 1.512758448 | BD80: Adelaide - North | BE80: 77 | BK80: 30 | BL80: 35 | BM80: 35_20 | BN80: Melbourne - Inner East | BO80: 176.8916222 | BP80: 181.0463404 | BQ80: 4.154718143 | BS80: Melbourne - Inner East | BT80: 4.154718143
A81: 79_1 | B81: 0.884976143 | C81: 0.821784806 | D81: 0.820343018 | E81: 0.787213376 | F81: 0.61333732 | G81: 0.488851244 | H81: 0.365787697 | I81: 0.265752592 | J81: 0.157379122 | K81: 0.318857542 | L81: 0.522707322 | M81: 0.555890602 | N81: 0.68662921 | O81: 0.677128496 | P81: 0.552987866 | Q81: 0.492219898 | R81: 0.450329746 | S81: 0.44282269 | T81: 0.359880051 | U81: 0.38252385 | V81: 0.386554147 | W81: 0.316616339 | X81: 0.353931448 | Y81: 0.483321759 | Z81: 0.582669831 | AA81: 0.626052758 | AB81: 0.645738833 | AC81: 0.514255295 | AD81: 0.48508919 | AE81: 0.510969341 | AF81: 0.697341055 | AG81: 0.798130859 | AH81: 0.700482789 | AI81: 0.660836076 | AJ81: 0.607367649 | AK81: 0.625074626 | AL81: 0.90409471 | AM81: 0.911582057 | AN81: 0.787484323 | AO81: 0.695586825 | AP81: 0.507399471 | AQ81: 0.519596735 | AR81: 0.66629703 | AS81: 0.761822302 | AT81: 0.811815115 | AU81: 0.843066767 | AV81: 0.744359699 | AW81: 0.68006281 | AX81: 0.640615722 | AY81: 0.504805891 | AZ81: 0.412758643 | BD81: Adelaide - South | BE81: 78 | BK81: 31 | BL81: 36 | BM81: 36_20 | BN81: Melbourne - Inner South | BO81: 214.3371761 | BP81: 219.8449854 | BQ81: 5.507809263 | BS81: Melbourne - Inner South | BT81: 5.507809263
A82: 80_1 | B82: 38.53440078 | C82: 37.09165271 | D82: 36.05925894 | E82: 35.68656129 | F82: 36.39199961 | G82: 36.32689462 | H82: 36.51484509 | I82: 36.0585566 | J82: 34.79062772 | K82: 34.66624546 | L82: 34.39993707 | M82: 35.34466314 | N82: 35.05654333 | O82: 34.22750893 | P82: 33.23487417 | Q82: 32.21689573 | R82: 31.95520988 | S82: 30.87685358 | T82: 29.31723357 | U82: 29.01152414 | V82: 28.41938532 | W82: 29.0688274 | X82: 30.28820708 | Y82: 29.69365212 | Z82: 30.82361139 | AA82: 30.51758619 | AB82: 30.66874231 | AC82: 30.90983599 | AD82: 30.31201364 | AE82: 31.20117285 | AF82: 32.70940282 | AG82: 34.92119409 | AH82: 36.58861175 | AI82: 36.49966125 | AJ82: 34.02384719 | AK82: 31.52701341 | AL82: 29.21222258 | AM82: 28.57077232 | AN82: 27.95024725 | AO82: 26.93872686 | AP82: 26.31813919 | AQ82: 25.26176492 | AR82: 27.33264214 | AS82: 29.92675964 | AT82: 31.26443833 | AU82: 31.86535976 | AV82: 30.41749004 | AW82: 27.98241105 | AX82: 26.22059066 | AY82: 25.81114893 | AZ82: 26.38426877 | BD82: Adelaide - West | BE82: 79 | BK82: 32 | BL82: 37 | BM82: 37_20 | BN82: Melbourne - North East | BO82: 236.362095 | BP82: 247.4963084 | BQ82: 11.13421342 | BS82: Melbourne - North East | BT82: 11.13421342
A83: 81_1 | B83: 11.14908406 | C83: 11.16403488 | D83: 11.34158197 | E83: 11.7303263 | F83: 12.54878025 | G83: 12.37788813 | H83: 12.3015481 | I83: 11.56388649 | J83: 10.60140832 | K83: 10.23093832 | L83: 9.19407812 | M83: 9.037764982 | N83: 7.590639585 | O83: 7.000929148 | P83: 7.077239356 | Q83: 6.834678016 | R83: 6.899718426 | S83: 6.460753411 | T83: 5.823647072 | U83: 5.578680598 | V83: 6.007267658 | W83: 6.433734505 | X83: 7.341227217 | Y83: 7.610129984 | Z83: 8.125190165 | AA83: 8.081282075 | AB83: 7.650823124 | AC83: 7.822140213 | AD83: 7.624849508 | AE83: 7.71722494 | AF83: 8.931464281 | AG83: 9.72257934 | AH83: 10.09461987 | AI83: 10.33016832 | AJ83: 9.294918779 | AK83: 8.430811057 | AL83: 8.397961907 | AM83: 8.991981414 | AN83: 9.177655075 | AO83: 8.961865932 | AP83: 8.847243822 | AQ83: 8.362370753 | AR83: 8.666503653 | AS83: 9.117870046 | AT83: 8.793915421 | AU83: 8.604540448 | AV83: 7.936946381 | AW83: 7.827535286 | AX83: 7.942181611 | AY83: 7.542892675 | AZ83: 7.51710799 | BD83: Rest of SA | BE83: 80 | BK83: 33 | BL83: 38 | BM83: 38_20 | BN83: Melbourne - North West | BO83: =VLOOKUP(BM83,hpfandprojection,52,FALSE) -> 160.3088197 | BP83: 167.4685756 | BQ83: 7.159755873 | BS83: Melbourne - North West | BT83: =HLOOKUP($BJ$37,topbottomdata,BK83+1,FALSE) -> 7.159755873
A84: 82_1 | B84: 6.513416181 | C84: 5.707151707 | D84: 5.703820451 | E84: 5.370749956 | F84: 5.076171555 | G84: 4.75944004 | H84: 4.373756121 | I84: 4.692308265 | J84: 4.71955557 | K84: 4.900993881 | L84: 4.912171045 | M84: 4.955641976 | N84: 5.388573001 | O84: 5.332653963 | P84: 5.528886129 | Q84: 5.36234383 | R84: 5.084726439 | S84: 4.620759613 | T84: 4.078397486 | U84: 4.041989844 | V84: 3.366703469 | W84: 4.170938169 | X84: 4.182975595 | Y84: 3.84574044 | Z84: 4.02529759 | AA84: 4.056688298 | AB84: 4.563471111 | AC84: 4.713746171 | AD84: 6.048246433 | AE84: 6.461789951 | AF84: 6.256701396 | AG84: 6.223635047 | AH84: 4.985529472 | AI84: 3.760892549 | AJ84: 3.711144407 | AK84: 4.439960209 | AL84: 4.310550125 | AM84: 4.414749694 | AN84: 4.275913965 | AO84: 3.648802716 | AP84: 3.786768429 | AQ84: 3.815342061 | AR84: 4.321026354 | AS84: 4.692531743 | AT84: 5.356834584 | AU84: 6.093664876 | AV84: 6.945545409 | AW84: 7.261010488 | AX84: 7.545169174 | AY84: 6.330170656 | AZ84: 5.097989365 | BD84: Barossa - Yorke - Mid North | BE84: 81 | BK84: 34 | BL84: 39 | BM84: 39_20 | BN84: Melbourne - Outer East | BO84: 258.4140729 | BP84: 264.4835386 | BQ84: 6.069465718 | BS84: Melbourne - Outer East | BT84: 6.069465718
A85: 83_1 | B85: 20.87190054 | C85: 20.22046612 | D85: 19.01385652 | E85: 18.58548503 | F85: 18.76704781 | G85: 19.18956645 | H85: 19.83954087 | I85: 19.80236185 | J85: 19.46966383 | K85: 19.53431326 | L85: 20.2936879 | M85: 21.35125619 | N85: 22.07733075 | O85: 21.89392582 | P85: 20.62874868 | Q85: 20.01987388 | R85: 19.97076502 | S85: 19.79534055 | T85: 19.41518902 | U85: 19.3908537 | V85: 19.04541419 | W85: 18.46415473 | X85: 18.76400427 | Y85: 18.2377817 | Z85: 18.67312364 | AA85: 18.37961582 | AB85: 18.45444807 | AC85: 18.3739496 | AD85: 16.6389177 | AE85: 17.02215796 | AF85: 17.52123715 | AG85: 18.9749797 | AH85: 21.50846241 | AI85: 22.40860038 | AJ85: 21.017784 | AK85: 18.65624214 | AL85: 16.50371055 | AM85: 15.16404121 | AN85: 14.49667821 | AO85: 14.32805821 | AP85: 13.68412694 | AQ85: 13.08405211 | AR85: 14.34511213 | AS85: 16.11635785 | AT85: 17.11368832 | AU85: 17.16715444 | AV85: 15.53499825 | AW85: 12.89386528 | AX85: 10.73323988 | AY85: 11.9380856 | AZ85: 13.76917141 | BD85: South Australia - Outback | BE85: 82 | BK85: 35 | BL85: 40 | BM85: 40_20 | BN85: Melbourne - South East | BO85: 344.3536229 | BP85: 379.1277148 | BQ85: 34.77409191 | BS85: Melbourne - South East | BT85: 34.77409191
A86: 84_1 | B86: 41.44791148 | C86: 42.76384059 | D86: 44.18461168 | E86: 43.98127877 | F86: 44.27339587 | G86: 41.35445023 | H86: 38.58169497 | I86: 39.57561131 | J86: 40.26947858 | K86: 43.78156432 | L86: 47.37448005 | M86: 47.26001544 | N86: 47.6302049 | O86: 46.09170251 | P86: 44.70452743 | Q86: 45.15007766 | R86: 46.63693799 | S86: 49.93336902 | T86: 53.35643011 | U86: 55.77236033 | V86: 54.76164638 | W86: 51.30682579 | X86: 47.25571033 | Y86: 43.79998766 | Z86: 42.36697113 | AA86: 42.52584608 | AB86: 43.25225586 | AC86: 42.82549771 | AD86: 40.85309503 | AE86: 39.79287876 | AF86: 41.15133529 | AG86: 42.27848238 | AH86: 41.49469965 | AI86: 41.68603186 | AJ86: 38.38117023 | AK86: 35.3405701 | AL86: 36.41329332 | AM86: 35.72109288 | AN86: 37.88594146 | AO86: 39.29413716 | AP86: 39.73609591 | AQ86: 38.59916586 | AR86: 35.48729151 | AS86: 33.4052519 | AT86: 32.76545363 | AU86: 33.36316232 | AV86: 34.61050977 | AW86: 35.26668127 | AX86: 34.01505357 | AY86: 31.84869848 | AZ86: 29.78455132 | BD86: South Australia - South East | BE86: 83 | BK86: 36 | BL86: 41 | BM86: 41_20 | BN86: Melbourne - West | BO86: 342.3860845 | BP86: 384.8436215 | BQ86: 42.45753695 | BS86: Melbourne - West | BT86: 42.45753695
A87: 85_1 | B87: 9.23082688 | C87: 9.577728701 | D87: 9.385694713 | E87: 8.850188293 | F87: 8.818892555 | G87: 8.076293637 | H87: 8.471172994 | I87: 9.232139814 | J87: 9.561675647 | K87: 9.949768356 | L87: 9.559942946 | M87: 8.713489179 | N87: 8.091495638 | O87: 8.355892243 | P87: 9.203867138 | Q87: 10.42111709 | R87: 11.00362792 | S87: 11.24627113 | T87: 11.27775115 | U87: 10.83688759 | V87: 9.858092335 | W87: 8.712153937 | X87: 8.10421386 | Y87: 8.129529714 | Z87: 8.373341948 | AA87: 8.417832399 | AB87: 7.789851192 | AC87: 6.815165157 | AD87: 6.79115393 | AE87: 6.909899385 | AF87: 7.76217771 | AG87: 7.99470305 | AH87: 7.921684234 | AI87: 8.277148113 | AJ87: 8.238210047 | AK87: 8.091612757 | AL87: 8.29116507 | AM87: 7.561970483 | AN87: 7.138230401 | AO87: 7.383390601 | AP87: 8.058718337 | AQ87: 8.332386 | AR87: 7.812103437 | AS87: 6.824989281 | AT87: 5.920184518 | AU87: 5.918817692 | AV87: 6.2400384 | AW87: 6.57136272 | AX87: 6.627480097 | AY87: 7.098936744 | AZ87: 7.711913314 | BD87: Western Australia | BE87: 84 | BK87: 37 | BL87: 42 | BM87: 42_20 | BN87: Mornington Peninsula | BO87: 135.7333473 | BP87: 142.258129 | BQ87: 6.524781665 | BS87: Mornington Peninsula | BT87: 6.524781665
A88: 86_1 | B88: 0.704201037 | C88: 0.664699195 | D88: 0.603050803 | E88: 0.419615707 | F88: 0.373524388 | G88: 0.311808519 | H88: 0.385707601 | I88: 0.411321741 | J88: 0.332910475 | K88: 0.297653747 | L88: 0.226944743 | M88: 0.136780809 | N88: 0.142506019 | O88: 0.159845721 | P88: 0.164091037 | Q88: 0.30968111 | R88: 0.379541779 | S88: 0.375913696 | T88: 0.412458602 | U88: 0.430682645 | V88: 0.301215053 | W88: 0.317486339 | X88: 0.278349378 | Y88: 0.281258388 | Z88: 0.390935665 | AA88: 0.395402062 | AB88: 0.339086462 | AC88: 0.317212772 | AD88: 0.317178077 | AE88: 0.453425925 | AF88: 0.648074083 | AG88: 0.662590728 | AH88: 0.552948145 | AI88: 0.354014238 | AJ88: 0.242505964 | AK88: 0.168017766 | AL88: 0.250171851 | AM88: 0.250171851 | AN88: 0.167031966 | AO88: 0.347156022 | AP88: 0.444132799 | AQ88: 0.444132799 | AR88: 0.626690745 | AS88: 0.541020016 | AT88: 0.712911951 | AU88: 0.911060078 | AV88: 0.997182013 | AW88: 0.907021705 | AX88: 0.646284101 | AY88: 0.875219459 | AZ88: 1.001571504 | BD88: Greater Perth | BE88: 85 | BK88: 38 | BL88: 44 | BM88: 44_20 | BN88: Ballarat | BO88: 75.50264742 | BP88: 82.43241713 | BQ88: 6.9297697 | BS88: Ballarat | BT88: 6.9297697
A89: 87_1 | B89: 0.183235903 | C89: 0.404661347 | D89: 0.484654971 | E89: 0.60215665 | F89: 0.617784635 | G89: 0.531002048 | H89: 0.603794559 | I89: 0.591746084 | J89: 0.661003647 | K89: 0.52636079 | L89: 0.553119799 | M89: 0.491824134 | N89: 0.367469806 | O89: 0.507092365 | P89: 0.427856858 | Q89: 0.649624075 | R89: 0.98105789 | S89: 1.378159256 | T89: 1.61457359 | U89: 1.544833709 | V89: 1.317462603 | W89: 0.991457099 | X89: 0.961030643 | Y89: 0.940625525 | Z89: 0.842890913 | AA89: 0.909629881 | AB89: 0.685307665 | AC89: 0.603447177 | AD89: 0.654359915 | AE89: 0.760147073 | AF89: 0.966553583 | AG89: 1.201305569 | AH89: 1.054176868 | AI89: 0.760769047 | AJ89: 0.532434165 | AK89: 0.202203845 | AL89: 0.202203845 | AM89: 0.112367119 | AN89: 0.191500613 | AO89: 0.337218278 | AP89: 0.724137584 | AQ89: 0.849761477 | AR89: 0.834142989 | AS89: 0.636105133 | AT89: 0.311829221 | AU89: 0.313072343 | AV89: 0.325534493 | AW89: 0.407874874 | AX89: 0.345231479 | AY89: 0.295598964 | AZ89: 0.345993606 | BD89: Mandurah | BE89: 86 | BK89: 39 | BL89: 45 | BM89: 45_20 | BN89: Bendigo | BO89: 71.57602407 | BP89: 80.11263086 | BQ89: 8.53660679 | BS89: Bendigo | BT89: 8.53660679
A90: 88_1 | B90: 2.262551616 | C90: 2.443480843 | D90: 2.130059114 | E90: 1.560243282 | F90: 1.481817832 | G90: 1.223486357 | H90: 1.465828281 | I90: 1.443831013 | J90: 1.177611727 | K90: 1.294179397 | L90: 1.129509908 | M90: 1.197180023 | N90: 1.141521829 | O90: 0.90438114 | P90: 0.903418748 | Q90: 0.871867306 | R90: 0.895097558 | S90: 1.075781426 | T90: 0.939703509 | U90: 0.884813462 | V90: 0.883065507 | W90: 0.819058726 | X90: 0.889951823 | Y90: 1.192862073 | Z90: 1.192171453 | AA90: 1.09657745 | AB90: 1.024266946 | AC90: 0.701665372 | AD90: 0.607848314 | AE90: 0.550018387 | AF90: 0.492690328 | AG90: 0.433555817 | AH90: 0.407472497 | AI90: 0.312381148 | AJ90: 0.507512394 | AK90: 0.471781427 | AL90: 0.61230046 | AM90: 0.915173578 | AN90: 0.85574913 | AO90: 0.873221637 | AP90: 0.916446289 | AQ90: 0.686473555 | AR90: 0.532640196 | AS90: 0.606902354 | AT90: 0.448936603 | AU90: 0.529011501 | AV90: 0.67371394 | AW90: 0.740711913 | AX90: 0.818914074 | AY90: 0.745218276 | AZ90: 0.857734825 | BD90: Perth - Inner | BE90: 87 | BK90: 40 | BL90: 46 | BM90: 46_20 | BN90: Geelong | BO90: 121.4152997 | BP90: 128.3431294 | BQ90: 6.927829759 | BS90: Geelong | BT90: 6.927829759
A91: 89_1 | B91: 1.253468543 | C91: 1.545738391 | D91: 1.716424085 | E91: 1.944551023 | F91: 1.958633771 | G91: 1.771998188 | H91: 1.594026688 | I91: 2.239761034 | J91: 2.673910792 | K91: 2.959705863 | L91: 3.035069836 | M91: 2.593770014 | N91: 2.51802165 | O91: 2.596005041 | P91: 3.181426059 | Q91: 3.431380738 | R91: 3.616472329 | S91: 3.616907745 | T91: 3.681323191 | U91: 4.036429405 | V91: 3.533205291 | W91: 3.126523168 | X91: 2.556315859 | Y91: 1.691723904 | Z91: 1.733907511 | AA91: 1.749354448 | AB91: 1.705714849 | AC91: 2.002962082 | AD91: 2.290757564 | AE91: 2.34050606 | AF91: 2.668946114 | AG91: 2.22781674 | AH91: 2.018574055 | AI91: 2.234433764 | AJ91: 2.462573771 | AK91: 3.184405981 | AL91: 3.236242016 | AM91: 2.964775275 | AN91: 2.41759663 | AO91: 1.721591302 | AP91: 1.679074681 | AQ91: 1.966210501 | AR91: 1.972310933 | AS91: 1.900771348 | AT91: 1.632297766 | AU91: 1.142305551 | AV91: 0.990964005 | AW91: 1.035693833 | AX91: 1.27161751 | AY91: 1.246275491 | AZ91: 1.328492422 | BD91: Perth - North East | BE91: 88 | BK91: 41 | BL91: 47 | BM91: 47_20 | BN91: Hume | BO91: 79.43853395 | BP91: 83.97121345 | BQ91: 4.532679498 | BS91: Hume | BT91: 4.532679498
A92: 90_1 | B92: 2.39825776 | C92: 2.284408546 | D92: 2.581049853 | E92: 2.814869175 | F92: 2.909308685 | G92: 2.649912829 | H92: 2.449710718 | I92: 2.341967786 | J92: 2.641911127 | K92: 3.149655493 | L92: 3.288270689 | M92: 3.233312625 | N92: 2.860515829 | O92: 2.808916456 | P92: 2.868643153 | Q92: 3.287358902 | R92: 3.0906107 | S92: 2.987216773 | T92: 3.144480278 | U92: 2.80309315 | V92: 2.951397996 | W92: 2.615817176 | X92: 2.257507268 | Y92: 2.469651707 | Z92: 2.396774586 | AA92: 2.372340563 | AB92: 2.396433236 | AC92: 1.892902004 | AD92: 1.919439269 | AE92: 1.889464055 | AF92: 1.789900315 | AG92: 2.056055649 | AH92: 2.089624191 | AI92: 2.825808982 | AJ92: 2.903498908 | AK92: 2.406746398 | AL92: 2.585207634 | AM92: 1.975623294 | AN92: 2.054825157 | AO92: 2.790254021 | AP92: 3.041941681 | AQ92: 2.990787368 | AR92: 2.618580232 | AS92: 1.969796159 | AT92: 1.73301939 | AU92: 2.040284646 | AV92: 2.501159348 | AW92: 2.869809044 | AX92: 2.543511278 | AY92: 2.354333164 | AZ92: 2.28993964 | BD92: Perth - North West | BE92: 89 | BK92: 42 | BL92: 48 | BM92: 48_20 | BN92: Latrobe - Gippsland | BO92: 116.7405538 | BP92: 123.4016474 | BQ92: 6.661093657 | BS92: Latrobe - Gippsland | BT92: 6.661093657
A93: 91_1 | B93: 2.429112023 | C93: 2.23474038 | D93: 1.870455888 | E93: 1.508752456 | F93: 1.477823245 | G93: 1.588085696 | H93: 1.972105146 | I93: 2.203512156 | J93: 2.07432788 | K93: 1.722213066 | L93: 1.32702797 | M93: 1.060621574 | N93: 1.061460506 | O93: 1.379651521 | P93: 1.658431283 | Q93: 1.871204954 | R93: 2.040847662 | S93: 1.812292234 | T93: 1.485211977 | U93: 1.13703522 | V93: 0.871745885 | W93: 0.841811431 | X93: 1.16105889 | Y93: 1.553408119 | Z93: 1.81666182 | AA93: 1.894527996 | AB93: 1.639042034 | AC93: 1.29697575 | AD93: 1.001570791 | AE93: 0.916337886 | AF93: 1.196013287 | AG93: 1.413378547 | AH93: 1.798888477 | AI93: 1.789740933 | AJ93: 1.589684845 | AK93: 1.65845734 | AL93: 1.405039265 | AM93: 1.343859367 | AN93: 1.451526906 | AO93: 1.313949343 | AP93: 1.252985304 | AQ93: 1.395020301 | AR93: 1.227738343 | AS93: 1.170394272 | AT93: 1.081189587 | AU93: 0.983083573 | AV93: 0.751484602 | AW93: 0.610251351 | AX93: 1.001921656 | AY93: 1.582291391 | AZ93: 1.888181316 | BD93: Perth - South East | BE93: 90 | BK93: 43 | BL93: 49 | BM93: 49_20 | BN93: Victoria - North West | BO93: 72.57799779 | BP93: 77.72748529 | BQ93: 5.149487499 | BS93: Victoria - North West | BT93: 5.149487499
A94: 92_1 | B94: 32.2170846 | C94: 33.18611189 | D94: 34.79891697 | E94: 35.13109048 | F94: 35.45450331 | G94: 33.27815659 | H94: 30.11052198 | I94: 30.3434715 | J94: 30.70780293 | K94: 33.83179597 | L94: 37.81453711 | M94: 38.54652626 | N94: 39.53870926 | O94: 37.73581027 | P94: 35.5006603 | Q94: 34.72896057 | R94: 35.63331007 | S94: 38.6870979 | T94: 42.07867896 | U94: 44.93547273 | V94: 44.90355404 | W94: 42.59467185 | X94: 39.15149647 | Y94: 35.67045795 | Z94: 33.99362918 | AA94: 34.10801368 | AB94: 35.46240467 | AC94: 36.01033255 | AD94: 34.0619411 | AE94: 32.88297937 | AF94: 33.38915758 | AG94: 34.28377933 | AH94: 33.57301541 | AI94: 33.40888375 | AJ94: 30.14296018 | AK94: 27.24895735 | AL94: 28.12212825 | AM94: 28.15912239 | AN94: 30.74771105 | AO94: 31.91074656 | AP94: 31.67737758 | AQ94: 30.26677986 | AR94: 27.67518808 | AS94: 26.58026262 | AT94: 26.84526911 | AU94: 27.44434463 | AV94: 28.37047137 | AW94: 28.69531855 | AX94: 27.38757347 | AY94: 24.74976174 | AZ94: 22.07263801 | BD94: Perth - South West | BE94: 91 | BK94: 44 | BL94: 50 | BM94: 50_20 | BN94: Shepparton | BO94: 58.08786506 | BP94: 61.40229777 | BQ94: 3.314432706 | BS94: Shepparton | BT94: 3.314432706
A95: 93_1 | B95: 5.63719043 | C95: 6.10427593 | D95: 6.44307448 | E95: 6.55323455 | F95: 6.703277901 | G95: 6.571723059 | H95: 6.372686318 | I95: 6.473317155 | J95: 6.448110222 | K95: 6.909482499 | L95: 7.705113128 | M95: 8.169167137 | N95: 8.310321033 | O95: 7.24724104 | P95: 6.177140367 | Q95: 5.343072659 | R95: 5.339959865 | S95: 6.843041808 | T95: 7.57126855 | U95: 8.754543673 | V95: 9.730032627 | W95: 9.565002562 | X95: 9.289976057 | Y95: 8.590973836 | Z95: 7.83106672 | AA95: 7.298423147 | AB95: 7.115652654 | AC95: 6.932124951 | AD95: 6.628558066 | AE95: 5.871938492 | AF95: 5.528139034 | AG95: 5.513119127 | AH95: 5.329067156 | AI95: 6.034525526 | AJ95: 6.26563741 | AK95: 6.192104508 | AL95: 6.343420668 | AM95: 5.912462727 | AN95: 6.181887618 | AO95: 5.90066202 | AP95: 5.528968713 | AQ95: 4.992938198 | AR95: 4.010931947 | AS95: 3.191607241 | AT95: 2.525936863 | AU95: 2.49146074 | AV95: 2.435801371 | AW95: 2.871781786 | AX95: 3.129987145 | AY95: 3.779666619 | AZ95: 5.487173643 | BD95: Rest of WA | BE95: 92 | BK95: 45 | BL95: 51 | BM95: 51_20 | BN95: Warrnambool and South West | BO95: 62.85862766 | BP95: 66.44527508 | BQ95: 3.586647421 | BS95: Warrnambool and South West | BT95: 3.586647421
A96: 94_1 | B96: 5.456858827 | C96: 5.043544576 | D96: 5.808210377 | E96: 6.374137832 | F96: 7.096943295 | G96: 6.993685554 | H96: 5.637782084 | I96: 7.1652894 | J96: 8.366425487 | K96: 10.31928992 | L96: 12.96541372 | M96: 12.14897812 | N96: 12.15636247 | O96: 11.79104849 | P96: 11.02227377 | Q96: 11.02994946 | R96: 11.56359188 | S96: 12.52147164 | T96: 13.68620784 | U96: 14.60358253 | V96: 13.81922644 | W96: 12.89912199 | X96: 11.57034033 | Y96: 10.8896864 | Z96: 11.48174472 | AA96: 12.34475584 | AB96: 12.87521664 | AC96: 12.89806839 | AD96: 10.62117388 | AE96: 9.345944266 | AF96: 8.507367048 | AG96: 7.529884835 | AH96: 7.53288303 | AI96: 6.956793023 | AJ96: 6.019830517 | AK96: 6.312448694 | AL96: 7.32592878 | AM96: 7.575996356 | AN96: 9.083782158 | AO96: 9.078937894 | AP96: 8.203147378 | AQ96: 7.147393578 | AR96: 6.078236257 | AS96: 5.916256921 | AT96: 6.942846875 | AU96: 7.96447014 | AV96: 7.568609515 | AW96: 7.064114851 | AX96: 5.916321809 | AY96: 4.679133121 | AZ96: 3.871214342 | BD96: Bunbury | BE96: 93 | BK96: 46 | BL96: 54 | BM96: 54_20 | BN96: Brisbane - East | BO96: 116.6872706 | BP96: 124.0830179 | BQ96: 7.39574729 | BS96: Brisbane - East | BT96: 7.39574729
A97: 95_1 | B97: 21.12303534 | C97: 22.03829138 | D97: 22.54763211 | E97: 22.2037181 | F97: 21.65428212 | G97: 19.71274798 | H97: 18.10005358 | I97: 16.70486494 | J97: 15.89326722 | K97: 16.60302355 | L97: 17.14401026 | M97: 18.228381 | N97: 19.07202576 | O97: 18.69752074 | P97: 18.30124616 | Q97: 18.35593846 | R97: 18.72975833 | S97: 19.32258445 | T97: 20.82120257 | U97: 21.57734653 | V97: 21.35429497 | W97: 20.1305473 | X97: 18.29118008 | Y97: 16.18979772 | Z97: 14.68081774 | AA97: 14.4648347 | AB97: 15.47153538 | AC97: 16.18013921 | AD97: 16.81220915 | AE97: 17.66509661 | AF97: 19.3536515 | AG97: 21.24077537 | AH97: 20.71106523 | AI97: 20.4175652 | AJ97: 17.85749226 | AK97: 14.74440415 | AL97: 14.45277881 | AM97: 14.67066331 | AN97: 15.48204128 | AO97: 16.93114665 | AP97: 17.94526148 | AQ97: 18.12644808 | AR97: 17.58601987 | AS97: 17.47239846 | AT97: 17.37648538 | AU97: 16.98841375 | AV97: 18.36606049 | AW97: 18.75942191 | AX97: 18.34126452 | AY97: 16.290962 | AZ97: 12.71425002 | BD97: Western Australia - Outback | BE97: 94 | BK97: 47 | BL97: 55 | BM97: 55_20 | BN97: Brisbane - North | BO97: 112.1228501 | BP97: 119.2188363 | BQ97: 7.095986155 | BS97: Brisbane - North | BT97: 7.095986155
A98: 96_1 | B98: 17.28288806 | C98: 17.32239138 | D98: 17.70717815 | E98: 17.83533106 | F98: 17.77504416 | G98: 17.20542293 | H98: 16.5352242 | I98: 16.30866197 | J98: 16.10121682 | K98: 16.30769825 | L98: 16.50899979 | M98: 16.83220939 | N98: 16.60554166 | O98: 16.3100841 | P98: 16.2189112 | Q98: 16.19639198 | R98: 16.60012394 | S98: 17.04754992 | T98: 16.63901468 | U98: 16.78237927 | V98: 16.55495673 | W98: 15.47730319 | X98: 15.24274114 | Y98: 14.74874508 | Z98: 14.3859609 | AA98: 14.89431158 | AB98: 15.02384957 | AC98: 14.88441485 | AD98: 14.93490981 | AE98: 15.60685664 | AF98: 16.29755714 | AG98: 17.01588983 | AH98: 16.77648627 | AI98: 16.28730091 | AJ98: 15.58126659 | AK98: 15.54692874 | AL98: 15.90731923 | AM98: 15.70505303 | AN98: 15.80586568 | AO98: 15.11752636 | AP98: 14.69569168 | AQ98: 14.23224959 | AR98: 14.00039741 | AS98: 13.70347486 | AT98: 13.47808757 | AU98: 12.7634555 | AV98: 11.99692983 | AW98: 11.52556885 | AX98: 11.48755245 | AY98: 11.62756817 | AZ98: 12.1133431 | BD98: Western Australia - Wheat Belt | BE98: 95 | BK98: 48 | BL98: 56 | BM98: 56_20 | BN98: Brisbane - South | BO98: 188.6255279 | BP98: 206.6851283 | BQ98: 18.05960038 | BS98: Brisbane - South | BT98: 18.05960038
A99: 97_1 | B99: 2.298735765 | C99: 2.329022779 | D99: 2.291012677 | E99: 2.21381129 | F99: 1.885786975 | G99: 1.689518973 | H99: 1.691156792 | I99: 1.883670207 | J99: 2.04274692 | K99: 2.55788618 | L99: 2.959259505 | M99: 2.938722343 | N99: 3.012021257 | O99: 2.781290294 | P99: 2.575573528 | Q99: 2.562955333 | R99: 2.591958884 | S99: 2.632323375 | T99: 2.428918294 | U99: 2.48915875 | V99: 2.325095363 | W99: 1.974514655 | X99: 1.951804599 | Y99: 1.870515209 | Z99: 2.039258717 | AA99: 2.355152079 | AB99: 2.370297427 | AC99: 2.274645111 | AD99: 2.182782944 | AE99: 2.238974313 | AF99: 2.362394744 | AG99: 2.756760332 | AH99: 2.604970308 | AI99: 2.420795614 | AJ99: 2.331037289 | AK99: 2.20264962 | AL99: 2.072325795 | AM99: 1.945578852 | AN99: 1.699571624 | AO99: 1.31683382 | AP99: 1.508855834 | AQ99: 1.557781692 | AR99: 1.807282365 | AS99: 1.89358867 | AT99: 1.953035469 | AU99: 1.906622769 | AV99: 1.909958996 | AW99: 1.92112135 | AX99: 1.833334772 | AY99: 2.048611524 | AZ99: 2.382089943 | BD99: Tasmania | BE99: 96 | BK99: 49 | BL99: 57 | BM99: 57_20 | BN99: Brisbane - West | BO99: 97.02628868 | BP99: 101.7035062 | BQ99: 4.677217527 | BS99: Brisbane - West | BT99: 4.677217527
A100: 98_1 | B100: 14.9841523 | C100: 14.9933686 | D100: 15.41616547 | E100: 15.62151977 | F100: 15.88925718 | G100: 15.51590395 | H100: 14.84406741 | I100: 14.42499177 | J100: 14.0584699 | K100: 13.74981207 | L100: 13.54974028 | M100: 13.89348705 | N100: 13.5935204 | O100: 13.52879381 | P100: 13.64333767 | Q100: 13.63343665 | R100: 14.00816506 | S100: 14.41522655 | T100: 14.21009638 | U100: 14.29322052 | V100: 14.22986136 | W100: 13.50278853 | X100: 13.29093654 | Y100: 12.87822987 | Z100: 12.34670218 | AA100: 12.53915951 | AB100: 12.65355215 | AC100: 12.60976974 | AD100: 12.75212686 | AE100: 13.36788233 | AF100: 13.9351624 | AG100: 14.2591295 | AH100: 14.17151596 | AI100: 13.8665053 | AJ100: 13.2502293 | AK100: 13.34427912 | AL100: 13.83499344 | AM100: 13.75947418 | AN100: 14.10629406 | AO100: 13.80069254 | AP100: 13.18683584 | AQ100: 12.6744679 | AR100: 12.19311505 | AS100: 11.80988619 | AT100: 11.5250521 | AU100: 10.85683273 | AV100: 10.08697084 | AW100: 9.604447495 | AX100: 9.654217679 | AY100: 9.578956643 | AZ100: 9.731253156 | BD100: Greater Hobart | BE100: 97 | BK100: 50 | BL100: 58 | BM100: 58_20 | BN100: Brisbane Inner City | BO100: 146.773458 | BP100: 165.3986568 | BQ100: 18.62519875 | BS100: Brisbane Inner City | BT100: 18.62519875
A101: 99_1 | B101: 6.782999927 | C101: 7.208453936 | D101: 7.613774755 | E101: 7.87172437 | F101: 7.882587058 | G101: 7.226017821 | H101: 6.264866031 | I101: 5.387086983 | J101: 4.765269234 | K101: 4.252961595 | L101: 4.478351607 | M101: 4.863982509 | N101: 4.916097037 | O101: 5.207254254 | P101: 5.336479218 | Q101: 5.374710199 | R101: 5.503443168 | S101: 5.599548948 | T101: 5.553673626 | U101: 5.541256539 | V101: 5.76554822 | W101: 5.801520711 | X101: 5.852100235 | Y101: 5.865994945 | Z101: 5.596323846 | AA101: 5.599948221 | AB101: 5.234721232 | AC101: 5.0443188 | AD101: 4.821256611 | AE101: 4.714767727 | AF101: 5.220586223 | AG101: 5.497333499 | AH101: 5.577708997 | AI101: 5.580104689 | AJ101: 5.120281478 | AK101: 5.179388889 | AL101: 5.570091255 | AM101: 5.630373699 | AN101: 5.955395556 | AO101: 6.120781863 | AP101: 5.925733253 | AQ101: 6.291136562 | AR101: 6.558408257 | AS101: 6.244928712 | AT101: 6.031608345 | AU101: 4.838314778 | AV101: 3.958694344 | AW101: 3.631330795 | AX101: 3.696771262 | AY101: 4.265140371 | AZ101: 4.649387397 | BD101: Rest of Tas | BE101: 98 | BK101: 51 | BL101: 59 | BM101: 59_20 | BN101: Ipswich | BO101: 143.1917562 | BP101: 159.7059729 | BQ101: 16.51421669 | BS101: Ipswich | BT101: 16.51421669
A102: 100_1 | B102: 3.508014278 | C102: 3.319207509 | D102: 3.725963662 | E102: 3.73602946 | F102: 3.640214307 | G102: 3.423808586 | H102: 3.396683081 | I102: 3.872852835 | J102: 4.417064368 | K102: 5.009331785 | L102: 4.77013574 | M102: 4.581047557 | N102: 4.1550581 | O102: 3.781183597 | P102: 3.708404657 | Q102: 3.475824102 | R102: 3.50971547 | S102: 3.710934966 | T102: 3.698864057 | U102: 3.969964323 | V102: 3.863514335 | W102: 3.402714997 | X102: 3.228274017 | Y102: 3.137350778 | Z102: 3.363664829 | AA102: 3.643042055 | AB102: 3.863777277 | AC102: 3.553187585 | AD102: 3.003156653 | AE102: 3.029245964 | AF102: 2.662335111 | AG102: 2.657309144 | AH102: 2.700410438 | AI102: 2.40892973 | AJ102: 2.399949731 | AK102: 2.371835238 | AL102: 2.510294281 | AM102: 2.490856612 | AN102: 2.628848328 | AO102: 2.522844884 | AP102: 2.409217278 | AQ102: 2.292220707 | AR102: 2.185142434 | AS102: 1.984054339 | AT102: 1.889048408 | AU102: 1.893331332 | AV102: 1.81169826 | AW102: 1.793886664 | AX102: 1.840565852 | AY102: 1.9625698 | AZ102: 2.005099277 | BD102: Launceston and North East | BE102: 99 | BK102: 52 | BL102: 60 | BM102: 60_20 | BN102: Logan - Beaudesert | BO102: 136.2925174 | BP102: 140.5627121 | BQ102: 4.270194788 | BS102: Logan - Beaudesert | BT102: 4.270194788
A103: 101_1 | B103: 4.693138092 | C103: 4.465707159 | D103: 4.076427055 | E103: 4.013765945 | F103: 4.366455817 | G103: 4.866077545 | H103: 5.182518297 | I103: 5.165051947 | J103: 4.876136296 | K103: 4.487518685 | L103: 4.301252935 | M103: 4.448456984 | N103: 4.522365267 | O103: 4.540355957 | P103: 4.598453797 | Q103: 4.782902347 | R103: 4.995006422 | S103: 5.104742632 | T103: 4.957558702 | U103: 4.781999658 | V103: 4.600798807 | W103: 4.298552825 | X103: 4.210562288 | Y103: 3.874884148 | Z103: 3.386713509 | AA103: 3.296169229 | AB103: 3.555053637 | AC103: 4.012263354 | AD103: 4.927713599 | AE103: 5.623868637 | AF103: 6.052241065 | AG103: 6.104486856 | AH103: 5.893396524 | AI103: 5.877470879 | AJ103: 5.729998092 | AK103: 5.793054997 | AL103: 5.754607905 | AM103: 5.638243867 | AN103: 5.522050174 | AO103: 5.157065792 | AP103: 4.851885311 | AQ103: 4.091110627 | AR103: 3.449564359 | AS103: 3.580903135 | AT103: 3.604395344 | AU103: 4.125186622 | AV103: 4.316578235 | AW103: 4.179230036 | AX103: 4.116880565 | AY103: 3.351246472 | AZ103: 3.076766483 | BD103: Tasmania - South East | BE103: 100 | BK103: 53 | BL103: 61 | BM103: 61_20 | BN103: Moreton Bay - North | BO103: 97.34114693 | BP103: 102.5730026 | BQ103: 5.231855703 | BS103: Moreton Bay - North | BT103: 5.231855703
A104: 102_1 | B104: 4.86025718 | C104: 4.595075735 | D104: 4.720254203 | E104: 4.684531856 | F104: 4.410900431 | G104: 4.072818808 | H104: 3.013187329 | I104: 2.488637223 | J104: 1.939745807 | K104: 1.848055789 | L104: 2.179972984 | M104: 2.316587705 | N104: 2.278999065 | O104: 1.991998156 | P104: 2.054003622 | Q104: 2.242508064 | R104: 2.47135735 | S104: 2.424812569 | T104: 2.005119529 | U104: 1.73286694 | V104: 1.852385272 | W104: 2.216402453 | X104: 2.697785123 | Y104: 2.881924237 | Z104: 3.067532767 | AA104: 3.375114407 | AB104: 3.704968441 | AC104: 3.29973255 | AD104: 2.87542403 | AE104: 2.603718877 | AF104: 2.339777702 | AG104: 2.947080274 | AH104: 3.295903379 | AI104: 3.468495146 | AJ104: 3.371135824 | AK104: 3.189204419 | AL104: 3.083912142 | AM104: 3.010010101 | AN104: 3.035527197 | AO104: 3.054391757 | AP104: 3.201439552 | AQ104: 3.574863093 | AR104: 4.061223569 | AS104: 4.261713558 | AT104: 4.952698043 | AU104: 5.032221588 | AV104: 4.364521675 | AW104: 3.968464135 | AX104: 3.111210434 | AY104: 2.063994131 | AZ104: 1.98476439 | BD104: Tasmania - West and North West | BE104: 101 | BK104: 54 | BL104: 62 | BM104: 62_20 | BN104: Moreton Bay - South | BO104: 99.52593622 | BP104: 112.5764746 | BQ104: 13.05053838 | BS104: Moreton Bay - South | BT104: 13.05053838
A105: 103_1 | B105: 1.013246459 | C105: 1.400750143 | D105: 1.494652314 | E105: 1.971067928 | F105: 2.160683116 | G105: 1.578528312 | H105: 1.388442977 | I105: 0.865156985 | J105: 0.769362504 | K105: 1.203214162 | L105: 1.426422126 | M105: 1.509752352 | N105: 1.399083321 | O105: 1.098906411 | P105: 1.020170394 | Q105: 1.08802844 | R105: 1.288346774 | S105: 1.227344356 | T105: 1.128644391 | U105: 1.12298358 | V105: 1.306655023 | W105: 1.532859512 | X105: 1.78165045 | Y105: 1.98760841 | Z105: 1.857986486 | AA105: 1.852574395 | AB105: 1.750007994 | AC105: 1.398122101 | AD105: 1.09073689 | AE105: 0.751134705 | AF105: 0.706872253 | AG105: 0.82479296 | AH105: 0.970238821 | AI105: 1.104847126 | AJ105: 0.984196878 | AK105: 1.029045645 | AL105: 0.968256382 | AM105: 0.860886574 | AN105: 0.858761371 | AO105: 0.67536965 | AP105: 0.61516543 | AQ105: 0.609521016 | AR105: 0.569463677 | AS105: 0.588710199 | AT105: 0.549920994 | AU105: 0.561781956 | AV105: 0.523900671 | AW105: 0.532552568 | AX105: 0.714977118 | AY105: 0.813366729 | AZ105: 0.819288487 | BD105: Northern Territory | BE105: 102 | BK105: 55 | BL105: 64 | BM105: 64_20 | BN105: Cairns | BO105: 111.8454425 | BP105: 120.4746828 | BQ105: 8.629240371 | BS105: Cairns | BT105: 8.629240371
A106: 104_1 | B106: 3.847010721 | C106: 3.194325592 | D106: 3.225601889 | E106: 2.713463928 | F106: 2.250217315 | G106: 2.494290496 | H106: 1.624744352 | I106: 1.623480238 | J106: 1.170383303 | K106: 0.644841627 | L106: 0.753550858 | M106: 0.806835354 | N106: 0.879915744 | O106: 0.893091745 | P106: 1.033833229 | Q106: 1.154479625 | R106: 1.183010576 | S106: 1.197468212 | T106: 0.876475138 | U106: 0.60988336 | V106: 0.545730249 | W106: 0.683542942 | X106: 0.916134674 | Y106: 0.894315828 | Z106: 1.209546282 | AA106: 1.522540012 | AB106: 1.954960447 | AC106: 1.901610449 | AD106: 1.78468714 | AE106: 1.852584172 | AF106: 1.632905449 | AG106: 2.122287313 | AH106: 2.325664558 | AI106: 2.36364802 | AJ106: 2.386938946 | AK106: 2.160158774 | AL106: 2.11565576 | AM106: 2.149123527 | AN106: 2.176765826 | AO106: 2.379022106 | AP106: 2.586274122 | AQ106: 2.965342077 | AR106: 3.491759892 | AS106: 3.673003359 | AT106: 4.402777049 | AU106: 4.470439631 | AV106: 3.840621003 | AW106: 3.435911567 | AX106: 2.396233316 | AY106: 1.250627402 | AZ106: 1.165475903 | BD106: Darwin | BE106: 103 | BK106: 56 | BL106: 65 | BM106: 65_20 | BN106: Darling Downs - Maranoa | BO106: 66.65183913 | BP106: 71.79424572 | BQ106: 5.142406595 | BS106: Darling Downs - Maranoa | BT106: 5.142406595
A107: 105_1 | B107: 0.871501235 | C107: 0.99767543 | D107: 1.027217089 | E107: 0.927122771 | F107: 0.807884848 | G107: 0.676760601 | H107: 0.578203526 | I107: 0.582134726 | J107: 0.583027448 | K107: 0.516300489 | L107: 0.539097451 | M107: 0.47103148 | N107: 0.421841017 | O107: 0.512154363 | P107: 0.513631699 | Q107: 0.654274165 | R107: 0.87214895 | S107: 0.856487702 | T107: 1.004121161 | U107: 1.11461289 | V107: 1.016413584 | W107: 1.102462564 | X107: 1.023785813 | Y107: 0.860317807 | Z107: 0.722718201 | AA107: 0.686996359 | AB107: 0.53126281 | AC107: 0.40710469 | AD107: 0.398435872 | AE107: 0.291934448 | AF107: 0.300897515 | AG107: 0.442533592 | AH107: 0.491028755 | AI107: 0.757466232 | AJ107: 0.964331211 | AK107: 0.938930722 | AL107: 0.909689892 | AM107: 0.636957337 | AN107: 0.383005341 | AO107: 0.410498437 | AP107: 0.453190274 | AQ107: 0.399044422 | AR107: 0.50921495 | AS107: 0.365709005 | AT107: 0.363687891 | AU107: 0.574599878 | AV107: 0.669547102 | AW107: 0.768844362 | AX107: 0.761777875 | AY107: 0.611236882 | AZ107: 0.506895135 | BD107: Northern Territory - Outback | BE107: 104 | BK107: 57 | BL107: 66 | BM107: 66_20 | BN107: Fitzroy | BO107: 116.4864033 | BP107: 132.652982 | BQ107: 16.16657877 | BS107: Fitzroy | BT107: 16.16657877
A108: 0_1 | B108: 428.1055032 | C108: 443.4327164 | D108: 443.4145251 | E108: 435.3737453 | F108: 428.0073283 | G108: 393.4422618 | H108: 365.1973661 | I108: 348.9847067 | J108: 373.8340715 | K108: 369.6663869 | L108: 371.683405 | M108: 367.8526861 | N108: 358.1667656 | O108: 349.795061 | P108: 352.7555883 | Q108: 369.8314121 | R108: 356.0793369 | S108: 349.831695 | T108: 345.1380181 | U108: 359.2848021 | V108: 338.2088183 | W108: 350.3791432 | X108: 355.2799147 | Y108: 360.9884787 | Z108: 339.7723207 | AA108: 357.5504508 | AB108: 353.2061995 | AC108: 337.501193 | AD108: 371.6765722 | AE108: 356.4667172 | AF108: 368.4146449 | AG108: 372.0377215 | AH108: 353.4062591 | AI108: 366.0616174 | AJ108: 366.1245126 | AK108: 365.4496227 | AL108: 376.6799307 | AM108: 374.6598091 | AN108: 367.223901 | AO108: 324.1844892 | AP108: 333.2145964 | AQ108: 312.1752557 | AR108: 338.6945007 | AS108: 332.6393936 | AT108: 354.9138598 | AU108: 324.7756666 | AV108: 321.1115812 | AW108: 317.2146547 | AX108: 321.2402162 | AY108: 297.0176008 | AZ108: 335.5001894 | BD108: Australian Capital Territory | BE108: 105 | BK108: 58 | BL108: 67 | BM108: 67_20 | BN108: Gold Coast | BO108: 280.2301049 | BP108: 313.1364756 | BQ108: 32.9063707 | BS108: Gold Coast | BT108: 32.9063707
A109: 1_2 | B109: 13.88587551 | C109: 15.63934762 | D109: 16.96039974 | E109: 17.94987195 | F109: 17.67796104 | G109: 16.48938694 | H109: 15.41715008 | I109: 17.07332055 | J109: 17.09626088 | K109: 17.37221789 | L109: 17.71227707 | M109: 17.38060268 | N109: 17.71370552 | O109: 18.5777173 | P109: 19.31424514 | Q109: 19.70595137 | R109: 20.87560555 | S109: 20.69045517 | T109: 20.61805984 | U109: 20.15248732 | V109: 19.58111822 | W109: 20.45637111 | X109: 22.02060815 | Y109: 23.34100397 | Z109: 24.20435696 | AA109: 24.17647425 | AB109: 23.10474785 | AC109: 22.20610483 | AD109: 24.11488579 | AE109: 26.93003627 | AF109: 29.70545586 | AG109: 31.97635237 | AH109: 31.66125572 | AI109: 31.11463419 | AJ109: 31.32352919 | AK109: 31.66615007 | AL109: 32.16098743 | AM109: 32.7788351 | AN109: 32.87304231 | AO109: 33.95271518 | AP109: 35.83616274 | AQ109: 36.5452258 | AR109: 38.63267959 | AS109: 40.46530359 | AT109: 43.04700713 | AU109: 45.26358798 | AV109: 45.68394434 | AW109: 44.65814847 | AX109: 43.19447308 | AY109: 44.18365184 | AZ109: 45.13735756 | BK109: 59 | BL109: 68 | BM109: 68_20 | BN109: Mackay | BO109: 103.22086 | BP109: 115.4833301 | BQ109: 12.26247016 | BS109: Mackay | BT109: 12.26247016
A110: 2_2 | B110: 2.150315446 | C110: 2.242856428 | D110: 2.489755808 | E110: 2.583860449 | F110: 2.442229319 | G110: 2.313004086 | H110: 2.360414204 | I110: 3.095662033 | J110: 3.310656808 | K110: 2.995990051 | L110: 2.760836499 | M110: 2.273669124 | N110: 2.267351811 | O110: 2.825715237 | P110: 2.946025506 | Q110: 2.957375731 | R110: 2.911707238 | S110: 2.586538874 | T110: 2.727449686 | U110: 2.879042506 | V110: 3.155197153 | W110: 3.851178617 | X110: 3.693401462 | Y110: 3.828066904 | Z110: 3.834629449 | AA110: 3.357448437 | AB110: 3.521811441 | AC110: 3.813947007 | AD110: 4.129370816 | AE110: 4.075067945 | AF110: 4.23370227 | AG110: 4.001468438 | AH110: 3.848456581 | AI110: 4.979450356 | AJ110: 5.715604584 | AK110: 6.280395751 | AL110: 6.467785292 | AM110: 6.217554568 | AN110: 6.009371984 | AO110: 5.607707897 | AP110: 5.737311417 | AQ110: 5.635051869 | AR110: 5.66391142 | AS110: 6.300161339 | AT110: 6.627518829 | AU110: 6.576180176 | AV110: 6.67797298 | AW110: 7.878082891 | AX110: 9.175756588 | AY110: 10.29186842 | AZ110: 10.77075988 | BK110: 60 | BL110: 69 | BM110: 69_20 | BN110: Queensland - Outback | BO110: 47.27823792 | BP110: 50.92590805 | BQ110: 3.647670127 | BS110: Queensland - Outback | BT110: 3.647670127
A111: 3_2 | B111: 0.351972468 | C111: 0.267076736 | D111: 0.256000493 | E111: 0.253911806 | F111: 0.351971906 | G111: 0.6320711 | H111: 0.815619378 | I111: 0.923094248 | J111: 0.828551813 | K111: 0.548452619 | L111: 0.362862136 | M111: 0.167349988 | N111: 0.246413254 | O111: 0.340518733 | P111: 0.35715325 | Q111: 0.539961799 | R111: 0.468117998 | S111: 0.563269246 | T111: 0.656829188 | U111: 0.474020639 | V111: 0.376870304 | W111: 0.187613577 | X111: 0.123773234 | Y111: 0.38048586 | Z111: 0.565501891 | AA111: 0.565501891 | AB111: 0.441728657 | AC111: 0.185016031 | AD111: 0 | AE111: 0 | AF111: 0 | AG111: 0.265580114 | AH111: 0.652357032 | AI111: 1.274961974 | AJ111: 1.560791742 | AK111: 1.757759404 | AL111: 1.739353416 | AM111: 1.657458765 | AN111: 1.505511692 | AO111: 1.274568648 | AP111: 1.152575572 | AQ111: 0.940977995 | AR111: 0.92015963 | AS111: 1.039934967 | AT111: 1.24724447 | AU111: 1.358011193 | AV111: 1.61353388 | AW111: 1.636898562 | AX111: 1.756335396 | AY111: 1.80805763 | AZ111: 1.692486423 | BK111: 61 | BL111: 70 | BM111: 70_20 | BN111: Sunshine Coast | BO111: 159.3984239 | BP111: 178.289845 | BQ111: 18.89142107 | BS111: Sunshine Coast | BT111: 18.89142107
A112: 4_2 | B112: 0.087426007 | C112: 0.177312823 | D112: 0.177312823 | E112: 0.177312823 | F112: 0.089886816 | G112: 0 | H112: 0 | I112: 0 | J112: 0 | K112: 0 | L112: 0 | M112: 0 | N112: 0 | O112: 0 | P112: 0 | Q112: 0 | R112: 0 | S112: 0 | T112: 0.092884834 | U112: 0.092884834 | V112: 0.092884834 | W112: 0.092884834 | X112: 0 | Y112: 0.077527076 | Z112: 0.233393328 | AA112: 0.30574044 | AB112: 0.381115367 | AC112: 0.30358829 | AD112: 0.147722038 | AE112: 0.075374926 | AF112: 0 | AG112: 0 | AH112: 0 | AI112: 0 | AJ112: 0 | AK112: 0 | AL112: 0.099361583 | AM112: 0.203529727 | AN112: 0.203529727 | AO112: 0.203529727 | AP112: 0.402139668 | AQ112: 0.632598477 | AR112: 0.865348761 | AS112: 0.966827668 | AT112: 0.770653227 | AU112: 0.645798118 | AV112: 0.605827301 | AW112: 0.504348394 | AX112: 0.492331029 | AY112: 0.411842633 | AZ112: 0.219063167 | BK112: 62 | BL112: 71 | BM112: 71_20 | BN112: Toowoomba | BO112: 70.13228691 | BP112: 75.54322139 | BQ112: 5.410934484 | BS112: Toowoomba | BT112: 5.410934484
A113: 5_2 | B113: 0.400088477 | C113: 0.31936733 | D113: 0.314083725 | E113: 0.232950303 | F113: 0.158961708 | G113: 0.152489179 | H113: 0.071684282 | I113: 0.232799102 | J113: 0.232799102 | K113: 0.254520815 | L113: 0.254520815 | M113: 0.093405996 | N113: 0.093405996 | O113: 0 | P113: 0 | Q113: 0 | R113: 0.080874921 | S113: 0.161806961 | T113: 0.161806961 | U113: 0.161806961 | V113: 0.08093204 | W113: 0 | X113: 0.07803298 | Y113: 0.07803298 | Z113: 0.07803298 | AA113: 0.07803298 | AB113: 0 | AC113: 0 | AD113: 0.107365651 | AE113: 0.107365651 | AF113: 0.239658454 | AG113: 0.239658454 | AH113: 0.132292803 | AI113: 0.132292803 | AJ113: 0.139135854 | AK113: 0.268906844 | AL113: 0.268906844 | AM113: 0.268906844 | AN113: 0.225168323 | AO113: 0.194042822 | AP113: 0.293222271 | AQ113: 0.293222271 | AR113: 0.197824938 | AS113: 0.099179449 | AT113: 0 | AU113: 0.108870951 | AV113: 0.219583616 | AW113: 0.326510654 | AX113: 0.476274282 | AY113: 0.500098767 | AZ113: 0.510270336 | BK113: 63 | BL113: 72 | BM113: 72_20 | BN113: Townsville | BO113: 111.5926293 | BP113: 120.2023643 | BQ113: 8.609735012 | BS113: Townsville | BT113: 8.609735012
A114: 6_2 | B114: 0 | C114: 0 | D114: 0 | E114: 0 | F114: 0 | G114: 0 | H114: 0 | I114: 0 | J114: 0 | K114: 0 | L114: 0 | M114: 0.07408847 | N114: 0.07408847 | O114: 0.07408847 | P114: 0.07408847 | Q114: 0 | R114: 0 | S114: 0 | T114: 0 | U114: 0.174559675 | V114: 0.174559675 | W114: 0.305478612 | X114: 0.305478612 | Y114: 0.130918937 | Z114: 0.130918937 | AA114: 0 | AB114: 0 | AC114: 0 | AD114: 0.112426335 | AE114: 0.263677349 | AF114: 0.263677349 | AG114: 0.263677349 | AH114: 0.427465742 | AI114: 0.276214728 | AJ114: 0.276214728 | AK114: 0.379518266 | AL114: 0.198700751 | AM114: 0.304007957 | AN114: 0.304007957 | AO114: 0.200704419 | AP114: 0.105307205 | AQ114: 0 | AR114: 0.108900931 | AS114: 0.202840433 | AT114: 0.202840433 | AU114: 0.202840433 | AV114: 0.193379677 | AW114: 0.321793233 | AX114: 0.579325425 | AY114: 0.994040352 | AZ114: 1.017402977 | BK114: 64 | BL114: 73 | BM114: 73_20 | BN114: Wide Bay | BO114: 110.861866 | BP114: 119.4152202 | BQ114: 8.553354241 | BS114: Wide Bay | BT114: 8.553354241
A115: 7_2 | B115: 0 | C115: 0 | D115: 0 | E115: 0.095554584 | F115: 0.182211835 | G115: 0.274398322 | H115: 0.274398322 | I115: 0.178843737 | J115: 0.188378601 | K115: 0.209284158 | L115: 0.311788806 | M115: 0.505791633 | N115: 0.618696258 | O115: 0.60959724 | P115: 0.507092591 | Q115: 0.313089764 | R115: 0.103993026 | S115: 0 | T115: 0 | U115: 0 | V115: 0 | W115: 0 | X115: 0 | Y115: 0 | Z115: 0 | AA115: 0.127536129 | AB115: 0.253824203 | AC115: 0.483117127 | AD115: 0.483117127 | AE115: 0.355580998 | AF115: 0.229292924 | AG115: 0 | AH115: 0 | AI115: 0.273071373 | AJ115: 0.571374686 | AK115: 0.664834004 | AL115: 0.664834004 | AM115: 0.507307664 | AN115: 0.329366175 | AO115: 0.342194931 | AP115: 0.342194931 | AQ115: 0.226649898 | AR115: 0.106288074 | AS115: 0 | AT115: 0.234000478 | AU115: 0.234000478 | AV115: 0.234000478 | AW115: 0.234000478 | AX115: 0.150617724 | AY115: 0.150617724 | AZ115: 0.334609606 | BK115: 65 | BL115: 76 | BM115: 76_20 | BN115: Adelaide - Central and Hills | BO115: =VLOOKUP(BM115,hpfandprojection,52,FALSE) -> 150.6842514 | BP115: 156.8537026 | BQ115: 6.169451182 | BS115: Adelaide - Central and Hills | BT115: =HLOOKUP($BJ$37,topbottomdata,BK115+1,FALSE) -> 6.169451182
A116: 8_2 | B116: 0 | C116: 0 | D116: 0 | E116: 0 | F116: 0 | G116: 0 | H116: 0 | I116: 0 | J116: 0 | K116: 0 | L116: 0 | M116: 0 | N116: 0 | O116: 0 | P116: 0 | Q116: 0 | R116: 0.17154601 | S116: 0.369156121 | T116: 0.369156121 | U116: 0.369156121 | V116: 0.197610111 | W116: 0.09515995 | X116: 0.186819247 | Y116: 0.362986634 | Z116: 0.447675692 | AA116: 0.432068361 | AB116: 0.340409063 | AC116: 0.164241677 | AD116: 0.079552619 | AE116: 0 | AF116: 0 | AG116: 0.119892092 | AH116: 0.257635182 | AI116: 0.257635182 | AJ116: 0.358582667 | AK116: 0.238690575 | AL116: 0.342112624 | AM116: 0.536736901 | AN116: 0.750666056 | AO116: 0.750666056 | AP116: 0.509500918 | AQ116: 0.314876641 | AR116: 0 | AS116: 0 | AT116: 0 | AU116: 0 | AV116: 0.096745627 | AW116: 0.203544281 | AX116: 0.298122802 | AY116: 0.298122802 | AZ116: 0.328055478 | BK116: 66 | BL116: 77 | BM116: =CONCATENATE(BL116,"_",$BJ$39) -> 77_20 | BN116: Adelaide - North | BO116: 187.6934879 | BP116: =VLOOKUP(BM116,hpfandprojection,53,FALSE) -> 194.6799392 | BQ116: =VLOOKUP(BM116,hpfandprojection,54,FALSE) -> 6.986451305 | BS116: Adelaide - North | BT116: 6.986451305
A117: 9_2 | B117: 0 | C117: 0 | D117: 0 | E117: 0.080585801 | F117: 0.080585801 | G117: 0.080585801 | H117: 0.080585801 | I117: 0 | J117: 0 | K117: 0 | L117: 0 | M117: 0 | N117: 0 | O117: 0 | P117: 0 | Q117: 0.114474435 | R117: 0.210109299 | S117: 0.210109299 | T117: 0.302183527 | U117: 0.389694408 | V117: 0.294059544 | W117: 0.490590977 | X117: 0.491424735 | Y117: 0.401865416 | Z117: 0.49767417 | AA117: 0.301142737 | AB117: 0.20823475 | AC117: 0.095808754 | AD117: 0 | AE117: 0 | AF117: 0 | AG117: 0 | AH117: 0 | AI117: 0 | AJ117: 0.14469201 | AK117: 0.272796179 | AL117: 0.389635751 | AM117: 0.389635751 | AN117: 0.367696609 | AO117: 0.365235329 | AP117: 0.385382353 | AQ117: 0.620883404 | AR117: 0.742583243 | AS117: 0.730884075 | AT117: 0.610543449 | AU117: 0.375042398 | AV117: 0.130589692 | AW117: 0.145837819 | AX117: 0.129191849 | AY117: 0.247213373 | AZ117: 0.361788364 | BK117: 67 | BL117: 78 | BM117: 78_20 | BN117: Adelaide - South | BO117: 180.4296068 | BP117: 189.2072471 | BQ117: 8.7776403 | BS117: Adelaide - South | BT117: 8.7776403
A118: 10_2 | B118: 0.241969194 | C118: 0.155864599 | D118: 0.073868598 | E118: 0 | F118: 0.080520361 | G118: 0.080520361 | H118: 0.080520361 | I118: 0.163026283 | J118: 0.082505922 | K118: 0.082505922 | L118: 0.181764594 | M118: 0.203537034 | N118: 0.203537034 | O118: 0.29447138 | P118: 0.297062012 | Q118: 0.19278365 | R118: 0.289782926 | S118: 0.19884858 | T118: 0.189704965 | U118: 0.280941176 | V118: 0.44499925 | W118: 0.738437046 | X118: 0.824221124 | Y118: 0.913496676 | Z118: 0.91351215 | AA118: 0.803386889 | AB118: 0.708566711 | AC118: 0.633683875 | AD118: 0.571530015 | AE118: 0.521036364 | AF118: 0.82535524 | AG118: 1.094173033 | AH118: 1.143985182 | AI118: 1.142139511 | AJ118: 0.754151045 | AK118: 0.379704324 | AL118: 0.130973213 | AM118: 0.100870325 | AN118: 0.201723247 | AO118: 0.201723247 | AP118: 0.201723247 | AQ118: 0.100852921 | AR118: 0.102244569 | AS118: 0.422773464 | AT118: 0.639432045 | AU118: 0.639432045 | AV118: 0.640076126 | AW118: 0.865699447 | AX118: 0.649040866 | AY118: 1.180095998 | AZ118: 1.684829972 | BK118: 68 | BL118: 79 | BM118: 79_20 | BN118: Adelaide - West | BO118: 111.2482146 | BP118: 122.7263346 | BQ118: 11.47811998 | BS118: Adelaide - West | BT118: 11.47811998
A119: 11_2 | B119: 0 | C119: 0 | D119: 0 | E119: 0 | F119: 0 | G119: 0.088000693 | H119: 0.258657651 | I119: 0.433337558 | J119: 0.521203932 | K119: 0.433203238 | L119: 0.34885903 | M119: 0.174179124 | N119: 0.08631275 | O119: 0.173699091 | P119: 0.087386341 | Q119: 0.087386341 | R119: 0.087386341 | S119: 0 | T119: 0 | U119: 0 | V119: 0 | W119: 0 | X119: 0 | Y119: 0.084558163 | Z119: 0.084558163 | AA119: 0.084558163 | AB119: 0.187273336 | AC119: 0.213303885 | AD119: 0.422170458 | AE119: 0.565152798 | AF119: 0.610973681 | AG119: 0.618095008 | AH119: 0.409228435 | AI119: 0.266246095 | AJ119: 0.117710039 | AK119: 0 | AL119: 0 | AM119: 0 | AN119: 0 | AO119: 0 | AP119: 0 | AQ119: 0 | AR119: 0 | AS119: 0.10824992 | AT119: 0.206477926 | AU119: 0.422537011 | AV119: 0.521661783 | AW119: 0.413411863 | AX119: 0.519385982 | AY119: 0.303326897 | AZ119: 0.204202125 | BK119: 69 | BL119: 81 | BM119: 81_20 | BN119: Barossa - Yorke - Mid North | BO119: 49.18165791 | BP119: 49.50179457 | BQ119: 0.3201366563 | BS119: Barossa - Yorke - Mid North | BT119: 0.3201366563
A120: 12_2 | B120: 0.636681113 | C120: 0.711965385 | D120: 0.872804249 | E120: 0.864218745 | F120: 0.626180325 | G120: 0.481211216 | H120: 0.512380863 | I120: 0.619273682 | J120: 0.720033288 | K120: 0.635773923 | L120: 0.467795465 | M120: 0.445042158 | N120: 0.505106221 | O120: 0.588519512 | P120: 0.501001858 | Q120: 0.336185967 | R120: 0.237493596 | S120: 0.221039752 | T120: 0.288798323 | U120: 0.480274786 | V120: 0.669701324 | W120: 0.932011175 | X120: 0.851942785 | Y120: 0.660466322 | Z120: 0.408908486 | AA120: 0.275106678 | AB120: 0.507733377 | AC120: 0.937237654 | AD120: 1.219471144 | AE120: 1.296207322 | AF120: 1.380773757 | AG120: 1.107725696 | AH120: 0.825492206 | AI120: 0.903084018 | AJ120: 0.866822269 | AK120: 0.981679043 | AL120: 1.087692076 | AM120: 1.055382606 | AN120: 1.090790464 | AO120: 1.356544123 | AP120: 1.752462825 | AQ120: 1.675261641 | AR120: 1.404382449 | AS120: 0.98119156 | AT120: 0.585153034 | AU120: 0.344868209 | AV120: 0.219768969 | AW120: 0.502170042 | AX120: 1.083362811 | AY120: 1.297060134 | AZ120: 1.751087263 | BK120: 70 | BL120: 82 | BM120: 82_20 | BN120: South Australia - Outback | BO120: 39.06128172 | BP120: 39.68703331 | BQ120: 0.6257515835 | BS120: South Australia - Outback | BT120: 0.6257515835
A121: 13_2 | B121: 0.432178188 | C121: 0.611269556 | D121: 0.79568592 | E121: 0.879326386 | F121: 0.782233749 | G121: 0.434050597 | H121: 0.17689073 | I121: 0.273762776 | J121: 0.460454424 | K121: 0.555519648 | L121: 0.462269384 | M121: 0.330306495 | N121: 0.143614846 | O121: 0.155498207 | P121: 0.254466285 | Q121: 0.396891587 | R121: 0.396891587 | S121: 0.289943003 | T121: 0.277549724 | U121: 0.174810491 | V121: 0.27682185 | W121: 0.27682185 | X121: 0.288396916 | Y121: 0.286441661 | Z121: 0.184430301 | AA121: 0.184430301 | AB121: 0.086280436 | AC121: 0.091385892 | AD121: 0.180254801 | AE121: 0.180254801 | AF121: 0.180254801 | AG121: 0.088868909 | AH121: 0 | AI121: 0.31024885 | AJ121: 0.540674502 | AK121: 0.729354568 | AL121: 0.837430131 | AM121: 0.527181281 | AN121: 0.296755629 | AO121: 0.206039992 | AP121: 0.181976178 | AQ121: 0.181976178 | AR121: 0.57900479 | AS121: 0.83432734 | AT121: 0.9989069 | AU121: 1.23501433 | AV121: 1.063131146 | AW121: 1.264301238 | AX121: 1.24338972 | AY121: 1.395773535 | AZ121: 1.170628107 | BK121: 71 | BL121: 83 | BM121: 83_20 | BN121: South Australia - South East | BO121: 85.51159992 | BP121: 88.1363401 | BQ121: 2.624740182 | BS121: South Australia - South East | BT121: 2.624740182
A122: 14_2 | B122: 0 | C122: 0 | D122: 0 | E122: 0 | F122: 0.089676816 | G122: 0.089676816 | H122: 0.089676816 | I122: 0.271524647 | J122: 0.276729728 | K122: 0.276729728 | L122: 0.276729728 | M122: 0.094881897 | N122: 0 | O122: 0.095254354 | P122: 0.187255388 | Q122: 0.285497487 | R122: 0.285497487 | S122: 0.190243133 | T122: 0.098242099 | U122: 0 | V122: 0 | W122: 0 | X122: 0 | Y122: 0 | Z122: 0 | AA122: 0 | AB122: 0 | AC122: 0.106671182 | AD122: 0.20705594 | AE122: 0.20705594 | AF122: 0.20705594 | AG122: 0.100384759 | AH122: 0 | AI122: 0.143555822 | AJ122: 0.288906308 | AK122: 0.404562723 | AL122: 0.404562723 | AM122: 0.261006901 | AN122: 0.115656416 | AO122: 0 | AP122: 0 | AQ122: 0.124796451 | AR122: 0.124796451 | AS122: 0.124796451 | AT122: 0.242878738 | AU122: 0.118082286 | AV122: 0.229939613 | AW122: 0.366854531 | AX122: 0.372638476 | AY122: 0.372638476 | AZ122: 0.260781149 | BK122: 72 | BL122: 86 | BM122: 86_20 | BN122: Mandurah | BO122: 41.20347338 | BP122: 46.05398595 | BQ122: 4.850512569 | BS122: Mandurah | BT122: 4.850512569
A123: 15_2 | B123: 0 | C123: 0 | D123: 0 | E123: 0 | F123: 0 | G123: 0 | H123: 0 | I123: 0 | J123: 0 | K123: 0 | L123: 0 | M123: 0 | N123: 0.111090653 | O123: 0.308981922 | P123: 0.589679523 | Q123: 0.691104701 | R123: 0.580014049 | S123: 0.382122779 | T123: 0.101425178 | U123: 0 | V123: 0.092341489 | W123: 0.185801836 | X123: 0.185801836 | Y123: 0.185801836 | Z123: 0.198061324 | AA123: 0.104600977 | AB123: 0.222587689 | AC123: 0.222587689 | AD123: 0.117986712 | AE123: 0.117986712 | AF123: 0 | AG123: 0 | AH123: 0 | AI123: 0 | AJ123: 0 | AK123: 0 | AL123: 0 | AM123: 0 | AN123: 0 | AO123: 0 | AP123: 0 | AQ123: 0 | AR123: 0 | AS123: 0 | AT123: 0 | AU123: 0.112469329 | AV123: 0.224317332 | AW123: 0.336382962 | AX123: 0.336382962 | AY123: 0.223913633 | AZ123: 0.11206563 | BK123: 73 | BL123: 87 | BM123: 87_20 | BN123: Perth - Inner | BO123: 99.55766021 | BP123: 110.0509508 | BQ123: 10.49329062 | BS123: Perth - Inner | BT123: 10.49329062
A124: 16_2 | B124: 0 | C124: 0 | D124: 0 | E124: 0 | F124: 0 | G124: 0 | H124: 0 | I124: 0 | J124: 0 | K124: 0 | L124: 0 | M124: 0 | N124: 0 | O124: 0 | P124: 0 | Q124: 0 | R124: 0 | S124: 0 | T124: 0 | U124: 0 | V124: 0.08563806 | W124: 0.177600089 | X124: 0.177600089 | Y124: 0.177600089 | Z124: 0.091962028 | AA124: 0 | AB124: 0 | AC124: 0 | AD124: 0 | AE124: 0 | AF124: 0 | AG124: 0 | AH124: 0 | AI124: 0 | AJ124: 0 | AK124: 0.106041086 | AL124: 0.20767344 | AM124: 0.308981112 | AN124: 0.61849969 | AO124: 0.512458605 | AP124: 0.41082625 | AQ124: 0.309518578 | AR124: 0 | AS124: 0.100052086 | AT124: 0.100052086 | AU124: 0.203314765 | AV124: 0.302325211 | AW124: 0.427884225 | AX124: 0.633068418 | AY124: 0.529805739 | AZ124: 0.430795293 | BK124: 74 | BL124: 88 | BM124: 88_20 | BN124: Perth - North East | BO124: 135.2818542 | BP124: 145.9243436 | BQ124: 10.64248933 | BS124: Perth - North East | BT124: 10.64248933
A125: 17_2 | B125: 0 | C125: 0 | D125: 0 | E125: 0 | F125: 0 | G125: 0 | H125: 0 | I125: 0 | J125: 0 | K125: 0 | L125: 0.09424654 | M125: 0.185086329 | N125: 0.185086329 | O125: 0.185086329 | P125: 0.090839789 | Q125: 0 | R125: 0 | S125: 0 | T125: 0.188868767 | U125: 0.280893416 | V125: 0.368778673 | W125: 0.368778673 | X125: 0.179909906 | Y125: 0.087885257 | Z125: 0 | AA125: 0.095342892 | AB125: 0.184057853 | AC125: 0.377304952 | AD125: 0.480717976 | AE125: 0.385375084 | AF125: 0.296660124 | AG125: 0.103413025 | AH125: 0 | AI125: 0 | AJ125: 0.096548735 | AK125: 0.096548735 | AL125: 0.096548735 | AM125: 0.096548735 | AN125: 0 | AO125: 0 | AP125: 0 | AQ125: 0.213437415 | AR125: 0.512377585 | AS125: 0.689103928 | AT125: 0.789336045 | AU125: 0.57589863 | AV125: 0.38309253 | AW125: 0.328445163 | AX125: 0.456288848 | AY125: 0.579260728 | AZ125: 0.692693987 | BK125: 75 | BL125: 89 | BM125: 89_20 | BN125: Perth - North West | BO125: 307.7428031 | BP125: 341.8513932 | BQ125: 34.10859017 | BS125: Perth - North West | BT125: 34.10859017
A126: 18_2 | B126: 11.73556006 | C126: 13.3964912 | D126: 14.47064393 | E126: 15.3660115 | F126: 15.23573172 | G126: 14.17638286 | H126: 13.05673588 | I126: 13.97765852 | J126: 13.78560407 | K126: 14.37622783 | L126: 14.95144057 | M126: 15.10693355 | N126: 15.4463537 | O126: 15.75200206 | P126: 16.36821963 | Q126: 16.74857564 | R126: 17.96389831 | S126: 18.1039163 | T126: 17.89061015 | U126: 17.27344481 | V126: 16.42592107 | W126: 16.6051925 | X126: 18.32720669 | Y126: 19.51293706 | Z126: 20.36972751 | AA126: 20.81902581 | AB126: 19.58293641 | AC126: 18.39215783 | AD126: 19.98551497 | AE126: 22.85496832 | AF126: 25.47175359 | AG126: 27.97488394 | AH126: 27.81279914 | AI126: 26.13518384 | AJ126: 25.60792461 | AK126: 25.38575432 | AL126: 25.69320214 | AM126: 26.56128054 | AN126: 26.86367033 | AO126: 28.34500728 | AP126: 30.09885132 | AQ126: 30.91017393 | AR126: 32.96876817 | AS126: 34.16514225 | AT126: 36.4194883 | AU126: 38.6874078 | AV126: 39.00597136 | AW126: 36.78006558 | AX126: 34.01871649 | AY126: 33.89178342 | AZ126: 34.36659768 | BK126: 76 | BL126: 90 | BM126: 90_20 | BN126: Perth - South East | BO126: 267.0892164 | BP126: 298.5312162 | BQ126: 31.44199978 | BS126: Perth - South East | BT126: 31.44199978
A127: 19_2 | B127: 0.920238277 | C127: 0.857438105 | D127: 0.554988384 | E127: 0.345996424 | F127: 0.12003368 | G127: 0 | H127: 0 | I127: 0 | J127: 0 | K127: 0 | L127: 0 | M127: 0 | N127: 0 | O127: 0.097217324 | P127: 0.351516267 | Q127: 0.580352274 | R127: 0.730419093 | S127: 0.768737117 | T127: 0.613374666 | U127: 0.466022375 | V127: 0.416164306 | W127: 0.280628959 | X127: 0.181692467 | Y127: 0.10020875 | Z127: 0.095605466 | AA127: 0.194025598 | AB127: 0.330383457 | AC127: 0.462489845 | AD127: 0.477150601 | AE127: 0.37873047 | AF127: 0.361668488 | AG127: 0.467819309 | AH127: 0.592652018 | AI127: 0.592652018 | AJ127: 0.815582655 | AK127: 0.700174881 | AL127: 0.692712703 | AM127: 0.819768546 | AN127: 0.592148711 | AO127: 0.845175117 | AP127: 0.877343318 | AQ127: 0.878481784 | AR127: 0.763875104 | AS127: 0.387999263 | AT127: 0.807636873 | AU127: 1.325217065 | AV127: 1.802300335 | AW127: 2.176951241 | AX127: 1.847029969 | AY127: 1.201255468 | AZ127: 0.724172199 | BK127: 77 | BL127: 91 | BM127: 91_20 | BN127: Perth - South West | BO127: 209.8504321 | BP127: 222.6294719 | BQ127: 12.77903982 | BS127: Perth - South West | BT127: 12.77903982
A128: 20_2 | B128: 2.085163289 | C128: 1.911240408 | D128: 2.02796707 | E128: 1.964869912 | F128: 2.506596031 | G128: 2.566554122 | H128: 2.078899093 | I128: 2.180247 | J128: 1.743187331 | K128: 2.039375811 | L128: 2.340764903 | M128: 2.63375758 | N128: 2.839621038 | O128: 3.192190509 | P128: 3.81348318 | Q128: 3.846836095 | R128: 3.87998059 | S128: 3.699185133 | T128: 3.532723606 | U128: 3.381134941 | V128: 2.862894222 | W128: 2.438039033 | X128: 2.296278578 | Y128: 2.81460853 | Z128: 3.336338692 | AA128: 3.738015683 | AB128: 3.749504547 | AC128: 3.247721894 | AD128: 4.768836725 | AE128: 5.979314261 | AF128: 6.733184169 | AG128: 6.634295736 | AH128: 5.29206155 | AI128: 4.078369857 | AJ128: 3.969456535 | AK128: 4.265190526 | AL128: 4.825212748 | AM128: 5.190828069 | AN128: 5.042933583 | AO128: 5.703833246 | AP128: 6.315841396 | AQ128: 6.381010698 | AR128: 6.519971569 | AS128: 6.842350099 | AT128: 6.640791405 | AU128: 7.498520049 | AV128: 7.245614414 | AW128: 6.192281507 | AX128: 5.432472113 | AY128: 5.955669996 | AZ128: 6.914976708 | BK128: 78 | BL128: 93 | BM128: 93_20 | BN128: Bunbury | BO128: 87.94329756 | BP128: 93.01877114 | BQ128: 5.07547358 | BS128: Bunbury | BT128: 5.07547358
A129: 21_2 | B129: 0 | C129: 0 | D129: 0 | E129: 0 | F129: 0 | G129: 0 | H129: 0 | I129: 0 | J129: 0 | K129: 0 | L129: 0 | M129: 0 | N129: 0 | O129: 0 | P129: 0 | Q129: 0 | R129: 0 | S129: 0.079417237 | T129: 0.079417237 | U129: 0.079417237 | V129: 0.079417237 | W129: 0 | X129: 0 | Y129: 0.137988327 | Z129: 0.287479596 | AA129: 0.287479596 | AB129: 0.287479596 | AC129: 0.149491269 | AD129: 0 | AE129: 0 | AF129: 0 | AG129: 0 | AH129: 0 | AI129: 0.177290408 | AJ129: 0.177290408 | AK129: 0.177290408 | AL129: 0.177290408 | AM129: 0 | AN129: 0 | AO129: 0 | AP129: 0.100616323 | AQ129: 0.232487739 | AR129: 0.374004983 | AS129: 0.374004983 | AT129: 0.27338866 | AU129: 0.141517245 | AV129: 0 | AW129: 0.269311615 | AX129: 0.411397808 | AY129: 0.411397808 | AZ129: 0.411397808 | BK129: 79 | BL129: 94 | BM129: 94_20 | BN129: Western Australia - Outback | BO129: 133.9537396 | BP129: 143.5121564 | BQ129: 9.558416786 | BS129: Western Australia - Outback | BT129: 9.558416786
A130: 22_2 | B130: 0.084979761 | C130: 0.475786399 | D130: 0.740649889 | E130: 0.945370613 | F130: 1.029215137 | G130: 0.746235645 | H130: 1.197165478 | I130: 1.683643524 | J130: 1.599799 | K130: 1.712342225 | L130: 1.197362499 | M130: 0.799560783 | N130: 0.977522753 | O130: 1.013921511 | P130: 1.141999829 | Q130: 1.067059615 | R130: 0.951890858 | S130: 1.064087712 | T130: 1.130225641 | U130: 1.115093205 | V130: 1.535136809 | W130: 1.565069797 | X130: 1.692891832 | Y130: 2.092609485 | Z130: 2.07309071 | AA130: 2.094653935 | AB130: 2.049769184 | AC130: 2.064643276 | AD130: 1.694438532 | AE130: 1.604285152 | AF130: 1.459840169 | AG130: 0.981509146 | AH130: 0.993724749 | AI130: 1.010809783 | AJ130: 0.931254638 | AK130: 0.995776006 | AL130: 0.998462025 | AM130: 0.906915498 | AN130: 0.899578206 | AO130: 0.940575925 | AP130: 1.289806528 | AQ130: 1.527527443 | AR130: 1.822789692 | AS130: 1.949759446 | AT130: 1.725628413 | AU130: 1.347475592 | AV130: 1.047068686 | AW130: 0.714815662 | AX130: 0.877164463 | AY130: 0.961753887 | AZ130: 1.163257236 | BK130: 80 | BL130: 95 | BM130: 95_20 | BN130: Western Australia - Wheat Belt | BO130: 61.73322926 | BP130: 62.21103368 | BQ130: 0.4778044158 | BS130: Western Australia - Wheat Belt | BT130: 0.4778044158
A131: 23_2 | B131: 2.719804159 | C131: 2.988740053 | D131: 3.294937329 | E131: 3.774303732 | F131: 3.317697333 | G131: 3.624632821 | H131: 4.129667424 | I131: 4.467277085 | J131: 5.132646653 | K131: 5.424217043 | L131: 6.227384975 | M131: 6.564603614 | N131: 6.856432767 | O131: 6.399780212 | P131: 5.430784651 | Q131: 5.792602302 | R131: 6.622194052 | S131: 7.305212026 | T131: 7.71841688 | U131: 7.576225562 | V131: 7.162332804 | W131: 7.109382739 | X131: 7.883214389 | Y131: 7.877081175 | Z131: 7.971206845 | AA131: 7.897289452 | AB131: 7.24829411 | AC131: 7.007592316 | AD131: 6.887632696 | AE131: 7.908545065 | AF131: 8.550445044 | AG131: 9.542711753 | AH131: 9.803632017 | AI131: 9.687787842 | AJ131: 9.685018499 | AK131: 9.484776886 | AL131: 9.43318247 | AM131: 9.59735859 | AN131: 9.806909221 | AO131: 10.2246544 | AP131: 11.00802564 | AQ131: 11.47041457 | AR131: 12.34308884 | AS131: 12.10900406 | AT131: 12.42143718 | AU131: 12.32256203 | AV131: 12.60054562 | AW131: 12.51069688 | AX131: 11.48889128 | AY131: 12.05934777 | AZ131: 12.56227293 | BK131: 81 | BL131: 97 | BM131: 97_20 | BN131: Greater Hobart | BO131: 101.7810102 | BP131: 104.9826395 | BQ131: 3.201629256 | BS131: Greater Hobart | BT131: 3.201629256
A132: 24_2 | B132: 1.929981774 | C132: 2.234427983 | D132: 1.89676105 | E132: 1.860267025 | F132: 1.532116992 | G132: 1.301661988 | H132: 1.28047517 | I132: 1.34695151 | J132: 1.437654643 | K132: 1.402860141 | L132: 1.426040034 | M132: 1.3806704 | N132: 1.276736301 | O132: 1.643857253 | P132: 2.041257443 | Q132: 2.504260983 | R132: 2.856105353 | S132: 2.34208664 | T132: 1.774812629 | U132: 1.304816958 | V132: 0.941688939 | W132: 1.360537297 | X132: 1.887159333 | Y132: 1.965001029 | Z132: 1.949159291 | AA132: 2.107239178 | AB132: 1.741842925 | AC132: 1.481618425 | AD132: 2.052717248 | AE132: 2.355969437 | AF132: 2.657412767 | AG132: 3.093519525 | AH132: 3.149619872 | AI132: 2.656960667 | AJ132: 2.463663652 | AK132: 2.755723315 | AL132: 3.056457599 | AM132: 3.38927296 | AN132: 3.593387137 | AO132: 3.949935434 | AP132: 3.935089118 | AQ132: 4.117120401 | AR132: 4.630174326 | AS132: 4.688461356 | AT132: 4.999852135 | AU132: 5.162430439 | AV132: 5.217708378 | AW132: 5.211219218 | AX132: 4.233570062 | AY132: 3.799548985 | AZ132: 3.706971021 | BK132: 82 | BL132: 99 | BM132: 99_20 | BN132: Launceston and North East | BO132: 64.81566493 | BP132: 66.02431872 | BQ132: 1.208653787 | BS132: Launceston and North East | BT132: 1.208653787
A133: 25_2 | B133: 0.606033943 | C133: 0.75835986 | D133: 0.761162334 | E133: 0.961494431 | F133: 0.793981116 | G133: 0.724925168 | H133: 0.54676618 | I133: 0.490992732 | J133: 0.600492182 | K133: 0.419210696 | L133: 0.419210696 | M133: 0.191883411 | N133: 0 | O133: 0 | P133: 0 | Q133: 0.077998167 | R133: 0.159142853 | S133: 0.357851218 | T133: 0.357851218 | U133: 0.27985305 | V133: 0.27289135 | W133: 0.248243971 | X133: 0.466670662 | Y133: 0.611816933 | Z133: 0.611757031 | AA133: 0.521705462 | AB133: 0.38271303 | AC133: 0.331378844 | AD133: 0.257255761 | AE133: 0.173246345 | AF133: 0.093812085 | AG133: 0 | AH133: 0 | AI133: 0 | AJ133: 0 | AK133: 0.125374986 | AL133: 0.125374986 | AM133: 0.125374986 | AN133: 0.366720737 | AO133: 0.241345752 | AP133: 0.241345752 | AQ133: 0.241345752 | AR133: 0.472858084 | AS133: 0.874826303 | AT133: 1.134388892 | AU133: 1.377444103 | AV133: 1.272349474 | AW133: 1.002346671 | AX133: 1.176920148 | AY133: 0.933864937 | AZ133: 0.708844706 | BK133: 83 | BL133: 100 | BM133: 100_20 | BN133: Tasmania - South East | BO133: 16.16288149 | BP133: 16.44538871 | BQ133: 0.2825072186 | BS133: Tasmania - South East | BT133: 0.2825072186
A134: 26_2 | B134: 0.098858999 | C134: 0.098858999 | D134: 0 | E134: 0 | F134: 0 | G134: 0 | H134: 0 | I134: 0 | J134: 0 | K134: 0 | L134: 0 | M134: 0 | N134: 0 | O134: 0 | P134: 0 | Q134: 0 | R134: 0 | S134: 0 | T134: 0 | U134: 0 | V134: 0 | W134: 0 | X134: 0 | Y134: 0 | Z134: 0 | AA134: 0 | AB134: 0 | AC134: 0 | AD134: 0 | AE134: 0.148023004 | AF134: 0.148023004 | AG134: 0.148023004 | AH134: 0.148023004 | AI134: 0 | AJ134: 0 | AK134: 0 | AL134: 0 | AM134: 0 | AN134: 0 | AO134: 0 | AP134: 0 | AQ134: 0 | AR134: 0 | AS134: 0 | AT134: 0 | AU134: 0 | AV134: 0 | AW134: 0 | AX134: 0 | AY134: 0 | AZ134: 0.178302434 | BK134: 84 | BL134: 101 | BM134: 101_20 | BN134: Tasmania - West and North West | BO134: 48.53472755 | BP134: 48.81674731 | BQ134: 0.2820197645 | BS134: Tasmania - West and North West | BT134: 0.2820197645
A135: 27_2 | B135: 0.190800205 | C135: 0.204692066 | D135: 0.307424974 | E135: 0.418755515 | F135: 0.790728836 | G135: 0.781663848 | H135: 0.579315805 | I135: 0.467985264 | J135: 0.165127846 | K135: 0.149137766 | L135: 0.149137766 | M135: 0.149137766 | N135: 0.080021864 | O135: 0 | P135: 0 | Q135: 0 | R135: 0 | S135: 0.166964282 | T135: 0.244897391 | U135: 0.244897391 | V135: 0.244897391 | W135: 0.077933109 | X135: 0.102898116 | Y135: 0.102898116 | Z135: 0.102898116 | AA135: 0.102898116 | AB135: 0 | AC135: 0 | AD135: 0.110193696 | AE135: 0.401318295 | AF135: 0.757317773 | AG135: 1.30190201 | AH135: 1.730343718 | AI135: 1.610996654 | AJ135: 1.576289727 | AK135: 1.451354266 | AL135: 1.32104284 | AM135: 1.86339455 | AN135: 2.212208783 | AO135: 2.081117361 | AP135: 2.131550209 | AQ135: 1.918840754 | AR135: 2.281110486 | AS135: 3.119694757 | AT135: 4.302817803 | AU135: 4.558638174 | AV135: 4.334143419 | AW135: 3.592047639 | AX135: 2.457766704 | AY135: 2.38053253 | AZ135: 2.08936363 | BK135: 85 | BL135: 103 | BM135: 103_20 | BN135: Darwin | BO135: 77.63038676 | BP135: 88.38720412 | BQ135: 10.75681736 | BS135: Darwin | BT135: 10.75681736
A136: 28_2 | B136: 2.81205261 | C136: 3.477965425 | D136: 4.116442719 | E136: 4.247901315 | F136: 3.878646923 | G136: 3.197391938 | H136: 2.294352552 | I136: 2.337437422 | J136: 2.440398931 | K136: 2.725874246 | L136: 2.783838975 | M136: 2.785304146 | N136: 2.445148382 | O136: 2.013734842 | P136: 1.889209308 | Q136: 1.496456983 | R136: 1.73434065 | S136: 1.710979876 | T136: 2.14171595 | U136: 2.423212254 | V136: 2.490671758 | W136: 2.898858963 | X136: 2.840914337 | Y136: 2.76345709 | Z136: 2.806175874 | AA136: 2.830091102 | AB136: 2.984249243 | AC136: 2.96478865 | AD136: 3.259166107 | AE136: 3.364956527 | AF136: 4.169370828 | AG136: 4.817987194 | AH136: 4.984744687 | AI136: 5.117371687 | AJ136: 4.538139492 | AK136: 4.367033316 | AL136: 3.820811493 | AM136: 3.250391156 | AN136: 2.828011521 | AO136: 2.81520211 | AP136: 2.966541504 | AQ136: 3.114965906 | AR136: 3.179416248 | AS136: 2.944716021 | AT136: 2.871065361 | AU136: 3.306471311 | AV136: 3.318859344 | AW136: 3.355469704 | AX136: 4.165562914 | AY136: 4.426306981 | AZ136: 4.665550817 | BK136: 86 | BL136: 104 | BM136: 104_20 | BN136: Northern Territory - Outback | BO136: 51.47611239 | BP136: 54.29735065 | BQ136: 2.821238256 | BS136: Northern Territory - Outback | BT136: 2.821238256
A137: 29_2 | B137: 0.287647047 | C137: 0.29199659 | D137: 0.399131108 | E137: 0.304172035 | F137: 0.40301696 | G137: 0.403690187 | H137: 0.29018712 | I137: 0.401834315 | J137: 0.30298939 | K137: 0.202815551 | L137: 0.111647195 | M137: 0.080909699 | N137: 0.174675431 | O137: 0.467979839 | P137: 0.662049382 | Q137: 0.683226305 | R137: 0.589460573 | S137: 0.296156166 | T137: 0.102086622 | U137: 0 | V137: 0 | W137: 0 | X137: 0 | Y137: 0.045415725 | Z137: 0.045415725 | AA137: 0.045415725 | AB137: 0.045415725 | AC137: 0 | AD137: 0 | AE137: 0 | AF137: 0 | AG137: 0.144114495 | AH137: 0.274995759 | AI137: 0.401605073 | AJ137: 0.614765734 | AK137: 0.470651239 | AL137: 0.46068086 | AM137: 0.674951013 | AN137: 0.901534416 | AO137: 1.013562363 | AP137: 0.892651478 | AQ137: 0.551772011 | AR137: 0.112027948 | AS137: 0.397352325 | AT137: 0.76550794 | AU137: 1.40445456 | AV137: 1.916041586 | AW137: 1.631940524 | AX137: 1.685340896 | AY137: 1.204730564 | AZ137: 0.693143538 | BK137: 87 | BL137: 105 | BM137: 105_20 | BN137: Australian Capital Territory | BO137: 213.546193 | BP137: 223.6779757 | BQ137: 10.13178277 | BS137: Australian Capital Territory | BT137: 10.13178277 | BV137: Tasmania - West and North West | BW137: 0.2820197645 | BY137: Melbourne - West | BZ137: 42.45753695
A138: 30_2 | B138: 0 | C138: 0.09698531 | D138: 0.272827893 | E138: 0.363356019 | F138: 0.600969918 | G138: 0.566898346 | H138: 0.391055763 | I138: 0.300527637 | J138: 0.145750375 | K138: 0.082836637 | L138: 0.082836637 | M138: 0.082836637 | N138: 0.122653456 | O138: 0.122653456 | P138: 0.206424879 | Q138: 0.206424879 | R138: 0.083771423 | S138: 0.083771423 | T138: 0 | U138: 0 | V138: 0 | W138: 0 | X138: 0.220700821 | Y138: 0.454749269 | Z138: 0.454749269 | AA138: 0.454749269 | AB138: 0.295017786 | AC138: 0.060969338 | AD138: 0.060969338 | AE138: 0.239709678 | AF138: 0.387482105 | AG138: 0.541099982 | AH138: 0.541099982 | AI138: 0.362359642 | AJ138: 0.153617877 | AK138: 0.112905822 | AL138: 0.210201434 | AM138: 0.210201434 | AN138: 0.210201434 | AO138: 0.097295612 | AP138: 0 | AQ138: 0.115395791 | AR138: 0.115395791 | AS138: 0.115395791 | AT138: 0.115395791 | AU138: 0 | AV138: 0 | AW138: 0 | AX138: 0 | AY138: 0 | AZ138: 0.113955071
A139: 31_2 | B139: 0 | C139: 0 | D139: 0.098351182 | E139: 0.179524481 | F139: 0.262728794 | G139: 0.262728794 | H139: 0.268851298 | I139: 0.300762032 | J139: 0.217557718 | K139: 0.217557718 | L139: 0.213216895 | M139: 0.438269517 | N139: 0.673541714 | O139: 0.800667116 | P139: 0.831494694 | Q139: 0.493358039 | R139: 0.356592867 | S139: 0.229467466 | T139: 0.195088312 | U139: 0.402771837 | V139: 0.419826253 | W139: 0.626498628 | X139: 0.754786158 | Y139: 0.547102633 | Z139: 0.635850891 | AA139: 0.545462693 | AB139: 0.468266813 | AC139: 0.621463968 | AD139: 0.417154269 | AE139: 0.300870092 | AF139: 0.153197155 | AG139: 0.301901782 | AH139: 0.301901782 | AI139: 0.438980207 | AJ139: 0.682845394 | AK139: 0.479502669 | AL139: 0.571772575 | AM139: 0.532823734 | AN139: 0.410036578 | AO139: 0.432309957 | AP139: 0.340040052 | AQ139: 0.360811079 | AR139: 0.354055095 | AS139: 0.361577848 | AT139: 0.361577848 | AU139: 0.242677237 | AV139: 0.251340102 | AW139: 0.122984912 | AX139: 0.242600132 | AY139: 0.557374496 | AZ139: 0.434389583
A140: 32_2 | B140: 5.620159046 | C140: 4.748680261 | D140: 4.196350798 | E140: 4.163341703 | F140: 4.390629321 | G140: 4.997060593 | H140: 6.157547101 | I140: 7.08982974 | J140: 7.960330927 | K140: 7.880591213 | L140: 7.216066564 | M140: 6.795464415 | N140: 6.791490376 | O140: 6.614725892 | P140: 6.829752315 | Q140: 6.48243249 | R140: 6.100577302 | S140: 6.895464071 | T140: 7.633255776 | U140: 8.200228673 | V140: 8.238000621 | W140: 8.475189098 | X140: 8.307958914 | Y140: 7.544917838 | Z140: 8.450980793 | AA140: 9.16925695 | AB140: 8.996200128 | AC140: 9.945639303 | AD140: 9.052079042 | AE140: 8.435471385 | AF140: 9.16010175 | AG140: 9.840408308 | AH140: 10.4907605 | AI140: 11.15620243 | AJ140: 11.27954781 | AK140: 11.23875052 | AL140: 11.58228992 | AM140: 11.06102235 | AN140: 10.41664714 | AO140: 10.34839609 | AP140: 9.597612637 | AQ140: 9.930899824 | AR140: 11.15131765 | AS140: 11.737941 | AT140: 12.57997798 | AU140: 12.64948724 | AV140: 11.78759682 | AW140: 12.06048963 | AX140: 13.79062239 | AY140: 13.79054909 | AZ140: 14.42396713
A141: 33_2 | B141: 2.774763884 | C141: 2.53987669 | D141: 2.226015891 | E141: 2.073935227 | F141: 2.421074715 | G141: 3.000611884 | H141: 3.684642169 | I141: 4.461174802 | J141: 4.757917557 | K141: 4.429590446 | L141: 3.954464288 | M141: 3.207821304 | N141: 2.94801421 | O141: 2.648000592 | P141: 2.648023976 | Q141: 2.835480571 | R141: 2.75888464 | S141: 3.136046365 | T141: 3.717918888 | U141: 4.14253268 | V141: 4.275466859 | W141: 4.577389944 | X141: 4.643688827 | Y141: 3.78068111 | Z141: 4.008304196 | AA141: 4.367234215 | AB141: 4.182275605 | AC141: 4.955343983 | AD141: 4.560237822 | AE141: 4.64021073 | AF141: 5.087079367 | AG141: 5.686371707 | AH141: 6.096652199 | AI141: 6.140153346 | AJ141: 6.579767466 | AK141: 6.506447297 | AL141: 7.421150585 | AM141: 6.999770951 | AN141: 6.064810932 | AO141: 6.035019759 | AP141: 5.017805229 | AQ141: 5.713606817 | AR141: 6.941867262 | AS141: 7.662646298 | AT141: 8.280292353 | AU141: 8.009469196 | AV141: 7.220356948 | AW141: 6.858642823 | AX141: 7.526251449 | AY141: 7.480373586 | AZ141: 8.129039932
A142: 34_2 | B142: 0.153353324 | C142: 0.222081644 | D142: 0.307051383 | E142: 0.377574222 | F142: 0.537111965 | G142: 0.562507845 | H142: 0.759418648 | I142: 0.791331185 | J142: 0.808478634 | K142: 0.725803492 | L142: 0.526829118 | M142: 0.343502631 | N142: 0.24965433 | O142: 0.165743059 | P142: 0.082836891 | Q142: 0.082836891 | R142: 0.160665132 | S142: 0.250466204 | T142: 0.609706745 | U142: 0.902851916 | V142: 0.919020082 | W142: 1.180538426 | X142: 1.000252209 | Y142: 0.707107038 | Z142: 0.530273741 | AA142: 0.442650589 | AB142: 0.357717093 | AC142: 0.357717093 | AD142: 0.564772024 | AE142: 0.42836466 | AF142: 0.62557304 | AG142: 1.165131156 | AH142: 1.182102929 | AI142: 1.054814028 | AJ142: 0.852574681 | AK142: 0.508233483 | AL142: 0.695944196 | AM142: 0.695944196 | AN142: 0.719736025 | AO142: 0.731913241 | AP142: 0.423931297 | AQ142: 0.918175861 | AR142: 1.548805757 | AS142: 2.123711408 | AT142: 2.386482236 | AU142: 2.352710408 | AV142: 2.203838484 | AW142: 1.860236649 | AX142: 2.296470666 | AY142: 2.303779553 | AZ142: 2.061727263
A143: 35_2 | B143: 0.674474983 | C143: 0.596521768 | D143: 0.439508372 | E143: 0.282947732 | F143: 0.340846857 | G143: 0.339411305 | H143: 0.557621059 | I143: 0.889941847 | J143: 1.00132302 | K143: 1.070185026 | L143: 0.85059494 | M143: 0.626686543 | N143: 0.523590271 | O143: 0.459358499 | P143: 0.463292575 | Q143: 0.358246092 | R143: 0.286008416 | S143: 0.27885135 | T143: 0.269771878 | U143: 0.201183535 | V143: 0.130475988 | W143: 0.207786837 | X143: 0.443874847 | Y143: 0.521068795 | Z143: 0.656331619 | AA143: 0.663833935 | AB143: 0.597277797 | AC143: 0.611149264 | AD143: 0.660013604 | AE143: 0.883634519 | AF143: 1.204342773 | AG143: 1.452250072 | AH143: 1.373259208 | AI143: 0.996981885 | AJ143: 0.444109014 | AK143: 0.286687428 | AL143: 0.263645434 | AM143: 0.350722898 | AN143: 0.734566962 | AO143: 0.631879577 | AP143: 0.549785272 | AQ143: 0.563566768 | AR143: 0.46521835 | AS143: 0.660004901 | AT143: 0.763452539 | AU143: 0.867518998 | AV143: 0.754781328 | AW143: 0.753388244 | AX143: 0.8436567 | AY143: 0.853994338 | AZ143: 1.028311744
A144: 36_2 | B144: 0.317607777 | C144: 0.250205982 | D144: 0.240059295 | E144: 0.157869282 | F144: 0.157869282 | G144: 0.160072888 | H144: 0.161373233 | I144: 0.52093626 | J144: 0.73674134 | K144: 0.80651591 | L144: 0.792625896 | M144: 0.499723795 | N144: 0.352502095 | O144: 0.27328334 | P144: 0.422956102 | Q144: 0.51069582 | R144: 0.674024472 | S144: 0.750705928 | T144: 0.67314189 | U144: 0.727781823 | V144: 0.642736893 | W144: 0.493545188 | X144: 0.424909417 | Y144: 0.21586884 | Z144: 0.214003701 | AA144: 0.463060084 | AB144: 0.546981967 | AC144: 0.825046397 | AD144: 0.861728264 | AE144: 1.111800939 | AF144: 0.958877318 | AG144: 0.810817852 | AH144: 0.753095661 | AI144: 0.609193998 | AJ144: 0.955870607 | AK144: 0.909817367 | AL144: 1.052678399 | AM144: 0.697451006 | AN144: 0.350774397 | AO144: 0.528015342 | AP144: 0.364256975 | AQ144: 0.610466652 | AR144: 0.695776085 | AS144: 0.608779769 | AT144: 0.60038182 | AU144: 0.447705869 | AV144: 0.447532849 | AW144: 0.528320507 | AX144: 0.728854384 | AY144: 0.635320658 | AZ144: 0.786458998
A145: 37_2 | B145: 0.538859174 | C145: 0.389956895 | D145: 0.388534187 | E145: 0.385264462 | F145: 0.297965342 | G145: 0.296501218 | H145: 0.300565622 | I145: 0.226548165 | J145: 0.152770518 | K145: 0.07862638 | L145: 0.072526589 | M145: 0.072526589 | N145: 0.147974696 | O145: 0.232523568 | P145: 0.159996979 | Q145: 0.299242662 | R145: 0.366707915 | S145: 0.498546102 | T145: 0.571295494 | U145: 0.625608388 | V145: 0.713020298 | W145: 0.642548518 | X145: 0.705952441 | Y145: 0.65415042 | Z145: 0.500634797 | AA145: 0.445221742 | AB145: 0.386156646 | AC145: 0.33674365 | AD145: 0.259934004 | AE145: 0.28440367 | AF145: 0.339610693 | AG145: 0.36525734 | AH145: 0.489528226 | AI145: 0.501255896 | AJ145: 0.483774284 | AK145: 0.604320798 | AL145: 0.583341054 | AM145: 0.658318561 | AN145: 0.931155359 | AO145: 1.115144067 | AP145: 1.318190438 | AQ145: 1.21109148 | AR145: 0.941536819 | AS145: 0.701343756 | AT145: 0.503205137 | AU145: 0.512259528 | AV145: 0.495235401 | AW145: 0.544352803 | AX145: 0.533046554 | AY145: 0.76488629 | AZ145: 0.785774537
A146: 38_2 | B146: 0 | C146: 0 | D146: 0 | E146: 0 | F146: 0 | G146: 0 | H146: 0 | I146: 0 | J146: 0.061766641 | K146: 0.061766641 | L146: 0.061766641 | M146: 0.061766641 | N146: 0 | O146: 0 | P146: 0 | Q146: 0 | R146: 0.068905139 | S146: 0.148425855 | T146: 0.148425855 | U146: 0.148425855 | V146: 0.079520716 | W146: 0.089861905 | X146: 0.089861905 | Y146: 0.089861905 | Z146: 0.089861905 | AA146: 0.091827607 | AB146: 0.178140148 | AC146: 0.268565115 | AD146: 0.268565115 | AE146: 0.176737508 | AF146: 0.090424967 | AG146: 0 | AH146: 0 | AI146: 0 | AJ146: 0.273016444 | AK146: 0.376118814 | AL146: 0.674230558 | AM146: 0.783152354 | AN146: 0.621920501 | AO146: 0.518818131 | AP146: 0.220706387 | AQ146: 0.415027598 | AR146: 0.533632617 | AS146: 0.651769311 | AT146: 0.761433112 | AU146: 0.458190105 | AV146: 0.227800495 | AW146: 0.109663801 | AX146: 0.242969387 | AY146: 0.242969387 | AZ146: 0.242969387
A147: 39_2 | B147: 0.438225709 | C147: 0.438225709 | D147: 0.193578922 | E147: 0.063669276 | F147: 0.069517713 | G147: 0.194792664 | H147: 0.330395424 | I147: 0.400059286 | J147: 0.330541573 | K147: 0.205266622 | L147: 0.148196994 | M147: 0.223851848 | N147: 0.460918524 | O147: 0.543746933 | P147: 0.550928405 | Q147: 0.570905621 | R147: 0.40856182 | S147: 0.48072022 | T147: 0.468363552 | U147: 0.37783256 | V147: 0.385255508 | W147: 0.473559651 | X147: 0.558315533 | Y147: 0.483550594 | Z147: 0.550469048 | AA147: 0.461037329 | AB147: 0.54962852 | AC147: 0.623388681 | AD147: 0.59133267 | AE147: 0.539444709 | AF147: 0.397661737 | AG147: 0.544074837 | AH147: 0.533187681 | AI147: 0.817756254 | AJ147: 1.286156939 | AK147: 1.400566159 | AL147: 1.806943733 | AM147: 1.771829528 | AN147: 1.292381896 | AO147: 1.228523639 | AP147: 0.820085568 | AQ147: 0.568974016 | AR147: 0.475098926 | AS147: 0.292654334 | AT147: 0.439031557 | AU147: 0.512270623 | AV147: 0.590511588 | AW147: 0.583744007 | AX147: 0.431601822 | AY147: 0.354935073 | AZ147: 0.48560809
A148: 40_2 | B148: 0.497356949 | C148: 0.487998723 | D148: 0.420910937 | E148: 0.488570074 | F148: 0.485358832 | G148: 0.550694322 | H148: 0.622047762 | I148: 0.554237451 | J148: 0.489924669 | K148: 0.442600214 | L148: 0.44665739 | M148: 0.457025098 | N148: 0.312119153 | O148: 0.157326991 | P148: 0.081916376 | Q148: 0.075481924 | R148: 0.075481924 | S148: 0.075481924 | T148: 0.294579807 | U148: 0.293900317 | V148: 0.370517273 | W148: 0.370517273 | X148: 0.236434857 | Y148: 0.161632422 | Z148: 0.085015467 | AA148: 0.155192638 | AB148: 0.070177171 | AC148: 0.289237373 | AD148: 0.289237373 | AE148: 0.345171811 | AF148: 0.580310017 | AG148: 0.754452406 | AH148: 1.150708354 | AI148: 1.668964606 | AJ148: 1.531089322 | AK148: 1.137886731 | AL148: 0.741630784 | AM148: 0.359724758 | AN148: 0.262461836 | AO148: 0.369725161 | AP148: 0.586264323 | AQ148: 0.425031895 | AR148: 0.62768422 | AS148: 0.707779888 | AT148: 0.591678044 | AU148: 0.584136248 | AV148: 0.574955736 | AW148: 0.587456674 | AX148: 0.697449195 | AY148: 0.927657424 | AZ148: 1.174016078
A149: 41_2 | B149: 0.154885969 | C149: 0.154885969 | D149: 0.147948315 | E149: 0.141094204 | F149: 0.275149199 | G149: 0.639376117 | H149: 0.703273323 | I149: 0.835821193 | J149: 0.8601843 | K149: 0.578959002 | L149: 0.530538762 | M149: 0.478884011 | N149: 0.544331433 | O149: 0.461329814 | P149: 0.451745594 | Q149: 0.381297064 | R149: 0.229021884 | S149: 0.304785823 | T149: 0.364604064 | U149: 0.445401867 | V149: 0.615373682 | W149: 0.699485726 | X149: 0.808382346 | Y149: 0.722857191 | Z149: 0.878648258 | AA149: 1.047932591 | AB149: 1.051483574 | AC149: 1.155887944 | AD149: 0.855528061 | AE149: 0.640636754 | AF149: 0.660262665 | AG149: 0.480086552 | AH149: 0.500468648 | AI149: 0.491186678 | AJ149: 0.43897672 | AK149: 0.628850701 | AL149: 0.596129438 | AM149: 0.676020662 | AN149: 0.459406422 | AO149: 0.479772545 | AP149: 0.590396966 | AQ149: 0.691491366 | AR149: 0.979811863 | AS149: 1.056329422 | AT149: 1.340715261 | AU149: 1.457532272 | AV149: 1.371536075 | AW149: 1.509792442 | AX149: 1.375813054 | AY149: 1.109266851 | AZ149: 1.250992885
A150: 42_2 | B150: 0 | C150: 0 | D150: 0.088424482 | E150: 0.176945974 | F150: 0.257255526 | G150: 0.257255526 | H150: 0.249947098 | I150: 0.242299416 | J150: 0.316186862 | K150: 0.459867161 | L150: 0.524727958 | M150: 0.443854147 | N150: 0.356923707 | O150: 0.354688388 | P150: 0.434351054 | Q150: 0.556774497 | R150: 0.489507939 | S150: 0.34806296 | T150: 0.318029604 | U150: 0.41954642 | V150: 0.41954642 | W150: 0.41954642 | X150: 0.375705272 | Y150: 0.224583904 | Z150: 0.503065661 | AA150: 0.596477702 | AB150: 0.444712689 | AC150: 0.487608465 | AD150: 0.209126708 | AE150: 0.23001616 | AF150: 0.23001616 | AG150: 0.114301492 | AH150: 0.114301492 | AI150: 0 | AJ150: 0.314199454 | AK150: 0.653965816 | AL150: 1.006606989 | AM150: 1.006606989 | AN150: 0.692407536 | AO150: 0.431228056 | AP150: 0.144188003 | AQ150: 0.309781181 | AR150: 0.674302625 | AS150: 0.860273508 | AT150: 0.893912647 | AU150: 0.817145145 | AV150: 0.554164992 | AW150: 0.381687695 | AX150: 0.376389688 | AY150: 0.287564012 | AZ150: 0.313180951
A151: 43_2 | B151: 2.845395162 | C151: 2.208803571 | D151: 1.970334907 | E151: 2.089406476 | F151: 1.969554605 | G151: 1.996448709 | H151: 2.472904932 | I151: 2.628654938 | J151: 3.202413369 | K151: 3.451000767 | L151: 3.261602276 | M151: 3.587643111 | N151: 3.843476166 | O151: 3.9667253 | P151: 4.181728339 | Q151: 3.646951919 | R151: 3.341692663 | S151: 3.759417706 | T151: 3.915336888 | U151: 4.057695992 | V151: 3.962533762 | W151: 3.897799154 | X151: 3.664270087 | Y151: 3.764236729 | Z151: 4.442676596 | AA151: 4.802022735 | AB151: 4.813924523 | AC151: 4.99029532 | AD151: 4.491841221 | AE151: 3.795260656 | AF151: 4.073022382 | AG151: 4.154036601 | AH151: 4.394108304 | AI151: 5.016049082 | AJ151: 4.699780343 | AK151: 4.732303222 | AL151: 4.161139333 | AM151: 4.0612514 | AN151: 4.351836207 | AO151: 4.313376335 | AP151: 4.579807408 | AQ151: 4.217293007 | AR151: 4.209450393 | AS151: 4.075294704 | AT151: 4.29968563 | AU151: 4.640018043 | AV151: 4.567239877 | AW151: 5.201846805 | AX151: 6.26437094 | AY151: 6.310175499 | AZ151: 6.294927193
A152: 44_2 | B152: 0.081328942 | C152: 0.081328942 | D152: 0 | E152: 0 | F152: 0 | G152: 0 | H152: 0.070752919 | I152: 0.153455902 | J152: 0.270723934 | K152: 0.270723934 | L152: 0.199971015 | M152: 0.117268032 | N152: 0.067644742 | O152: 0.131275361 | P152: 0.191336105 | Q152: 0.253120336 | R152: 0.328134665 | S152: 0.402813128 | T152: 0.561139874 | U152: 0.566033268 | V152: 0.478627086 | W152: 0.416012275 | X152: 0.337667628 | Y152: 0.338102627 | Z152: 0.346444807 | AA152: 0.414946151 | AB152: 0.357593179 | AC152: 0.429524439 | AD152: 0.457033914 | AE152: 0.451935638 | AF152: 0.661332227 | AG152: 0.986620573 | AH152: 1.039801902 | AI152: 0.900704562 | AJ152: 0.608618103 | AK152: 0.144285872 | AL152: 0 | AM152: 0.095592885 | AN152: 0.186566581 | AO152: 0.186566581 | AP152: 0.186566581 | AQ152: 0.189742871 | AR152: 0.098769175 | AS152: 0.098769175 | AT152: 0.171322935 | AU152: 0.07255376 | AV152: 0.194249041 | AW152: 0.40350817 | AX152: 0.540580391 | AY152: 0.672850652 | AZ152: 0.786013134
A153: 45_2 | B153: 0.347956334 | C153: 0.349484774 | D153: 0.270292905 | E153: 0.212163498 | F153: 0.359700957 | G153: 0.500334259 | H153: 0.539263658 | I153: 0.468328643 | J153: 0.533614476 | K153: 0.607325993 | L153: 0.580623419 | M153: 0.730574877 | N153: 0.822781192 | O153: 0.697316871 | P153: 0.762070556 | Q153: 0.690149922 | R153: 0.467021565 | S153: 0.388349278 | T153: 0.319556952 | U153: 0.241526128 | V153: 0.389724858 | W153: 0.563126039 | X153: 0.647849067 | Y153: 0.788300749 | Z153: 0.784731419 | AA153: 0.670748073 | AB153: 0.560396716 | AC153: 0.628069821 | AD153: 0.647213741 | AE153: 0.508493789 | AF153: 0.453799356 | AG153: 0.245674569 | AH153: 0.403076316 | AI153: 0.812747897 | AJ153: 1.228262359 | AK153: 1.548538354 | AL153: 1.527063392 | AM153: 1.486356408 | AN153: 1.351363659 | AO153: 1.218370739 | AP153: 1.215132902 | AQ153: 1.018514093 | AR153: 0.905490189 | AS153: 0.890225787 | AT153: 0.721322587 | AU153: 1.133491284 | AV153: 1.177778385 | AW153: 1.290503511 | AX153: 1.440429551 | AY153: 1.163501607 | AZ153: 1.073542629
A154: 46_2 | B154: 0.146994654 | C154: 0 | D154: 0 | E154: 0 | F154: 0 | G154: 0 | H154: 0.137837437 | I154: 0.289043397 | J154: 0.352149006 | K154: 0.352149006 | L154: 0.381010355 | M154: 0.394287876 | N154: 0.645010313 | O154: 0.877655177 | P154: 1.100252472 | Q154: 1.095979067 | R154: 0.932532821 | S154: 0.926362651 | T154: 0.53706657 | U154: 0.376856493 | V154: 0.226474693 | W154: 0.089761914 | X154: 0.089761914 | Y154: 0.234016589 | Z154: 0.306859573 | AA154: 0.298347756 | AB154: 0.298347756 | AC154: 0.248251983 | AD154: 0.26982944 | AE154: 0.324574904 | AF154: 0.324574904 | AG154: 0.230416001 | AH154: 0.13599556 | AI154: 0 | AJ154: 0 | AK154: 0.111406981 | AL154: 0.111406981 | AM154: 0.111406981 | AN154: 0.111406981 | AO154: 0 | AP154: 0 | AQ154: 0.115104258 | AR154: 0.331952071 | AS154: 0.680740727 | AT154: 0.966687552 | AU154: 0.851583294 | AV154: 0.634735481 | AW154: 0.384619875 | AX154: 0.340059801 | AY154: 0.498399602 | AZ154: 0.787463486
A155: 47_2 | B155: 0.138021424 | C155: 0.138859063 | D155: 0.138859063 | E155: 0.138859063 | F155: 0.069416512 | G155: 0 | H155: 0 | I155: 0 | J155: 0 | K155: 0 | L155: 0 | M155: 0 | N155: 0 | O155: 0 | P155: 0 | Q155: 0 | R155: 0 | S155: 0 | T155: 0.08131495 | U155: 0.08131495 | V155: 0.08131495 | W155: 0.145672554 | X155: 0.133654802 | Y155: 0.229796622 | Z155: 0.290067821 | AA155: 0.225710216 | AB155: 0.156413018 | AC155: 0.060271199 | AD155: 0 | AE155: 0 | AF155: 0.184944701 | AG155: 0.494742724 | AH155: 0.794245535 | AI155: 0.924197888 | AJ155: 0.739253188 | AK155: 0.545192089 | AL155: 0.245689277 | AM155: 0.189594055 | AN155: 0.189594055 | AO155: 0.07385713 | AP155: 0.07385713 | AQ155: 0 | AR155: 0 | AS155: 0 | AT155: 0 | AU155: 0 | AV155: 0.120551704 | AW155: 0.120551704 | AX155: 0.25275478 | AY155: 0.388723158 | AZ155: 0.268171454
A156: 48_2 | B156: 1.545078567 | C156: 1.457374173 | D156: 1.455388334 | E156: 1.583157989 | F156: 1.266770915 | G156: 1.222448229 | H156: 1.412459585 | I156: 1.20989814 | J156: 1.378440595 | K156: 1.394699613 | L156: 1.291780395 | M156: 1.688584161 | N156: 1.767149531 | O156: 1.788210154 | P156: 1.560021182 | Q156: 1.103466686 | R156: 1.216094702 | S156: 1.643070962 | T156: 2.094638787 | U156: 2.082751369 | V156: 1.796952661 | W156: 1.391710184 | X156: 1.003609996 | Y156: 0.848884292 | Z156: 0.971930713 | AA156: 1.274849334 | AB156: 1.392705682 | AC156: 1.499025381 | AD156: 1.526966728 | AE156: 1.196408472 | AF156: 1.34603176 | AG156: 1.292583746 | AH156: 1.258160009 | AI156: 1.463912302 | AJ156: 1.050071078 | AK156: 1.225438995 | AL156: 1.141236767 | AM156: 1.24399606 | AN156: 1.567717418 | AO156: 1.814348146 | AP156: 1.811951485 | AQ156: 1.572951664 | AR156: 1.736433186 | AS156: 1.467060951 | AT156: 1.587824256 | AU156: 1.761568771 | AV156: 1.488380446 | AW156: 1.8765765 | AX156: 2.583191068 | AY156: 2.267324594 | AZ156: 2.173305767
A157: 49_2 | B157: 0.212980644 | C157: 0 | D157: 0 | E157: 0.058041337 | F157: 0.124741899 | G157: 0.124741899 | H157: 0.212686912 | I157: 0.292375328 | J157: 0.297357381 | K157: 0.3629686 | L157: 0.275023587 | M157: 0.224726828 | N157: 0.252208056 | O157: 0.276591048 | P157: 0.44243122 | Q157: 0.441440729 | R157: 0.397908909 | S157: 0.398821686 | T157: 0.321619756 | U157: 0.630038541 | V157: 0.751419733 | W157: 0.852947415 | X157: 0.873837894 | Y157: 0.577680897 | Z157: 0.858365477 | AA157: 1.147980951 | AB157: 1.341204666 | AC157: 1.415594005 | AD157: 0.957896209 | AE157: 0.633865979 | AF157: 0.331113545 | AG157: 0.158019915 | AH157: 0.158019915 | AI157: 0.266618514 | AJ157: 0.476755947 | AK157: 0.624471075 | AL157: 0.624471075 | AM157: 0.357852561 | AN157: 0.147715129 | AO157: 0 | AP157: 0.117393266 | AQ157: 0.2217592 | AR157: 0.2217592 | AS157: 0.344036249 | AT157: 0.339778259 | AU157: 0.327759979 | AV157: 0.422126164 | AW157: 0.516412845 | AX157: 0.587185094 | AY157: 0.830283209 | AZ157: 0.907880365
A158: 50_2 | B158: 0.071597174 | C158: 0 | D158: 0 | E158: 0 | F158: 0 | G158: 0 | H158: 0 | I158: 0 | J158: 0 | K158: 0 | L158: 0.070059885 | M158: 0.132881512 | N158: 0.195676689 | O158: 0.195676689 | P158: 0.125616804 | Q158: 0.062795177 | R158: 0 | S158: 0 | T158: 0 | U158: 0 | V158: 0 | W158: 0 | X158: 0 | Y158: 0 | Z158: 0 | AA158: 0 | AB158: 0 | AC158: 0 | AD158: 0 | AE158: 0.132793144 | AF158: 0.301180426 | AG158: 0.402198861 | AH158: 0.480037921 | AI158: 0.43089262 | AJ158: 0.262505338 | AK158: 0.251877547 | AL158: 0.230179531 | AM158: 0.195430547 | AN158: 0.266153734 | AO158: 0.300048559 | AP158: 0.292864496 | AQ158: 0.243965636 | AR158: 0.17324245 | AS158: 0.113073348 | AT158: 0.193217941 | AU158: 0.248355839 | AV158: 0.361742924 | AW158: 0.34855606 | AX158: 0.219454487 | AY158: 0.278897407 | AZ158: 0.165510322
A159: 51_2 | B159: 0.301437422 | C159: 0.181756619 | D159: 0.105794605 | E159: 0.097184589 | F159: 0.148924323 | G159: 0.148924323 | H159: 0.099904421 | I159: 0.215553527 | J159: 0.370127977 | K159: 0.463133621 | L159: 0.463133621 | M159: 0.299319827 | N159: 0.093005643 | O159: 0 | P159: 0 | Q159: 0 | R159: 0 | S159: 0 | T159: 0 | U159: 0.079175244 | V159: 0.238019781 | W159: 0.438568772 | X159: 0.577888787 | Y159: 0.747454953 | Z159: 0.884276788 | AA159: 0.769440254 | AB159: 0.707263506 | AC159: 0.709558494 | AD159: 0.632901188 | AE159: 0.54718873 | AF159: 0.470045464 | AG159: 0.343780211 | AH159: 0.124771145 | AI159: 0.216975297 | AJ159: 0.334314331 | AK159: 0.28109231 | AL159: 0.28109231 | AM159: 0.381021902 | AN159: 0.53131865 | AO159: 0.72018518 | AP159: 0.882041548 | AQ159: 0.855255286 | AR159: 0.741804123 | AS159: 0.481388469 | AT159: 0.319532101 | AU159: 0.244705116 | AV159: 0.167675731 | AW159: 0.26111814 | AX159: 0.300715769 | AY159: 0.210195272 | AZ159: 0.133040038
A160: 52_2 | B160: 17.22992038 | C160: 17.33856916 | D160: 18.15579117 | E160: 19.31909181 | F160: 19.51657609 | G160: 19.05537173 | H160: 19.14196053 | I160: 18.60392338 | J160: 18.42338734 | K160: 18.79234987 | L160: 18.48454496 | M160: 20.03888781 | N160: 21.72751875 | O160: 22.65070508 | P160: 23.55153723 | Q160: 23.89532892 | R160: 24.2346377 | S160: 27.69818485 | T160: 30.83392783 | U160: 33.97194598 | V160: 36.82522104 | W160: 35.61618935 | X160: 34.70732787 | Y160: 34.72278319 | Z160: 34.4771124 | AA160: 35.8419708 | AB160: 37.35496777 | AC160: 37.27627264 | AD160: 37.24623892 | AE160: 37.88265589 | AF160: 39.18770057 | AG160: 42.72018765 | AH160: 45.65886181 | AI160: 47.39699309 | AJ160: 46.14399911 | AK160: 43.38722111 | AL160: 41.57776116 | AM160: 42.37417049 | AN160: 45.05009479 | AO160: 48.72619653 | AP160: 53.36462462 | AQ160: 57.05566014 | AR160: 58.71521109 | AS160: 60.76999368 | AT160: 64.11246773 | AU160: 65.48964809 | AV160: 69.03579106 | AW160: 71.77587773 | AX160: 72.00572393 | AY160: 74.01335891 | AZ160: 76.67181594
A161: 53_2 | B161: 3.146967821 | C161: 3.288026909 | D161: 3.38674667 | E161: 3.549095122 | F161: 3.525011441 | G161: 3.225038449 | H161: 3.215650613 | I161: 3.248914026 | J161: 3.186154387 | K161: 3.527418834 | L161: 3.256893394 | M161: 3.141011385 | N161: 3.895134913 | O161: 4.252573214 | P161: 5.328696017 | Q161: 5.612973763 | R161: 5.826671723 | S161: 6.515543794 | T161: 7.466938666 | U161: 8.304503912 | V161: 8.011434742 | W161: 7.252032324 | X161: 6.178274686 | Y161: 5.671044782 | Z161: 5.710249371 | AA161: 6.209507931 | AB161: 7.384898663 | AC161: 8.045789038 | AD161: 9.048341819 | AE161: 9.612808756 | AF161: 9.534315761 | AG161: 10.94634236 | AH161: 11.96118909 | AI161: 13.02440117 | AJ161: 12.49126745 | AK161: 11.1601521 | AL161: 10.8711507 | AM161: 10.65312487 | AN161: 12.09839472 | AO161: 13.68212978 | AP161: 14.26090401 | AQ161: 14.45530928 | AR161: 14.80916821 | AS161: 14.85329456 | AT161: 16.33629208 | AU161: 18.38601684 | AV161: 19.95545926 | AW161: 21.41365115 | AX161: 20.61201447 | AY161: 20.84892366 | AZ161: 21.46275222
A162: 54_2 | B162: 0.260599721 | C162: 0.387109171 | D162: 0.444199367 | E162: 0.445344143 | F162: 0.382565131 | G162: 0.314128551 | H162: 0.313751142 | I162: 0.379126683 | J162: 0.311559358 | K162: 0.315292914 | L162: 0.259507257 | M162: 0.384122111 | N162: 0.600796784 | O162: 0.707158093 | P162: 0.716347082 | Q162: 0.662075554 | R162: 0.707681016 | S162: 0.808198358 | T162: 0.996997504 | U162: 1.331890255 | V162: 1.481470517 | W162: 1.212785439 | X162: 1.152184749 | Y162: 0.832547889 | Z162: 0.571950315 | AA162: 0.782366921 | AB162: 0.857331822 | AC162: 0.816420684 | AD162: 0.733096251 | AE162: 0.522679645 | AF162: 0.474962502 | AG162: 0.430683063 | AH162: 0.759067696 | AI162: 1.348981569 | AJ162: 1.479073037 | AK162: 1.829744623 | AL162: 1.861099128 | AM162: 1.703495682 | AN162: 1.43362728 | AO162: 1.286777274 | AP162: 1.08928276 | AQ162: 0.831434479 | AR162: 0.911668135 | AS162: 0.669228345 | AT162: 0.622146014 | AU162: 0.637685103 | AV162: 0.746907938 | AW162: 1.03502772 | AX162: 1.362147365 | AY162: 1.803331804 | AZ162: 2.173968693
A163: 55_2 | B163: 0.073603134 | C163: 0.139980689 | D163: 0.200386712 | E163: 0.192633512 | F163: 0.325180633 | G163: 0.324342335 | H163: 0.263936313 | I163: 0.198086379 | J163: 0.126062381 | K163: 0.130897628 | L163: 0.130897628 | M163: 0.209630628 | N163: 0.292513458 | O163: 0.300717886 | P163: 0.371726778 | Q163: 0.338516602 | R163: 0.275485864 | S163: 0.196906931 | T163: 0.3476556 | U163: 0.44334292 | V163: 0.563668358 | W163: 0.776763277 | X163: 0.697617962 | Y163: 0.708400102 | Z163: 0.50769945 | AA163: 0.424947239 | AB163: 0.642005351 | AC163: 0.584143813 | AD163: 0.981845872 | AE163: 1.111658653 | AF163: 0.855280154 | AG163: 0.962658307 | AH163: 0.789950124 | AI163: 0.919360807 | AJ163: 1.073771372 | AK163: 1.027198916 | AL163: 1.214041881 | AM163: 0.917248234 | AN163: 0.929456161 | AO163: 1.044245046 | AP163: 0.711395459 | AQ163: 0.618622932 | AR163: 0.514371817 | AS163: 0.611832883 | AT163: 0.685900845 | AU163: 1.183338937 | AV163: 1.500742922 | AW163: 1.777884341 | AX163: 2.006394415 | AY163: 1.718781092 | AZ163: 1.654827206
A164: 56_2 | B164: 0.140281859 | C164: 0.067037092 | D164: 0.123946101 | E164: 0.056909009 | F164: 0.107763284 | G164: 0.166654229 | H164: 0.168568776 | I164: 0.278104291 | J164: 0.354240686 | K164: 0.436041529 | L164: 0.377217973 | M164: 0.267682459 | N164: 0.140691789 | O164: 0 | P164: 0.077729569 | Q164: 0.077729569 | R164: 0.199091039 | S164: 0.498673379 | T164: 0.670197522 | U164: 0.791292146 | V164: 0.669930677 | W164: 0.573137473 | X164: 0.535001203 | Y164: 0.541505738 | Z164: 0.601172581 | AA164: 0.398383445 | AB164: 0.331965609 | AC164: 0.631994694 | AD164: 1.102463837 | AE164: 1.889832955 | AF164: 2.146414704 | AG164: 2.078100992 | AH164: 1.547965007 | AI164: 0.858056909 | AJ164: 0.545707498 | AK164: 0.533816808 | AL164: 0.993416768 | AM164: 1.354693731 | AN164: 1.713044591 | AO164: 1.531065895 | AP164: 1.433121634 | AQ164: 1.257124026 | AR164: 1.430141433 | AS164: 1.776052426 | AT164: 2.109325843 | AU164: 2.723591788 | AV164: 3.483581599 | AW164: 4.114266001 | AX164: 3.914168398 | AY164: 3.360868904 | AZ164: 2.777773133
A165: 57_2 | B165: 0.803485263 | C165: 0.817211773 | D165: 0.741136661 | E165: 0.799823574 | F165: 0.75066345 | G165: 0.731232466 | H165: 0.637745234 | I165: 0.560775612 | J165: 0.572067545 | K165: 0.67550802 | L165: 0.701569456 | M165: 0.721251418 | N165: 0.880855091 | O165: 0.796946026 | P165: 1.080511878 | Q165: 1.167660355 | R165: 1.01470324 | S165: 1.120182553 | T165: 1.414256884 | U165: 1.736470949 | V165: 1.858782753 | W165: 1.734430936 | X165: 1.026133928 | Y165: 0.6760081 | Z165: 0.59656085 | AA165: 0.520602474 | AB165: 1.080263426 | AC165: 1.283203271 | AD165: 1.626432128 | AE165: 1.880708201 | AF165: 2.197413954 | AG165: 2.989148159 | AH165: 3.360899376 | AI165: 3.749355221 | AJ165: 3.246393 | AK165: 2.272759401 | AL165: 1.867300067 | AM165: 1.724787106 | AN165: 2.184022232 | AO165: 3.082241597 | AP165: 3.402020933 | AQ165: 3.489072617 | AR165: 3.306116387 | AS165: 2.843976803 | AT165: 2.935267762 | AU165: 2.610746784 | AV165: 2.459348277 | AW165: 2.266335962 | AX165: 2.15338598 | AY165: 2.349053632 | AZ165: 2.532876097
A166: 58_2 | B166: 0.402502553 | C166: 0.474217409 | D166: 0.469663134 | E166: 0.562897299 | F166: 0.570743662 | G166: 0.501741381 | H166: 0.644983042 | I166: 0.671867806 | J166: 0.668817964 | K166: 0.729584219 | L166: 0.656740178 | M166: 0.76002275 | N166: 1.044564952 | O166: 1.311567975 | P166: 1.580444882 | Q166: 1.485493975 | R166: 1.447139839 | S166: 1.575130975 | T166: 1.691209656 | U166: 1.856728911 | V166: 1.608717265 | W166: 1.279388044 | X166: 1.057106864 | Y166: 0.879225909 | Z166: 1.120870657 | AA166: 1.412144639 | AB166: 1.500548467 | AC166: 1.4546139 | AD166: 1.214011169 | AE166: 0.726574358 | AF166: 0.805640683 | AG166: 1.01498413 | AH166: 1.526761911 | AI166: 1.886455986 | AJ166: 1.913448618 | AK166: 2.004963665 | AL166: 1.871286431 | AM166: 2.058352984 | AN166: 2.486177481 | AO166: 2.513858933 | AP166: 2.811332577 | AQ166: 2.727825062 | AR166: 3.207122589 | AS166: 3.790438068 | AT166: 3.902589489 | AU166: 4.464655223 | AV166: 4.072636893 | AW166: 4.407901102 | AX166: 3.9145914 | AY166: 4.44935048 | AZ166: 4.90626233
A167: 59_2 | B167: 0.490404865 | C167: 0.420512568 | D167: 0.388021787 | E167: 0.331241616 | F167: 0.27341492 | G167: 0.274565637 | H167: 0.221409198 | I167: 0.437127854 | J167: 0.59541886 | K167: 0.537629952 | L167: 0.566554562 | M167: 0.411417119 | N167: 0.395557568 | O167: 0.64604006 | P167: 0.714784248 | Q167: 0.842715603 | R167: 0.776380142 | S167: 0.589879576 | T167: 0.520367517 | U167: 0.401140801 | V167: 0.338114682 | W167: 0.396545194 | X167: 0.393571143 | Y167: 0.405546222 | Z167: 0.501119637 | AA167: 0.599999581 | AB167: 0.717241292 | AC167: 0.831241427 | AD167: 0.922812108 | AE167: 1.090083206 | AF167: 0.938459842 | AG167: 0.825457982 | AH167: 0.743936496 | AI167: 0.455773085 | AJ167: 0.500168664 | AK167: 0.613540134 | AL167: 0.669886926 | AM167: 0.883635542 | AN167: 1.279297238 | AO167: 1.58565686 | AP167: 1.960381231 | AQ167: 2.247360082 | AR167: 2.039136792 | AS167: 1.766673047 | AT167: 1.94636601 | AU167: 2.136433154 | AV167: 2.540644499 | AW167: 2.854023766 | AX167: 2.347748159 | AY167: 2.203973502 | AZ167: 1.906987233
A168: 60_2 | B168: 0.387141277 | C168: 0.248127027 | D168: 0.188661535 | E168: 0.193997027 | F168: 0.138903286 | G168: 0.190767092 | H168: 0.183988271 | I168: 0.236356938 | J168: 0.294302733 | K168: 0.304163157 | L168: 0.239386799 | M168: 0.119670024 | N168: 0.132222197 | O168: 0.137291619 | P168: 0.31775193 | Q168: 0.37994064 | R168: 0.439755598 | S168: 0.514659151 | T168: 0.704898564 | U168: 0.69374828 | V168: 0.707996762 | W168: 0.632376115 | X168: 0.472190395 | Y168: 0.637085793 | Z168: 0.804000791 | AA168: 0.882327273 | AB168: 0.989492667 | AC168: 1.257016462 | AD168: 1.337322394 | AE168: 1.414841481 | AF168: 1.199885514 | AG168: 1.27008223 | AH168: 1.383792941 | AI168: 1.747669727 | AJ168: 1.946456481 | AK168: 1.480726169 | AL168: 1.221239771 | AM168: 1.083666605 | AN168: 0.955030001 | AO168: 1.307737678 | AP168: 1.330327057 | AQ168: 1.329788829 | AR168: 1.5276587 | AS168: 1.884649797 | AT168: 2.655129481 | AU168: 2.690176218 | AV168: 2.771652514 | AW168: 2.235235381 | AX168: 1.494983487 | AY168: 1.607497096 | AZ168: 1.770457073
A169: 61_2 | B169: 0.179215965 | C169: 0.190134825 | D169: 0.247472358 | E169: 0.329426066 | F169: 0.264490315 | G169: 0.201399094 | H169: 0.208109972 | I169: 0.064048412 | J169: 0.064048412 | K169: 0.198664966 | L169: 0.267214876 | M169: 0.267214876 | N169: 0.354510169 | O169: 0.299428651 | P169: 0.298981188 | Q169: 0.370239655 | R169: 0.352221478 | S169: 0.339448566 | T169: 0.268943506 | U169: 0.315661082 | V169: 0.246383965 | W169: 0.248858377 | X169: 0.251304608 | Y169: 0.209888125 | Z169: 0.286156776 | AA169: 0.521213796 | AB169: 0.760823221 | AC169: 0.869601051 | AD169: 0.933861531 | AE169: 0.722083442 | AF169: 0.666110459 | AG169: 0.866506914 | AH169: 1.120127873 | AI169: 1.334145975 | AJ169: 1.187511795 | AK169: 1.057238037 | AL169: 1.052682468 | AM169: 0.845661725 | AN169: 0.841316245 | AO169: 0.667904488 | AP169: 0.662056197 | AQ169: 1.174678345 | AR169: 1.288389679 | AS169: 1.312099031 | AT169: 1.374763088 | AU169: 1.542780467 | AV169: 1.795997599 | AW169: 2.059347389 | AX169: 2.62240872 | AY169: 2.430227706 | AZ169: 2.511067821
A170: 62_2 | B170: 0.409733184 | C170: 0.543696355 | D170: 0.583259016 | E170: 0.636822877 | F170: 0.71128676 | G170: 0.520207665 | H170: 0.573158665 | I170: 0.423420051 | J170: 0.199636449 | K170: 0.199636449 | L170: 0.057804665 | M170: 0 | N170: 0.053422906 | O170: 0.053422906 | P170: 0.170418462 | Q170: 0.28860181 | R170: 0.614213508 | S170: 0.872464306 | T170: 0.852411916 | U170: 0.734228568 | V170: 0.536369763 | W170: 0.397747469 | X170: 0.593163834 | Y170: 0.780836906 | Z170: 0.720718315 | AA170: 0.667522565 | AB170: 0.505226809 | AC170: 0.317553737 | AD170: 0.19649653 | AE170: 0.254346815 | AF170: 0.250147949 | AG170: 0.508720586 | AH170: 0.728687667 | AI170: 0.724601887 | AJ170: 0.59873698 | AK170: 0.340164343 | AL170: 0.120197262 | AM170: 0.081583258 | AN170: 0.27642349 | AO170: 0.662642012 | AP170: 0.860986168 | AQ170: 0.77940291 | AR170: 0.584562678 | AS170: 0.198344156 | AT170: 0.104803548 | AU170: 0.396609165 | AV170: 0.583947018 | AW170: 0.663629494 | AX170: 0.796186549 | AY170: 0.925839445 | AZ170: 1.228532631
A171: 63_2 | B171: 14.08295256 | C171: 14.05054225 | D171: 14.7690445 | E171: 15.76999669 | F171: 15.99156465 | G171: 15.83033328 | H171: 15.92630992 | I171: 15.35500936 | J171: 15.23723295 | K171: 15.26493103 | L171: 15.22765156 | M171: 16.89787642 | N171: 17.83238384 | O171: 18.39813186 | P171: 18.22284121 | Q171: 18.28235516 | R171: 18.40796597 | S171: 21.18264105 | T171: 23.36698916 | U171: 25.66744207 | V171: 28.8137863 | W171: 28.36415702 | X171: 28.52905318 | Y171: 29.05173841 | Z171: 28.76686303 | AA171: 29.63246287 | AB171: 29.97006911 | AC171: 29.2304836 | AD171: 28.1978971 | AE171: 28.26984713 | AF171: 29.6533848 | AG171: 31.77384528 | AH171: 33.69767272 | AI171: 34.37259193 | AJ171: 33.65273166 | AK171: 32.22706901 | AL171: 30.70661046 | AM171: 31.72104562 | AN171: 32.95170007 | AO171: 35.04406675 | AP171: 39.1037206 | AQ171: 42.60035086 | AR171: 43.90604288 | AS171: 45.91669913 | AT171: 47.77617566 | AU171: 47.10363125 | AV171: 49.08033181 | AW171: 50.36222657 | AX171: 51.39370945 | AY171: 53.16443525 | AZ171: 55.20906372
A172: 64_2 | B172: 0.301427998 | C172: 0.371499077 | D172: 0.489583229 | E172: 0.619942657 | F172: 0.769886208 | G172: 0.838213836 | H172: 0.836259254 | I172: 0.762379956 | J172: 0.795455408 | K172: 0.781781154 | L172: 0.738766643 | M172: 0.701344935 | N172: 0.736646192 | O172: 0.834334504 | P172: 0.928062539 | Q172: 1.245206492 | R172: 1.110131616 | S172: 1.068663341 | T172: 0.927864047 | U172: 0.725081612 | V172: 0.868919419 | W172: 1.019842865 | X172: 1.428243264 | Y172: 1.96518415 | Z172: 2.385443826 | AA172: 2.860482312 | AB172: 3.154234525 | AC172: 2.830855506 | AD172: 2.415176176 | AE172: 1.945575677 | AF172: 1.337224114 | AG172: 1.195342514 | AH172: 1.389626603 | AI172: 1.223923054 | AJ172: 1.267325093 | AK172: 1.190869662 | AL172: 0.896368441 | AM172: 1.129846507 | AN172: 1.502455064 | AO172: 1.668188397 | AP172: 1.890776784 | AQ172: 2.136635858 | AR172: 2.196221839 | AS172: 2.347548991 | AT172: 2.59315619 | AU172: 2.571071243 | AV172: 2.25144243 | AW172: 2.382657016 | AX172: 2.650180523 | AY172: 2.48465703 | AZ172: 2.836919195
A173: 65_2 | B173: 0.393834321 | C173: 0.557972415 | D173: 0.773842027 | E173: 0.667880262 | F173: 0.507221668 | G173: 0.343083574 | H173: 0.293417272 | I173: 0.236348841 | J173: 0.166203309 | K173: 0.312271979 | L173: 0.219314142 | M173: 0.467888567 | N173: 0.538798084 | O173: 0.473054595 | P173: 0.468322747 | Q173: 0.300176719 | R173: 0.443556176 | S173: 0.440570259 | T173: 0.496621799 | U173: 0.489578705 | V173: 0.417418092 | W173: 0.405204102 | X173: 0.280638936 | Y173: 0.270254839 | Z173: 0.128126478 | AA173: 0.140237672 | AB173: 0.207420958 | AC173: 0.204654984 | AD173: 0.456673891 | AE173: 0.494183906 | AF173: 0.42700062 | AG173: 0.739061465 | AH173: 1.146909312 | AI173: 1.720778755 | AJ173: 2.137788569 | AK173: 1.886850931 | AL173: 1.627973422 | AM173: 1.284975596 | AN173: 1.306581716 | AO173: 1.806815237 | AP173: 1.916851914 | AQ173: 2.508752067 | AR173: 2.729581206 | AS173: 2.651667208 | AT173: 3.116693146 | AU173: 3.342918286 | AV173: 3.084749417 | AW173: 3.106836005 | AX173: 2.902177645 | AY173: 2.534611756 | AZ173: 3.498916045
A174: 66_2 | B174: 1.579653148 | C174: 1.625719004 | D174: 2.075550525 | E174: 2.345856219 | F174: 2.568547052 | G174: 2.681695286 | H174: 2.514007016 | I174: 2.734925917 | J174: 2.966852359 | K174: 3.662995848 | L174: 4.242389607 | M174: 4.846893386 | N174: 5.699599306 | O174: 6.209986112 | P174: 6.766112673 | Q174: 6.75473941 | R174: 6.271338454 | S174: 6.625265662 | T174: 6.531559132 | U174: 7.070240564 | V174: 7.994706426 | W174: 7.532971993 | X174: 7.249036964 | Y174: 6.819975213 | Z174: 6.064026517 | AA174: 6.110878583 | AB174: 6.341997232 | AC174: 6.150760472 | AD174: 6.623407762 | AE174: 7.404556122 | AF174: 8.553359051 | AG174: 9.500231908 | AH174: 9.405983267 | AI174: 8.590643047 | AJ174: 7.473473817 | AK174: 6.254911468 | AL174: 5.573107093 | AM174: 6.308178375 | AN174: 6.762037258 | AO174: 7.834639631 | AP174: 9.646618819 | AQ174: 10.47905704 | AR174: 10.26084173 | AS174: 10.73638756 | AT174: 10.68398504 | AU174: 10.30755863 | AV174: 10.49824919 | AW174: 9.827794819 | AX174: 9.543269544 | AY174: 8.225690165 | AZ174: 7.505845136
A175: 67_2 | B175: 0.515326227 | C175: 0.387676175 | D175: 0.356250468 | E175: 0.371191893 | F175: 0.436005083 | G175: 0.542243316 | H175: 0.476487531 | I175: 0.357856132 | J175: 0.41579382 | K175: 0.385938611 | L175: 0.536395524 | M175: 0.607104894 | N175: 0.569894527 | O175: 0.597886798 | P175: 0.595015409 | Q175: 0.85670118 | R175: 0.981796273 | S175: 0.815162308 | T175: 0.738699657 | U175: 0.792362749 | V175: 1.157252516 | W175: 1.60273383 | X175: 1.732634741 | Y175: 1.545037005 | Z175: 1.184918997 | AA175: 1.017537946 | AB175: 0.757355322 | AC175: 0.788004499 | AD175: 1.21599115 | AE175: 1.514336582 | AF175: 2.077849805 | AG175: 2.241007865 | AH175: 1.759353199 | AI175: 1.308155539 | AJ175: 0.84323934 | AK175: 1.058053448 | AL175: 1.106083674 | AM175: 1.57825005 | AN175: 2.060908289 | AO175: 2.002837341 | AP175: 2.175937781 | AQ175: 2.122115878 | AR175: 2.40595054 | AS175: 2.82495584 | AT175: 2.909646659 | AU175: 2.976016142 | AV175: 3.331282181 | AW175: 3.444235541 | AX175: 3.869038796 | AY175: 3.904337447 | AZ175: 3.755805469
A176: 68_2 | B176: 4.579940816 | C176: 4.612457063 | D176: 4.460992495 | E176: 4.413182999 | F176: 3.741905805 | G176: 3.305689226 | H176: 3.801261197 | I176: 3.69733398 | J176: 3.829525515 | K176: 3.944547489 | L176: 3.568915073 | M176: 3.849351141 | N176: 3.60982323 | O176: 3.430014879 | P176: 3.237767962 | Q176: 3.325028514 | R176: 3.833169108 | S176: 5.3760428 | T176: 6.887904478 | U176: 8.581083225 | V176: 9.306412888 | W176: 8.617244756 | X176: 8.070995879 | Y176: 7.091097535 | Z176: 7.238313157 | AA176: 7.449582799 | AB176: 7.284687718 | AC176: 7.418202096 | AD176: 6.993772652 | AE176: 6.513482121 | AF176: 6.808650003 | AG176: 7.680500362 | AH176: 8.517430795 | AI176: 9.845172752 | AJ176: 11.02034622 | AK176: 11.41965362 | AL176: 11.89015718 | AM176: 12.57653524 | AN176: 12.65047969 | AO176: 12.87955929 | AP176: 13.81751613 | AQ176: 14.26629404 | AR176: 13.54199392 | AS176: 13.06554153 | AT176: 12.55566614 | AU176: 11.52015908 | AV176: 12.66064762 | AW176: 13.64494752 | AX176: 14.61680363 | AY176: 16.06450159 | AZ176: 16.62496532
A177: 69_2 | B177: 3.454874852 | C177: 3.224365738 | D177: 3.437799296 | E177: 4.021710663 | F177: 4.813853533 | G177: 5.163112457 | H177: 4.732722219 | I177: 4.095548008 | J177: 3.582040585 | K177: 2.884205627 | L177: 2.529139753 | M177: 2.555150254 | N177: 1.974948365 | O177: 1.496079579 | P177: 1.320031856 | Q177: 1.388070525 | R177: 1.894743121 | S177: 2.808293705 | T177: 3.22390472 | U177: 3.168184742 | V177: 3.94350983 | W177: 4.436304708 | X177: 5.249748115 | Y177: 6.193523693 | Z177: 5.96093165 | AA177: 5.690690826 | AB177: 5.224087898 | AC177: 4.888071515 | AD177: 3.664413874 | AE177: 2.800533498 | AF177: 2.149896754 | AG177: 1.488888023 | AH177: 1.890063624 | AI177: 2.083480389 | AJ177: 1.742205454 | AK177: 1.438072336 | AL177: 1.258351289 | AM177: 1.023724132 | AN177: 1.063489334 | AO177: 1.324266471 | AP177: 1.504985697 | AQ177: 1.417715984 | AR177: 1.475280438 | AS177: 1.51664743 | AT177: 1.489455393 | AU177: 2.022865861 | AV177: 2.24311717 | AW177: 2.212682325 | AX177: 1.988211057 | AY177: 4.193526731 | AZ177: 6.359696768
A178: 70_2 | B178: 0.452131293 | C178: 0.386862931 | D178: 0.440414515 | E178: 0.483466088 | F178: 0.454722999 | G178: 0.46313947 | H178: 0.525043086 | I178: 0.481991513 | J178: 0.374329558 | K178: 0.247327999 | L178: 0.128845061 | M178: 0.189976395 | N178: 0.254400793 | O178: 0.318290565 | P178: 0.313302695 | Q178: 0.54950286 | R178: 0.669537067 | S178: 0.666009248 | T178: 0.727992827 | U178: 0.588195338 | V178: 0.52399291 | W178: 0.590105146 | X178: 0.524651093 | Y178: 0.69935824 | Z178: 0.781626135 | AA178: 0.801401789 | AB178: 1.029752023 | AC178: 1.063635685 | AD178: 1.018631128 | AE178: 1.344896942 | AF178: 1.794133864 | AG178: 1.948451193 | AH178: 2.059019097 | AI178: 1.702794645 | AJ178: 1.395349612 | AK178: 1.393390569 | AL178: 1.325340628 | AM178: 1.296658222 | AN178: 1.088692851 | AO178: 0.865682925 | AP178: 0.990538355 | AQ178: 1.499244654 | AR178: 1.818407927 | AS178: 2.059846649 | AT178: 2.983584638 | AU178: 3.729211719 | AV178: 4.216804472 | AW178: 4.908328626 | AX178: 4.793994594 | AY178: 4.283816265 | AZ178: 3.812899664
A179: 71_2 | B179: 0 | C179: 0 | D179: 0.069309931 | E179: 0.152166909 | F179: 0.224433092 | G179: 0.224433092 | H179: 0.155123161 | I179: 0.239356005 | J179: 0.229945511 | K179: 0.229945511 | L179: 0.229945511 | M179: 0.062855689 | N179: 0.131566029 | O179: 0.383863534 | P179: 0.567959223 | Q179: 0.567959223 | R179: 0.436393194 | S179: 0.317866556 | T179: 0.276332763 | U179: 0.343698159 | V179: 0.420627739 | W179: 0.286856872 | X179: 0.220295351 | Y179: 0.373044762 | Z179: 0.460610378 | AA179: 0.76999319 | AB179: 0.753440646 | AC179: 0.533325839 | AD179: 0.368830644 | AE179: 0.059447832 | AF179: 0.089149887 | AG179: 0.39343665 | AH179: 0.39343665 | AI179: 0.533732608 | AJ179: 0.647418147 | AK179: 0.658652602 | AL179: 0.980763201 | AM179: 1.25806454 | AN179: 1.449879251 | AO179: 1.655476099 | AP179: 1.618489264 | AQ179: 1.680298049 | AR179: 1.460166383 | AS179: 1.246408322 | AT179: 1.343852992 | AU179: 0.960361597 | AV179: 0.967366599 | AW179: 0.90470031 | AX179: 0.965934654 | AY179: 1.200191867 | AZ179: 1.33266876
A180: 72_2 | B180: 2.153151794 | C180: 2.254709455 | D180: 1.907919794 | E180: 1.736776934 | F180: 1.627478714 | G180: 1.658622678 | H180: 2.116114605 | I180: 2.465699736 | J180: 2.600504501 | K180: 2.392540774 | L180: 2.669215964 | M180: 3.252222742 | N180: 3.775070366 | O180: 3.884043012 | P180: 3.176142134 | Q180: 2.528374531 | R180: 1.847295688 | S180: 2.019413005 | T180: 2.311849963 | U180: 2.466275483 | V180: 2.912332009 | W180: 2.902803569 | X180: 2.850881854 | Y180: 3.067103328 | Z180: 3.176954649 | AA180: 3.257387098 | AB180: 3.317623146 | AC180: 3.130737089 | AD180: 3.124163879 | AE180: 3.317548279 | AF180: 3.256247642 | AG180: 3.048214724 | AH180: 3.003755874 | AI180: 2.945463179 | AJ180: 2.932288511 | AK180: 3.020313592 | AL180: 2.513746327 | AM180: 2.057416915 | AN180: 1.995470944 | AO180: 2.020161653 | AP180: 2.593706464 | AQ180: 3.693573484 | AR180: 4.915070243 | AS180: 5.7959849 | AT180: 6.000540099 | AU180: 5.352690301 | AV180: 5.353345504 | AW180: 5.407709243 | AX180: 5.85778467 | AY180: 6.24601995 | AZ180: 5.911353169
A181: 73_2 | B181: 0.652612115 | C181: 0.629280391 | D181: 0.75738222 | E181: 0.957822068 | F181: 0.847510493 | G181: 0.610100345 | H181: 0.475874582 | I181: 0.28356927 | J181: 0.276582386 | K181: 0.423376043 | L181: 0.364724284 | M181: 0.365088419 | N181: 0.541636944 | O181: 0.770578286 | P181: 0.850123974 | Q181: 0.766595701 | R181: 0.920005278 | S181: 1.045354168 | T181: 1.244259776 | U181: 1.442741496 | V181: 1.26861447 | W181: 0.970089181 | X181: 0.921926986 | Y181: 1.027159646 | Z181: 1.385911244 | AA181: 1.534270655 | AB181: 1.89946964 | AC181: 2.222235915 | AD181: 2.316835944 | AE181: 2.875286177 | AF181: 3.159873064 | AG181: 3.53871058 | AH181: 4.132094296 | AI181: 4.418447962 | AJ181: 4.193296893 | AK181: 3.906300785 | AL181: 3.534719206 | AM181: 3.207396045 | AN181: 3.071705682 | AO181: 2.986439705 | AP181: 2.948299391 | AQ181: 2.796663808 | AR181: 3.102528652 | AS181: 3.671710697 | AT181: 4.099595361 | AU181: 4.320778394 | AV181: 4.473327224 | AW181: 4.522335167 | AX181: 4.206314343 | AY181: 4.027082452 | AZ181: 3.569994203
A182: 74_2 | B182: 3.577396776 | C182: 3.806937125 | D182: 3.894744639 | E182: 3.890289322 | F182: 3.924891047 | G182: 3.711468731 | H182: 3.557730803 | I182: 4.470951217 | J182: 5.331653741 | K182: 5.962880437 | L182: 7.098695022 | M182: 6.932955096 | N182: 6.23168891 | O182: 6.075395187 | P182: 5.721519069 | Q182: 6.070322538 | R182: 6.865653999 | S182: 7.38836434 | T182: 7.984057463 | U182: 8.254492745 | V182: 8.881520247 | W182: 9.811061586 | X182: 10.27681705 | Y182: 11.0334596 | Z182: 10.76669138 | AA182: 10.15758499 | AB182: 10.01775536 | AC182: 9.282601821 | AD182: 9.056464014 | AE182: 9.303258073 | AF182: 9.274376499 | AG182: 8.870581199 | AH182: 8.522293508 | AI182: 7.576026642 | AJ182: 6.873846001 | AK182: 6.916563269 | AL182: 6.99400166 | AM182: 6.928734051 | AN182: 6.973532509 | AO182: 6.936289344 | AP182: 7.577560374 | AQ182: 8.130068491 | AR182: 8.851125302 | AS182: 9.611713475 | AT182: 10.78321697 | AU182: 12.08593924 | AV182: 12.67528236 | AW182: 13.38165126 | AX182: 12.29619807 | AY182: 11.84236893 | AZ182: 11.8949522
A183: 75_2 | B183: 2.125096753 | C183: 2.31380284 | D183: 2.291425825 | E183: 2.532851451 | F183: 2.691086878 | G183: 2.768148405 | H183: 2.874835643 | I183: 2.759594065 | J183: 2.591605537 | K183: 2.317844388 | L183: 2.370679077 | M183: 2.341653678 | N183: 2.068984743 | O183: 2.053304343 | P183: 1.993955346 | Q183: 2.160957698 | R183: 2.677251698 | S183: 2.899687795 | T183: 3.333947769 | U183: 3.577201041 | V183: 3.839628244 | W183: 4.538734232 | X183: 4.552368341 | Y183: 5.103291875 | Z183: 5.041201909 | AA183: 4.731666753 | AB183: 4.811630298 | AC183: 4.205917645 | AD183: 4.511867595 | AE183: 5.12905879 | AF183: 5.854325004 | AG183: 6.272183011 | AH183: 6.08239471 | AI183: 5.550209721 | AJ183: 4.927437507 | AK183: 5.001780296 | AL183: 4.896376392 | AM183: 4.753537574 | AN183: 4.761516181 | AO183: 4.822218153 | AP183: 5.478808177 | AQ183: 5.919825194 | AR183: 6.52191287 | AS183: 6.942244924 | AT183: 7.491153775 | AU183: 8.323246255 | AV183: 8.334049705 | AW183: 8.775199553 | AX183: 7.88552722 | AY183: 7.211950848 | AZ183: 7.545440343
A184: 76_2 | B184: 0.729682489 | C184: 0.786925722 | D184: 0.818765242 | E184: 0.852786533 | F184: 0.999727176 | G184: 0.972686759 | H184: 1.015209564 | I184: 0.996273891 | J184: 0.860320315 | K184: 0.752271438 | L184: 0.75573369 | M184: 0.743518056 | N184: 0.690444858 | O184: 0.657083347 | P184: 0.54793645 | Q184: 0.553510662 | R184: 0.552532953 | S184: 0.554044574 | T184: 0.782478077 | U184: 0.854028967 | V184: 1.188439669 | W184: 1.564389198 | X184: 1.563769995 | Y184: 1.848185014 | Z184: 1.67182736 | AA184: 1.44922225 | AB184: 1.382874262 | AC184: 1.166190561 | AD184: 1.262943968 | AE184: 1.578114194 | AF184: 2.027231434 | AG184: 2.104627604 | AH184: 1.999632227 | AI184: 1.946961408 | AJ184: 1.702639547 | AK184: 1.675101885 | AL184: 1.711225177 | AM184: 1.468981017 | AN184: 1.395120447 | AO184: 1.301699058 | AP184: 1.655349588 | AQ184: 2.041240541 | AR184: 2.319004084 | AS184: 2.481461362 | AT184: 2.428856806 | AU184: 2.46465938 | AV184: 2.189718178 | AW184: 2.519327048 | AX184: 2.226487725 | AY184: 2.085228986 | AZ184: 2.271600183
A185: 77_2 | B185: 0.361718633 | C185: 0.547835144 | D185: 0.572200491 | E185: 0.670738906 | F185: 0.558538136 | G185: 0.560492252 | H185: 0.661063419 | I185: 0.677380541 | J185: 0.744685942 | K185: 0.697431441 | L185: 0.789675763 | M185: 0.789671891 | N185: 0.679878992 | O185: 0.666043632 | P185: 0.578679916 | Q185: 0.545091346 | R185: 0.57851483 | S185: 0.578583542 | T185: 0.476124784 | U185: 0.439338606 | V185: 0.517998213 | W185: 0.807443811 | X185: 1.106013525 | Y185: 1.339620668 | Z185: 1.407683464 | AA185: 1.119624477 | AB185: 0.963579203 | AC185: 0.741682113 | AD185: 0.875643168 | AE185: 1.087586757 | AF185: 1.272634004 | AG185: 1.382593974 | AH185: 1.307429878 | AI185: 1.177971017 | AJ185: 0.881627738 | AK185: 0.872215833 | AL185: 0.800480585 | AM185: 0.91519532 | AN185: 1.027952626 | AO185: 1.167889053 | AP185: 1.169317861 | AQ185: 1.182505029 | AR185: 1.248727214 | AS185: 1.339413287 | AT185: 1.77454087 | AU185: 1.982905215 | AV185: 1.771811415 | AW185: 1.807113256 | AX185: 1.350671435 | AY185: 1.443250591 | AZ185: 2.252861295
A186: 78_2 | B186: 0.717367841 | C186: 0.60377346 | D186: 0.599004735 | E186: 0.68281303 | F186: 0.727528177 | G186: 0.842416167 | H186: 0.807357661 | I186: 0.723862431 | J186: 0.740297171 | K186: 0.696151894 | L186: 0.653789508 | M186: 0.634980791 | N186: 0.526813075 | O186: 0.556380874 | P186: 0.657979079 | Q186: 0.857453808 | R186: 1.264030301 | S186: 1.365673778 | T186: 1.53043336 | U186: 1.556127061 | V186: 1.477440567 | W186: 1.638023159 | X186: 1.329682187 | Y186: 1.331643723 | Z186: 1.152927822 | AA186: 1.129492154 | AB186: 1.511648864 | AC186: 1.410258611 | AD186: 1.556985616 | AE186: 1.755245508 | AF186: 1.749525249 | AG186: 1.924824542 | AH186: 1.999039172 | AI186: 1.675568723 | AJ186: 1.597582899 | AK186: 1.75532168 | AL186: 1.659780799 | AM186: 1.774389276 | AN186: 1.739827896 | AO186: 1.676354856 | AP186: 1.80896022 | AQ186: 1.693082965 | AR186: 1.721245637 | AS186: 1.691454903 | AT186: 1.904969779 | AU186: 2.464176837 | AV186: 3.094581903 | AW186: 3.298385735 | AX186: 3.213982373 | AY186: 2.714428413 | AZ186: 2.172845554
A187: 79_2 | B187: 0.316327789 | C187: 0.375268515 | D187: 0.301455356 | E187: 0.326512983 | F187: 0.405293389 | G187: 0.392553228 | H187: 0.391204999 | I187: 0.362077202 | J187: 0.24630211 | K187: 0.171989616 | L187: 0.171480117 | M187: 0.17348294 | N187: 0.171847819 | O187: 0.173796489 | P187: 0.209359901 | Q187: 0.204901882 | R187: 0.282173614 | S187: 0.401385901 | T187: 0.544911547 | U187: 0.727706406 | V187: 0.655749795 | W187: 0.528878064 | X187: 0.552902635 | Y187: 0.58384247 | Z187: 0.808763264 | AA187: 1.033327872 | AB187: 0.953527969 | AC187: 0.88778636 | AD187: 0.816294842 | AE187: 0.708112331 | AF187: 0.804934318 | AG187: 0.860136892 | AH187: 0.776293433 | AI187: 0.749708574 | AJ187: 0.745587323 | AK187: 0.699140897 | AL187: 0.72488983 | AM187: 0.594971961 | AN187: 0.598615212 | AO187: 0.676275185 | AP187: 0.845180509 | AQ187: 1.00299666 | AR187: 1.232935935 | AS187: 1.429915372 | AT187: 1.382786321 | AU187: 1.411504823 | AV187: 1.277938209 | AW187: 1.150373514 | AX187: 1.094385688 | AY187: 0.969042858 | AZ187: 0.84813331
A188: 80_2 | B188: 1.452300023 | C188: 1.493134285 | D188: 1.603318814 | E188: 1.357437871 | F188: 1.233804168 | G188: 0.943320325 | H188: 0.68289516 | I188: 1.711357152 | J188: 2.740048204 | K188: 3.645036049 | L188: 4.728015945 | M188: 4.591301418 | N188: 4.162704167 | O188: 4.022090845 | P188: 3.727563722 | Q188: 3.909364839 | R188: 4.188402301 | S188: 4.488676545 | T188: 4.650109695 | U188: 4.677291705 | V188: 5.041892004 | W188: 5.272327354 | X188: 5.724448711 | Y188: 5.930167723 | Z188: 5.725489469 | AA188: 5.425918237 | AB188: 5.206125059 | AC188: 5.076684176 | AD188: 4.544596419 | AE188: 4.174199283 | AF188: 3.420051495 | AG188: 2.598398188 | AH188: 2.439898799 | AI188: 2.025816921 | AJ188: 1.946408494 | AK188: 1.914782973 | AL188: 2.097625268 | AM188: 2.175196478 | AN188: 2.212016328 | AO188: 2.114071191 | AP188: 2.098752198 | AQ188: 2.210243296 | AR188: 2.329212432 | AS188: 2.669468551 | AT188: 3.292063192 | AU188: 3.762692987 | AV188: 4.341232655 | AW188: 4.606451708 | AX188: 4.410670848 | AY188: 4.630418084 | AZ188: 4.349511853
A189: 81_2 | B189: 0.097898468 | C189: 0.057450108 | D189: 0.057450108 | E189: 0 | F189: 0.042116193 | G189: 0.083630363 | H189: 0.129417319 | I189: 0.255959555 | J189: 0.369572898 | K189: 0.522651132 | L189: 0.524829257 | M189: 0.45156823 | N189: 0.390917882 | O189: 0.25318303 | P189: 0.363488699 | Q189: 0.352808527 | R189: 0.316881876 | S189: 0.309792956 | T189: 0.213596381 | U189: 0.32014434 | V189: 0.419438653 | W189: 0.533863841 | X189: 0.772116231 | Y189: 0.970289212 | Z189: 0.871217373 | AA189: 0.778202376 | AB189: 0.590786503 | AC189: 0.319414026 | AD189: 0.534630323 | AE189: 0.69534143 | AF189: 0.744473611 | AG189: 0.66852411 | AH189: 0.393932804 | AI189: 0.162042873 | AJ189: 0.068803542 | AK189: 0.068803542 | AL189: 0.19169955 | AM189: 0.350996722 | AN189: 0.397179703 | AO189: 0.513924714 | AP189: 0.543063082 | AQ189: 0.530109306 | AR189: 0.656895165 | AS189: 0.781352053 | AT189: 0.967179187 | AU189: 1.122738536 | AV189: 1.101218215 | AW189: 1.012155511 | AX189: 0.911412752 | AY189: 0.999201441 | AZ189: 0.861032369
A190: 82_2 | B190: 1.143800874 | C190: 1.247827011 | D190: 1.21795282 | E190: 0.861565542 | F190: 0.695815647 | G190: 0.466444924 | H190: 0.292699537 | I190: 1.168603004 | J190: 1.976818063 | K190: 2.735977105 | L190: 3.744515789 | M190: 3.87503502 | N190: 3.541527759 | O190: 3.476663209 | P190: 3.16735441 | Q190: 3.359835699 | R190: 3.74722282 | S190: 4.10876154 | T190: 4.394819931 | U190: 4.277983778 | V190: 4.348644301 | W190: 4.459644335 | X190: 4.635946208 | Y190: 4.631597599 | Z190: 4.720636646 | AA190: 4.421839663 | AB190: 4.295373381 | AC190: 4.110866787 | AD190: 3.218360795 | AE190: 2.675578636 | AF190: 1.925340895 | AG190: 1.275957123 | AH190: 1.190316652 | AI190: 1.009250294 | AJ190: 0.863724916 | AK190: 0.93382937 | AL190: 1.029331947 | AM190: 0.913732457 | AN190: 0.887036184 | AO190: 0.66110668 | AP190: 0.860811396 | AQ190: 1.061039183 | AR190: 1.075332101 | AS190: 1.223673467 | AT190: 1.351239934 | AU190: 1.53937129 | AV190: 2.00346455 | AW190: 2.492084891 | AX190: 2.624200911 | AY190: 2.938051161 | AZ190: 3.047841131
A191: 83_2 | B191: 0.210600681 | C191: 0.187857166 | D191: 0.327915886 | E191: 0.495872329 | F191: 0.495872329 | G191: 0.393245039 | H191: 0.260778305 | I191: 0.286794593 | J191: 0.393657244 | K191: 0.386407812 | L191: 0.458670899 | M191: 0.264698168 | N191: 0.230258526 | O191: 0.292244605 | P191: 0.196720613 | Q191: 0.196720613 | R191: 0.124297605 | S191: 0.070122049 | T191: 0.041693383 | U191: 0.079163587 | V191: 0.273809049 | W191: 0.278819178 | X191: 0.316386272 | Y191: 0.328280912 | Z191: 0.13363545 | AA191: 0.225876198 | AB191: 0.319965175 | AC191: 0.646403363 | AD191: 0.791605301 | AE191: 0.803279217 | AF191: 0.750236989 | AG191: 0.653916955 | AH191: 0.855649343 | AI191: 0.854523754 | AJ191: 1.013880036 | AK191: 0.912150061 | AL191: 0.876593771 | AM191: 0.910467298 | AN191: 0.927800442 | AO191: 0.939039798 | AP191: 0.69487772 | AQ191: 0.619094808 | AR191: 0.596985165 | AS191: 0.664443032 | AT191: 0.973644071 | AU191: 1.100583161 | AV191: 1.23654989 | AW191: 1.102211307 | AX191: 0.875057185 | AY191: 0.693165482 | AZ191: 0.440638353
A192: 84_2 | B192: 35.0709267 | C192: 33.83703903 | D192: 32.46672977 | E192: 32.24768653 | F192: 32.78157203 | G192: 34.0983851 | H192: 35.57090505 | I192: 35.12326705 | J192: 34.60812097 | K192: 33.69470402 | L192: 34.02982442 | M192: 35.5683435 | N192: 38.29163549 | O192: 39.95660528 | P192: 40.21065578 | Q192: 41.05165446 | R192: 41.43987726 | S192: 43.96489081 | T192: 47.62854023 | U192: 48.00063333 | V192: 49.64110046 | W192: 51.45085183 | X192: 51.61458631 | Y192: 53.12385813 | Z192: 51.95945382 | AA192: 51.43365951 | AB192: 51.2982902 | AC192: 52.39959368 | AD192: 58.83500385 | AE192: 63.80002122 | AF192: 69.44278204 | AG192: 70.25881609 | AH192: 65.07475223 | AI192: 62.49080165 | AJ192: 60.47140043 | AK192: 64.87624474 | AL192: 71.74335811 | AM192: 78.3817602 | AN192: 84.33724016 | AO192: 86.43948565 | AP192: 88.69758004 | AQ192: 89.97447842 | AR192: 94.38118182 | AS192: 100.1995404 | AT192: 107.5777735 | AU192: 114.9230001 | AV192: 116.3695321 | AW192: 117.8407618 | AX192: 114.6000744 | AY192: 110.8475098 | AZ192: 109.1528508
A193: 85_2 | B193: 18.13250521 | C193: 17.19730212 | D193: 16.74032439 | E193: 16.83141143 | F193: 17.70449924 | G193: 19.19884919 | H193: 20.54568121 | I193: 21.22720718 | J193: 21.40559237 | K193: 21.01312541 | L193: 21.26979598 | M193: 21.81309819 | N193: 23.82055622 | O193: 25.04777977 | P193: 24.96100355 | Q193: 26.04310245 | R193: 26.37479758 | S193: 27.65407286 | T193: 29.876429 | U193: 30.84222165 | V193: 31.39006837 | W193: 32.48835178 | X193: 33.22660485 | Y193: 33.50601656 | Z193: 33.6213468 | AA193: 34.07078822 | AB193: 34.20110407 | AC193: 35.71326337 | AD193: 40.00611113 | AE193: 42.39094047 | AF193: 46.29931548 | AG193: 45.91738981 | AH193: 41.89094767 | AI193: 39.94870095 | AJ193: 37.24061447 | AK193: 41.18214783 | AL193: 47.2727335 | AM193: 51.16045155 | AN193: 54.85166904 | AO193: 54.17890174 | AP193: 53.99712994 | AQ193: 56.07751122 | AR193: 58.42526122 | AS193: 62.39375122 | AT193: 67.25626411 | AU193: 71.53501237 | AV193: 74.42050106 | AW193: 76.05523456 | AX193: 74.00410746 | AY193: 71.18531233 | AZ193: 71.36960795
A194: 86_2 | B194: 0.753090591 | C194: 0.605973276 | D194: 0.674289233 | E194: 0.904859821 | F194: 1.145495381 | G194: 1.234735403 | H194: 1.729557295 | I194: 2.084862957 | J194: 2.132016788 | K194: 2.083931257 | L194: 2.176271966 | M194: 2.208451521 | N194: 2.539695304 | O194: 2.776269987 | P194: 2.370976635 | Q194: 2.232090682 | R194: 2.20758797 | S194: 2.073408626 | T194: 2.095005851 | U194: 2.145656122 | V194: 1.882519626 | W194: 2.209067675 | X194: 2.319231974 | Y194: 2.304921991 | Z194: 2.18160283 | AA194: 2.089710187 | AB194: 1.977319541 | AC194: 2.08094551 | AD194: 2.725229919 | AE194: 3.06556375 | AF194: 3.867979247 | AG194: 3.901384437 | AH194: 3.72118566 | AI194: 3.294352513 | AJ194: 2.70508975 | AK194: 2.812223211 | AL194: 3.314396981 | AM194: 3.852656942 | AN194: 4.319752544 | AO194: 4.349106941 | AP194: 4.048802029 | AQ194: 3.92026231 | AR194: 3.805666919 | AS194: 4.070235524 | AT194: 4.050152679 | AU194: 4.032058141 | AV194: 4.596217032 | AW194: 5.036067257 | AX194: 5.612145039 | AY194: 5.799406671 | AZ194: 5.391685981
A195: 87_2 | B195: 2.976269687 | C195: 2.747921526 | D195: 2.067033858 | E195: 2.351488085 | F195: 2.467807643 | G195: 3.129891637 | H195: 3.405108004 | I195: 3.288233672 | J195: 3.173273855 | K195: 2.829300714 | L195: 3.273734842 | M195: 3.759936162 | N195: 4.479271413 | O195: 4.740604642 | P195: 4.273054783 | Q195: 3.5338522 | R195: 3.19388241 | S195: 3.285106637 | T195: 3.716593781 | U195: 4.702247069 | V195: 5.093680528 | W195: 5.33557691 | X195: 5.590658237 | Y195: 5.257491138 | Z195: 5.128191345 | AA195: 4.918436949 | AB195: 4.257851658 | AC195: 3.79630078 | AD195: 4.097864874 | AE195: 3.977099656 | AF195: 4.792712568 | AG195: 4.960803118 | AH195: 3.889531688 | AI195: 3.761338772 | AJ195: 3.32811133 | AK195: 4.019679816 | AL195: 5.625281938 | AM195: 5.958729576 | AN195: 5.886024916 | AO195: 6.175663197 | AP195: 6.476907088 | AQ195: 7.353904649 | AR195: 8.058726823 | AS195: 8.279781049 | AT195: 8.172167772 | AU195: 7.469832375 | AV195: 7.242528192 | AW195: 7.186514059 | AX195: 6.954239529 | AY195: 7.812748993 | AZ195: 8.711694463
A196: 88_2 | B196: 1.255278524 | C196: 1.294346237 | D196: 1.614928784 | E196: 1.658448337 | F196: 1.921773103 | G196: 2.441242176 | H196: 2.526054572 | I196: 2.3978658 | J196: 2.227703177 | K196: 1.926943453 | L196: 1.777099402 | M196: 1.744138292 | N196: 1.953949742 | O196: 2.043186678 | P196: 2.257970678 | Q196: 2.733025444 | R196: 2.766805081 | S196: 3.005977933 | T196: 3.074807952 | U196: 2.882452204 | V196: 3.122775548 | W196: 3.347312896 | X196: 3.833512884 | Y196: 3.914549957 | Z196: 3.698570804 | AA196: 3.589400655 | AB196: 3.509405432 | AC196: 4.080739299 | AD196: 4.440373511 | AE196: 4.621439856 | AF196: 4.534289259 | AG196: 4.057596042 | AH196: 3.732543487 | AI196: 3.652399183 | AJ196: 3.678721063 | AK196: 4.171833293 | AL196: 4.524984782 | AM196: 4.409048309 | AN196: 4.886447726 | AO196: 4.784026209 | AP196: 4.877119684 | AQ196: 5.146959717 | AR196: 5.264107724 | AS196: 5.835502642 | AT196: 6.578713269 | AU196: 7.886723192 | AV196: 8.667331443 | AW196: 8.947324413 | AX196: 8.947116977 | AY196: 7.970325002 | AZ196: 7.209153833
A197: 89_2 | B197: 5.062669876 | C197: 4.670536473 | D197: 4.212771533 | E197: 4.159754102 | F197: 4.612727379 | G197: 4.932610379 | H197: 5.381811098 | I197: 5.846069796 | J197: 5.729297017 | K197: 5.311259802 | L197: 4.849252901 | M197: 4.593149691 | N197: 4.805068195 | O197: 5.195368442 | P197: 5.285635573 | Q197: 5.669733774 | R197: 5.986625277 | S197: 6.854425311 | T197: 8.032556344 | U197: 8.483741379 | V197: 8.944840101 | W197: 8.999840348 | X197: 9.229538214 | Y197: 9.418445273 | Z197: 9.09472931 | AA197: 8.64908785 | AB197: 8.352673614 | AC197: 9.309988392 | AD197: 10.68707547 | AE197: 12.51691997 | AF197: 13.82572084 | AG197: 13.68998664 | AH197: 12.53859263 | AI197: 10.62158186 | AJ197: 9.018087871 | AK197: 9.311300195 | AL197: 11.41330358 | AM197: 13.70481405 | AN197: 15.48551401 | AO197: 15.21018296 | AP197: 14.47147678 | AQ197: 14.43319851 | AR197: 14.54338816 | AS197: 16.2001142 | AT197: 19.19790396 | AU197: 20.65834224 | AV197: 21.68692449 | AW197: 22.66222387 | AX197: 21.43268688 | AY197: 20.8459536 | AZ197: 21.83780552
A198: 90_2 | B198: 4.204949728 | C198: 4.154071005 | D198: 4.38076913 | E198: 4.209299757 | F198: 4.196969105 | G198: 4.112642053 | H198: 4.179912285 | I198: 4.296321593 | J198: 4.552761839 | K198: 4.740112515 | L198: 4.82113586 | M198: 5.039267249 | N198: 5.226730834 | O198: 5.638844789 | P198: 6.068212115 | Q198: 6.926092608 | R198: 7.349497066 | S198: 7.553171795 | T198: 8.055210542 | U198: 7.903173613 | V198: 7.238695102 | W198: 7.288892263 | X198: 6.653967649 | Y198: 6.367607885 | Z198: 7.003942702 | AA198: 7.504538179 | AB198: 8.229521026 | AC198: 8.670029874 | AD198: 9.905641149 | AE198: 10.62239337 | AF198: 11.20471855 | AG198: 11.39041858 | AH198: 10.46737089 | AI198: 10.29505027 | AJ198: 10.23236048 | AK198: 11.35548842 | AL198: 12.12066097 | AM198: 12.88356168 | AN198: 13.2181662 | AO198: 12.37235523 | AP198: 11.90023543 | AQ198: 12.52346141 | AR198: 13.27849678 | AS198: 14.0413324 | AT198: 14.98907301 | AU198: 15.9105398 | AV198: 17.29110568 | AW198: 17.32759199 | AX198: 16.94021799 | AY198: 16.08154889 | AZ198: 15.5863781
A199: 91_2 | B199: 3.880246809 | C199: 3.724453599 | D199: 3.790531858 | E199: 3.547561327 | F199: 3.359726626 | G199: 3.347727538 | H199: 3.323237956 | I199: 3.313853361 | J199: 3.590539695 | K199: 4.121577667 | L199: 4.372301013 | M199: 4.468155274 | N199: 4.815840733 | O199: 4.65350523 | P199: 4.705153768 | Q199: 4.948307746 | R199: 4.870399778 | S199: 4.881982562 | T199: 4.902254526 | U199: 4.724951264 | V199: 5.107557467 | W199: 5.30766169 | X199: 5.599695893 | Y199: 6.243000313 | Z199: 6.514309805 | AA199: 7.319614401 | AB199: 7.874332797 | AC199: 7.775259519 | AD199: 8.149926209 | AE199: 7.587523863 | AF199: 8.073895016 | AG199: 7.917200987 | AH199: 7.541723313 | AI199: 8.323978346 | AJ199: 8.27824398 | AK199: 9.511622893 | AL199: 10.27410526 | AM199: 10.35164099 | AN199: 11.05576364 | AO199: 11.28756721 | AP199: 12.22258893 | AQ199: 12.69972462 | AR199: 13.47487481 | AS199: 13.9667854 | AT199: 14.26825342 | AU199: 15.57751662 | AV199: 14.93639422 | AW199: 14.89551297 | AX199: 14.11770105 | AY199: 12.67532917 | AZ199: 12.63289006
A200: 92_2 | B200: 16.93842148 | C200: 16.63973691 | D200: 15.72640538 | E200: 15.41627511 | F200: 15.07707279 | G200: 14.89953591 | H200: 15.02522384 | I200: 13.89605987 | J200: 13.2025286 | K200: 12.68157862 | L200: 12.76002844 | M200: 13.75524531 | N200: 14.47107927 | O200: 14.90882551 | P200: 15.24965223 | Q200: 15.00855201 | R200: 15.06507968 | S200: 16.31081795 | T200: 17.75211124 | U200: 17.15841168 | V200: 18.25103208 | W200: 18.96250005 | X200: 18.38798146 | Y200: 19.61784157 | Z200: 18.33810702 | AA200: 17.36287129 | AB200: 17.09718613 | AC200: 16.68633031 | AD200: 18.82889272 | AE200: 21.40908075 | AF200: 23.14346655 | AG200: 24.34142628 | AH200: 23.18380456 | AI200: 22.5421007 | AJ200: 23.23078596 | AK200: 23.69409691 | AL200: 24.47062461 | AM200: 27.22130865 | AN200: 29.48557112 | AO200: 32.26058391 | AP200: 34.7004501 | AQ200: 33.8969672 | AR200: 35.95592061 | AS200: 37.80578922 | AT200: 40.32150937 | AU200: 43.38798773 | AV200: 41.94903106 | AW200: 41.78552724 | AX200: 40.59596695 | AY200: 39.66219744 | AZ200: 37.78324287
... 925 more rows
